Workbook

Sheet All tests
B1: Expected output data per test | P1: Input data | U1: 50 cars | AC1: 75 cars | AK1: 150 cars | AS1: 50 cars | AT1: Tvåpunktsformel | BA1: 75 cars | BB1: Tvåpunktsformel | BI1: 150 cars | BJ1: Tvåpunktsformel
A2: Test name | B2: Time [s] | H2: Pedestrians in the system [n] | K2: Vehicles in the system [n] | L2: Cars at Destination A [n] | O2: Cars at Destination B [n] | P2: Distance [m] | Q2: Multiplier[-] | R2: Walking speed [m/s] | S2: Optical density per m [m^-1] | T2: Fractional speed [-] | U2: Cars/km/lane | V2: Relative density [-] | W2: Speed limits [km/h] | AC2: Cars/km/lane | AD2: Relative density [-] | AE2: Speed limits [km/h] | AK2: Cars/lane/km | AL2: Relative density [-] | AM2: Speed limits [km/h] | AS2: Cars/lane/km | AT2: Relative density [-] | AU2: Speed limits [km/h] | BA2: Cars/lane/km | BB2: Relative density [-] | BC2: Speed limits [km/h] | BI2: Cars/lane/km | BJ2: Relative density [-] | BK2: Speed limits [km/h]
A3: P1 | H3: Implemented number of people entering road network | P3: 100 | Q3: =0.1 -> 0.1 | R3: 1 | S3: 0 | T3: =-101.57*$S3^3+49.43*$S3^2-9.2755*$S3+1 -> 1 | W3: 30 | X3: 50 | Y3: 70 | Z3: 90 | AA3: 110 | AB3: 120 | AE3: 30 | AF3: 50 | AG3: 70 | AH3: 90 | AI3: 110 | AJ3: 120 | AM3: 30 | AN3: 50 | AO3: 70 | AP3: 90 | AQ3: 110 | AR3: 120 | AU3: 30 | AV3: 50 | AW3: 70 | AX3: 90 | AY3: 110 | AZ3: 120 | BC3: 30 | BD3: 50 | BE3: 70 | BF3: 90 | BG3: 110 | BH3: 120 | BK3: 30 | BL3: 50 | BM3: 70 | BN3: 90 | BO3: 110 | BP3: 120
H4: N | P4: 500 | Q4: =Q3+0.1 -> 0.2 | R4: Stall speed [km/h] | S4: 0.05 | T4: =-101.57*$S4^3+49.43*$S4^2-9.2755*$S4+1 -> 0.64710375 | U4: =0 -> 0 | V4: =U4/$U$54 -> 0 | W4: =(1-$V4)*(W$3-$R$5)+$R$5 -> 30 | X4: 50 | Y4: 70 | Z4: 90 | AA4: 110 | AB4: 120 | AC4: =0 -> 0 | AD4: =AC4/$AC$79 -> 0 | AE4: =(1-$AD4)*(AE$3-$R$5)+$R$5 -> 30 | AF4: 50 | AG4: 70 | AH4: 90 | AI4: 110 | AJ4: 120 | AK4: =0 -> 0 | AL4: =AK4/$AK$154 -> 0 | AM4: =(1-$AL4)*(AM$3-$R$5)+$R$5 -> 30 | AN4: 50 | AO4: 70 | AP4: 90 | AQ4: 110 | AR4: 120 | AS4: =1 -> 1 | AT4: =AS4/$AS$53 -> 0.02 | AU4: =(($R$5-AU$3)/($AT$53-$AT$4))*($AT4-$AT$4)+AU$3 -> 30 | AV4: 50 | AW4: 70 | AX4: 90 | AY4: 110 | AZ4: 120 | BA4: =1 -> 1 | BB4: =BA4/$BA$78 -> 0.01333333333 | BC4: =(($R$5-BC$3)/($BB$78-$BB$4))*($BB4-$BB$4)+BC$3 -> 30 | BD4: 50 | BE4: 70 | BF4: 90 | BG4: 110 | BH4: 120 | BI4: =1 -> 1 | BJ4: =BI4/$BI$153 -> 0.006666666667 | BK4: =(($R$5-BK$3)/($BJ$153-$BJ$4))*($BJ4-$BJ$4)+BK$3 -> 30 | BL4: 50 | BM4: 70 | BN4: 90 | BO4: 110 | BP4: 120
A5: P2 | B5: Pedestrians max walking distance to reach vehicle | K5: Implemented number of vehicles entering road network | P5: 1000 | Q5: 0.3 | R5: 1 | S5: 0.1 | T5: =-101.57*$S5^3+49.43*$S5^2-9.2755*$S5+1 -> 0.46518 | U5: =U4+1 -> 1 | V5: 0.02 | W5: 29.42 | X5: 49.02 | Y5: 68.62 | Z5: 88.22 | AA5: 107.82 | AB5: 117.62 | AC5: =AC4+1 -> 1 | AD5: 0.01333333333 | AE5: 29.61333333 | AF5: 49.34666667 | AG5: 69.08 | AH5: 88.81333333 | AI5: 108.5466667 | AJ5: 118.4133333 | AK5: =AK4+1 -> 1 | AL5: 0.006666666667 | AM5: 29.80666667 | AN5: 49.67333333 | AO5: 69.54 | AP5: 89.40666667 | AQ5: 109.2733333 | AR5: 119.2066667 | AS5: =AS4+1 -> 2 | AT5: 0.04 | AU5: 29.40816327 | AV5: 49 | AW5: 68.59183673 | AX5: 88.18367347 | AY5: 107.7755102 | AZ5: 117.5714286 | BA5: =BA4+1 -> 2 | BB5: 0.02666666667 | BC5: 29.60810811 | BD5: 49.33783784 | BE5: 69.06756757 | BF5: 88.7972973 | BG5: 108.527027 | BH5: 118.3918919 | BI5: =BI4+1 -> 2 | BJ5: 0.01333333333 | BK5: 29.80536913 | BL5: 49.67114094 | BM5: 69.53691275 | BN5: 89.40268456 | BO5: 109.2684564 | BP5: 119.2013423
B6: =SQRT(P4^2+P4^2)/R3 -> 707.1067812 | K6: N | P6: 1500 | Q6: 0.4 | R6: Event timer [s] | S6: 0.15 | T6: =-101.57*$S6^3+49.43*$S6^2-9.2755*$S6+1 -> 0.37805125 | U6: 2 | V6: 0.04 | W6: 28.84 | X6: 48.04 | Y6: 67.24 | Z6: 86.44 | AA6: 105.64 | AB6: 115.24 | AC6: 2 | AD6: 0.02666666667 | AE6: 29.22666667 | AF6: 48.69333333 | AG6: 68.16 | AH6: 87.62666667 | AI6: 107.0933333 | AJ6: 116.8266667 | AK6: 2 | AL6: 0.01333333333 | AM6: 29.61333333 | AN6: 49.34666667 | AO6: 69.08 | AP6: 88.81333333 | AQ6: 108.5466667 | AR6: 118.4133333 | AS6: 3 | AT6: 0.06 | AU6: 28.81632653 | AV6: 48 | AW6: 67.18367347 | AX6: 86.36734694 | AY6: 105.5510204 | AZ6: 115.1428571 | BA6: 3 | BB6: 0.04 | BC6: 29.21621622 | BD6: 48.67567568 | BE6: 68.13513514 | BF6: 87.59459459 | BG6: 107.0540541 | BH6: 116.7837838 | BI6: 3 | BJ6: 0.02 | BK6: 29.61073826 | BL6: 49.34228188 | BM6: 69.0738255 | BN6: 88.80536913 | BO6: 108.5369128 | BP6: 118.4026846
A7: P3 | B7: Min and max response time from response curve | H7: People evac. before trigger | I7: People evac. after trigger | J7: People not evac. | P7: 2000 | Q7: 0.5 | R7: 10 | S7: 0.2 | T7: =-101.57*$S7^3+49.43*$S7^2-9.2755*$S7+1 -> 0.30954 | U7: 3 | V7: 0.06 | W7: 28.26 | X7: 47.06 | Y7: 65.86 | Z7: 84.66 | AA7: 103.46 | AB7: 112.86 | AC7: 3 | AD7: 0.04 | AE7: 28.84 | AF7: 48.04 | AG7: 67.24 | AH7: 86.44 | AI7: 105.64 | AJ7: 115.24 | AK7: 3 | AL7: 0.02 | AM7: 29.42 | AN7: 49.02 | AO7: 68.62 | AP7: 88.22 | AQ7: 107.82 | AR7: 117.62 | AS7: 4 | AT7: 0.08 | AU7: 28.2244898 | AV7: 47 | AW7: 65.7755102 | AX7: 84.55102041 | AY7: 103.3265306 | AZ7: 112.7142857 | BA7: 4 | BB7: 0.05333333333 | BC7: 28.82432432 | BD7: 48.01351351 | BE7: 67.2027027 | BF7: 86.39189189 | BG7: 105.5810811 | BH7: 115.1756757 | BI7: 4 | BJ7: 0.02666666667 | BK7: 29.41610738 | BL7: 49.01342282 | BM7: 68.61073826 | BN7: 88.20805369 | BO7: 107.8053691 | BP7: 117.6040268
B8: (-) t | C8: t | H8: N% | I8: N% | J8: N% | P8: 4000 | Q8: 0.6 | R8: 30 | U8: 4 | V8: 0.08 | W8: 27.68 | X8: 46.08 | Y8: 64.48 | Z8: 82.88 | AA8: 101.28 | AB8: 110.48 | AC8: 4 | AD8: 0.05333333333 | AE8: 28.45333333 | AF8: 47.38666667 | AG8: 66.32 | AH8: 85.25333333 | AI8: 104.1866667 | AJ8: 113.6533333 | AK8: 4 | AL8: 0.02666666667 | AM8: 29.22666667 | AN8: 48.69333333 | AO8: 68.16 | AP8: 87.62666667 | AQ8: 107.0933333 | AR8: 116.8266667 | AS8: 5 | AT8: 0.1 | AU8: 27.63265306 | AV8: 46 | AW8: 64.36734694 | AX8: 82.73469388 | AY8: 101.1020408 | AZ8: 110.2857143 | BA8: 5 | BB8: 0.06666666667 | BC8: 28.43243243 | BD8: 47.35135135 | BE8: 66.27027027 | BF8: 85.18918919 | BG8: 104.1081081 | BH8: 113.5675676 | BI8: 5 | BJ8: 0.03333333333 | BK8: 29.22147651 | BL8: 48.68456376 | BM8: 68.14765101 | BN8: 87.61073826 | BO8: 107.0738255 | BP8: 116.8053691
A9: P4 | B9: Normal walking speed | C9: Modified slower walking speed | Q9: 0.7 | R9: 60 | U9: 5 | V9: 0.1 | W9: 27.1 | X9: 45.1 | Y9: 63.1 | Z9: 81.1 | AA9: 99.1 | AB9: 108.1 | AC9: 5 | AD9: 0.06666666667 | AE9: 28.06666667 | AF9: 46.73333333 | AG9: 65.4 | AH9: 84.06666667 | AI9: 102.7333333 | AJ9: 112.0666667 | AK9: 5 | AL9: 0.03333333333 | AM9: 29.03333333 | AN9: 48.36666667 | AO9: 67.7 | AP9: 87.03333333 | AQ9: 106.3666667 | AR9: 116.0333333 | AS9: 6 | AT9: 0.12 | AU9: 27.04081633 | AV9: 45 | AW9: 62.95918367 | AX9: 80.91836735 | AY9: 98.87755102 | AZ9: 107.8571429 | BA9: 6 | BB9: 0.08 | BC9: 28.04054054 | BD9: 46.68918919 | BE9: 65.33783784 | BF9: 83.98648649 | BG9: 102.6351351 | BH9: 111.9594595 | BI9: 6 | BJ9: 0.04 | BK9: 29.02684564 | BL9: 48.3557047 | BM9: 67.68456376 | BN9: 87.01342282 | BO9: 106.3422819 | BP9: 116.0067114
B10: =P5/R3 -> 1000 | C10: =P5/(R3*Q7) -> 2000 | Q10: 0.8 | R10: 600 | U10: 6 | V10: 0.12 | W10: 26.52 | X10: 44.12 | Y10: 61.72 | Z10: 79.32 | AA10: 96.92 | AB10: 105.72 | AC10: 6 | AD10: 0.08 | AE10: 27.68 | AF10: 46.08 | AG10: 64.48 | AH10: 82.88 | AI10: 101.28 | AJ10: 110.48 | AK10: 6 | AL10: 0.04 | AM10: 28.84 | AN10: 48.04 | AO10: 67.24 | AP10: 86.44 | AQ10: 105.64 | AR10: 115.24 | AS10: 7 | AT10: 0.14 | AU10: 26.44897959 | AV10: 44 | AW10: 61.55102041 | AX10: 79.10204082 | AY10: 96.65306122 | AZ10: 105.4285714 | BA10: 7 | BB10: 0.09333333333 | BC10: 27.64864865 | BD10: 46.02702703 | BE10: 64.40540541 | BF10: 82.78378378 | BG10: 101.1621622 | BH10: 110.3513514 | BI10: 7 | BJ10: 0.04666666667 | BK10: 28.83221477 | BL10: 48.02684564 | BM10: 67.22147651 | BN10: 86.41610738 | BO10: 105.6107383 | BP10: 115.2080537
A11: PT1 | B11: Normal walking distance | C11: Modified longer walking distance | Q11: 0.9 | R11: Initial speed [m/s] | U11: 7 | V11: 0.14 | W11: 25.94 | X11: 43.14 | Y11: 60.34 | Z11: 77.54 | AA11: 94.74 | AB11: 103.34 | AC11: 7 | AD11: 0.09333333333 | AE11: 27.29333333 | AF11: 45.42666667 | AG11: 63.56 | AH11: 81.69333333 | AI11: 99.82666667 | AJ11: 108.8933333 | AK11: 7 | AL11: 0.04666666667 | AM11: 28.64666667 | AN11: 47.71333333 | AO11: 66.78 | AP11: 85.84666667 | AQ11: 104.9133333 | AR11: 114.4466667 | AS11: 8 | AT11: 0.16 | AU11: 25.85714286 | AV11: 43 | AW11: 60.14285714 | AX11: 77.28571429 | AY11: 94.42857143 | AZ11: 103 | BA11: 8 | BB11: 0.1066666667 | BC11: 27.25675676 | BD11: 45.36486486 | BE11: 63.47297297 | BF11: 81.58108108 | BG11: 99.68918919 | BH11: 108.7432432 | BI11: 8 | BJ11: 0.05333333333 | BK11: 28.63758389 | BL11: 47.69798658 | BM11: 66.75838926 | BN11: 85.81879195 | BO11: 104.8791946 | BP11: 114.409396
B12: =P3/R3 -> 100 | C12: =(P3*Q22)/R3 -> 200 | Q12: 1 | R12: 0 | U12: 8 | V12: 0.16 | W12: 25.36 | X12: 42.16 | Y12: 58.96 | Z12: 75.76 | AA12: 92.56 | AB12: 100.96 | AC12: 8 | AD12: 0.1066666667 | AE12: 26.90666667 | AF12: 44.77333333 | AG12: 62.64 | AH12: 80.50666667 | AI12: 98.37333333 | AJ12: 107.3066667 | AK12: 8 | AL12: 0.05333333333 | AM12: 28.45333333 | AN12: 47.38666667 | AO12: 66.32 | AP12: 85.25333333 | AQ12: 104.1866667 | AR12: 113.6533333 | AS12: 9 | AT12: 0.18 | AU12: 25.26530612 | AV12: 42 | AW12: 58.73469388 | AX12: 75.46938776 | AY12: 92.20408163 | AZ12: 100.5714286 | BA12: 9 | BB12: 0.12 | BC12: 26.86486486 | BD12: 44.7027027 | BE12: 62.54054054 | BF12: 80.37837838 | BG12: 98.21621622 | BH12: 107.1351351 | BI12: 9 | BJ12: 0.06 | BK12: 28.44295302 | BL12: 47.36912752 | BM12: 66.29530201 | BN12: 85.22147651 | BO12: 104.147651 | BP12: 113.6107383
A13: T1a | B13: Road type with speed limit 30 km/h | C13: Road type with speed limit 50 km/h | D13: Road type with speed limit 70 km/h | E13: Road type with speed limit 90 km/h | F13: Road type with speed limit 110 km/h | G13: Road type with speed limit 120 km/h | Q13: 1.1 | R13: Acceleretion [m/s^2] | U13: 9 | V13: 0.18 | W13: 24.78 | X13: 41.18 | Y13: 57.58 | Z13: 73.98 | AA13: 90.38 | AB13: 98.58 | AC13: 9 | AD13: 0.12 | AE13: 26.52 | AF13: 44.12 | AG13: 61.72 | AH13: 79.32 | AI13: 96.92 | AJ13: 105.72 | AK13: 9 | AL13: 0.06 | AM13: 28.26 | AN13: 47.06 | AO13: 65.86 | AP13: 84.66 | AQ13: 103.46 | AR13: 112.86 | AS13: 10 | AT13: 0.2 | AU13: 24.67346939 | AV13: 41 | AW13: 57.32653061 | AX13: 73.65306122 | AY13: 89.97959184 | AZ13: 98.14285714 | BA13: 10 | BB13: 0.1333333333 | BC13: 26.47297297 | BD13: 44.04054054 | BE13: 61.60810811 | BF13: 79.17567568 | BG13: 96.74324324 | BH13: 105.527027 | BI13: 10 | BJ13: 0.06666666667 | BK13: 28.24832215 | BL13: 47.04026846 | BM13: 65.83221477 | BN13: 84.62416107 | BO13: 103.4161074 | BP13: 112.8120805
B14: =($P$5/AE5)*3.6 -> 121.5668618 | C14: 72.95325588 | D14: 52.1134916 | E14: 40.53445429 | F14: 33.16545879 | G14: 30.40198176 | Q14: 1.2 | R14: =(100/3.6)/10 -> 2.777777778 | U14: 10 | V14: 0.2 | W14: =(1-$V14)*(W$3-$R$5)+$R$5 -> 24.2 | X14: 40.2 | Y14: 56.2 | Z14: 72.2 | AA14: 88.2 | AB14: 96.2 | AC14: 10 | AD14: 0.1333333333 | AE14: =(1-$AD14)*(AE$3-$R$5)+$R$5 -> 26.13333333 | AF14: 43.46666667 | AG14: 60.8 | AH14: 78.13333333 | AI14: 95.46666667 | AJ14: 104.1333333 | AK14: 10 | AL14: 0.06666666667 | AM14: =(1-$AL14)*(AM$3-$R$5)+$R$5 -> 28.06666667 | AN14: 46.73333333 | AO14: 65.4 | AP14: 84.06666667 | AQ14: 102.7333333 | AR14: 112.0666667 | AS14: 11 | AT14: 0.22 | AU14: =(($R$5-AU$3)/($AT$53-$AT$4))*($AT14-$AT$4)+AU$3 -> 24.08163265 | AV14: 40 | AW14: 55.91836735 | AX14: 71.83673469 | AY14: 87.75510204 | AZ14: 95.71428571 | BA14: 11 | BB14: 0.1466666667 | BC14: =(($R$5-BC$3)/($BB$78-$BB$4))*($BB14-$BB$4)+BC$3 -> 26.08108108 | BD14: 43.37837838 | BE14: 60.67567568 | BF14: 77.97297297 | BG14: 95.27027027 | BH14: 103.9189189 | BI14: 11 | BJ14: 0.07333333333 | BK14: =(($R$5-BK$3)/($BJ$153-$BJ$4))*($BJ14-$BJ$4)+BK$3 -> 28.05369128 | BL14: 46.7114094 | BM14: 65.36912752 | BN14: 84.02684564 | BO14: 102.6845638 | BP14: 112.0134228
A15: T1b | B15: Multiple road types with both low and medium speed limit | Q15: 1.3 | U15: 11 | V15: 0.22 | W15: 23.62 | X15: 39.22 | Y15: 54.82 | Z15: 70.42 | AA15: 86.02 | AB15: 93.82 | AC15: 11 | AD15: 0.1466666667 | AE15: 25.74666667 | AF15: 42.81333333 | AG15: 59.88 | AH15: 76.94666667 | AI15: 94.01333333 | AJ15: 102.5466667 | AK15: 11 | AL15: 0.07333333333 | AM15: 27.87333333 | AN15: 46.40666667 | AO15: 64.94 | AP15: 83.47333333 | AQ15: 102.0066667 | AR15: 111.2733333 | AS15: 12 | AT15: 0.24 | AU15: 23.48979592 | AV15: 39 | AW15: 54.51020408 | AX15: 70.02040816 | AY15: 85.53061224 | AZ15: 93.28571429 | BA15: 12 | BB15: 0.16 | BC15: 25.68918919 | BD15: 42.71621622 | BE15: 59.74324324 | BF15: 76.77027027 | BG15: 93.7972973 | BH15: 102.3108108 | BI15: 12 | BJ15: 0.08 | BK15: 27.8590604 | BL15: 46.38255034 | BM15: 64.90604027 | BN15: 83.4295302 | BO15: 101.9530201 | BP15: 111.2147651
B16: =(P5/AF5+P5/AH5)*3.6 -> 113.4877102 | Q16: 1.4 | U16: 12 | V16: 0.24 | W16: 23.04 | X16: 38.24 | Y16: 53.44 | Z16: 68.64 | AA16: 83.84 | AB16: 91.44 | AC16: 12 | AD16: 0.16 | AE16: 25.36 | AF16: 42.16 | AG16: 58.96 | AH16: 75.76 | AI16: 92.56 | AJ16: 100.96 | AK16: 12 | AL16: 0.08 | AM16: 27.68 | AN16: 46.08 | AO16: 64.48 | AP16: 82.88 | AQ16: 101.28 | AR16: 110.48 | AS16: 13 | AT16: 0.26 | AU16: 22.89795918 | AV16: 38 | AW16: 53.10204082 | AX16: 68.20408163 | AY16: 83.30612245 | AZ16: 90.85714286 | BA16: 13 | BB16: 0.1733333333 | BC16: 25.2972973 | BD16: 42.05405405 | BE16: 58.81081081 | BF16: 75.56756757 | BG16: 92.32432432 | BH16: 100.7027027 | BI16: 13 | BJ16: 0.08666666667 | BK16: 27.66442953 | BL16: 46.05369128 | BM16: 64.44295302 | BN16: 82.83221477 | BO16: 101.2214765 | BP16: 110.4161074
A17: T2 | B17: 50% background traffic reducing traffic flow | Q17: 1.5 | U17: 13 | V17: 0.26 | W17: 22.46 | X17: 37.26 | Y17: 52.06 | Z17: 66.86 | AA17: 81.66 | AB17: 89.06 | AC17: 13 | AD17: 0.1733333333 | AE17: 24.97333333 | AF17: 41.50666667 | AG17: 58.04 | AH17: 74.57333333 | AI17: 91.10666667 | AJ17: 99.37333333 | AK17: 13 | AL17: 0.08666666667 | AM17: 27.48666667 | AN17: 45.75333333 | AO17: 64.02 | AP17: 82.28666667 | AQ17: 100.5533333 | AR17: 109.6866667 | AS17: 14 | AT17: 0.28 | AU17: 22.30612245 | AV17: 37 | AW17: 51.69387755 | AX17: 66.3877551 | AY17: 81.08163265 | AZ17: 88.42857143 | BA17: 14 | BB17: 0.1866666667 | BC17: 24.90540541 | BD17: 41.39189189 | BE17: 57.87837838 | BF17: 74.36486486 | BG17: 90.85135135 | BH17: 99.09459459 | BI17: 14 | BJ17: 0.09333333333 | BK17: 27.46979866 | BL17: 45.72483221 | BM17: 63.97986577 | BN17: 82.23489933 | BO17: 100.4899329 | BP17: 109.6174497
B18: =(P5/AH42)*3.6 -> 80.16627078 | Q18: 1.6 | U18: 14 | V18: 0.28 | W18: 21.88 | X18: 36.28 | Y18: 50.68 | Z18: 65.08 | AA18: 79.48 | AB18: 86.68 | AC18: 14 | AD18: 0.1866666667 | AE18: 24.58666667 | AF18: 40.85333333 | AG18: 57.12 | AH18: 73.38666667 | AI18: 89.65333333 | AJ18: 97.78666667 | AK18: 14 | AL18: 0.09333333333 | AM18: 27.29333333 | AN18: 45.42666667 | AO18: 63.56 | AP18: 81.69333333 | AQ18: 99.82666667 | AR18: 108.8933333 | AS18: 15 | AT18: 0.3 | AU18: 21.71428571 | AV18: 36 | AW18: 50.28571429 | AX18: 64.57142857 | AY18: 78.85714286 | AZ18: 86 | BA18: 15 | BB18: 0.2 | BC18: 24.51351351 | BD18: 40.72972973 | BE18: 56.94594595 | BF18: 73.16216216 | BG18: 89.37837838 | BH18: 97.48648649 | BI18: 15 | BJ18: 0.1 | BK18: 27.27516779 | BL18: 45.39597315 | BM18: 63.51677852 | BN18: 81.63758389 | BO18: 99.75838926 | BP18: 108.8187919
A19: T3 | B19: Change in carriageway 1 to 2, Vehicle density level 1 | C19: Vehicle density level 2 | D19: Vehicle density level 3 | E19: Vehicle density level 4 | F19: Vehicle density level 5 | Q19: 1.7 | U19: 15 | V19: 0.3 | W19: 21.3 | X19: 35.3 | Y19: 49.3 | Z19: 63.3 | AA19: 77.3 | AB19: 84.3 | AC19: 15 | AD19: 0.2 | AE19: 24.2 | AF19: 40.2 | AG19: 56.2 | AH19: 72.2 | AI19: 88.2 | AJ19: 96.2 | AK19: 15 | AL19: 0.1 | AM19: 27.1 | AN19: 45.1 | AO19: 63.1 | AP19: 81.1 | AQ19: 99.1 | AR19: 108.1 | AS19: 16 | AT19: 0.32 | AU19: 21.12244898 | AV19: 35 | AW19: 48.87755102 | AX19: 62.75510204 | AY19: 76.63265306 | AZ19: 83.57142857 | BA19: 16 | BB19: 0.2133333333 | BC19: 24.12162162 | BD19: 40.06756757 | BE19: 56.01351351 | BF19: 71.95945946 | BG19: 87.90540541 | BH19: 95.87837838 | BI19: 16 | BJ19: 0.1066666667 | BK19: 27.08053691 | BL19: 45.06711409 | BM19: 63.05369128 | BN19: 81.04026846 | BO19: 99.02684564 | BP19: 108.0201342
B20: =(P5/Z5+P5/AP5)*3.6 -> 81.07252696 | C20: =(P5/Z16+P5/AP16)*3.6 -> 95.88384588 | D20: =(P5/Z29+P5/AP29)*3.6 -> 127.014449 | E20: =(P5/Z42+P5/AP42)*3.6 -> 214.3720202 | F20: =(P5/Z54+P5/AP54)*3.6 -> 3659.668508 | Q20: 1.8 | U20: 16 | V20: 0.32 | W20: 20.72 | X20: 34.32 | Y20: 47.92 | Z20: 61.52 | AA20: 75.12 | AB20: 81.92 | AC20: 16 | AD20: 0.2133333333 | AE20: 23.81333333 | AF20: 39.54666667 | AG20: 55.28 | AH20: 71.01333333 | AI20: 86.74666667 | AJ20: 94.61333333 | AK20: 16 | AL20: 0.1066666667 | AM20: 26.90666667 | AN20: 44.77333333 | AO20: 62.64 | AP20: 80.50666667 | AQ20: 98.37333333 | AR20: 107.3066667 | AS20: 17 | AT20: 0.34 | AU20: 20.53061224 | AV20: 34 | AW20: 47.46938776 | AX20: 60.93877551 | AY20: 74.40816327 | AZ20: 81.14285714 | BA20: 17 | BB20: 0.2266666667 | BC20: 23.72972973 | BD20: 39.40540541 | BE20: 55.08108108 | BF20: 70.75675676 | BG20: 86.43243243 | BH20: 94.27027027 | BI20: 17 | BJ20: 0.1133333333 | BK20: 26.88590604 | BL20: 44.73825503 | BM20: 62.59060403 | BN20: 80.44295302 | BO20: 98.29530201 | BP20: 107.2214765
A21: T4, plot speed | Q21: 1.9 | U21: 17 | V21: 0.34 | W21: 20.14 | X21: 33.34 | Y21: 46.54 | Z21: 59.74 | AA21: 72.94 | AB21: 79.54 | AC21: 17 | AD21: 0.2266666667 | AE21: 23.42666667 | AF21: 38.89333333 | AG21: 54.36 | AH21: 69.82666667 | AI21: 85.29333333 | AJ21: 93.02666667 | AK21: 17 | AL21: 0.1133333333 | AM21: 26.71333333 | AN21: 44.44666667 | AO21: 62.18 | AP21: 79.91333333 | AQ21: 97.64666667 | AR21: 106.5133333 | AS21: 18 | AT21: 0.36 | AU21: 19.93877551 | AV21: 33 | AW21: 46.06122449 | AX21: 59.12244898 | AY21: 72.18367347 | AZ21: 78.71428571 | BA21: 18 | BB21: 0.24 | BC21: 23.33783784 | BD21: 38.74324324 | BE21: 54.14864865 | BF21: 69.55405405 | BG21: 84.95945946 | BH21: 92.66216216 | BI21: 18 | BJ21: 0.12 | BK21: 26.69127517 | BL21: 44.40939597 | BM21: 62.12751678 | BN21: 79.84563758 | BO21: 97.56375839 | BP21: 106.4228188
B22: See the other sheets | Q22: 2 | U22: 18 | V22: 0.36 | W22: 19.56 | X22: 32.36 | Y22: 45.16 | Z22: 57.96 | AA22: 70.76 | AB22: 77.16 | AC22: 18 | AD22: 0.24 | AE22: 23.04 | AF22: 38.24 | AG22: 53.44 | AH22: 68.64 | AI22: 83.84 | AJ22: 91.44 | AK22: 18 | AL22: 0.12 | AM22: 26.52 | AN22: 44.12 | AO22: 61.72 | AP22: 79.32 | AQ22: 96.92 | AR22: 105.72 | AS22: 19 | AT22: 0.38 | AU22: 19.34693878 | AV22: 32 | AW22: 44.65306122 | AX22: 57.30612245 | AY22: 69.95918367 | AZ22: 76.28571429 | BA22: 19 | BB22: 0.2533333333 | BC22: 22.94594595 | BD22: 38.08108108 | BE22: 53.21621622 | BF22: 68.35135135 | BG22: 83.48648649 | BH22: 91.05405405 | BI22: 19 | BJ22: 0.1266666667 | BK22: 26.4966443 | BL22: 44.08053691 | BM22: 61.66442953 | BN22: 79.24832215 | BO22: 96.83221477 | BP22: 105.6241611
A23: T4, plot flow | U23: 19 | V23: 0.38 | W23: 18.98 | X23: 31.38 | Y23: 43.78 | Z23: 56.18 | AA23: 68.58 | AB23: 74.78 | AC23: 19 | AD23: 0.2533333333 | AE23: 22.65333333 | AF23: 37.58666667 | AG23: 52.52 | AH23: 67.45333333 | AI23: 82.38666667 | AJ23: 89.85333333 | AK23: 19 | AL23: 0.1266666667 | AM23: 26.32666667 | AN23: 43.79333333 | AO23: 61.26 | AP23: 78.72666667 | AQ23: 96.19333333 | AR23: 104.9266667 | AS23: 20 | AT23: 0.4 | AU23: 18.75510204 | AV23: 31 | AW23: 43.24489796 | AX23: 55.48979592 | AY23: 67.73469388 | AZ23: 73.85714286 | BA23: 20 | BB23: 0.2666666667 | BC23: 22.55405405 | BD23: 37.41891892 | BE23: 52.28378378 | BF23: 67.14864865 | BG23: 82.01351351 | BH23: 89.44594595 | BI23: 20 | BJ23: 0.1333333333 | BK23: 26.30201342 | BL23: 43.75167785 | BM23: 61.20134228 | BN23: 78.65100671 | BO23: 96.10067114 | BP23: 104.8255034
B24: See the other sheets | U24: 20 | V24: 0.4 | W24: =(1-$V24)*(W$3-$R$5)+$R$5 -> 18.4 | X24: 30.4 | Y24: 42.4 | Z24: 54.4 | AA24: 66.4 | AB24: 72.4 | AC24: 20 | AD24: 0.2666666667 | AE24: =(1-$AD24)*(AE$3-$R$5)+$R$5 -> 22.26666667 | AF24: 36.93333333 | AG24: 51.6 | AH24: 66.26666667 | AI24: 80.93333333 | AJ24: 88.26666667 | AK24: 20 | AL24: 0.1333333333 | AM24: =(1-$AL24)*(AM$3-$R$5)+$R$5 -> 26.13333333 | AN24: 43.46666667 | AO24: 60.8 | AP24: 78.13333333 | AQ24: 95.46666667 | AR24: 104.1333333 | AS24: 21 | AT24: 0.42 | AU24: =(($R$5-AU$3)/($AT$53-$AT$4))*($AT24-$AT$4)+AU$3 -> 18.16326531 | AV24: 30 | AW24: 41.83673469 | AX24: 53.67346939 | AY24: 65.51020408 | AZ24: 71.42857143 | BA24: 21 | BB24: 0.28 | BC24: =(($R$5-BC$3)/($BB$78-$BB$4))*($BB24-$BB$4)+BC$3 -> 22.16216216 | BD24: 36.75675676 | BE24: 51.35135135 | BF24: 65.94594595 | BG24: 80.54054054 | BH24: 87.83783784 | BI24: 21 | BJ24: 0.14 | BK24: =(($R$5-BK$3)/($BJ$153-$BJ$4))*($BJ24-$BJ$4)+BK$3 -> 26.10738255 | BL24: 43.42281879 | BM24: 60.73825503 | BN24: 78.05369128 | BO24: 95.36912752 | BP24: 104.0268456
A25: T5 | B25: Vehicle density level 1, No smoke | C25: Vehicle density level 2, No smoke | D25: Vehicle density level 3, No smoke | E25: Vehicle density level 4, No smoke | F25: Vehicle density level 5, No smoke | U25: 21 | V25: 0.42 | W25: 17.82 | X25: 29.42 | Y25: 41.02 | Z25: 52.62 | AA25: 64.22 | AB25: 70.02 | AC25: 21 | AD25: 0.28 | AE25: 21.88 | AF25: 36.28 | AG25: 50.68 | AH25: 65.08 | AI25: 79.48 | AJ25: 86.68 | AK25: 21 | AL25: 0.14 | AM25: 25.94 | AN25: 43.14 | AO25: 60.34 | AP25: 77.54 | AQ25: 94.74 | AR25: 103.34 | AS25: 22 | AT25: 0.44 | AU25: 17.57142857 | AV25: 29 | AW25: 40.42857143 | AX25: 51.85714286 | AY25: 63.28571429 | AZ25: 69 | BA25: 22 | BB25: 0.2933333333 | BC25: 21.77027027 | BD25: 36.09459459 | BE25: 50.41891892 | BF25: 64.74324324 | BG25: 79.06756757 | BH25: 86.22972973 | BI25: 22 | BJ25: 0.1466666667 | BK25: 25.91275168 | BL25: 43.09395973 | BM25: 60.27516779 | BN25: 77.45637584 | BO25: 94.63758389 | BP25: 103.2281879
B26: =($P$5/($AG$5*$T3))*3.6 -> 52.1134916 | C26: =($P$5/($AG$23*$T3))*3.6 -> 68.54531607 | D26: =($P$5/($AG$42*$T3))*3.6 -> 102.739726 | E26: =($P$5/($AG$60*$T3))*3.6 -> 194.8051948 | F26: =($P$5/MAX(($AG$79*$T3),$R$5))*3.6 -> 3600 | U26: 22 | V26: 0.44 | W26: 17.24 | X26: 28.44 | Y26: 39.64 | Z26: 50.84 | AA26: 62.04 | AB26: 67.64 | AC26: 22 | AD26: 0.2933333333 | AE26: 21.49333333 | AF26: 35.62666667 | AG26: 49.76 | AH26: 63.89333333 | AI26: 78.02666667 | AJ26: 85.09333333 | AK26: 22 | AL26: 0.1466666667 | AM26: 25.74666667 | AN26: 42.81333333 | AO26: 59.88 | AP26: 76.94666667 | AQ26: 94.01333333 | AR26: 102.5466667 | AS26: 23 | AT26: 0.46 | AU26: 16.97959184 | AV26: 28 | AW26: 39.02040816 | AX26: 50.04081633 | AY26: 61.06122449 | AZ26: 66.57142857 | BA26: 23 | BB26: 0.3066666667 | BC26: 21.37837838 | BD26: 35.43243243 | BE26: 49.48648649 | BF26: 63.54054054 | BG26: 77.59459459 | BH26: 84.62162162 | BI26: 23 | BJ26: 0.1533333333 | BK26: 25.71812081 | BL26: 42.76510067 | BM26: 59.81208054 | BN26: 76.8590604 | BO26: 93.90604027 | BP26: 102.4295302
A27: T5 | B27: Vehicle density level 1, Visibility level 1 | C27: Vehicle density level 2, Visibility level 1 | D27: Vehicle density level 3, Visibility level 1 | E27: Vehicle density level 4, Visibility level 1 | F27: Vehicle density level 5, Visibility level 1 | U27: 23 | V27: 0.46 | W27: 16.66 | X27: 27.46 | Y27: 38.26 | Z27: 49.06 | AA27: 59.86 | AB27: 65.26 | AC27: 23 | AD27: 0.3066666667 | AE27: 21.10666667 | AF27: 34.97333333 | AG27: 48.84 | AH27: 62.70666667 | AI27: 76.57333333 | AJ27: 83.50666667 | AK27: 23 | AL27: 0.1533333333 | AM27: 25.55333333 | AN27: 42.48666667 | AO27: 59.42 | AP27: 76.35333333 | AQ27: 93.28666667 | AR27: 101.7533333 | AS27: 24 | AT27: 0.48 | AU27: 16.3877551 | AV27: 27 | AW27: 37.6122449 | AX27: 48.2244898 | AY27: 58.83673469 | AZ27: 64.14285714 | BA27: 24 | BB27: 0.32 | BC27: 20.98648649 | BD27: 34.77027027 | BE27: 48.55405405 | BF27: 62.33783784 | BG27: 76.12162162 | BH27: 83.01351351 | BI27: 24 | BJ27: 0.16 | BK27: 25.52348993 | BL27: 42.43624161 | BM27: 59.34899329 | BN27: 76.26174497 | BO27: 93.17449664 | BP27: 101.6308725
B28: =($P$5/($AG$5*$T4))*3.6 -> 80.5334409 | C28: =($P$5/($AG$23*$T4))*3.6 -> 105.9263156 | D28: =($P$5/($AG$42*$T4))*3.6 -> 158.768553 | E28: =($P$5/($AG$60*$T4))*3.6 -> 301.0416719 | F28: =($P$5/MAX(($AG$79*$T4),$R$5))*3.6 -> 3600 | U28: 24 | V28: 0.48 | W28: 16.08 | X28: 26.48 | Y28: 36.88 | Z28: 47.28 | AA28: 57.68 | AB28: 62.88 | AC28: 24 | AD28: 0.32 | AE28: 20.72 | AF28: 34.32 | AG28: 47.92 | AH28: 61.52 | AI28: 75.12 | AJ28: 81.92 | AK28: 24 | AL28: 0.16 | AM28: 25.36 | AN28: 42.16 | AO28: 58.96 | AP28: 75.76 | AQ28: 92.56 | AR28: 100.96 | AS28: 25 | AT28: 0.5 | AU28: 15.79591837 | AV28: 26 | AW28: 36.20408163 | AX28: 46.40816327 | AY28: 56.6122449 | AZ28: 61.71428571 | BA28: 25 | BB28: 0.3333333333 | BC28: 20.59459459 | BD28: 34.10810811 | BE28: 47.62162162 | BF28: 61.13513514 | BG28: 74.64864865 | BH28: 81.40540541 | BI28: 25 | BJ28: 0.1666666667 | BK28: 25.32885906 | BL28: 42.10738255 | BM28: 58.88590604 | BN28: 75.66442953 | BO28: 92.44295302 | BP28: 100.8322148
A29: T5 | B29: Vehicle density level 1, Visibility level 2 | C29: Vehicle density level 2, Visibility level 2 | D29: Vehicle density level 3, Visibility level 2 | E29: Vehicle density level 4, Visibility level 2 | F29: Vehicle density level 5, Visibility level 2 | U29: 25 | V29: 0.5 | W29: 15.5 | X29: 25.5 | Y29: 35.5 | Z29: 45.5 | AA29: 55.5 | AB29: 60.5 | AC29: 25 | AD29: 0.3333333333 | AE29: 20.33333333 | AF29: 33.66666667 | AG29: 47 | AH29: 60.33333333 | AI29: 73.66666667 | AJ29: 80.33333333 | AK29: 25 | AL29: 0.1666666667 | AM29: 25.16666667 | AN29: 41.83333333 | AO29: 58.5 | AP29: 75.16666667 | AQ29: 91.83333333 | AR29: 100.1666667 | AS29: 26 | AT29: 0.52 | AU29: 15.20408163 | AV29: 25 | AW29: 34.79591837 | AX29: 44.59183673 | AY29: 54.3877551 | AZ29: 59.28571429 | BA29: 26 | BB29: 0.3466666667 | BC29: 20.2027027 | BD29: 33.44594595 | BE29: 46.68918919 | BF29: 59.93243243 | BG29: 73.17567568 | BH29: 79.7972973 | BI29: 26 | BJ29: 0.1733333333 | BK29: 25.13422819 | BL29: 41.77852349 | BM29: 58.42281879 | BN29: 75.06711409 | BO29: 91.7114094 | BP29: 100.033557
B30: =($P$5/($AG$5*$T5))*3.6 -> 112.028659 | C30: =($P$5/($AG$23*$T5))*3.6 -> 147.3522423 | D30: =($P$5/($AG$42*$T5))*3.6 -> 220.8601531 | E30: =($P$5/($AG$60*$T5))*3.6 -> 418.7737968 | F30: =($P$5/MAX(($AG$79*$T5),$R$5))*3.6 -> 3600 | U30: 26 | V30: 0.52 | W30: 14.92 | X30: 24.52 | Y30: 34.12 | Z30: 43.72 | AA30: 53.32 | AB30: 58.12 | AC30: 26 | AD30: 0.3466666667 | AE30: 19.94666667 | AF30: 33.01333333 | AG30: 46.08 | AH30: 59.14666667 | AI30: 72.21333333 | AJ30: 78.74666667 | AK30: 26 | AL30: 0.1733333333 | AM30: 24.97333333 | AN30: 41.50666667 | AO30: 58.04 | AP30: 74.57333333 | AQ30: 91.10666667 | AR30: 99.37333333 | AS30: 27 | AT30: 0.54 | AU30: 14.6122449 | AV30: 24 | AW30: 33.3877551 | AX30: 42.7755102 | AY30: 52.16326531 | AZ30: 56.85714286 | BA30: 27 | BB30: 0.36 | BC30: 19.81081081 | BD30: 32.78378378 | BE30: 45.75675676 | BF30: 58.72972973 | BG30: 71.7027027 | BH30: 78.18918919 | BI30: 27 | BJ30: 0.18 | BK30: 24.93959732 | BL30: 41.44966443 | BM30: 57.95973154 | BN30: 74.46979866 | BO30: 90.97986577 | BP30: 99.23489933
A31: T5 | B31: Vehicle density level 1, Visibility level 3 | C31: Vehicle density level 2, Visibility level 3 | D31: Vehicle density level 3, Visibility level 3 | E31: Vehicle density level 4, Visibility level 3 | F31: Vehicle density level 5, Visibility level 3 | U31: 27 | V31: 0.54 | W31: 14.34 | X31: 23.54 | Y31: 32.74 | Z31: 41.94 | AA31: 51.14 | AB31: 55.74 | AC31: 27 | AD31: 0.36 | AE31: 19.56 | AF31: 32.36 | AG31: 45.16 | AH31: 57.96 | AI31: 70.76 | AJ31: 77.16 | AK31: 27 | AL31: 0.18 | AM31: 24.78 | AN31: 41.18 | AO31: 57.58 | AP31: 73.98 | AQ31: 90.38 | AR31: 98.58 | AS31: 28 | AT31: 0.56 | AU31: 14.02040816 | AV31: 23 | AW31: 31.97959184 | AX31: 40.95918367 | AY31: 49.93877551 | AZ31: 54.42857143 | BA31: 28 | BB31: 0.3733333333 | BC31: 19.41891892 | BD31: 32.12162162 | BE31: 44.82432432 | BF31: 57.52702703 | BG31: 70.22972973 | BH31: 76.58108108 | BI31: 28 | BJ31: 0.1866666667 | BK31: 24.74496644 | BL31: 41.12080537 | BM31: 57.4966443 | BN31: 73.87248322 | BO31: 90.24832215 | BP31: 98.43624161
B32: =($P$5/($AG$5*$T6))*3.6 -> 137.8476902 | C32: =($P$5/($AG$23*$T6))*3.6 -> 181.3122323 | D32: =($P$5/($AG$42*$T6))*3.6 -> 271.7613711 | E32: =($P$5/($AG$60*$T6))*3.6 -> 515.2877945 | F32: =($P$5/MAX(($AG$79*$T6),$R$5))*3.6 -> 3600 | U32: 28 | V32: 0.56 | W32: 13.76 | X32: 22.56 | Y32: 31.36 | Z32: 40.16 | AA32: 48.96 | AB32: 53.36 | AC32: 28 | AD32: 0.3733333333 | AE32: 19.17333333 | AF32: 31.70666667 | AG32: 44.24 | AH32: 56.77333333 | AI32: 69.30666667 | AJ32: 75.57333333 | AK32: 28 | AL32: 0.1866666667 | AM32: 24.58666667 | AN32: 40.85333333 | AO32: 57.12 | AP32: 73.38666667 | AQ32: 89.65333333 | AR32: 97.78666667 | AS32: 29 | AT32: 0.58 | AU32: 13.42857143 | AV32: 22 | AW32: 30.57142857 | AX32: 39.14285714 | AY32: 47.71428571 | AZ32: 52 | BA32: 29 | BB32: 0.3866666667 | BC32: 19.02702703 | BD32: 31.45945946 | BE32: 43.89189189 | BF32: 56.32432432 | BG32: 68.75675676 | BH32: 74.97297297 | BI32: 29 | BJ32: 0.1933333333 | BK32: 24.55033557 | BL32: 40.79194631 | BM32: 57.03355705 | BN32: 73.27516779 | BO32: 89.51677852 | BP32: 97.63758389
A33: T5 | B33: Vehicle density level 1, Visibility level 4 | C33: Vehicle density level 2, Visibility level 4 | D33: Vehicle density level 3, Visibility level 4 | E33: Vehicle density level 4, Visibility level 4 | F33: Vehicle density level 5, Visibility level 4 | U33: 29 | V33: 0.58 | W33: 13.18 | X33: 21.58 | Y33: 29.98 | Z33: 38.38 | AA33: 46.78 | AB33: 50.98 | AC33: 29 | AD33: 0.3866666667 | AE33: 18.78666667 | AF33: 31.05333333 | AG33: 43.32 | AH33: 55.58666667 | AI33: 67.85333333 | AJ33: 73.98666667 | AK33: 29 | AL33: 0.1933333333 | AM33: 24.39333333 | AN33: 40.52666667 | AO33: 56.66 | AP33: 72.79333333 | AQ33: 88.92666667 | AR33: 96.99333333 | AS33: 30 | AT33: 0.6 | AU33: 12.83673469 | AV33: 21 | AW33: 29.16326531 | AX33: 37.32653061 | AY33: 45.48979592 | AZ33: 49.57142857 | BA33: 30 | BB33: 0.4 | BC33: 18.63513514 | BD33: 30.7972973 | BE33: 42.95945946 | BF33: 55.12162162 | BG33: 67.28378378 | BH33: 73.36486486 | BI33: 30 | BJ33: 0.2 | BK33: 24.3557047 | BL33: 40.46308725 | BM33: 56.5704698 | BN33: 72.67785235 | BO33: 88.7852349 | BP33: 96.83892617
B34: =($P$5/($AG$5*$T7))*3.6 -> 168.3578588 | C34: =($P$5/($AG$23*$T7))*3.6 -> 221.4425149 | D34: =($P$5/($AG$42*$T7))*3.6 -> 331.9109841 | E34: =($P$5/($AG$60*$T7))*3.6 -> 629.3377102 | F34: =($P$5/MAX(($AG$79*$T7),$R$5))*3.6 -> 3600 | U34: 30 | V34: 0.6 | W34: =(1-$V34)*(W$3-$R$5)+$R$5 -> 12.6 | X34: 20.6 | Y34: 28.6 | Z34: 36.6 | AA34: 44.6 | AB34: 48.6 | AC34: 30 | AD34: 0.4 | AE34: =(1-$AD34)*(AE$3-$R$5)+$R$5 -> 18.4 | AF34: 30.4 | AG34: 42.4 | AH34: 54.4 | AI34: 66.4 | AJ34: 72.4 | AK34: 30 | AL34: 0.2 | AM34: =(1-$AL34)*(AM$3-$R$5)+$R$5 -> 24.2 | AN34: 40.2 | AO34: 56.2 | AP34: 72.2 | AQ34: 88.2 | AR34: 96.2 | AS34: 31 | AT34: 0.62 | AU34: =(($R$5-AU$3)/($AT$53-$AT$4))*($AT34-$AT$4)+AU$3 -> 12.24489796 | AV34: 20 | AW34: 27.75510204 | AX34: 35.51020408 | AY34: 43.26530612 | AZ34: 47.14285714 | BA34: 31 | BB34: 0.4133333333 | BC34: =(($R$5-BC$3)/($BB$78-$BB$4))*($BB34-$BB$4)+BC$3 -> 18.24324324 | BD34: 30.13513514 | BE34: 42.02702703 | BF34: 53.91891892 | BG34: 65.81081081 | BH34: 71.75675676 | BI34: 31 | BJ34: 0.2066666667 | BK34: =(($R$5-BK$3)/($BJ$153-$BJ$4))*($BJ34-$BJ$4)+BK$3 -> 24.16107383 | BL34: 40.13422819 | BM34: 56.10738255 | BN34: 72.08053691 | BO34: 88.05369128 | BP34: 96.04026846
A35: T6, flow | B35: Vehicle density level 1 | C35: Vehicle density level 2 | D35: Vehcile density level 3 | E35: Vehicle density level 4 | F35: Vehicle density level 5 | U35: 31 | V35: 0.62 | W35: 12.02 | X35: 19.62 | Y35: 27.22 | Z35: 34.82 | AA35: 42.42 | AB35: 46.22 | AC35: 31 | AD35: 0.4133333333 | AE35: 18.01333333 | AF35: 29.74666667 | AG35: 41.48 | AH35: 53.21333333 | AI35: 64.94666667 | AJ35: 70.81333333 | AK35: 31 | AL35: 0.2066666667 | AM35: 24.00666667 | AN35: 39.87333333 | AO35: 55.74 | AP35: 71.60666667 | AQ35: 87.47333333 | AR35: 95.40666667 | AS35: 32 | AT35: 0.64 | AU35: 11.65306122 | AV35: 19 | AW35: 26.34693878 | AX35: 33.69387755 | AY35: 41.04081633 | AZ35: 44.71428571 | BA35: 32 | BB35: 0.4266666667 | BC35: 17.85135135 | BD35: 29.47297297 | BE35: 41.09459459 | BF35: 52.71621622 | BG35: 64.33783784 | BH35: 70.14864865 | BI35: 32 | BJ35: 0.2133333333 | BK35: 23.96644295 | BL35: 39.80536913 | BM35: 55.6442953 | BN35: 71.48322148 | BO35: 87.32214765 | BP35: 95.24161074
B36: See the other sheets | U36: 32 | V36: =U36/$U$54 -> 0.64 | W36: 11.44 | X36: 18.64 | Y36: 25.84 | Z36: 33.04 | AA36: 40.24 | AB36: 43.84 | AC36: 32 | AD36: =AC36/$AC$79 -> 0.4266666667 | AE36: 17.62666667 | AF36: 29.09333333 | AG36: 40.56 | AH36: 52.02666667 | AI36: 63.49333333 | AJ36: 69.22666667 | AK36: 32 | AL36: =AK36/$AK$154 -> 0.2133333333 | AM36: 23.81333333 | AN36: 39.54666667 | AO36: 55.28 | AP36: 71.01333333 | AQ36: 86.74666667 | AR36: 94.61333333 | AS36: 33 | AT36: =AS36/$AS$53 -> 0.66 | AU36: 11.06122449 | AV36: 18 | AW36: 24.93877551 | AX36: 31.87755102 | AY36: 38.81632653 | AZ36: 42.28571429 | BA36: 33 | BB36: =BA36/$BA$78 -> 0.44 | BC36: 17.45945946 | BD36: 28.81081081 | BE36: 40.16216216 | BF36: 51.51351351 | BG36: 62.86486486 | BH36: 68.54054054 | BI36: 33 | BJ36: =BI36/$BI$153 -> 0.22 | BK36: 23.77181208 | BL36: 39.47651007 | BM36: 55.18120805 | BN36: 70.88590604 | BO36: 86.59060403 | BP36: 94.44295302
A37: T7 | B37: Vehicles reaching Destination B, no reduced traffic flow | C37: Vehicles reaching Destination B, reduced traffic flow | D37: < - går inte att köra med gruppering | L37: If group evacuation forcing vehicles to Destination A | O37: If group evacuation forcing vehicles to Destination B | U37: =U36+1 -> 33 | V37: 0.66 | W37: 10.86 | X37: 17.66 | Y37: 24.46 | Z37: 31.26 | AA37: 38.06 | AB37: 41.46 | AC37: =AC36+1 -> 33 | AD37: 0.44 | AE37: 17.24 | AF37: 28.44 | AG37: 39.64 | AH37: 50.84 | AI37: 62.04 | AJ37: 67.64 | AK37: =AK36+1 -> 33 | AL37: 0.22 | AM37: 23.62 | AN37: 39.22 | AO37: 54.82 | AP37: 70.42 | AQ37: 86.02 | AR37: 93.82 | AS37: =AS36+1 -> 34 | AT37: 0.68 | AU37: 10.46938776 | AV37: 17 | AW37: 23.53061224 | AX37: 30.06122449 | AY37: 36.59183673 | AZ37: 39.85714286 | BA37: =BA36+1 -> 34 | BB37: 0.4533333333 | BC37: 17.06756757 | BD37: 28.14864865 | BE37: 39.22972973 | BF37: 50.31081081 | BG37: 61.39189189 | BH37: 66.93243243 | BI37: =BI36+1 -> 34 | BJ37: 0.2266666667 | BK37: 23.57718121 | BL37: 39.14765101 | BM37: 54.71812081 | BN37: 70.2885906 | BO37: 85.8590604 | BP37: 93.6442953
B38: =(P7/AH6)*3.6 -> 82.16676811 | C38: =(P7/AH44)*3.6 -> 169.2789969 | D38: <- Should this be total 50%, or 2 cars + 50%? | L38: >1 | O38: >1 | U38: 34 | V38: 0.68 | W38: 10.28 | X38: 16.68 | Y38: 23.08 | Z38: 29.48 | AA38: 35.88 | AB38: 39.08 | AC38: 34 | AD38: 0.4533333333 | AE38: 16.85333333 | AF38: 27.78666667 | AG38: 38.72 | AH38: 49.65333333 | AI38: 60.58666667 | AJ38: 66.05333333 | AK38: 34 | AL38: 0.2266666667 | AM38: 23.42666667 | AN38: 38.89333333 | AO38: 54.36 | AP38: 69.82666667 | AQ38: 85.29333333 | AR38: 93.02666667 | AS38: 35 | AT38: 0.7 | AU38: 9.87755102 | AV38: 16 | AW38: 22.12244898 | AX38: 28.24489796 | AY38: 34.36734694 | AZ38: 37.42857143 | BA38: 35 | BB38: 0.4666666667 | BC38: 16.67567568 | BD38: 27.48648649 | BE38: 38.2972973 | BF38: 49.10810811 | BG38: 59.91891892 | BH38: 65.32432432 | BI38: 35 | BJ38: 0.2333333333 | BK38: 23.38255034 | BL38: 38.81879195 | BM38: 54.25503356 | BN38: 69.69127517 | BO38: 85.12751678 | BP38: 92.84563758
A39: T8 | B39: The faster vehcile overtaking | U39: 35 | V39: 0.7 | W39: 9.7 | X39: 15.7 | Y39: 21.7 | Z39: 27.7 | AA39: 33.7 | AB39: 36.7 | AC39: 35 | AD39: 0.4666666667 | AE39: 16.46666667 | AF39: 27.13333333 | AG39: 37.8 | AH39: 48.46666667 | AI39: 59.13333333 | AJ39: 64.46666667 | AK39: 35 | AL39: 0.2333333333 | AM39: 23.23333333 | AN39: 38.56666667 | AO39: 53.9 | AP39: 69.23333333 | AQ39: 84.56666667 | AR39: 92.23333333 | AS39: 36 | AT39: 0.72 | AU39: 9.285714286 | AV39: 15 | AW39: 20.71428571 | AX39: 26.42857143 | AY39: 32.14285714 | AZ39: 35 | BA39: 36 | BB39: 0.48 | BC39: 16.28378378 | BD39: 26.82432432 | BE39: 37.36486486 | BF39: 47.90540541 | BG39: 58.44594595 | BH39: 63.71621622 | BI39: 36 | BJ39: 0.24 | BK39: 23.18791946 | BL39: 38.48993289 | BM39: 53.79194631 | BN39: 69.09395973 | BO39: 84.39597315 | BP39: 92.04697987
B40: =(P5/AH6)*3.6 -> 41.08338405 | U40: 36 | V40: 0.72 | W40: 9.12 | X40: 14.72 | Y40: 20.32 | Z40: 25.92 | AA40: 31.52 | AB40: 34.32 | AC40: 36 | AD40: 0.48 | AE40: 16.08 | AF40: 26.48 | AG40: 36.88 | AH40: 47.28 | AI40: 57.68 | AJ40: 62.88 | AK40: 36 | AL40: 0.24 | AM40: 23.04 | AN40: 38.24 | AO40: 53.44 | AP40: 68.64 | AQ40: 83.84 | AR40: 91.44 | AS40: 37 | AT40: 0.74 | AU40: 8.693877551 | AV40: 14 | AW40: 19.30612245 | AX40: 24.6122449 | AY40: 29.91836735 | AZ40: 32.57142857 | BA40: 37 | BB40: 0.4933333333 | BC40: 15.89189189 | BD40: 26.16216216 | BE40: 36.43243243 | BF40: 46.7027027 | BG40: 56.97297297 | BH40: 62.10810811 | BI40: 37 | BJ40: 0.2466666667 | BK40: 22.99328859 | BL40: 38.16107383 | BM40: 53.32885906 | BN40: 68.4966443 | BO40: 83.66442953 | BP40: 91.24832215
A41: T9 | B41: No intersection and no acceleration or deceleration | C41: An intersection with acceleration and deceleration | U41: 37 | V41: 0.74 | W41: 8.54 | X41: 13.74 | Y41: 18.94 | Z41: 24.14 | AA41: 29.34 | AB41: 31.94 | AC41: 37 | AD41: 0.4933333333 | AE41: 15.69333333 | AF41: 25.82666667 | AG41: 35.96 | AH41: 46.09333333 | AI41: 56.22666667 | AJ41: 61.29333333 | AK41: 37 | AL41: 0.2466666667 | AM41: 22.84666667 | AN41: 37.91333333 | AO41: 52.98 | AP41: 68.04666667 | AQ41: 83.11333333 | AR41: 90.64666667 | AS41: 38 | AT41: 0.76 | AU41: 8.102040816 | AV41: 13 | AW41: 17.89795918 | AX41: 22.79591837 | AY41: 27.69387755 | AZ41: 30.14285714 | BA41: 38 | BB41: 0.5066666667 | BC41: 15.5 | BD41: 25.5 | BE41: 35.5 | BF41: 45.5 | BG41: 55.5 | BH41: 60.5 | BI41: 38 | BJ41: 0.2533333333 | BK41: 22.79865772 | BL41: 37.83221477 | BM41: 52.86577181 | BN41: 67.89932886 | BO41: 82.93288591 | BP41: 90.44966443
B42: =(P5/Z5+P5/AH5)*3.6 -> 81.34152751 | C42: =(((Z5/3.6-R12)/R14)*2+(P5-2*((R12*(Z5/3.6-R12)/R14)+R14*((Z5/3.6-R12)/R14)^2/2))/(Z5/3.6)) + (((AH5/3.6-R12)/R14)*2+(P5-2*((R12*(AH5/3.6-R12)/R14)+R14*((AH5/3.6-R12)/R14)^2/2))/(AH5/3.6)) -> 99.04486085 | U42: 38 | V42: 0.76 | W42: 7.96 | X42: 12.76 | Y42: 17.56 | Z42: 22.36 | AA42: 27.16 | AB42: 29.56 | AC42: 38 | AD42: 0.5066666667 | AE42: 15.30666667 | AF42: 25.17333333 | AG42: 35.04 | AH42: 44.90666667 | AI42: 54.77333333 | AJ42: 59.70666667 | AK42: 38 | AL42: 0.2533333333 | AM42: 22.65333333 | AN42: 37.58666667 | AO42: 52.52 | AP42: 67.45333333 | AQ42: 82.38666667 | AR42: 89.85333333 | AS42: 39 | AT42: 0.78 | AU42: 7.510204082 | AV42: 12 | AW42: 16.48979592 | AX42: 20.97959184 | AY42: 25.46938776 | AZ42: 27.71428571 | BA42: 39 | BB42: 0.52 | BC42: 15.10810811 | BD42: 24.83783784 | BE42: 34.56756757 | BF42: 44.2972973 | BG42: 54.02702703 | BH42: 58.89189189 | BI42: 39 | BJ42: 0.26 | BK42: 22.60402685 | BL42: 37.5033557 | BM42: 52.40268456 | BN42: 67.30201342 | BO42: 82.20134228 | BP42: 89.65100671
A43: T10 | B43: Road accident with a triggered event, stall out timer | C43: Can be defined differently, as an event lasting t time or once event happens the remaining speed becomes 1 | U43: 39 | V43: 0.78 | W43: 7.38 | X43: 11.78 | Y43: 16.18 | Z43: 20.58 | AA43: 24.98 | AB43: 27.18 | AC43: 39 | AD43: 0.52 | AE43: 14.92 | AF43: 24.52 | AG43: 34.12 | AH43: 43.72 | AI43: 53.32 | AJ43: 58.12 | AK43: 39 | AL43: 0.26 | AM43: 22.46 | AN43: 37.26 | AO43: 52.06 | AP43: 66.86 | AQ43: 81.66 | AR43: 89.06 | AS43: 40 | AT43: 0.8 | AU43: 6.918367347 | AV43: 11 | AW43: 15.08163265 | AX43: 19.16326531 | AY43: 23.24489796 | AZ43: 25.28571429 | BA43: 40 | BB43: 0.5333333333 | BC43: 14.71621622 | BD43: 24.17567568 | BE43: 33.63513514 | BF43: 43.09459459 | BG43: 52.55405405 | BH43: 57.28378378 | BI43: 40 | BJ43: 0.2666666667 | BK43: 22.40939597 | BL43: 37.17449664 | BM43: 51.93959732 | BN43: 66.70469799 | BO43: 81.46979866 | BP43: 88.85234899
B44: 3600 | C44: =R7+(P5-R7*(AH5/3.6))/(R5/3.6) -> 2721.866667 | U44: 40 | V44: 0.8 | W44: =(1-$V44)*(W$3-$R$5)+$R$5 -> 6.8 | X44: 10.8 | Y44: 14.8 | Z44: 18.8 | AA44: 22.8 | AB44: 24.8 | AC44: 40 | AD44: 0.5333333333 | AE44: =(1-$AD44)*(AE$3-$R$5)+$R$5 -> 14.53333333 | AF44: 23.86666667 | AG44: 33.2 | AH44: 42.53333333 | AI44: 51.86666667 | AJ44: 56.53333333 | AK44: 40 | AL44: 0.2666666667 | AM44: =(1-$AL44)*(AM$3-$R$5)+$R$5 -> 22.26666667 | AN44: 36.93333333 | AO44: 51.6 | AP44: 66.26666667 | AQ44: 80.93333333 | AR44: 88.26666667 | AS44: 41 | AT44: 0.82 | AU44: =(($R$5-AU$3)/($AT$53-$AT$4))*($AT44-$AT$4)+AU$3 -> 6.326530612 | AV44: 10 | AW44: 13.67346939 | AX44: 17.34693878 | AY44: 21.02040816 | AZ44: 22.85714286 | BA44: 41 | BB44: 0.5466666667 | BC44: =(($R$5-BC$3)/($BB$78-$BB$4))*($BB44-$BB$4)+BC$3 -> 14.32432432 | BD44: 23.51351351 | BE44: 32.7027027 | BF44: 41.89189189 | BG44: 51.08108108 | BH44: 55.67567568 | BI44: 41 | BJ44: 0.2733333333 | BK44: =(($R$5-BK$3)/($BJ$153-$BJ$4))*($BJ44-$BJ$4)+BK$3 -> 22.2147651 | BL44: 36.84563758 | BM44: 51.47651007 | BN44: 66.10738255 | BO44: 80.73825503 | BP44: 88.05369128
A45: T11 | B45: An intersection to evaluate merging flows | U45: 41 | V45: 0.82 | W45: 6.22 | X45: 9.82 | Y45: 13.42 | Z45: 17.02 | AA45: 20.62 | AB45: 22.42 | AC45: 41 | AD45: 0.5466666667 | AE45: 14.14666667 | AF45: 23.21333333 | AG45: 32.28 | AH45: 41.34666667 | AI45: 50.41333333 | AJ45: 54.94666667 | AK45: 41 | AL45: 0.2733333333 | AM45: 22.07333333 | AN45: 36.60666667 | AO45: 51.14 | AP45: 65.67333333 | AQ45: 80.20666667 | AR45: 87.47333333 | AS45: 42 | AT45: 0.84 | AU45: 5.734693878 | AV45: 9 | AW45: 12.26530612 | AX45: 15.53061224 | AY45: 18.79591837 | AZ45: 20.42857143 | BA45: 42 | BB45: 0.56 | BC45: 13.93243243 | BD45: 22.85135135 | BE45: 31.77027027 | BF45: 40.68918919 | BG45: 49.60810811 | BH45: 54.06756757 | BI45: 42 | BJ45: 0.28 | BK45: 22.02013423 | BL45: 36.51677852 | BM45: 51.01342282 | BN45: 65.51006711 | BO45: 80.00671141 | BP45: 87.25503356
B46: =(P5/Z5+P5/AH5)*3.6 -> 81.34152751 | U46: 42 | V46: 0.84 | W46: 5.64 | X46: 8.84 | Y46: 12.04 | Z46: 15.24 | AA46: 18.44 | AB46: 20.04 | AC46: 42 | AD46: 0.56 | AE46: 13.76 | AF46: 22.56 | AG46: 31.36 | AH46: 40.16 | AI46: 48.96 | AJ46: 53.36 | AK46: 42 | AL46: 0.28 | AM46: 21.88 | AN46: 36.28 | AO46: 50.68 | AP46: 65.08 | AQ46: 79.48 | AR46: 86.68 | AS46: 43 | AT46: 0.86 | AU46: 5.142857143 | AV46: 8 | AW46: 10.85714286 | AX46: 13.71428571 | AY46: 16.57142857 | AZ46: 18 | BA46: 43 | BB46: 0.5733333333 | BC46: 13.54054054 | BD46: 22.18918919 | BE46: 30.83783784 | BF46: 39.48648649 | BG46: 48.13513514 | BH46: 52.45945946 | BI46: 43 | BJ46: 0.2866666667 | BK46: 21.82550336 | BL46: 36.18791946 | BM46: 50.55033557 | BN46: 64.91275168 | BO46: 79.27516779 | BP46: 86.45637584
A47: T12 | B47: Forced route to Destination B | L47: Forced evacuation on slower and longer route to Destination B | O47: Forced evacuation on slower and longer route to Destination B | U47: 43 | V47: 0.86 | W47: 5.06 | X47: 7.86 | Y47: 10.66 | Z47: 13.46 | AA47: 16.26 | AB47: 17.66 | AC47: 43 | AD47: 0.5733333333 | AE47: 13.37333333 | AF47: 21.90666667 | AG47: 30.44 | AH47: 38.97333333 | AI47: 47.50666667 | AJ47: 51.77333333 | AK47: 43 | AL47: 0.2866666667 | AM47: 21.68666667 | AN47: 35.95333333 | AO47: 50.22 | AP47: 64.48666667 | AQ47: 78.75333333 | AR47: 85.88666667 | AS47: 44 | AT47: 0.88 | AU47: 4.551020408 | AV47: 7 | AW47: 9.448979592 | AX47: 11.89795918 | AY47: 14.34693878 | AZ47: 15.57142857 | BA47: 44 | BB47: 0.5866666667 | BC47: 13.14864865 | BD47: 21.52702703 | BE47: 29.90540541 | BF47: 38.28378378 | BG47: 46.66216216 | BH47: 50.85135135 | BI47: 44 | BJ47: 0.2933333333 | BK47: 21.63087248 | BL47: 35.8590604 | BM47: 50.08724832 | BN47: 64.31543624 | BO47: 78.54362416 | BP47: 85.65771812
B48: =(P7/AH5)*3.6 -> 81.06890857 | L48: 0 | O48: 1 | U48: 44 | V48: 0.88 | W48: 4.48 | X48: 6.88 | Y48: 9.28 | Z48: 11.68 | AA48: 14.08 | AB48: 15.28 | AC48: 44 | AD48: 0.5866666667 | AE48: 12.98666667 | AF48: 21.25333333 | AG48: 29.52 | AH48: 37.78666667 | AI48: 46.05333333 | AJ48: 50.18666667 | AK48: 44 | AL48: 0.2933333333 | AM48: 21.49333333 | AN48: 35.62666667 | AO48: 49.76 | AP48: 63.89333333 | AQ48: 78.02666667 | AR48: 85.09333333 | AS48: 45 | AT48: 0.9 | AU48: 3.959183673 | AV48: 6 | AW48: 8.040816327 | AX48: 10.08163265 | AY48: 12.12244898 | AZ48: 13.14285714 | BA48: 45 | BB48: 0.6 | BC48: 12.75675676 | BD48: 20.86486486 | BE48: 28.97297297 | BF48: 37.08108108 | BG48: 45.18918919 | BH48: 49.24324324 | BI48: 45 | BJ48: 0.3 | BK48: 21.43624161 | BL48: 35.53020134 | BM48: 49.62416107 | BN48: 63.71812081 | BO48: 77.81208054 | BP48: 84.8590604
A49: T13 | B49: Destination choice in traffic to short slow route | C49: Destination choice in traffic to long fast route | L49: If shortest route or other route choice model | O49: If fastest route or other route choice model | U49: 45 | V49: 0.9 | W49: 3.9 | X49: 5.9 | Y49: 7.9 | Z49: 9.9 | AA49: 11.9 | AB49: 12.9 | AC49: 45 | AD49: 0.6 | AE49: 12.6 | AF49: 20.6 | AG49: 28.6 | AH49: 36.6 | AI49: 44.6 | AJ49: 48.6 | AK49: 45 | AL49: 0.3 | AM49: 21.3 | AN49: 35.3 | AO49: 49.3 | AP49: 63.3 | AQ49: 77.3 | AR49: 84.3 | AS49: 46 | AT49: 0.92 | AU49: 3.367346939 | AV49: 5 | AW49: 6.632653061 | AX49: 8.265306122 | AY49: 9.897959184 | AZ49: 10.71428571 | BA49: 46 | BB49: 0.6133333333 | BC49: 12.36486486 | BD49: 20.2027027 | BE49: 28.04054054 | BF49: 35.87837838 | BG49: 43.71621622 | BH49: 47.63513514 | BI49: 46 | BJ49: 0.3066666667 | BK49: 21.24161074 | BL49: 35.20134228 | BM49: 49.16107383 | BN49: 63.12080537 | BO49: 77.08053691 | BP49: 84.06040268
B50: =(P5/W5)*3.6 -> 122.3657376 | C50: =(P7/AJ5)*3.6 -> 60.80396352 | L50: 1 | O50: 1 | U50: 46 | V50: 0.92 | W50: 3.32 | X50: 4.92 | Y50: 6.52 | Z50: 8.12 | AA50: 9.72 | AB50: 10.52 | AC50: 46 | AD50: 0.6133333333 | AE50: 12.21333333 | AF50: 19.94666667 | AG50: 27.68 | AH50: 35.41333333 | AI50: 43.14666667 | AJ50: 47.01333333 | AK50: 46 | AL50: 0.3066666667 | AM50: 21.10666667 | AN50: 34.97333333 | AO50: 48.84 | AP50: 62.70666667 | AQ50: 76.57333333 | AR50: 83.50666667 | AS50: 47 | AT50: 0.94 | AU50: 2.775510204 | AV50: 4 | AW50: 5.224489796 | AX50: 6.448979592 | AY50: 7.673469388 | AZ50: 8.285714286 | BA50: 47 | BB50: 0.6266666667 | BC50: 11.97297297 | BD50: 19.54054054 | BE50: 27.10810811 | BF50: 34.67567568 | BG50: 42.24324324 | BH50: 46.02702703 | BI50: 47 | BJ50: 0.3133333333 | BK50: 21.04697987 | BL50: 34.87248322 | BM50: 48.69798658 | BN50: 62.52348993 | BO50: 76.34899329 | BP50: 83.26174497
A51: T14 | B51: Route choice in traffic, short slow route | C51: Route choice in traffic, long fast route | U51: 47 | V51: 0.94 | W51: 2.74 | X51: 3.94 | Y51: 5.14 | Z51: 6.34 | AA51: 7.54 | AB51: 8.14 | AC51: 47 | AD51: 0.6266666667 | AE51: 11.82666667 | AF51: 19.29333333 | AG51: 26.76 | AH51: 34.22666667 | AI51: 41.69333333 | AJ51: 45.42666667 | AK51: 47 | AL51: 0.3133333333 | AM51: 20.91333333 | AN51: 34.64666667 | AO51: 48.38 | AP51: 62.11333333 | AQ51: 75.84666667 | AR51: 82.71333333 | AS51: 48 | AT51: 0.96 | AU51: 2.183673469 | AV51: 3 | AW51: 3.816326531 | AX51: 4.632653061 | AY51: 5.448979592 | AZ51: 5.857142857 | BA51: 48 | BB51: 0.64 | BC51: 11.58108108 | BD51: 18.87837838 | BE51: 26.17567568 | BF51: 33.47297297 | BG51: 40.77027027 | BH51: 44.41891892 | BI51: 48 | BJ51: 0.32 | BK51: 20.85234899 | BL51: 34.54362416 | BM51: 48.23489933 | BN51: 61.9261745 | BO51: 75.61744966 | BP51: 82.46308725
B52: =(P7/AE5)*3.6 -> 243.1337235 | C52: =(P8/AJ5)*3.6 -> 121.607927 | U52: 48 | V52: 0.96 | W52: 2.16 | X52: 2.96 | Y52: 3.76 | Z52: 4.56 | AA52: 5.36 | AB52: 5.76 | AC52: 48 | AD52: 0.64 | AE52: 11.44 | AF52: 18.64 | AG52: 25.84 | AH52: 33.04 | AI52: 40.24 | AJ52: 43.84 | AK52: 48 | AL52: 0.32 | AM52: 20.72 | AN52: 34.32 | AO52: 47.92 | AP52: 61.52 | AQ52: 75.12 | AR52: 81.92 | AS52: 49 | AT52: 0.98 | AU52: 1.591836735 | AV52: 2 | AW52: 2.408163265 | AX52: 2.816326531 | AY52: 3.224489796 | AZ52: 3.428571429 | BA52: 49 | BB52: 0.6533333333 | BC52: 11.18918919 | BD52: 18.21621622 | BE52: 25.24324324 | BF52: 32.27027027 | BG52: 39.2972973 | BH52: 42.81081081 | BI52: 49 | BJ52: 0.3266666667 | BK52: 20.65771812 | BL52: 34.2147651 | BM52: 47.77181208 | BN52: 61.32885906 | BO52: 74.88590604 | BP52: 81.66442953
A53: T15 | B53: Vehicle demand vs arrival distribution | L53: Implemented number of vehicles in the traffic system reaching a Destination | U53: 49 | V53: 0.98 | W53: 1.58 | X53: 1.98 | Y53: 2.38 | Z53: 2.78 | AA53: 3.18 | AB53: 3.38 | AC53: 49 | AD53: 0.6533333333 | AE53: 11.05333333 | AF53: 17.98666667 | AG53: 24.92 | AH53: 31.85333333 | AI53: 38.78666667 | AJ53: 42.25333333 | AK53: 49 | AL53: 0.3266666667 | AM53: 20.52666667 | AN53: 33.99333333 | AO53: 47.46 | AP53: 60.92666667 | AQ53: 74.39333333 | AR53: 81.12666667 | AS53: 50 | AT53: 1 | AU53: 1 | AV53: 1 | AW53: 1 | AX53: 1 | AY53: 1 | AZ53: 1 | BA53: 50 | BB53: 0.6666666667 | BC53: 10.7972973 | BD53: 17.55405405 | BE53: 24.31081081 | BF53: 31.06756757 | BG53: 37.82432432 | BH53: 41.2027027 | BI53: 50 | BJ53: 0.3333333333 | BK53: 20.46308725 | BL53: 33.88590604 | BM53: 47.30872483 | BN53: 60.73154362 | BO53: 74.15436242 | BP53: 80.86577181
L54: 2 | M54: 50 | N54: 100 | U54: 50 | V54: 1 | W54: 1 | X54: 1 | Y54: 1 | Z54: 1 | AA54: 1 | AB54: 1 | AC54: 50 | AD54: 0.6666666667 | AE54: =(1-$AD54)*(AE$3-$R$5)+$R$5 -> 10.66666667 | AF54: 17.33333333 | AG54: 24 | AH54: 30.66666667 | AI54: 37.33333333 | AJ54: 40.66666667 | AK54: 50 | AL54: 0.3333333333 | AM54: =(1-$AL54)*(AM$3-$R$5)+$R$5 -> 20.33333333 | AN54: 33.66666667 | AO54: 47 | AP54: 60.33333333 | AQ54: 73.66666667 | AR54: 80.33333333 | BA54: 51 | BB54: 0.68 | BC54: =(($R$5-BC$3)/($BB$78-$BB$4))*($BB54-$BB$4)+BC$3 -> 10.40540541 | BD54: 16.89189189 | BE54: 23.37837838 | BF54: 29.86486486 | BG54: 36.35135135 | BH54: 39.59459459 | BI54: 51 | BJ54: 0.34 | BK54: =(($R$5-BK$3)/($BJ$153-$BJ$4))*($BJ54-$BJ$4)+BK$3 -> 20.26845638 | BL54: 33.55704698 | BM54: 46.84563758 | BN54: 60.13422819 | BO54: 73.42281879 | BP54: 80.06711409
A55: WT1 | B55: Route loss | L55: Closed route to Destination A | O55: Open route to Destination B | AC55: 51 | AD55: 0.68 | AE55: 10.28 | AF55: 16.68 | AG55: 23.08 | AH55: 29.48 | AI55: 35.88 | AJ55: 39.08 | AK55: 51 | AL55: 0.34 | AM55: 20.14 | AN55: 33.34 | AO55: 46.54 | AP55: 59.74 | AQ55: 72.94 | AR55: 79.54 | BA55: 52 | BB55: 0.6933333333 | BC55: 10.01351351 | BD55: 16.22972973 | BE55: 22.44594595 | BF55: 28.66216216 | BG55: 34.87837838 | BH55: 37.98648649 | BI55: 52 | BJ55: 0.3466666667 | BK55: 20.0738255 | BL55: 33.22818792 | BM55: 46.38255034 | BN55: 59.53691275 | BO55: 72.69127517 | BP55: 79.26845638
B56: =(P5/Z5+P8/AH5)*3.6 -> 202.9448904 | L56: 0 | O56: 1 | AC56: 52 | AD56: 0.6933333333 | AE56: 9.893333333 | AF56: 16.02666667 | AG56: 22.16 | AH56: 28.29333333 | AI56: 34.42666667 | AJ56: 37.49333333 | AK56: 52 | AL56: 0.3466666667 | AM56: 19.94666667 | AN56: 33.01333333 | AO56: 46.08 | AP56: 59.14666667 | AQ56: 72.21333333 | AR56: 78.74666667 | BA56: 53 | BB56: 0.7066666667 | BC56: 9.621621622 | BD56: 15.56756757 | BE56: 21.51351351 | BF56: 27.45945946 | BG56: 33.40540541 | BH56: 36.37837838 | BI56: 53 | BJ56: 0.3533333333 | BK56: 19.87919463 | BL56: 32.89932886 | BM56: 45.91946309 | BN56: 58.93959732 | BO56: 71.95973154 | BP56: 78.46979866
A57: WT2 | B57: Lane reversal, Vehicle density level 1 | C57: Vehicle density level 2 | D57: Vehicle density level 3 | E57: Vehicle density level 4 | F57: Vehicle density level 5 | AC57: 53 | AD57: 0.7066666667 | AE57: 9.506666667 | AF57: 15.37333333 | AG57: 21.24 | AH57: 27.10666667 | AI57: 32.97333333 | AJ57: 35.90666667 | AK57: 53 | AL57: 0.3533333333 | AM57: 19.75333333 | AN57: 32.68666667 | AO57: 45.62 | AP57: 58.55333333 | AQ57: 71.48666667 | AR57: 77.95333333 | BA57: 54 | BB57: 0.72 | BC57: 9.22972973 | BD57: 14.90540541 | BE57: 20.58108108 | BF57: 26.25675676 | BG57: 31.93243243 | BH57: 34.77027027 | BI57: 54 | BJ57: 0.36 | BK57: 19.68456376 | BL57: 32.5704698 | BM57: 45.45637584 | BN57: 58.34228188 | BO57: 71.22818792 | BP57: 77.67114094
B58: =R8 + (P5-(AH5/3.6)*R8)/(AP5/3.6) -> 40.46454403 | C58: =R8 + (P5-(AH23/3.6)*R8)/(AP23/3.6) -> 50.02371073 | D58: =R8 + (P5-(AH42/3.6)*R8)/(AP42/3.6) -> 63.39790472 | E58: =R8 + (P5-(AH60/3.6)*R8)/(AP60/3.6) -> 80.96759042 | F58: =R8 + (P5-(AH79/3.6)*R8)/(AP79/3.6) -> 108.4615385 | AC58: 54 | AD58: 0.72 | AE58: 9.12 | AF58: 14.72 | AG58: 20.32 | AH58: 25.92 | AI58: 31.52 | AJ58: 34.32 | AK58: 54 | AL58: 0.36 | AM58: 19.56 | AN58: 32.36 | AO58: 45.16 | AP58: 57.96 | AQ58: 70.76 | AR58: 77.16 | BA58: 55 | BB58: 0.7333333333 | BC58: 8.837837838 | BD58: 14.24324324 | BE58: 19.64864865 | BF58: 25.05405405 | BG58: 30.45945946 | BH58: 33.16216216 | BI58: 55 | BJ58: 0.3666666667 | BK58: 19.48993289 | BL58: 32.24161074 | BM58: 44.99328859 | BN58: 57.74496644 | BO58: 70.4966443 | BP58: 76.87248322
A59: WT3 | B59: Loss of closest Destination | C59: Kör halvvägs till A | L59: Destination A unavailable | O59: Destination B available | AC59: 55 | AD59: 0.7333333333 | AE59: 8.733333333 | AF59: 14.06666667 | AG59: 19.4 | AH59: 24.73333333 | AI59: 30.06666667 | AJ59: 32.73333333 | AK59: 55 | AL59: 0.3666666667 | AM59: 19.36666667 | AN59: 32.03333333 | AO59: 44.7 | AP59: 57.36666667 | AQ59: 70.03333333 | AR59: 76.36666667 | BA59: 56 | BB59: 0.7466666667 | BC59: 8.445945946 | BD59: 13.58108108 | BE59: 18.71621622 | BF59: 23.85135135 | BG59: 28.98648649 | BH59: 31.55405405 | BI59: 56 | BJ59: 0.3733333333 | BK59: 19.29530201 | BL59: 31.91275168 | BM59: 44.53020134 | BN59: 57.14765101 | BO59: 69.76510067 | BP59: 76.0738255
B60: =(P5/Z5+P7/AH5)*3.6 -> 121.8759818 | C60: =(P5/Z5+P4/AH5+P4/AH5+P7/AH5)*3.6 -> 162.4104361 | L60: 0 | O60: 1 | AC60: 56 | AD60: 0.7466666667 | AE60: 8.346666667 | AF60: 13.41333333 | AG60: 18.48 | AH60: 23.54666667 | AI60: 28.61333333 | AJ60: 31.14666667 | AK60: 56 | AL60: 0.3733333333 | AM60: 19.17333333 | AN60: 31.70666667 | AO60: 44.24 | AP60: 56.77333333 | AQ60: 69.30666667 | AR60: 75.57333333 | BA60: 57 | BB60: 0.76 | BC60: 8.054054054 | BD60: 12.91891892 | BE60: 17.78378378 | BF60: 22.64864865 | BG60: 27.51351351 | BH60: 29.94594595 | BI60: 57 | BJ60: 0.38 | BK60: 19.10067114 | BL60: 31.58389262 | BM60: 44.06711409 | BN60: 56.55033557 | BO60: 69.03355705 | BP60: 75.27516779
A61: WT4 | B61: Vehicle driving to Destination A | C61: Vehicle driving to Destination A, then to Destination B | L61: Destination A can hold one person | O61: Destination B can hold 1 person | AC61: 57 | AD61: 0.76 | AE61: 7.96 | AF61: 12.76 | AG61: 17.56 | AH61: 22.36 | AI61: 27.16 | AJ61: 29.56 | AK61: 57 | AL61: 0.38 | AM61: 18.98 | AN61: 31.38 | AO61: 43.78 | AP61: 56.18 | AQ61: 68.58 | AR61: 74.78 | BA61: 58 | BB61: 0.7733333333 | BC61: 7.662162162 | BD61: 12.25675676 | BE61: 16.85135135 | BF61: 21.44594595 | BG61: 26.04054054 | BH61: 28.33783784 | BI61: 58 | BJ61: 0.3866666667 | BK61: 18.90604027 | BL61: 31.25503356 | BM61: 43.60402685 | BN61: 55.95302013 | BO61: 68.30201342 | BP61: 74.47651007
B62: =(P5/Z5+P5/AH5)*3.6 -> 81.34152751 | C62: =(P5/Z5+P5/AH5+P5/AH5+P7/AH5)*3.6 -> 202.9448904 | L62: 1 | O62: 1 | AC62: 58 | AD62: 0.7733333333 | AE62: 7.573333333 | AF62: 12.10666667 | AG62: 16.64 | AH62: 21.17333333 | AI62: 25.70666667 | AJ62: 27.97333333 | AK62: 58 | AL62: 0.3866666667 | AM62: 18.78666667 | AN62: 31.05333333 | AO62: 43.32 | AP62: 55.58666667 | AQ62: 67.85333333 | AR62: 73.98666667 | BA62: 59 | BB62: 0.7866666667 | BC62: 7.27027027 | BD62: 11.59459459 | BE62: 15.91891892 | BF62: 20.24324324 | BG62: 24.56756757 | BH62: 26.72972973 | BI62: 59 | BJ62: 0.3933333333 | BK62: 18.7114094 | BL62: 30.9261745 | BM62: 43.1409396 | BN62: 55.3557047 | BO62: 67.5704698 | BP62: 73.67785235
AC63: 59 | AD63: 0.7866666667 | AE63: 7.186666667 | AF63: 11.45333333 | AG63: 15.72 | AH63: 19.98666667 | AI63: 24.25333333 | AJ63: 26.38666667 | AK63: 59 | AL63: 0.3933333333 | AM63: 18.59333333 | AN63: 30.72666667 | AO63: 42.86 | AP63: 54.99333333 | AQ63: 67.12666667 | AR63: 73.19333333 | BA63: 60 | BB63: 0.8 | BC63: 6.878378378 | BD63: 10.93243243 | BE63: 14.98648649 | BF63: 19.04054054 | BG63: 23.09459459 | BH63: 25.12162162 | BI63: 60 | BJ63: 0.4 | BK63: 18.51677852 | BL63: 30.59731544 | BM63: 42.67785235 | BN63: 54.75838926 | BO63: 66.83892617 | BP63: 72.87919463
AC64: 60 | AD64: 0.8 | AE64: =(1-$AD64)*(AE$3-$R$5)+$R$5 -> 6.8 | AF64: 10.8 | AG64: 14.8 | AH64: 18.8 | AI64: 22.8 | AJ64: 24.8 | AK64: 60 | AL64: 0.4 | AM64: =(1-$AL64)*(AM$3-$R$5)+$R$5 -> 18.4 | AN64: 30.4 | AO64: 42.4 | AP64: 54.4 | AQ64: 66.4 | AR64: 72.4 | BA64: 61 | BB64: 0.8133333333 | BC64: =(($R$5-BC$3)/($BB$78-$BB$4))*($BB64-$BB$4)+BC$3 -> 6.486486486 | BD64: 10.27027027 | BE64: 14.05405405 | BF64: 17.83783784 | BG64: 21.62162162 | BH64: 23.51351351 | BI64: 61 | BJ64: 0.4066666667 | BK64: =(($R$5-BK$3)/($BJ$153-$BJ$4))*($BJ64-$BJ$4)+BK$3 -> 18.32214765 | BL64: 30.26845638 | BM64: 42.2147651 | BN64: 54.16107383 | BO64: 66.10738255 | BP64: 72.08053691
B65: Lane reversal with a triggered event | AC65: 61 | AD65: 0.8133333333 | AE65: 6.413333333 | AF65: 10.14666667 | AG65: 13.88 | AH65: 17.61333333 | AI65: 21.34666667 | AJ65: 23.21333333 | AK65: 61 | AL65: 0.4066666667 | AM65: 18.20666667 | AN65: 30.07333333 | AO65: 41.94 | AP65: 53.80666667 | AQ65: 65.67333333 | AR65: 71.60666667 | BA65: 62 | BB65: 0.8266666667 | BC65: 6.094594595 | BD65: 9.608108108 | BE65: 13.12162162 | BF65: 16.63513514 | BG65: 20.14864865 | BH65: 21.90540541 | BI65: 62 | BJ65: 0.4133333333 | BK65: 18.12751678 | BL65: 29.93959732 | BM65: 41.75167785 | BN65: 53.56375839 | BO65: 65.37583893 | BP65: 71.28187919
AC66: 62 | AD66: 0.8266666667 | AE66: 6.026666667 | AF66: 9.493333333 | AG66: 12.96 | AH66: 16.42666667 | AI66: 19.89333333 | AJ66: 21.62666667 | AK66: 62 | AL66: 0.4133333333 | AM66: 18.01333333 | AN66: 29.74666667 | AO66: 41.48 | AP66: 53.21333333 | AQ66: 64.94666667 | AR66: 70.81333333 | BA66: 63 | BB66: 0.84 | BC66: 5.702702703 | BD66: 8.945945946 | BE66: 12.18918919 | BF66: 15.43243243 | BG66: 18.67567568 | BH66: 20.2972973 | BI66: 63 | BJ66: 0.42 | BK66: 17.93288591 | BL66: 29.61073826 | BM66: 41.2885906 | BN66: 52.96644295 | BO66: 64.6442953 | BP66: 70.48322148
AC67: 63 | AD67: 0.84 | AE67: 5.64 | AF67: 8.84 | AG67: 12.04 | AH67: 15.24 | AI67: 18.44 | AJ67: 20.04 | AK67: 63 | AL67: 0.42 | AM67: 17.82 | AN67: 29.42 | AO67: 41.02 | AP67: 52.62 | AQ67: 64.22 | AR67: 70.02 | BA67: 64 | BB67: 0.8533333333 | BC67: 5.310810811 | BD67: 8.283783784 | BE67: 11.25675676 | BF67: 14.22972973 | BG67: 17.2027027 | BH67: 18.68918919 | BI67: 64 | BJ67: 0.4266666667 | BK67: 17.73825503 | BL67: 29.28187919 | BM67: 40.82550336 | BN67: 52.36912752 | BO67: 63.91275168 | BP67: 69.68456376
AC68: 64 | AD68: =AC68/$AC$79 -> 0.8533333333 | AE68: 5.253333333 | AF68: 8.186666667 | AG68: 11.12 | AH68: 14.05333333 | AI68: 16.98666667 | AJ68: 18.45333333 | AK68: 64 | AL68: =AK68/$AK$154 -> 0.4266666667 | AM68: 17.62666667 | AN68: 29.09333333 | AO68: 40.56 | AP68: 52.02666667 | AQ68: 63.49333333 | AR68: 69.22666667 | BA68: 65 | BB68: =BA68/$BA$78 -> 0.8666666667 | BC68: 4.918918919 | BD68: 7.621621622 | BE68: 10.32432432 | BF68: 13.02702703 | BG68: 15.72972973 | BH68: 17.08108108 | BI68: 65 | BJ68: =BI68/$BI$153 -> 0.4333333333 | BK68: 17.54362416 | BL68: 28.95302013 | BM68: 40.36241611 | BN68: 51.77181208 | BO68: 63.18120805 | BP68: 68.88590604
AC69: =AC68+1 -> 65 | AD69: 0.8666666667 | AE69: 4.866666667 | AF69: 7.533333333 | AG69: 10.2 | AH69: 12.86666667 | AI69: 15.53333333 | AJ69: 16.86666667 | AK69: =AK68+1 -> 65 | AL69: 0.4333333333 | AM69: 17.43333333 | AN69: 28.76666667 | AO69: 40.1 | AP69: 51.43333333 | AQ69: 62.76666667 | AR69: 68.43333333 | BA69: =BA68+1 -> 66 | BB69: 0.88 | BC69: 4.527027027 | BD69: 6.959459459 | BE69: 9.391891892 | BF69: 11.82432432 | BG69: 14.25675676 | BH69: 15.47297297 | BI69: =BI68+1 -> 66 | BJ69: 0.44 | BK69: 17.34899329 | BL69: 28.62416107 | BM69: 39.89932886 | BN69: 51.17449664 | BO69: 62.44966443 | BP69: 68.08724832
AC70: 66 | AD70: 0.88 | AE70: 4.48 | AF70: 6.88 | AG70: 9.28 | AH70: 11.68 | AI70: 14.08 | AJ70: 15.28 | AK70: 66 | AL70: 0.44 | AM70: 17.24 | AN70: 28.44 | AO70: 39.64 | AP70: 50.84 | AQ70: 62.04 | AR70: 67.64 | BA70: 67 | BB70: 0.8933333333 | BC70: 4.135135135 | BD70: 6.297297297 | BE70: 8.459459459 | BF70: 10.62162162 | BG70: 12.78378378 | BH70: 13.86486486 | BI70: 67 | BJ70: 0.4466666667 | BK70: 17.15436242 | BL70: 28.29530201 | BM70: 39.43624161 | BN70: 50.57718121 | BO70: 61.71812081 | BP70: 67.2885906
AC71: 67 | AD71: 0.8933333333 | AE71: 4.093333333 | AF71: 6.226666667 | AG71: 8.36 | AH71: 10.49333333 | AI71: 12.62666667 | AJ71: 13.69333333 | AK71: 67 | AL71: 0.4466666667 | AM71: 17.04666667 | AN71: 28.11333333 | AO71: 39.18 | AP71: 50.24666667 | AQ71: 61.31333333 | AR71: 66.84666667 | BA71: 68 | BB71: 0.9066666667 | BC71: 3.743243243 | BD71: 5.635135135 | BE71: 7.527027027 | BF71: 9.418918919 | BG71: 11.31081081 | BH71: 12.25675676 | BI71: 68 | BJ71: 0.4533333333 | BK71: 16.95973154 | BL71: 27.96644295 | BM71: 38.97315436 | BN71: 49.97986577 | BO71: 60.98657718 | BP71: 66.48993289
AC72: 68 | AD72: 0.9066666667 | AE72: 3.706666667 | AF72: 5.573333333 | AG72: 7.44 | AH72: 9.306666667 | AI72: 11.17333333 | AJ72: 12.10666667 | AK72: 68 | AL72: 0.4533333333 | AM72: 16.85333333 | AN72: 27.78666667 | AO72: 38.72 | AP72: 49.65333333 | AQ72: 60.58666667 | AR72: 66.05333333 | BA72: 69 | BB72: 0.92 | BC72: 3.351351351 | BD72: 4.972972973 | BE72: 6.594594595 | BF72: 8.216216216 | BG72: 9.837837838 | BH72: 10.64864865 | BI72: 69 | BJ72: 0.46 | BK72: 16.76510067 | BL72: 27.63758389 | BM72: 38.51006711 | BN72: 49.38255034 | BO72: 60.25503356 | BP72: 65.69127517
AC73: 69 | AD73: 0.92 | AE73: 3.32 | AF73: 4.92 | AG73: 6.52 | AH73: 8.12 | AI73: 9.72 | AJ73: 10.52 | AK73: 69 | AL73: 0.46 | AM73: 16.66 | AN73: 27.46 | AO73: 38.26 | AP73: 49.06 | AQ73: 59.86 | AR73: 65.26 | BA73: 70 | BB73: 0.9333333333 | BC73: 2.959459459 | BD73: 4.310810811 | BE73: 5.662162162 | BF73: 7.013513514 | BG73: 8.364864865 | BH73: 9.040540541 | BI73: 70 | BJ73: 0.4666666667 | BK73: 16.5704698 | BL73: 27.30872483 | BM73: 38.04697987 | BN73: 48.7852349 | BO73: 59.52348993 | BP73: 64.89261745
AC74: 70 | AD74: 0.9333333333 | AE74: =(1-$AD74)*(AE$3-$R$5)+$R$5 -> 2.933333333 | AF74: 4.266666667 | AG74: 5.6 | AH74: 6.933333333 | AI74: 8.266666667 | AJ74: 8.933333333 | AK74: 70 | AL74: 0.4666666667 | AM74: =(1-$AL74)*(AM$3-$R$5)+$R$5 -> 16.46666667 | AN74: 27.13333333 | AO74: 37.8 | AP74: 48.46666667 | AQ74: 59.13333333 | AR74: 64.46666667 | BA74: 71 | BB74: 0.9466666667 | BC74: 2.567567568 | BD74: 3.648648649 | BE74: 4.72972973 | BF74: 5.810810811 | BG74: 6.891891892 | BH74: 7.432432432 | BI74: 71 | BJ74: 0.4733333333 | BK74: =(($R$5-BK$3)/($BJ$153-$BJ$4))*($BJ74-$BJ$4)+BK$3 -> 16.37583893 | BL74: 26.97986577 | BM74: 37.58389262 | BN74: 48.18791946 | BO74: 58.79194631 | BP74: 64.09395973
AC75: 71 | AD75: 0.9466666667 | AE75: 2.546666667 | AF75: 3.613333333 | AG75: 4.68 | AH75: 5.746666667 | AI75: 6.813333333 | AJ75: 7.346666667 | AK75: 71 | AL75: 0.4733333333 | AM75: 16.27333333 | AN75: 26.80666667 | AO75: 37.34 | AP75: 47.87333333 | AQ75: 58.40666667 | AR75: 63.67333333 | BA75: 72 | BB75: 0.96 | BC75: 2.175675676 | BD75: 2.986486486 | BE75: 3.797297297 | BF75: 4.608108108 | BG75: 5.418918919 | BH75: 5.824324324 | BI75: 72 | BJ75: 0.48 | BK75: 16.18120805 | BL75: 26.65100671 | BM75: 37.12080537 | BN75: 47.59060403 | BO75: 58.06040268 | BP75: 63.29530201
AC76: 72 | AD76: 0.96 | AE76: 2.16 | AF76: 2.96 | AG76: 3.76 | AH76: 4.56 | AI76: 5.36 | AJ76: 5.76 | AK76: 72 | AL76: 0.48 | AM76: 16.08 | AN76: 26.48 | AO76: 36.88 | AP76: 47.28 | AQ76: 57.68 | AR76: 62.88 | BA76: 73 | BB76: 0.9733333333 | BC76: 1.783783784 | BD76: 2.324324324 | BE76: 2.864864865 | BF76: 3.405405405 | BG76: 3.945945946 | BH76: 4.216216216 | BI76: 73 | BJ76: 0.4866666667 | BK76: 15.98657718 | BL76: 26.32214765 | BM76: 36.65771812 | BN76: 46.99328859 | BO76: 57.32885906 | BP76: 62.4966443
AC77: 73 | AD77: 0.9733333333 | AE77: 1.773333333 | AF77: 2.306666667 | AG77: 2.84 | AH77: 3.373333333 | AI77: 3.906666667 | AJ77: 4.173333333 | AK77: 73 | AL77: 0.4866666667 | AM77: 15.88666667 | AN77: 26.15333333 | AO77: 36.42 | AP77: 46.68666667 | AQ77: 56.95333333 | AR77: 62.08666667 | BA77: 74 | BB77: 0.9866666667 | BC77: 1.391891892 | BD77: 1.662162162 | BE77: 1.932432432 | BF77: 2.202702703 | BG77: 2.472972973 | BH77: 2.608108108 | BI77: 74 | BJ77: 0.4933333333 | BK77: 15.79194631 | BL77: 25.99328859 | BM77: 36.19463087 | BN77: 46.39597315 | BO77: 56.59731544 | BP77: 61.69798658
AC78: 74 | AD78: 0.9866666667 | AE78: 1.386666667 | AF78: 1.653333333 | AG78: 1.92 | AH78: 2.186666667 | AI78: 2.453333333 | AJ78: 2.586666667 | AK78: 74 | AL78: 0.4933333333 | AM78: 15.69333333 | AN78: 25.82666667 | AO78: 35.96 | AP78: 46.09333333 | AQ78: 56.22666667 | AR78: 61.29333333 | BA78: 75 | BB78: 1 | BC78: 1 | BD78: 1 | BE78: 1 | BF78: 1 | BG78: 1 | BH78: 1 | BI78: 75 | BJ78: 0.5 | BK78: 15.59731544 | BL78: 25.66442953 | BM78: 35.73154362 | BN78: 45.79865772 | BO78: 55.86577181 | BP78: 60.89932886
AC79: 75 | AD79: 1 | AE79: 1 | AF79: 1 | AG79: 1 | AH79: 1 | AI79: 1 | AJ79: 1 | AK79: 75 | AL79: 0.5 | AM79: 15.5 | AN79: 25.5 | AO79: 35.5 | AP79: 45.5 | AQ79: 55.5 | AR79: 60.5 | BI79: 76 | BJ79: 0.5066666667 | BK79: 15.40268456 | BL79: 25.33557047 | BM79: 35.26845638 | BN79: 45.20134228 | BO79: 55.13422819 | BP79: 60.10067114
AK80: 76 | AL80: 0.5066666667 | AM80: 15.30666667 | AN80: 25.17333333 | AO80: 35.04 | AP80: 44.90666667 | AQ80: 54.77333333 | AR80: 59.70666667 | BI80: 77 | BJ80: 0.5133333333 | BK80: 15.20805369 | BL80: 25.00671141 | BM80: 34.80536913 | BN80: 44.60402685 | BO80: 54.40268456 | BP80: 59.30201342
AK81: 77 | AL81: 0.5133333333 | AM81: 15.11333333 | AN81: 24.84666667 | AO81: 34.58 | AP81: 44.31333333 | AQ81: 54.04666667 | AR81: 58.91333333 | BI81: 78 | BJ81: 0.52 | BK81: 15.01342282 | BL81: 24.67785235 | BM81: 34.34228188 | BN81: 44.00671141 | BO81: 53.67114094 | BP81: 58.5033557
AK82: 78 | AL82: 0.52 | AM82: 14.92 | AN82: 24.52 | AO82: 34.12 | AP82: 43.72 | AQ82: 53.32 | AR82: 58.12 | BI82: 79 | BJ82: 0.5266666667 | BK82: 14.81879195 | BL82: 24.34899329 | BM82: 33.87919463 | BN82: 43.40939597 | BO82: 52.93959732 | BP82: 57.70469799
AK83: 79 | AL83: 0.5266666667 | AM83: 14.72666667 | AN83: 24.19333333 | AO83: 33.66 | AP83: 43.12666667 | AQ83: 52.59333333 | AR83: 57.32666667 | BI83: 80 | BJ83: 0.5333333333 | BK83: 14.62416107 | BL83: 24.02013423 | BM83: 33.41610738 | BN83: 42.81208054 | BO83: 52.20805369 | BP83: 56.90604027
AK84: 80 | AL84: 0.5333333333 | AM84: =(1-$AL84)*(AM$3-$R$5)+$R$5 -> 14.53333333 | AN84: 23.86666667 | AO84: 33.2 | AP84: 42.53333333 | AQ84: 51.86666667 | AR84: 56.53333333 | BI84: 81 | BJ84: 0.54 | BK84: =(($R$5-BK$3)/($BJ$153-$BJ$4))*($BJ84-$BJ$4)+BK$3 -> 14.4295302 | BL84: 23.69127517 | BM84: 32.95302013 | BN84: 42.2147651 | BO84: 51.47651007 | BP84: 56.10738255
AK85: 81 | AL85: 0.54 | AM85: 14.34 | AN85: 23.54 | AO85: 32.74 | AP85: 41.94 | AQ85: 51.14 | AR85: 55.74 | BI85: 82 | BJ85: 0.5466666667 | BK85: 14.23489933 | BL85: 23.36241611 | BM85: 32.48993289 | BN85: 41.61744966 | BO85: 50.74496644 | BP85: 55.30872483
AK86: 82 | AL86: 0.5466666667 | AM86: 14.14666667 | AN86: 23.21333333 | AO86: 32.28 | AP86: 41.34666667 | AQ86: 50.41333333 | AR86: 54.94666667 | BI86: 83 | BJ86: 0.5533333333 | BK86: 14.04026846 | BL86: 23.03355705 | BM86: 32.02684564 | BN86: 41.02013423 | BO86: 50.01342282 | BP86: 54.51006711
AK87: 83 | AL87: 0.5533333333 | AM87: 13.95333333 | AN87: 22.88666667 | AO87: 31.82 | AP87: 40.75333333 | AQ87: 49.68666667 | AR87: 54.15333333 | BI87: 84 | BJ87: 0.56 | BK87: 13.84563758 | BL87: 22.70469799 | BM87: 31.56375839 | BN87: 40.42281879 | BO87: 49.28187919 | BP87: 53.7114094
AK88: 84 | AL88: 0.56 | AM88: 13.76 | AN88: 22.56 | AO88: 31.36 | AP88: 40.16 | AQ88: 48.96 | AR88: 53.36 | BI88: 85 | BJ88: 0.5666666667 | BK88: 13.65100671 | BL88: 22.37583893 | BM88: 31.10067114 | BN88: 39.82550336 | BO88: 48.55033557 | BP88: 52.91275168
AK89: 85 | AL89: 0.5666666667 | AM89: 13.56666667 | AN89: 22.23333333 | AO89: 30.9 | AP89: 39.56666667 | AQ89: 48.23333333 | AR89: 52.56666667 | BI89: 86 | BJ89: 0.5733333333 | BK89: 13.45637584 | BL89: 22.04697987 | BM89: 30.63758389 | BN89: 39.22818792 | BO89: 47.81879195 | BP89: 52.11409396
AK90: 86 | AL90: 0.5733333333 | AM90: 13.37333333 | AN90: 21.90666667 | AO90: 30.44 | AP90: 38.97333333 | AQ90: 47.50666667 | AR90: 51.77333333 | BI90: 87 | BJ90: 0.58 | BK90: 13.26174497 | BL90: 21.71812081 | BM90: 30.17449664 | BN90: 38.63087248 | BO90: 47.08724832 | BP90: 51.31543624
AK91: 87 | AL91: 0.58 | AM91: 13.18 | AN91: 21.58 | AO91: 29.98 | AP91: 38.38 | AQ91: 46.78 | AR91: 50.98 | BI91: 88 | BJ91: 0.5866666667 | BK91: 13.06711409 | BL91: 21.38926174 | BM91: 29.7114094 | BN91: 38.03355705 | BO91: 46.3557047 | BP91: 50.51677852
AK92: 88 | AL92: 0.5866666667 | AM92: 12.98666667 | AN92: 21.25333333 | AO92: 29.52 | AP92: 37.78666667 | AQ92: 46.05333333 | AR92: 50.18666667 | BI92: 89 | BJ92: 0.5933333333 | BK92: 12.87248322 | BL92: 21.06040268 | BM92: 29.24832215 | BN92: 37.43624161 | BO92: 45.62416107 | BP92: 49.71812081
AK93: 89 | AL93: 0.5933333333 | AM93: 12.79333333 | AN93: 20.92666667 | AO93: 29.06 | AP93: 37.19333333 | AQ93: 45.32666667 | AR93: 49.39333333 | BI93: 90 | BJ93: 0.6 | BK93: 12.67785235 | BL93: 20.73154362 | BM93: 28.7852349 | BN93: 36.83892617 | BO93: 44.89261745 | BP93: 48.91946309
AK94: 90 | AL94: 0.6 | AM94: =(1-$AL94)*(AM$3-$R$5)+$R$5 -> 12.6 | AN94: 20.6 | AO94: 28.6 | AP94: 36.6 | AQ94: 44.6 | AR94: 48.6 | BI94: 91 | BJ94: 0.6066666667 | BK94: =(($R$5-BK$3)/($BJ$153-$BJ$4))*($BJ94-$BJ$4)+BK$3 -> 12.48322148 | BL94: 20.40268456 | BM94: 28.32214765 | BN94: 36.24161074 | BO94: 44.16107383 | BP94: 48.12080537
AK95: 91 | AL95: 0.6066666667 | AM95: 12.40666667 | AN95: 20.27333333 | AO95: 28.14 | AP95: 36.00666667 | AQ95: 43.87333333 | AR95: 47.80666667 | BI95: 92 | BJ95: 0.6133333333 | BK95: 12.2885906 | BL95: 20.0738255 | BM95: 27.8590604 | BN95: 35.6442953 | BO95: 43.4295302 | BP95: 47.32214765
AK96: 92 | AL96: 0.6133333333 | AM96: 12.21333333 | AN96: 19.94666667 | AO96: 27.68 | AP96: 35.41333333 | AQ96: 43.14666667 | AR96: 47.01333333 | BI96: 93 | BJ96: 0.62 | BK96: 12.09395973 | BL96: 19.74496644 | BM96: 27.39597315 | BN96: 35.04697987 | BO96: 42.69798658 | BP96: 46.52348993
AK97: 93 | AL97: 0.62 | AM97: 12.02 | AN97: 19.62 | AO97: 27.22 | AP97: 34.82 | AQ97: 42.42 | AR97: 46.22 | BI97: 94 | BJ97: 0.6266666667 | BK97: 11.89932886 | BL97: 19.41610738 | BM97: 26.93288591 | BN97: 34.44966443 | BO97: 41.96644295 | BP97: 45.72483221
AK98: 94 | AL98: 0.6266666667 | AM98: 11.82666667 | AN98: 19.29333333 | AO98: 26.76 | AP98: 34.22666667 | AQ98: 41.69333333 | AR98: 45.42666667 | BI98: 95 | BJ98: 0.6333333333 | BK98: 11.70469799 | BL98: 19.08724832 | BM98: 26.46979866 | BN98: 33.85234899 | BO98: 41.23489933 | BP98: 44.9261745
AK99: 95 | AL99: 0.6333333333 | AM99: 11.63333333 | AN99: 18.96666667 | AO99: 26.3 | AP99: 33.63333333 | AQ99: 40.96666667 | AR99: 44.63333333 | BI99: 96 | BJ99: 0.64 | BK99: 11.51006711 | BL99: 18.75838926 | BM99: 26.00671141 | BN99: 33.25503356 | BO99: 40.5033557 | BP99: 44.12751678
AK100: 96 | AL100: =AK100/$AK$154 -> 0.64 | AM100: 11.44 | AN100: 18.64 | AO100: 25.84 | AP100: 33.04 | AQ100: 40.24 | AR100: 43.84 | BI100: 97 | BJ100: =BI100/$BI$153 -> 0.6466666667 | BK100: 11.31543624 | BL100: 18.4295302 | BM100: 25.54362416 | BN100: 32.65771812 | BO100: 39.77181208 | BP100: 43.32885906
AK101: =AK100+1 -> 97 | AL101: 0.6466666667 | AM101: 11.24666667 | AN101: 18.31333333 | AO101: 25.38 | AP101: 32.44666667 | AQ101: 39.51333333 | AR101: 43.04666667 | BI101: =BI100+1 -> 98 | BJ101: 0.6533333333 | BK101: 11.12080537 | BL101: 18.10067114 | BM101: 25.08053691 | BN101: 32.06040268 | BO101: 39.04026846 | BP101: 42.53020134
AK102: 98 | AL102: 0.6533333333 | AM102: 11.05333333 | AN102: 17.98666667 | AO102: 24.92 | AP102: 31.85333333 | AQ102: 38.78666667 | AR102: 42.25333333 | BI102: 99 | BJ102: 0.66 | BK102: 10.9261745 | BL102: 17.77181208 | BM102: 24.61744966 | BN102: 31.46308725 | BO102: 38.30872483 | BP102: 41.73154362
AK103: 99 | AL103: 0.66 | AM103: 10.86 | AN103: 17.66 | AO103: 24.46 | AP103: 31.26 | AQ103: 38.06 | AR103: 41.46 | BI103: 100 | BJ103: 0.6666666667 | BK103: 10.73154362 | BL103: 17.44295302 | BM103: 24.15436242 | BN103: 30.86577181 | BO103: 37.57718121 | BP103: 40.93288591
AK104: 100 | AL104: 0.6666666667 | AM104: =(1-$AL104)*(AM$3-$R$5)+$R$5 -> 10.66666667 | AN104: 17.33333333 | AO104: 24 | AP104: 30.66666667 | AQ104: 37.33333333 | AR104: 40.66666667 | BI104: 101 | BJ104: 0.6733333333 | BK104: =(($R$5-BK$3)/($BJ$153-$BJ$4))*($BJ104-$BJ$4)+BK$3 -> 10.53691275 | BL104: 17.11409396 | BM104: 23.69127517 | BN104: 30.26845638 | BO104: 36.84563758 | BP104: 40.13422819
AK105: 101 | AL105: 0.6733333333 | AM105: 10.47333333 | AN105: 17.00666667 | AO105: 23.54 | AP105: 30.07333333 | AQ105: 36.60666667 | AR105: 39.87333333 | BI105: 102 | BJ105: 0.68 | BK105: 10.34228188 | BL105: 16.7852349 | BM105: 23.22818792 | BN105: 29.67114094 | BO105: 36.11409396 | BP105: 39.33557047
AK106: 102 | AL106: 0.68 | AM106: 10.28 | AN106: 16.68 | AO106: 23.08 | AP106: 29.48 | AQ106: 35.88 | AR106: 39.08 | BI106: 103 | BJ106: 0.6866666667 | BK106: 10.14765101 | BL106: 16.45637584 | BM106: 22.76510067 | BN106: 29.0738255 | BO106: 35.38255034 | BP106: 38.53691275
AK107: 103 | AL107: 0.6866666667 | AM107: 10.08666667 | AN107: 16.35333333 | AO107: 22.62 | AP107: 28.88666667 | AQ107: 35.15333333 | AR107: 38.28666667 | BI107: 104 | BJ107: 0.6933333333 | BK107: 9.953020134 | BL107: 16.12751678 | BM107: 22.30201342 | BN107: 28.47651007 | BO107: 34.65100671 | BP107: 37.73825503
AK108: 104 | AL108: 0.6933333333 | AM108: 9.893333333 | AN108: 16.02666667 | AO108: 22.16 | AP108: 28.29333333 | AQ108: 34.42666667 | AR108: 37.49333333 | BI108: 105 | BJ108: 0.7 | BK108: 9.758389262 | BL108: 15.79865772 | BM108: 21.83892617 | BN108: 27.87919463 | BO108: 33.91946309 | BP108: 36.93959732
AK109: 105 | AL109: 0.7 | AM109: 9.7 | AN109: 15.7 | AO109: 21.7 | AP109: 27.7 | AQ109: 33.7 | AR109: 36.7 | BI109: 106 | BJ109: 0.7066666667 | BK109: 9.563758389 | BL109: 15.46979866 | BM109: 21.37583893 | BN109: 27.28187919 | BO109: 33.18791946 | BP109: 36.1409396
AK110: 106 | AL110: 0.7066666667 | AM110: 9.506666667 | AN110: 15.37333333 | AO110: 21.24 | AP110: 27.10666667 | AQ110: 32.97333333 | AR110: 35.90666667 | BI110: 107 | BJ110: 0.7133333333 | BK110: 9.369127517 | BL110: 15.1409396 | BM110: 20.91275168 | BN110: 26.68456376 | BO110: 32.45637584 | BP110: 35.34228188
AK111: 107 | AL111: 0.7133333333 | AM111: 9.313333333 | AN111: 15.04666667 | AO111: 20.78 | AP111: 26.51333333 | AQ111: 32.24666667 | AR111: 35.11333333 | BI111: 108 | BJ111: 0.72 | BK111: 9.174496644 | BL111: 14.81208054 | BM111: 20.44966443 | BN111: 26.08724832 | BO111: 31.72483221 | BP111: 34.54362416
AK112: 108 | AL112: 0.72 | AM112: 9.12 | AN112: 14.72 | AO112: 20.32 | AP112: 25.92 | AQ112: 31.52 | AR112: 34.32 | BI112: 109 | BJ112: 0.7266666667 | BK112: 8.979865772 | BL112: 14.48322148 | BM112: 19.98657718 | BN112: 25.48993289 | BO112: 30.99328859 | BP112: 33.74496644
AK113: 109 | AL113: 0.7266666667 | AM113: 8.926666667 | AN113: 14.39333333 | AO113: 19.86 | AP113: 25.32666667 | AQ113: 30.79333333 | AR113: 33.52666667 | BI113: 110 | BJ113: 0.7333333333 | BK113: 8.785234899 | BL113: 14.15436242 | BM113: 19.52348993 | BN113: 24.89261745 | BO113: 30.26174497 | BP113: 32.94630872
AK114: 110 | AL114: 0.7333333333 | AM114: =(1-$AL114)*(AM$3-$R$5)+$R$5 -> 8.733333333 | AN114: 14.06666667 | AO114: 19.4 | AP114: 24.73333333 | AQ114: 30.06666667 | AR114: 32.73333333 | BI114: 111 | BJ114: 0.74 | BK114: =(($R$5-BK$3)/($BJ$153-$BJ$4))*($BJ114-$BJ$4)+BK$3 -> 8.590604027 | BL114: 13.82550336 | BM114: 19.06040268 | BN114: 24.29530201 | BO114: 29.53020134 | BP114: 32.14765101
AK115: 111 | AL115: 0.74 | AM115: 8.54 | AN115: 13.74 | AO115: 18.94 | AP115: 24.14 | AQ115: 29.34 | AR115: 31.94 | BI115: 112 | BJ115: 0.7466666667 | BK115: 8.395973154 | BL115: 13.4966443 | BM115: 18.59731544 | BN115: 23.69798658 | BO115: 28.79865772 | BP115: 31.34899329
AK116: 112 | AL116: 0.7466666667 | AM116: 8.346666667 | AN116: 13.41333333 | AO116: 18.48 | AP116: 23.54666667 | AQ116: 28.61333333 | AR116: 31.14666667 | BI116: 113 | BJ116: 0.7533333333 | BK116: 8.201342282 | BL116: 13.16778523 | BM116: 18.13422819 | BN116: 23.10067114 | BO116: 28.06711409 | BP116: 30.55033557
AK117: 113 | AL117: 0.7533333333 | AM117: 8.153333333 | AN117: 13.08666667 | AO117: 18.02 | AP117: 22.95333333 | AQ117: 27.88666667 | AR117: 30.35333333 | BI117: 114 | BJ117: 0.76 | BK117: 8.006711409 | BL117: 12.83892617 | BM117: 17.67114094 | BN117: 22.5033557 | BO117: 27.33557047 | BP117: 29.75167785
AK118: 114 | AL118: 0.76 | AM118: 7.96 | AN118: 12.76 | AO118: 17.56 | AP118: 22.36 | AQ118: 27.16 | AR118: 29.56 | BI118: 115 | BJ118: 0.7666666667 | BK118: 7.812080537 | BL118: 12.51006711 | BM118: 17.20805369 | BN118: 21.90604027 | BO118: 26.60402685 | BP118: 28.95302013
AK119: 115 | AL119: 0.7666666667 | AM119: 7.766666667 | AN119: 12.43333333 | AO119: 17.1 | AP119: 21.76666667 | AQ119: 26.43333333 | AR119: 28.76666667 | BI119: 116 | BJ119: 0.7733333333 | BK119: 7.617449664 | BL119: 12.18120805 | BM119: 16.74496644 | BN119: 21.30872483 | BO119: 25.87248322 | BP119: 28.15436242
AK120: 116 | AL120: 0.7733333333 | AM120: 7.573333333 | AN120: 12.10666667 | AO120: 16.64 | AP120: 21.17333333 | AQ120: 25.70666667 | AR120: 27.97333333 | BI120: 117 | BJ120: 0.78 | BK120: 7.422818792 | BL120: 11.85234899 | BM120: 16.28187919 | BN120: 20.7114094 | BO120: 25.1409396 | BP120: 27.3557047
AK121: 117 | AL121: 0.78 | AM121: 7.38 | AN121: 11.78 | AO121: 16.18 | AP121: 20.58 | AQ121: 24.98 | AR121: 27.18 | BI121: 118 | BJ121: 0.7866666667 | BK121: 7.228187919 | BL121: 11.52348993 | BM121: 15.81879195 | BN121: 20.11409396 | BO121: 24.40939597 | BP121: 26.55704698
AK122: 118 | AL122: 0.7866666667 | AM122: 7.186666667 | AN122: 11.45333333 | AO122: 15.72 | AP122: 19.98666667 | AQ122: 24.25333333 | AR122: 26.38666667 | BI122: 119 | BJ122: 0.7933333333 | BK122: 7.033557047 | BL122: 11.19463087 | BM122: 15.3557047 | BN122: 19.51677852 | BO122: 23.67785235 | BP122: 25.75838926
AK123: 119 | AL123: 0.7933333333 | AM123: 6.993333333 | AN123: 11.12666667 | AO123: 15.26 | AP123: 19.39333333 | AQ123: 23.52666667 | AR123: 25.59333333 | BI123: 120 | BJ123: 0.8 | BK123: 6.838926174 | BL123: 10.86577181 | BM123: 14.89261745 | BN123: 18.91946309 | BO123: 22.94630872 | BP123: 24.95973154
AK124: 120 | AL124: 0.8 | AM124: =(1-$AL124)*(AM$3-$R$5)+$R$5 -> 6.8 | AN124: 10.8 | AO124: 14.8 | AP124: 18.8 | AQ124: 22.8 | AR124: 24.8 | BI124: 121 | BJ124: 0.8066666667 | BK124: =(($R$5-BK$3)/($BJ$153-$BJ$4))*($BJ124-$BJ$4)+BK$3 -> 6.644295302 | BL124: 10.53691275 | BM124: 14.4295302 | BN124: 18.32214765 | BO124: 22.2147651 | BP124: 24.16107383
AK125: 121 | AL125: 0.8066666667 | AM125: 6.606666667 | AN125: 10.47333333 | AO125: 14.34 | AP125: 18.20666667 | AQ125: 22.07333333 | AR125: 24.00666667 | BI125: 122 | BJ125: 0.8133333333 | BK125: 6.44966443 | BL125: 10.20805369 | BM125: 13.96644295 | BN125: 17.72483221 | BO125: 21.48322148 | BP125: 23.36241611
AK126: 122 | AL126: 0.8133333333 | AM126: 6.413333333 | AN126: 10.14666667 | AO126: 13.88 | AP126: 17.61333333 | AQ126: 21.34666667 | AR126: 23.21333333 | BI126: 123 | BJ126: 0.82 | BK126: 6.255033557 | BL126: 9.879194631 | BM126: 13.5033557 | BN126: 17.12751678 | BO126: 20.75167785 | BP126: 22.56375839
AK127: 123 | AL127: 0.82 | AM127: 6.22 | AN127: 9.82 | AO127: 13.42 | AP127: 17.02 | AQ127: 20.62 | AR127: 22.42 | BI127: 124 | BJ127: 0.8266666667 | BK127: 6.060402685 | BL127: 9.55033557 | BM127: 13.04026846 | BN127: 16.53020134 | BO127: 20.02013423 | BP127: 21.76510067
AK128: 124 | AL128: 0.8266666667 | AM128: 6.026666667 | AN128: 9.493333333 | AO128: 12.96 | AP128: 16.42666667 | AQ128: 19.89333333 | AR128: 21.62666667 | BI128: 125 | BJ128: 0.8333333333 | BK128: 5.865771812 | BL128: 9.22147651 | BM128: 12.57718121 | BN128: 15.93288591 | BO128: 19.2885906 | BP128: 20.96644295
AK129: 125 | AL129: 0.8333333333 | AM129: 5.833333333 | AN129: 9.166666667 | AO129: 12.5 | AP129: 15.83333333 | AQ129: 19.16666667 | AR129: 20.83333333 | BI129: 126 | BJ129: 0.84 | BK129: 5.67114094 | BL129: 8.89261745 | BM129: 12.11409396 | BN129: 15.33557047 | BO129: 18.55704698 | BP129: 20.16778523
AK130: 126 | AL130: 0.84 | AM130: 5.64 | AN130: 8.84 | AO130: 12.04 | AP130: 15.24 | AQ130: 18.44 | AR130: 20.04 | BI130: 127 | BJ130: 0.8466666667 | BK130: 5.476510067 | BL130: 8.563758389 | BM130: 11.65100671 | BN130: 14.73825503 | BO130: 17.82550336 | BP130: 19.36912752
AK131: 127 | AL131: 0.8466666667 | AM131: 5.446666667 | AN131: 8.513333333 | AO131: 11.58 | AP131: 14.64666667 | AQ131: 17.71333333 | AR131: 19.24666667 | BI131: 128 | BJ131: 0.8533333333 | BK131: 5.281879195 | BL131: 8.234899329 | BM131: 11.18791946 | BN131: 14.1409396 | BO131: 17.09395973 | BP131: 18.5704698
AK132: 128 | AL132: =AK132/$AK$154 -> 0.8533333333 | AM132: 5.253333333 | AN132: 8.186666667 | AO132: 11.12 | AP132: 14.05333333 | AQ132: 16.98666667 | AR132: 18.45333333 | BI132: 129 | BJ132: =BI132/$BI$153 -> 0.86 | BK132: 5.087248322 | BL132: 7.906040268 | BM132: 10.72483221 | BN132: 13.54362416 | BO132: 16.36241611 | BP132: 17.77181208
AK133: =AK132+1 -> 129 | AL133: 0.86 | AM133: 5.06 | AN133: 7.86 | AO133: 10.66 | AP133: 13.46 | AQ133: 16.26 | AR133: 17.66 | BI133: =BI132+1 -> 130 | BJ133: 0.8666666667 | BK133: 4.89261745 | BL133: 7.577181208 | BM133: 10.26174497 | BN133: 12.94630872 | BO133: 15.63087248 | BP133: 16.97315436
AK134: 130 | AL134: 0.8666666667 | AM134: =(1-$AL134)*(AM$3-$R$5)+$R$5 -> 4.866666667 | AN134: 7.533333333 | AO134: 10.2 | AP134: 12.86666667 | AQ134: 15.53333333 | AR134: 16.86666667 | BI134: 131 | BJ134: 0.8733333333 | BK134: =(($R$5-BK$3)/($BJ$153-$BJ$4))*($BJ134-$BJ$4)+BK$3 -> 4.697986577 | BL134: 7.248322148 | BM134: 9.798657718 | BN134: 12.34899329 | BO134: 14.89932886 | BP134: 16.17449664
AK135: 131 | AL135: 0.8733333333 | AM135: 4.673333333 | AN135: 7.206666667 | AO135: 9.74 | AP135: 12.27333333 | AQ135: 14.80666667 | AR135: 16.07333333 | BI135: 132 | BJ135: 0.88 | BK135: 4.503355705 | BL135: 6.919463087 | BM135: 9.33557047 | BN135: 11.75167785 | BO135: 14.16778523 | BP135: 15.37583893
AK136: 132 | AL136: 0.88 | AM136: 4.48 | AN136: 6.88 | AO136: 9.28 | AP136: 11.68 | AQ136: 14.08 | AR136: 15.28 | BI136: 133 | BJ136: 0.8866666667 | BK136: 4.308724832 | BL136: 6.590604027 | BM136: 8.872483221 | BN136: 11.15436242 | BO136: 13.43624161 | BP136: 14.57718121
AK137: 133 | AL137: 0.8866666667 | AM137: 4.286666667 | AN137: 6.553333333 | AO137: 8.82 | AP137: 11.08666667 | AQ137: 13.35333333 | AR137: 14.48666667 | BI137: 134 | BJ137: 0.8933333333 | BK137: 4.11409396 | BL137: 6.261744966 | BM137: 8.409395973 | BN137: 10.55704698 | BO137: 12.70469799 | BP137: 13.77852349
AK138: 134 | AL138: 0.8933333333 | AM138: 4.093333333 | AN138: 6.226666667 | AO138: 8.36 | AP138: 10.49333333 | AQ138: 12.62666667 | AR138: 13.69333333 | BI138: 135 | BJ138: 0.9 | BK138: 3.919463087 | BL138: 5.932885906 | BM138: 7.946308725 | BN138: 9.959731544 | BO138: 11.97315436 | BP138: 12.97986577
AK139: 135 | AL139: 0.9 | AM139: 3.9 | AN139: 5.9 | AO139: 7.9 | AP139: 9.9 | AQ139: 11.9 | AR139: 12.9 | BI139: 136 | BJ139: 0.9066666667 | BK139: 3.724832215 | BL139: 5.604026846 | BM139: 7.483221477 | BN139: 9.362416107 | BO139: 11.24161074 | BP139: 12.18120805
AK140: 136 | AL140: 0.9066666667 | AM140: 3.706666667 | AN140: 5.573333333 | AO140: 7.44 | AP140: 9.306666667 | AQ140: 11.17333333 | AR140: 12.10666667 | BI140: 137 | BJ140: 0.9133333333 | BK140: 3.530201342 | BL140: 5.275167785 | BM140: 7.020134228 | BN140: 8.765100671 | BO140: 10.51006711 | BP140: 11.38255034
AK141: 137 | AL141: 0.9133333333 | AM141: 3.513333333 | AN141: 5.246666667 | AO141: 6.98 | AP141: 8.713333333 | AQ141: 10.44666667 | AR141: 11.31333333 | BI141: 138 | BJ141: 0.92 | BK141: 3.33557047 | BL141: 4.946308725 | BM141: 6.55704698 | BN141: 8.167785235 | BO141: 9.77852349 | BP141: 10.58389262
AK142: 138 | AL142: 0.92 | AM142: 3.32 | AN142: 4.92 | AO142: 6.52 | AP142: 8.12 | AQ142: 9.72 | AR142: 10.52 | BI142: 139 | BJ142: 0.9266666667 | BK142: 3.140939597 | BL142: 4.617449664 | BM142: 6.093959732 | BN142: 7.570469799 | BO142: 9.046979866 | BP142: 9.785234899
AK143: 139 | AL143: 0.9266666667 | AM143: 3.126666667 | AN143: 4.593333333 | AO143: 6.06 | AP143: 7.526666667 | AQ143: 8.993333333 | AR143: 9.726666667 | BI143: =BI142+1 -> 140 | BJ143: 0.9333333333 | BK143: 2.946308725 | BL143: 4.288590604 | BM143: 5.630872483 | BN143: 6.973154362 | BO143: 8.315436242 | BP143: 8.986577181
AK144: 140 | AL144: 0.9333333333 | AM144: =(1-$AL144)*(AM$3-$R$5)+$R$5 -> 2.933333333 | AN144: 4.266666667 | AO144: 5.6 | AP144: 6.933333333 | AQ144: 8.266666667 | AR144: 8.933333333 | BI144: 141 | BJ144: 0.94 | BK144: =(($R$5-BK$3)/($BJ$153-$BJ$4))*($BJ144-$BJ$4)+BK$3 -> 2.751677852 | BL144: 3.959731544 | BM144: 5.167785235 | BN144: 6.375838926 | BO144: 7.583892617 | BP144: 8.187919463
AK145: 141 | AL145: 0.94 | AM145: 2.74 | AN145: 3.94 | AO145: 5.14 | AP145: 6.34 | AQ145: 7.54 | AR145: 8.14 | BI145: 142 | BJ145: 0.9466666667 | BK145: 2.55704698 | BL145: 3.630872483 | BM145: 4.704697987 | BN145: 5.77852349 | BO145: 6.852348993 | BP145: 7.389261745
AK146: 142 | AL146: 0.9466666667 | AM146: 2.546666667 | AN146: 3.613333333 | AO146: 4.68 | AP146: 5.746666667 | AQ146: 6.813333333 | AR146: 7.346666667 | BI146: 143 | BJ146: 0.9533333333 | BK146: 2.362416107 | BL146: 3.302013423 | BM146: 4.241610738 | BN146: 5.181208054 | BO146: 6.120805369 | BP146: 6.590604027
AK147: 143 | AL147: 0.9533333333 | AM147: 2.353333333 | AN147: 3.286666667 | AO147: 4.22 | AP147: 5.153333333 | AQ147: 6.086666667 | AR147: 6.553333333 | BI147: 144 | BJ147: 0.96 | BK147: 2.167785235 | BL147: 2.973154362 | BM147: 3.77852349 | BN147: 4.583892617 | BO147: 5.389261745 | BP147: 5.791946309
AK148: 144 | AL148: 0.96 | AM148: 2.16 | AN148: 2.96 | AO148: 3.76 | AP148: 4.56 | AQ148: 5.36 | AR148: 5.76 | BI148: 145 | BJ148: 0.9666666667 | BK148: 1.973154362 | BL148: 2.644295302 | BM148: 3.315436242 | BN148: 3.986577181 | BO148: 4.657718121 | BP148: 4.993288591
AK149: 145 | AL149: 0.9666666667 | AM149: 1.966666667 | AN149: 2.633333333 | AO149: 3.3 | AP149: 3.966666667 | AQ149: 4.633333333 | AR149: 4.966666667 | BI149: 146 | BJ149: 0.9733333333 | BK149: 1.77852349 | BL149: 2.315436242 | BM149: 2.852348993 | BN149: 3.389261745 | BO149: 3.926174497 | BP149: 4.194630872
AK150: 146 | AL150: 0.9733333333 | AM150: 1.773333333 | AN150: 2.306666667 | AO150: 2.84 | AP150: 3.373333333 | AQ150: 3.906666667 | AR150: 4.173333333 | BI150: 147 | BJ150: 0.98 | BK150: 1.583892617 | BL150: 1.986577181 | BM150: 2.389261745 | BN150: 2.791946309 | BO150: 3.194630872 | BP150: 3.395973154
AK151: 147 | AL151: 0.98 | AM151: 1.58 | AN151: 1.98 | AO151: 2.38 | AP151: 2.78 | AQ151: 3.18 | AR151: 3.38 | BI151: 148 | BJ151: 0.9866666667 | BK151: 1.389261745 | BL151: 1.657718121 | BM151: 1.926174497 | BN151: 2.194630872 | BO151: 2.463087248 | BP151: 2.597315436
AK152: 148 | AL152: 0.9866666667 | AM152: 1.386666667 | AN152: 1.653333333 | AO152: 1.92 | AP152: 2.186666667 | AQ152: 2.453333333 | AR152: 2.586666667 | BI152: 149 | BJ152: 0.9933333333 | BK152: 1.194630872 | BL152: 1.32885906 | BM152: 1.463087248 | BN152: 1.597315436 | BO152: 1.731543624 | BP152: 1.798657718
AK153: 149 | AL153: 0.9933333333 | AM153: 1.193333333 | AN153: 1.326666667 | AO153: 1.46 | AP153: 1.593333333 | AQ153: 1.726666667 | AR153: 1.793333333 | BI153: 150 | BJ153: 1 | BK153: 1 | BL153: 1 | BM153: 1 | BN153: 1 | BO153: 1 | BP153: 1
AK154: 150 | AL154: 1 | AM154: 1 | AN154: 1 | AO154: 1 | AP154: 1 | AQ154: 1 | AR154: 1

Sheet T4 Flow calc D1
A1: Time(s) | B1: Injected cars | C1: Exiting cars | D1: Current cars in system | E1: Exiting people | F1: Avg. v [km/h] | G1: Min. v [km/h] | H1: Goal: Node 7 | I1: Node 7 flow | N1: Input data | Q1: 75 cars
A2: 0 | B2: 3 | C2: 0 | D2: 3 | E2: 0 | F2: 69.08073 | G2: 69.08073 | H2: 0 | I2: 0 | N2: Distance [m] | O2: Multiplier[-] | P2: Walking speed [m/s] | Q2: Cars/km/lane | R2: Relative density [-] | S2: Speed limits [km/h]
A3: 1 | B3: 0 | C3: 0 | D3: 3 | E3: 0 | F3: 69.08073 | G3: 69.08073 | H3: 0 | I3: 0 | N3: 100 | O3: =0.1 -> 0.1 | P3: 1 | S3: 30 | T3: 50 | U3: 70 | V3: 90 | W3: 110 | X3: 120
A4: 2 | B4: 0 | C4: 0 | D4: 3 | E4: 0 | F4: 69.08073 | G4: 69.08073 | H4: 0 | I4: 0 | N4: 500 | O4: =O3+0.1 -> 0.2 | P4: Stall speed [km/h] | Q4: 0 | R4: =Q4/$Q$79 -> 0 | S4: =(1-$R4)*(S$3-$P$5)+$P$5 -> 30 | T4: 50 | U4: 70 | V4: 90 | W4: 110 | X4: 120
A5: 3 | B5: 0 | C5: 0 | D5: 3 | E5: 0 | F5: 69.08073 | G5: 69.08073 | H5: 0 | I5: 0 | N5: 1000 | O5: =O4+0.1 -> 0.3 | P5: 1 | Q5: 1 | R5: 0.01333333333 | S5: 29.61333333 | T5: 49.34666667 | U5: 69.08 | V5: 88.81333333 | W5: 108.5466667 | X5: 118.4133333
A6: 4 | B6: 0 | C6: 0 | D6: 3 | E6: 0 | F6: 69.08073 | G6: 69.08073 | H6: 0 | I6: 0 | N6: 1500 | O6: 0.4 | P6: Event timer [s] | Q6: 2 | R6: 0.02666666667 | S6: 29.22666667 | T6: 48.69333333 | U6: 68.16 | V6: 87.62666667 | W6: 107.0933333 | X6: 116.8266667
A7: 5 | B7: 0 | C7: 0 | D7: 3 | E7: 0 | F7: 69.08073 | G7: 69.08073 | H7: 0 | I7: 0 | N7: 2000 | O7: 0.5 | P7: 600 | Q7: 3 | R7: 0.04 | S7: 28.84 | T7: 48.04 | U7: 67.24 | V7: 86.44 | W7: 105.64 | X7: 115.24
A8: 6 | B8: 0 | C8: 0 | D8: 3 | E8: 0 | F8: 69.08073 | G8: 69.08073 | H8: 0 | I8: 0 | N8: 4000 | O8: 0.6 | P8: Initial speed [m/s] | Q8: 4 | R8: 0.05333333333 | S8: 28.45333333 | T8: 47.38666667 | U8: 66.32 | V8: 85.25333333 | W8: 104.1866667 | X8: 113.6533333
A9: 7 | B9: 0 | C9: 0 | D9: 3 | E9: 0 | F9: 69.08073 | G9: 69.08073 | H9: 0 | I9: 0 | O9: 0.7 | P9: 0 | Q9: 5 | R9: 0.06666666667 | S9: 28.06666667 | T9: 46.73333333 | U9: 65.4 | V9: 84.06666667 | W9: 102.7333333 | X9: 112.0666667
A10: 8 | B10: 0 | C10: 0 | D10: 3 | E10: 0 | F10: 69.08073 | G10: 69.08073 | H10: 0 | I10: 0 | O10: 0.8 | P10: Acceleretion [m/s^2] | Q10: 6 | R10: 0.08 | S10: 27.68 | T10: 46.08 | U10: 64.48 | V10: 82.88 | W10: 101.28 | X10: 110.48
A11: 9 | B11: 0 | C11: 0 | D11: 3 | E11: 0 | F11: 69.08073 | G11: 69.08073 | H11: 0 | I11: 0 | O11: 0.9 | P11: =(100/3.6)/10 -> 2.777777778 | Q11: 7 | R11: 0.09333333333 | S11: 27.29333333 | T11: 45.42666667 | U11: 63.56 | V11: 81.69333333 | W11: 99.82666667 | X11: 108.8933333
A12: 10 | B12: 0 | C12: 0 | D12: 3 | E12: 0 | F12: 69.08073 | G12: 69.08073 | H12: 0 | I12: 0 | O12: 1 | Q12: 8 | R12: 0.1066666667 | S12: 26.90666667 | T12: 44.77333333 | U12: 62.64 | V12: 80.50666667 | W12: 98.37333333 | X12: 107.3066667
A13: 11 | B13: 0 | C13: 0 | D13: 3 | E13: 0 | F13: 69.08073 | G13: 69.08073 | H13: 0 | I13: 0 | O13: 1.1 | Q13: 9 | R13: 0.12 | S13: 26.52 | T13: 44.12 | U13: 61.72 | V13: 79.32 | W13: 96.92 | X13: 105.72
A14: 12 | B14: 0 | C14: 0 | D14: 3 | E14: 0 | F14: 69.08073 | G14: 69.08073 | H14: 0 | I14: 0 | O14: 1.2 | Q14: 10 | R14: 0.1333333333 | S14: =(1-$R14)*(S$3-$P$5)+$P$5 -> 26.13333333 | T14: 43.46666667 | U14: 60.8 | V14: 78.13333333 | W14: 95.46666667 | X14: 104.1333333
A15: 13 | B15: 0 | C15: 0 | D15: 3 | E15: 0 | F15: 69.08073 | G15: 69.08073 | H15: 0 | I15: 0 | O15: 1.3 | Q15: 11 | R15: 0.1466666667 | S15: 25.74666667 | T15: 42.81333333 | U15: 59.88 | V15: 76.94666667 | W15: 94.01333333 | X15: 102.5466667
A16: 14 | B16: 0 | C16: 0 | D16: 3 | E16: 0 | F16: 69.08073 | G16: 69.08073 | H16: 0 | I16: 0 | O16: 1.4 | Q16: 12 | R16: 0.16 | S16: 25.36 | T16: 42.16 | U16: 58.96 | V16: 75.76 | W16: 92.56 | X16: 100.96
A17: 15 | B17: 0 | C17: 0 | D17: 3 | E17: 0 | F17: 69.08073 | G17: 69.08073 | H17: 0 | I17: 0 | O17: 1.5 | Q17: 13 | R17: 0.1733333333 | S17: 24.97333333 | T17: 41.50666667 | U17: 58.04 | V17: 74.57333333 | W17: 91.10666667 | X17: 99.37333333
A18: 16 | B18: 0 | C18: 0 | D18: 3 | E18: 0 | F18: 69.08073 | G18: 69.08073 | H18: 0 | I18: 0 | O18: 1.6 | Q18: 14 | R18: 0.1866666667 | S18: 24.58666667 | T18: 40.85333333 | U18: 57.12 | V18: 73.38666667 | W18: 89.65333333 | X18: 97.78666667
A19: 17 | B19: 0 | C19: 0 | D19: 3 | E19: 0 | F19: 69.08073 | G19: 69.08073 | H19: 0 | I19: 0 | O19: 1.7 | Q19: 15 | R19: 0.2 | S19: 24.2 | T19: 40.2 | U19: 56.2 | V19: 72.2 | W19: 88.2 | X19: 96.2
A20: 18 | B20: 0 | C20: 0 | D20: 3 | E20: 0 | F20: 69.08073 | G20: 69.08073 | H20: 0 | I20: 0 | O20: 1.8 | Q20: 16 | R20: 0.2133333333 | S20: 23.81333333 | T20: 39.54666667 | U20: 55.28 | V20: 71.01333333 | W20: 86.74666667 | X20: 94.61333333
A21: 19 | B21: 0 | C21: 0 | D21: 3 | E21: 0 | F21: 69.08073 | G21: 69.08073 | H21: 0 | I21: 0 | O21: 1.9 | Q21: 17 | R21: 0.2266666667 | S21: 23.42666667 | T21: 38.89333333 | U21: 54.36 | V21: 69.82666667 | W21: 85.29333333 | X21: 93.02666667
A22: 20 | B22: 0 | C22: 0 | D22: 3 | E22: 0 | F22: 69.08073 | G22: 69.08073 | H22: 0 | I22: 0 | O22: 2 | Q22: 18 | R22: 0.24 | S22: 23.04 | T22: 38.24 | U22: 53.44 | V22: 68.64 | W22: 83.84 | X22: 91.44
A23: 21 | B23: 0 | C23: 0 | D23: 3 | E23: 0 | F23: 69.08073 | G23: 69.08073 | H23: 0 | I23: 0 | N23: Distance [m] | O23: Time [s] | Q23: 19 | R23: 0.2533333333 | S23: 22.65333333 | T23: 37.58666667 | U23: 52.52 | V23: 67.45333333 | W23: 82.38666667 | X23: 89.85333333
A24: 22 | B24: 0 | C24: 0 | D24: 3 | E24: 0 | F24: 69.08073 | G24: 69.08073 | H24: 0 | I24: 0 | N24: 1000 | O24: =N24/(U5/3.6) -> 52.1134916 | Q24: 20 | R24: 0.2666666667 | S24: =(1-$R24)*(S$3-$P$5)+$P$5 -> 22.26666667 | T24: 36.93333333 | U24: 51.6 | V24: 66.26666667 | W24: 80.93333333 | X24: 88.26666667
A25: 23 | B25: 0 | C25: 0 | D25: 3 | E25: 0 | F25: 69.08073 | G25: 69.08073 | H25: 0 | I25: 0 | N25: Relative Density | O25: Avg. Speed | P25: Avg. Flow rate (vehicles/lane/hour) | Q25: 21 | R25: 0.28 | S25: 21.88 | T25: 36.28 | U25: 50.68 | V25: 65.08 | W25: 79.48 | X25: 86.68
A26: 24 | B26: 0 | C26: 0 | D26: 3 | E26: 0 | F26: 69.08073 | G26: 69.08073 | H26: 0 | I26: 0 | N26: =R5 -> 0.01333333333 | O26: =U5 -> 69.08 | P26: =Q5/O24*3600 -> 69.08 | Q26: 22 | R26: 0.2933333333 | S26: 21.49333333 | T26: 35.62666667 | U26: 49.76 | V26: 63.89333333 | W26: 78.02666667 | X26: 85.09333333
A27: 25 | B27: 0 | C27: 0 | D27: 3 | E27: 0 | F27: 69.08073 | G27: 69.08073 | H27: 0 | I27: 0 | N27: Sim. Rel. Dens. | O27: Sim.avg. Speed | P27: Avg. Flowrate [cars/lane minute] | Q27: 23 | R27: 0.3066666667 | S27: 21.10666667 | T27: 34.97333333 | U27: 48.84 | V27: 62.70666667 | W27: 76.57333333 | X27: 83.50666667
A28: 26 | B28: 0 | C28: 0 | D28: 3 | E28: 0 | F28: 69.08073 | G28: 69.08073 | H28: 0 | I28: 0 | N28: =R5 -> 0.01333333333 | O28: =F2 -> 69.08073 | P28: =P26*60 -> 4144.8 | Q28: 24 | R28: 0.32 | S28: 20.72 | T28: 34.32 | U28: 47.92 | V28: 61.52 | W28: 75.12 | X28: 81.92
A29: 27 | B29: 0 | C29: 0 | D29: 3 | E29: 0 | F29: 69.08073 | G29: 69.08073 | H29: 0 | I29: 0 | P29: Sim.Avg. Flowrate [cars/lane second] | Q29: 25 | R29: 0.3333333333 | S29: 20.33333333 | T29: 33.66666667 | U29: 47 | V29: 60.33333333 | W29: 73.66666667 | X29: 80.33333333
A30: 28 | B30: 0 | C30: 0 | D30: 3 | E30: 0 | F30: 69.08073 | G30: 69.08073 | H30: 0 | I30: 0 | P30: =H56 -> 1 | Q30: 26 | R30: 0.3466666667 | S30: 19.94666667 | T30: 33.01333333 | U30: 46.08 | V30: 59.14666667 | W30: 72.21333333 | X30: 78.74666667
A31: 29 | B31: 0 | C31: 0 | D31: 3 | E31: 0 | F31: 69.08073 | G31: 69.08073 | H31: 0 | I31: 0 | P31: Sim.Avg. Flowrate [cars/lane minute] | Q31: 27 | R31: 0.36 | S31: 19.56 | T31: 32.36 | U31: 45.16 | V31: 57.96 | W31: 70.76 | X31: 77.16
A32: 30 | B32: 0 | C32: 0 | D32: 3 | E32: 0 | F32: 69.08073 | G32: 69.08073 | H32: 0 | I32: 0 | P32: =P30*60 -> 60 | Q32: 28 | R32: 0.3733333333 | S32: 19.17333333 | T32: 31.70666667 | U32: 44.24 | V32: 56.77333333 | W32: 69.30666667 | X32: 75.57333333
A33: 31 | B33: 0 | C33: 0 | D33: 3 | E33: 0 | F33: 69.08073 | G33: 69.08073 | H33: 0 | I33: 0 | Q33: 29 | R33: 0.3866666667 | S33: 18.78666667 | T33: 31.05333333 | U33: 43.32 | V33: 55.58666667 | W33: 67.85333333 | X33: 73.98666667
A34: 32 | B34: 0 | C34: 0 | D34: 3 | E34: 0 | F34: 69.08073 | G34: 69.08073 | H34: 0 | I34: 0 | Q34: 30 | R34: 0.4 | S34: =(1-$R34)*(S$3-$P$5)+$P$5 -> 18.4 | T34: 30.4 | U34: 42.4 | V34: 54.4 | W34: 66.4 | X34: 72.4
A35: 33 | B35: 0 | C35: 0 | D35: 3 | E35: 0 | F35: 69.08073 | G35: 69.08073 | H35: 0 | I35: 0 | Q35: 31 | R35: 0.4133333333 | S35: 18.01333333 | T35: 29.74666667 | U35: 41.48 | V35: 53.21333333 | W35: 64.94666667 | X35: 70.81333333
A36: 34 | B36: 0 | C36: 0 | D36: 3 | E36: 0 | F36: 69.08073 | G36: 69.08073 | H36: 0 | I36: 0 | P36: =P28*60 -> 248688 | Q36: 32 | R36: =Q36/$Q$79 -> 0.4266666667 | S36: 17.62666667 | T36: 29.09333333 | U36: 40.56 | V36: 52.02666667 | W36: 63.49333333 | X36: 69.22666667
A37: 35 | B37: 0 | C37: 0 | D37: 3 | E37: 0 | F37: 69.08073 | G37: 69.08073 | H37: 0 | I37: 0 | Q37: 33 | R37: 0.44 | S37: 17.24 | T37: 28.44 | U37: 39.64 | V37: 50.84 | W37: 62.04 | X37: 67.64
A38: 36 | B38: 0 | C38: 0 | D38: 3 | E38: 0 | F38: 69.08073 | G38: 69.08073 | H38: 0 | I38: 0 | Q38: 34 | R38: 0.4533333333 | S38: 16.85333333 | T38: 27.78666667 | U38: 38.72 | V38: 49.65333333 | W38: 60.58666667 | X38: 66.05333333
A39: 37 | B39: 0 | C39: 0 | D39: 3 | E39: 0 | F39: 69.08073 | G39: 69.08073 | H39: 0 | I39: 0 | Q39: 35 | R39: 0.4666666667 | S39: 16.46666667 | T39: 27.13333333 | U39: 37.8 | V39: 48.46666667 | W39: 59.13333333 | X39: 64.46666667
A40: 38 | B40: 0 | C40: 0 | D40: 3 | E40: 0 | F40: 69.08073 | G40: 69.08073 | H40: 0 | I40: 0 | Q40: 36 | R40: 0.48 | S40: 16.08 | T40: 26.48 | U40: 36.88 | V40: 47.28 | W40: 57.68 | X40: 62.88
A41: 39 | B41: 0 | C41: 0 | D41: 3 | E41: 0 | F41: 69.08073 | G41: 69.08073 | H41: 0 | I41: 0 | Q41: 37 | R41: 0.4933333333 | S41: 15.69333333 | T41: 25.82666667 | U41: 35.96 | V41: 46.09333333 | W41: 56.22666667 | X41: 61.29333333
A42: 40 | B42: 0 | C42: 0 | D42: 3 | E42: 0 | F42: 69.08073 | G42: 69.08073 | H42: 0 | I42: 0 | Q42: 38 | R42: 0.5066666667 | S42: 15.30666667 | T42: 25.17333333 | U42: 35.04 | V42: 44.90666667 | W42: 54.77333333 | X42: 59.70666667
A43: 41 | B43: 0 | C43: 0 | D43: 3 | E43: 0 | F43: 69.08073 | G43: 69.08073 | H43: 0 | I43: 0 | Q43: 39 | R43: 0.52 | S43: 14.92 | T43: 24.52 | U43: 34.12 | V43: 43.72 | W43: 53.32 | X43: 58.12
A44: 42 | B44: 0 | C44: 0 | D44: 3 | E44: 0 | F44: 69.08073 | G44: 69.08073 | H44: 0 | I44: 0 | Q44: 40 | R44: 0.5333333333 | S44: =(1-$R44)*(S$3-$P$5)+$P$5 -> 14.53333333 | T44: 23.86666667 | U44: 33.2 | V44: 42.53333333 | W44: 51.86666667 | X44: 56.53333333
A45: 43 | B45: 0 | C45: 0 | D45: 3 | E45: 0 | F45: 69.08073 | G45: 69.08073 | H45: 0 | I45: 0 | Q45: 41 | R45: 0.5466666667 | S45: 14.14666667 | T45: 23.21333333 | U45: 32.28 | V45: 41.34666667 | W45: 50.41333333 | X45: 54.94666667
A46: 44 | B46: 0 | C46: 0 | D46: 3 | E46: 0 | F46: 69.08073 | G46: 69.08073 | H46: 0 | I46: 0 | Q46: 42 | R46: 0.56 | S46: 13.76 | T46: 22.56 | U46: 31.36 | V46: 40.16 | W46: 48.96 | X46: 53.36
A47: 45 | B47: 0 | C47: 0 | D47: 3 | E47: 0 | F47: 69.08073 | G47: 69.08073 | H47: 0 | I47: 0 | Q47: 43 | R47: 0.5733333333 | S47: 13.37333333 | T47: 21.90666667 | U47: 30.44 | V47: 38.97333333 | W47: 47.50666667 | X47: 51.77333333
A48: 46 | B48: 0 | C48: 0 | D48: 3 | E48: 0 | F48: 69.08073 | G48: 69.08073 | H48: 0 | I48: 0 | Q48: 44 | R48: 0.5866666667 | S48: 12.98666667 | T48: 21.25333333 | U48: 29.52 | V48: 37.78666667 | W48: 46.05333333 | X48: 50.18666667
A49: 47 | B49: 0 | C49: 0 | D49: 3 | E49: 0 | F49: 69.08073 | G49: 69.08073 | H49: 0 | I49: 0 | Q49: 45 | R49: 0.6 | S49: 12.6 | T49: 20.6 | U49: 28.6 | V49: 36.6 | W49: 44.6 | X49: 48.6
A50: 48 | B50: 0 | C50: 0 | D50: 3 | E50: 0 | F50: 69.08073 | G50: 69.08073 | H50: 0 | I50: 0 | Q50: 46 | R50: 0.6133333333 | S50: 12.21333333 | T50: 19.94666667 | U50: 27.68 | V50: 35.41333333 | W50: 43.14666667 | X50: 47.01333333
A51: 49 | B51: 0 | C51: 0 | D51: 3 | E51: 0 | F51: 69.08073 | G51: 69.08073 | H51: 0 | I51: 0 | Q51: 47 | R51: 0.6266666667 | S51: 11.82666667 | T51: 19.29333333 | U51: 26.76 | V51: 34.22666667 | W51: 41.69333333 | X51: 45.42666667
A52: 50 | B52: 0 | C52: 0 | D52: 3 | E52: 0 | F52: 69.08073 | G52: 69.08073 | H52: 0 | I52: 0 | Q52: 48 | R52: 0.64 | S52: 11.44 | T52: 18.64 | U52: 25.84 | V52: 33.04 | W52: 40.24 | X52: 43.84
A53: 51 | B53: 0 | C53: 0 | D53: 3 | E53: 0 | F53: 69.08073 | G53: 69.08073 | H53: 0 | I53: 0 | Q53: 49 | R53: 0.6533333333 | S53: 11.05333333 | T53: 17.98666667 | U53: 24.92 | V53: 31.85333333 | W53: 38.78666667 | X53: 42.25333333
A54: 52 | B54: 0 | C54: 1 | D54: 3 | E54: 1 | F54: 69.08073 | G54: 69.08073 | H54: 1 | I54: 0 | Q54: 50 | R54: 0.6666666667 | S54: =(1-$R54)*(S$3-$P$5)+$P$5 -> 10.66666667 | T54: 17.33333333 | U54: 24 | V54: 30.66666667 | W54: 37.33333333 | X54: 40.66666667
A55: 53 | B55: 0 | C55: 0 | D55: 2 | E55: 0 | F55: 69.08073 | G55: 69.08073 | H55: 1 | I55: 0 | Q55: 51 | R55: 0.68 | S55: 10.28 | T55: 16.68 | U55: 23.08 | V55: 29.48 | W55: 35.88 | X55: 39.08
A56: 54 | B56: 0 | C56: 0 | D56: 2 | E56: 0 | F56: 69.08073 | G56: 69.08073 | H56: 1 | I56: 0 | Q56: 52 | R56: 0.6933333333 | S56: 9.893333333 | T56: 16.02666667 | U56: 22.16 | V56: 28.29333333 | W56: 34.42666667 | X56: 37.49333333
A57: 55 | B57: 0 | C57: 0 | D57: 2 | E57: 0 | F57: 69.08073 | G57: 69.08073 | H57: 1 | I57: 0 | Q57: 53 | R57: 0.7066666667 | S57: 9.506666667 | T57: 15.37333333 | U57: 21.24 | V57: 27.10666667 | W57: 32.97333333 | X57: 35.90666667
A58: 56 | B58: 0 | C58: 0 | D58: 2 | E58: 0 | F58: 69.08073 | G58: 69.08073 | H58: 1 | I58: 0 | Q58: 54 | R58: 0.72 | S58: 9.12 | T58: 14.72 | U58: 20.32 | V58: 25.92 | W58: 31.52 | X58: 34.32
A59: 57 | B59: 0 | C59: 0 | D59: 2 | E59: 0 | F59: 69.08073 | G59: 69.08073 | H59: 1 | I59: 0 | Q59: 55 | R59: 0.7333333333 | S59: 8.733333333 | T59: 14.06666667 | U59: 19.4 | V59: 24.73333333 | W59: 30.06666667 | X59: 32.73333333
A60: 58 | B60: 0 | C60: 0 | D60: 2 | E60: 0 | F60: 69.08073 | G60: 69.08073 | H60: 1 | I60: 0 | Q60: 56 | R60: 0.7466666667 | S60: 8.346666667 | T60: 13.41333333 | U60: 18.48 | V60: 23.54666667 | W60: 28.61333333 | X60: 31.14666667
A61: 59 | B61: 0 | C61: 0 | D61: 2 | E61: 0 | F61: 69.08073 | G61: 69.08073 | H61: 1 | I61: 0 | Q61: 57 | R61: 0.76 | S61: 7.96 | T61: 12.76 | U61: 17.56 | V61: 22.36 | W61: 27.16 | X61: 29.56
A62: 60 | B62: 0 | C62: 0 | D62: 2 | E62: 0 | F62: 69.08073 | G62: 69.08073 | H62: 1 | I62: 0 | Q62: 58 | R62: 0.7733333333 | S62: 7.573333333 | T62: 12.10666667 | U62: 16.64 | V62: 21.17333333 | W62: 25.70666667 | X62: 27.97333333
A63: 61 | B63: 0 | C63: 0 | D63: 2 | E63: 0 | F63: 69.08073 | G63: 69.08073 | H63: 1 | I63: 0 | Q63: 59 | R63: 0.7866666667 | S63: 7.186666667 | T63: 11.45333333 | U63: 15.72 | V63: 19.98666667 | W63: 24.25333333 | X63: 26.38666667
A64: 62 | B64: 0 | C64: 0 | D64: 2 | E64: 0 | F64: 69.08073 | G64: 69.08073 | H64: 1 | I64: 0 | Q64: 60 | R64: 0.8 | S64: =(1-$R64)*(S$3-$P$5)+$P$5 -> 6.8 | T64: 10.8 | U64: 14.8 | V64: 18.8 | W64: 22.8 | X64: 24.8
A65: 63 | B65: 0 | C65: 0 | D65: 2 | E65: 0 | F65: 69.08073 | G65: 69.08073 | H65: 1 | I65: 0 | Q65: 61 | R65: 0.8133333333 | S65: 6.413333333 | T65: 10.14666667 | U65: 13.88 | V65: 17.61333333 | W65: 21.34666667 | X65: 23.21333333
A66: 64 | B66: 0 | C66: 0 | D66: 2 | E66: 0 | F66: 69.08073 | G66: 69.08073 | H66: 1 | I66: 0 | Q66: 62 | R66: 0.8266666667 | S66: 6.026666667 | T66: 9.493333333 | U66: 12.96 | V66: 16.42666667 | W66: 19.89333333 | X66: 21.62666667
A67: 65 | B67: 0 | C67: 0 | D67: 2 | E67: 0 | F67: 69.08073 | G67: 69.08073 | H67: 1 | I67: 0 | Q67: 63 | R67: 0.84 | S67: 5.64 | T67: 8.84 | U67: 12.04 | V67: 15.24 | W67: 18.44 | X67: 20.04
A68: 66 | B68: 0 | C68: 0 | D68: 2 | E68: 0 | F68: 69.08073 | G68: 69.08073 | H68: 1 | I68: 0 | Q68: 64 | R68: =Q68/$Q$79 -> 0.8533333333 | S68: 5.253333333 | T68: 8.186666667 | U68: 11.12 | V68: 14.05333333 | W68: 16.98666667 | X68: 18.45333333
A69: 67 | B69: 0 | C69: 0 | D69: 2 | E69: 0 | F69: 69.08073 | G69: 69.08073 | H69: 1 | I69: 0 | Q69: 65 | R69: 0.8666666667 | S69: 4.866666667 | T69: 7.533333333 | U69: 10.2 | V69: 12.86666667 | W69: 15.53333333 | X69: 16.86666667
A70: 68 | B70: 0 | C70: 0 | D70: 2 | E70: 0 | F70: 69.08073 | G70: 69.08073 | H70: 1 | I70: 0 | Q70: 66 | R70: 0.88 | S70: 4.48 | T70: 6.88 | U70: 9.28 | V70: 11.68 | W70: 14.08 | X70: 15.28
A71: 69 | B71: 0 | C71: 0 | D71: 2 | E71: 0 | F71: 69.08073 | G71: 69.08073 | H71: 1 | I71: 0 | Q71: 67 | R71: 0.8933333333 | S71: 4.093333333 | T71: 6.226666667 | U71: 8.36 | V71: 10.49333333 | W71: 12.62666667 | X71: 13.69333333
A72: 70 | B72: 0 | C72: 0 | D72: 2 | E72: 0 | F72: 69.08073 | G72: 69.08073 | H72: 1 | I72: 0 | Q72: 68 | R72: 0.9066666667 | S72: 3.706666667 | T72: 5.573333333 | U72: 7.44 | V72: 9.306666667 | W72: 11.17333333 | X72: 12.10666667
A73: 71 | B73: 0 | C73: 0 | D73: 2 | E73: 0 | F73: 69.08073 | G73: 69.08073 | H73: 1 | I73: 0 | Q73: 69 | R73: 0.92 | S73: 3.32 | T73: 4.92 | U73: 6.52 | V73: 8.12 | W73: 9.72 | X73: 10.52
A74: 72 | B74: 0 | C74: 0 | D74: 2 | E74: 0 | F74: 69.08073 | G74: 69.08073 | H74: 1 | I74: 0 | Q74: 70 | R74: 0.9333333333 | S74: =(1-$R74)*(S$3-$P$5)+$P$5 -> 2.933333333 | T74: 4.266666667 | U74: 5.6 | V74: 6.933333333 | W74: 8.266666667 | X74: 8.933333333
A75: 73 | B75: 0 | C75: 0 | D75: 2 | E75: 0 | F75: 69.08073 | G75: 69.08073 | H75: 1 | I75: 0 | Q75: 71 | R75: 0.9466666667 | S75: 2.546666667 | T75: 3.613333333 | U75: 4.68 | V75: 5.746666667 | W75: 6.813333333 | X75: 7.346666667
A76: 74 | B76: 0 | C76: 0 | D76: 2 | E76: 0 | F76: 69.08073 | G76: 69.08073 | H76: 1 | I76: 0 | Q76: 72 | R76: 0.96 | S76: 2.16 | T76: 2.96 | U76: 3.76 | V76: 4.56 | W76: 5.36 | X76: 5.76
A77: 75 | B77: 0 | C77: 0 | D77: 2 | E77: 0 | F77: 69.08073 | G77: 69.08073 | H77: 1 | I77: 0 | Q77: 73 | R77: 0.9733333333 | S77: 1.773333333 | T77: 2.306666667 | U77: 2.84 | V77: 3.373333333 | W77: 3.906666667 | X77: 4.173333333
A78: 76 | B78: 0 | C78: 0 | D78: 2 | E78: 0 | F78: 69.08073 | G78: 69.08073 | H78: 1 | I78: 0 | Q78: 74 | R78: 0.9866666667 | S78: 1.386666667 | T78: 1.653333333 | U78: 1.92 | V78: 2.186666667 | W78: 2.453333333 | X78: 2.586666667
A79: 77 | B79: 0 | C79: 0 | D79: 2 | E79: 0 | F79: 69.08073 | G79: 69.08073 | H79: 1 | I79: 0 | Q79: 75 | R79: 1 | S79: 1 | T79: 1 | U79: 1 | V79: 1 | W79: 1 | X79: 1
A80: 78 | B80: 0 | C80: 0 | D80: 2 | E80: 0 | F80: 69.08073 | G80: 69.08073 | H80: 1 | I80: 0
A81: 79 | B81: 0 | C81: 0 | D81: 2 | E81: 0 | F81: 69.08073 | G81: 69.08073 | H81: 1 | I81: 0
A82: 80 | B82: 0 | C82: 0 | D82: 2 | E82: 0 | F82: 69.08073 | G82: 69.08073 | H82: 1 | I82: 0
A83: 81 | B83: 0 | C83: 0 | D83: 2 | E83: 0 | F83: 69.08073 | G83: 69.08073 | H83: 1 | I83: 0
A84: 82 | B84: 0 | C84: 0 | D84: 2 | E84: 0 | F84: 69.08073 | G84: 69.08073 | H84: 1 | I84: 0
A85: 83 | B85: 0 | C85: 0 | D85: 2 | E85: 0 | F85: 69.08073 | G85: 69.08073 | H85: 1 | I85: 0
A86: 84 | B86: 0 | C86: 0 | D86: 2 | E86: 0 | F86: 69.08073 | G86: 69.08073 | H86: 1 | I86: 0
A87: 85 | B87: 0 | C87: 0 | D87: 2 | E87: 0 | F87: 69.08073 | G87: 69.08073 | H87: 1 | I87: 0
A88: 86 | B88: 0 | C88: 0 | D88: 2 | E88: 0 | F88: 69.08073 | G88: 69.08073 | H88: 1 | I88: 0
A89: 87 | B89: 0 | C89: 0 | D89: 2 | E89: 0 | F89: 69.08073 | G89: 69.08073 | H89: 1 | I89: 0
A90: 88 | B90: 0 | C90: 0 | D90: 2 | E90: 0 | F90: 69.08073 | G90: 69.08073 | H90: 1 | I90: 0
A91: 89 | B91: 0 | C91: 0 | D91: 2 | E91: 0 | F91: 69.08073 | G91: 69.08073 | H91: 1 | I91: 0
A92: 90 | B92: 0 | C92: 0 | D92: 2 | E92: 0 | F92: 69.08073 | G92: 69.08073 | H92: 1 | I92: 0
A93: 91 | B93: 0 | C93: 0 | D93: 2 | E93: 0 | F93: 69.08073 | G93: 69.08073 | H93: 1 | I93: 0
A94: 92 | B94: 0 | C94: 0 | D94: 2 | E94: 0 | F94: 69.08073 | G94: 69.08073 | H94: 1 | I94: 0
A95: 93 | B95: 0 | C95: 0 | D95: 2 | E95: 0 | F95: 69.08073 | G95: 69.08073 | H95: 1 | I95: 0
A96: 94 | B96: 0 | C96: 0 | D96: 2 | E96: 0 | F96: 69.08073 | G96: 69.08073 | H96: 1 | I96: 0
A97: 95 | B97: 0 | C97: 0 | D97: 2 | E97: 0 | F97: 69.08073 | G97: 69.08073 | H97: 1 | I97: 0
A98: 96 | B98: 0 | C98: 0 | D98: 2 | E98: 0 | F98: 69.08073 | G98: 69.08073 | H98: 1 | I98: 0
A99: 97 | B99: 0 | C99: 0 | D99: 2 | E99: 0 | F99: 69.08073 | G99: 69.08073 | H99: 1 | I99: 0
A100: 98 | B100: 0 | C100: 0 | D100: 2 | E100: 0 | F100: 69.08073 | G100: 69.08073 | H100: 1 | I100: 0
A101: 99 | B101: 0 | C101: 0 | D101: 2 | E101: 0 | F101: 69.08073 | G101: 69.08073 | H101: 1 | I101: 0
A102: 100 | B102: 0 | C102: 0 | D102: 2 | E102: 0 | F102: 69.08073 | G102: 69.08073 | H102: 1 | I102: 0
A103: 101 | B103: 0 | C103: 0 | D103: 2 | E103: 0 | F103: 69.08073 | G103: 69.08073 | H103: 1 | I103: 0
A104: 102 | B104: 0 | C104: 0 | D104: 2 | E104: 0 | F104: 69.08073 | G104: 69.08073 | H104: 1 | I104: 0
A105: 103 | B105: 0 | C105: 0 | D105: 2 | E105: 0 | F105: 69.08073 | G105: 69.08073 | H105: 1 | I105: 0
A106: 104 | B106: 0 | C106: 0 | D106: 2 | E106: 0 | F106: 69.08073 | G106: 69.08073 | H106: 1 | I106: 0
A107: 105 | B107: 0 | C107: 1 | D107: 2 | E107: 1 | F107: 69.08073 | G107: 69.08073 | H107: 2 | I107: 67.92453
A108: 106 | B108: 0 | C108: 0 | D108: 1 | E108: 0 | F108: 69.08073 | G108: 69.08073 | H108: 2 | I108: 67.92453
A109: 107 | B109: 0 | C109: 0 | D109: 1 | E109: 0 | F109: 69.08073 | G109: 69.08073 | H109: 2 | I109: 67.92453
A110: 108 | B110: 0 | C110: 0 | D110: 1 | E110: 0 | F110: 69.08073 | G110: 69.08073 | H110: 2 | I110: 67.92453
A111: 109 | B111: 0 | C111: 0 | D111: 1 | E111: 0 | F111: 69.08073 | G111: 69.08073 | H111: 2 | I111: 67.92453
A112: 110 | B112: 0 | C112: 0 | D112: 1 | E112: 0 | F112: 69.08073 | G112: 69.08073 | H112: 2 | I112: 67.92453
A113: 111 | B113: 0 | C113: 0 | D113: 1 | E113: 0 | F113: 69.08073 | G113: 69.08073 | H113: 2 | I113: 67.92453
A114: 112 | B114: 0 | C114: 0 | D114: 1 | E114: 0 | F114: 69.08073 | G114: 69.08073 | H114: 2 | I114: 67.92453
A115: 113 | B115: 0 | C115: 0 | D115: 1 | E115: 0 | F115: 69.08073 | G115: 69.08073 | H115: 2 | I115: 67.92453
A116: 114 | B116: 0 | C116: 0 | D116: 1 | E116: 0 | F116: 69.08073 | G116: 69.08073 | H116: 2 | I116: 67.92453
A117: 115 | B117: 0 | C117: 0 | D117: 1 | E117: 0 | F117: 69.08073 | G117: 69.08073 | H117: 2 | I117: 67.92453
A118: 116 | B118: 0 | C118: 0 | D118: 1 | E118: 0 | F118: 69.08073 | G118: 69.08073 | H118: 2 | I118: 67.92453
A119: 117 | B119: 0 | C119: 0 | D119: 1 | E119: 0 | F119: 69.08073 | G119: 69.08073 | H119: 2 | I119: 67.92453
A120: 118 | B120: 0 | C120: 0 | D120: 1 | E120: 0 | F120: 69.08073 | G120: 69.08073 | H120: 2 | I120: 67.92453
A121: 119 | B121: 0 | C121: 0 | D121: 1 | E121: 0 | F121: 69.08073 | G121: 69.08073 | H121: 2 | I121: 67.92453
A122: 120 | B122: 0 | C122: 0 | D122: 1 | E122: 0 | F122: 69.08073 | G122: 69.08073 | H122: 2 | I122: 67.92453
A123: 121 | B123: 0 | C123: 0 | D123: 1 | E123: 0 | F123: 69.08073 | G123: 69.08073 | H123: 2 | I123: 67.92453
A124: 122 | B124: 0 | C124: 0 | D124: 1 | E124: 0 | F124: 69.08073 | G124: 69.08073 | H124: 2 | I124: 67.92453
A125: 123 | B125: 0 | C125: 0 | D125: 1 | E125: 0 | F125: 69.08073 | G125: 69.08073 | H125: 2 | I125: 67.92453
A126: 124 | B126: 0 | C126: 0 | D126: 1 | E126: 0 | F126: 69.08073 | G126: 69.08073 | H126: 2 | I126: 67.92453
A127: 125 | B127: 0 | C127: 0 | D127: 1 | E127: 0 | F127: 69.08073 | G127: 69.08073 | H127: 2 | I127: 67.92453
A128: 126 | B128: 0 | C128: 0 | D128: 1 | E128: 0 | F128: 69.08073 | G128: 69.08073 | H128: 2 | I128: 67.92453
A129: 127 | B129: 0 | C129: 0 | D129: 1 | E129: 0 | F129: 69.08073 | G129: 69.08073 | H129: 2 | I129: 67.92453
A130: 128 | B130: 0 | C130: 0 | D130: 1 | E130: 0 | F130: 69.08073 | G130: 69.08073 | H130: 2 | I130: 67.92453
A131: 129 | B131: 0 | C131: 0 | D131: 1 | E131: 0 | F131: 69.08073 | G131: 69.08073 | H131: 2 | I131: 67.92453
A132: 130 | B132: 0 | C132: 0 | D132: 1 | E132: 0 | F132: 69.08073 | G132: 69.08073 | H132: 2 | I132: 67.92453
A133: 131 | B133: 0 | C133: 0 | D133: 1 | E133: 0 | F133: 69.08073 | G133: 69.08073 | H133: 2 | I133: 67.92453
A134: 132 | B134: 0 | C134: 0 | D134: 1 | E134: 0 | F134: 69.08073 | G134: 69.08073 | H134: 2 | I134: 67.92453
A135: 133 | B135: 0 | C135: 0 | D135: 1 | E135: 0 | F135: 69.08073 | G135: 69.08073 | H135: 2 | I135: 67.92453
A136: 134 | B136: 0 | C136: 0 | D136: 1 | E136: 0 | F136: 69.08073 | G136: 69.08073 | H136: 2 | I136: 67.92453
A137: 135 | B137: 0 | C137: 0 | D137: 1 | E137: 0 | F137: 69.08073 | G137: 69.08073 | H137: 2 | I137: 67.92453
A138: 136 | B138: 0 | C138: 0 | D138: 1 | E138: 0 | F138: 69.08073 | G138: 69.08073 | H138: 2 | I138: 67.92453
A139: 137 | B139: 0 | C139: 0 | D139: 1 | E139: 0 | F139: 69.08073 | G139: 69.08073 | H139: 2 | I139: 67.92453
A140: 138 | B140: 0 | C140: 0 | D140: 1 | E140: 0 | F140: 69.08073 | G140: 69.08073 | H140: 2 | I140: 67.92453
A141: 139 | B141: 0 | C141: 0 | D141: 1 | E141: 0 | F141: 69.08073 | G141: 69.08073 | H141: 2 | I141: 67.92453
A142: 140 | B142: 0 | C142: 0 | D142: 1 | E142: 0 | F142: 69.08073 | G142: 69.08073 | H142: 2 | I142: 67.92453
A143: 141 | B143: 0 | C143: 0 | D143: 1 | E143: 0 | F143: 69.08073 | G143: 69.08073 | H143: 2 | I143: 67.92453
A144: 142 | B144: 0 | C144: 0 | D144: 1 | E144: 0 | F144: 69.08073 | G144: 69.08073 | H144: 2 | I144: 67.92453
A145: 143 | B145: 0 | C145: 0 | D145: 1 | E145: 0 | F145: 69.08073 | G145: 69.08073 | H145: 2 | I145: 67.92453
A146: 144 | B146: 0 | C146: 0 | D146: 1 | E146: 0 | F146: 69.08073 | G146: 69.08073 | H146: 2 | I146: 67.92453
A147: 145 | B147: 0 | C147: 0 | D147: 1 | E147: 0 | F147: 69.08073 | G147: 69.08073 | H147: 2 | I147: 67.92453
A148: 146 | B148: 0 | C148: 0 | D148: 1 | E148: 0 | F148: 69.08073 | G148: 69.08073 | H148: 2 | I148: 67.92453
A149: 147 | B149: 0 | C149: 0 | D149: 1 | E149: 0 | F149: 69.08073 | G149: 69.08073 | H149: 2 | I149: 67.92453
A150: 148 | B150: 0 | C150: 0 | D150: 1 | E150: 0 | F150: 69.08073 | G150: 69.08073 | H150: 2 | I150: 67.92453
A151: 149 | B151: 0 | C151: 0 | D151: 1 | E151: 0 | F151: 69.08073 | G151: 69.08073 | H151: 2 | I151: 67.92453
A152: 150 | B152: 0 | C152: 0 | D152: 1 | E152: 0 | F152: 69.08073 | G152: 69.08073 | H152: 2 | I152: 67.92453
A153: 151 | B153: 0 | C153: 0 | D153: 1 | E153: 0 | F153: 69.08073 | G153: 69.08073 | H153: 2 | I153: 67.92453
A154: 152 | B154: 0 | C154: 0 | D154: 1 | E154: 0 | F154: 69.08073 | G154: 69.08073 | H154: 2 | I154: 67.92453
A155: 153 | B155: 0 | C155: 0 | D155: 1 | E155: 0 | F155: 69.08073 | G155: 69.08073 | H155: 2 | I155: 67.92453
A156: 154 | B156: 0 | C156: 0 | D156: 1 | E156: 0 | F156: 69.08073 | G156: 69.08073 | H156: 2 | I156: 67.92453
A157: 155 | B157: 0 | C157: 0 | D157: 1 | E157: 0 | F157: 69.08073 | G157: 69.08073 | H157: 2 | I157: 67.92453
A158: 156 | B158: 0 | C158: 0 | D158: 1 | E158: 0 | F158: 69.08073 | G158: 69.08073 | H158: 2 | I158: 67.92453
A159: 157 | B159: 0 | C159: 0 | D159: 1 | E159: 0 | F159: 69.08073 | G159: 69.08073 | H159: 2 | I159: 67.92453
A160: 158 | B160: 0 | C160: 1 | D160: 1 | E160: 1 | F160: 69.08073 | G160: 69.08073 | H160: 3 | I160: 67.92453

Sheet T4 Flow calc D2
A1: Time(s) | B1: Injected cars | C1: Exiting cars | D1: Current cars in system | E1: Exiting people | F1: Avg. v [km/h] | G1: Min. v [km/h] | H1: Goal: Node 7 | I1: Node 7 flow | N1: Input data | Q1: 75 cars
A2: 0 | B2: 57 | C2: 0 | D2: 57 | E2: 0 | F2: 52.53397 | G2: 52.53397 | H2: 0 | I2: 0 | N2: Distance [m] | O2: Multiplier[-] | P2: Walking speed [m/s] | Q2: Cars/km/lane | R2: Relative density [-] | S2: Speed limits [km/h]
A3: 1 | B3: 0 | C3: 0 | D3: 57 | E3: 0 | F3: 52.53397 | G3: 52.53397 | H3: 0 | I3: 0 | N3: 100 | O3: =0.1 -> 0.1 | P3: 1 | S3: 30 | T3: 50 | U3: 70 | V3: 90 | W3: 110 | X3: 120
A4: 2 | B4: 0 | C4: 0 | D4: 57 | E4: 0 | F4: 52.53397 | G4: 52.53397 | H4: 0 | I4: 0 | N4: 500 | O4: =O3+0.1 -> 0.2 | P4: Stall speed [km/h] | Q4: 0 | R4: =Q4/$Q$79 -> 0 | S4: =(1-$R4)*(S$3-$P$5)+$P$5 -> 30 | T4: 50 | U4: 70 | V4: 90 | W4: 110 | X4: 120
A5: 3 | B5: 0 | C5: 0 | D5: 57 | E5: 0 | F5: 52.53397 | G5: 52.53397 | H5: 0 | I5: 0 | N5: 1000 | O5: =O4+0.1 -> 0.3 | P5: 1 | Q5: 1 | R5: 0.01333333333 | S5: 29.61333333 | T5: 49.34666667 | U5: 69.08 | V5: 88.81333333 | W5: 108.5466667 | X5: 118.4133333
A6: 4 | B6: 0 | C6: 0 | D6: 57 | E6: 0 | F6: 52.53397 | G6: 52.53397 | H6: 0 | I6: 0 | N6: 1500 | O6: 0.4 | P6: Event timer [s] | Q6: 2 | R6: 0.02666666667 | S6: 29.22666667 | T6: 48.69333333 | U6: 68.16 | V6: 87.62666667 | W6: 107.0933333 | X6: 116.8266667
A7: 5 | B7: 0 | C7: 0 | D7: 57 | E7: 0 | F7: 52.53397 | G7: 52.53397 | H7: 0 | I7: 0 | N7: 2000 | O7: 0.5 | P7: 600 | Q7: 3 | R7: 0.04 | S7: 28.84 | T7: 48.04 | U7: 67.24 | V7: 86.44 | W7: 105.64 | X7: 115.24
A8: 6 | B8: 0 | C8: 0 | D8: 57 | E8: 0 | F8: 52.53397 | G8: 52.53397 | H8: 0 | I8: 0 | N8: 4000 | O8: 0.6 | P8: Initial speed [m/s] | Q8: 4 | R8: 0.05333333333 | S8: 28.45333333 | T8: 47.38666667 | U8: 66.32 | V8: 85.25333333 | W8: 104.1866667 | X8: 113.6533333
A9: 7 | B9: 0 | C9: 0 | D9: 57 | E9: 0 | F9: 52.53397 | G9: 52.53397 | H9: 0 | I9: 0 | O9: 0.7 | P9: 0 | Q9: 5 | R9: 0.06666666667 | S9: 28.06666667 | T9: 46.73333333 | U9: 65.4 | V9: 84.06666667 | W9: 102.7333333 | X9: 112.0666667
A10: 8 | B10: 0 | C10: 0 | D10: 57 | E10: 0 | F10: 52.53397 | G10: 52.53397 | H10: 0 | I10: 0 | O10: 0.8 | P10: Acceleretion [m/s^2] | Q10: 6 | R10: 0.08 | S10: 27.68 | T10: 46.08 | U10: 64.48 | V10: 82.88 | W10: 101.28 | X10: 110.48
A11: 9 | B11: 0 | C11: 0 | D11: 57 | E11: 0 | F11: 52.53397 | G11: 52.53397 | H11: 0 | I11: 0 | O11: 0.9 | P11: =(100/3.6)/10 -> 2.777777778 | Q11: 7 | R11: 0.09333333333 | S11: 27.29333333 | T11: 45.42666667 | U11: 63.56 | V11: 81.69333333 | W11: 99.82666667 | X11: 108.8933333
A12: 10 | B12: 0 | C12: 0 | D12: 57 | E12: 0 | F12: 52.53397 | G12: 52.53397 | H12: 0 | I12: 0 | O12: 1 | Q12: 8 | R12: 0.1066666667 | S12: 26.90666667 | T12: 44.77333333 | U12: 62.64 | V12: 80.50666667 | W12: 98.37333333 | X12: 107.3066667
A13: 11 | B13: 0 | C13: 0 | D13: 57 | E13: 0 | F13: 52.53397 | G13: 52.53397 | H13: 0 | I13: 0 | O13: 1.1 | Q13: 9 | R13: 0.12 | S13: 26.52 | T13: 44.12 | U13: 61.72 | V13: 79.32 | W13: 96.92 | X13: 105.72
A14: 12 | B14: 0 | C14: 0 | D14: 57 | E14: 0 | F14: 52.53397 | G14: 52.53397 | H14: 0 | I14: 0 | O14: 1.2 | Q14: 10 | R14: 0.1333333333 | S14: =(1-$R14)*(S$3-$P$5)+$P$5 -> 26.13333333 | T14: 43.46666667 | U14: 60.8 | V14: 78.13333333 | W14: 95.46666667 | X14: 104.1333333
A15: 13 | B15: 0 | C15: 0 | D15: 57 | E15: 0 | F15: 52.53397 | G15: 52.53397 | H15: 0 | I15: 0 | O15: 1.3 | Q15: 11 | R15: 0.1466666667 | S15: 25.74666667 | T15: 42.81333333 | U15: 59.88 | V15: 76.94666667 | W15: 94.01333333 | X15: 102.5466667
A16: 14 | B16: 0 | C16: 0 | D16: 57 | E16: 0 | F16: 52.53397 | G16: 52.53397 | H16: 0 | I16: 0 | O16: 1.4 | Q16: 12 | R16: 0.16 | S16: 25.36 | T16: 42.16 | U16: 58.96 | V16: 75.76 | W16: 92.56 | X16: 100.96
A17: 15 | B17: 0 | C17: 0 | D17: 57 | E17: 0 | F17: 52.53397 | G17: 52.53397 | H17: 0 | I17: 0 | O17: 1.5 | Q17: 13 | R17: 0.1733333333 | S17: 24.97333333 | T17: 41.50666667 | U17: 58.04 | V17: 74.57333333 | W17: 91.10666667 | X17: 99.37333333
A18: 16 | B18: 0 | C18: 0 | D18: 57 | E18: 0 | F18: 52.53397 | G18: 52.53397 | H18: 0 | I18: 0 | O18: 1.6 | Q18: 14 | R18: 0.1866666667 | S18: 24.58666667 | T18: 40.85333333 | U18: 57.12 | V18: 73.38666667 | W18: 89.65333333 | X18: 97.78666667
A19: 17 | B19: 0 | C19: 0 | D19: 57 | E19: 0 | F19: 52.53397 | G19: 52.53397 | H19: 0 | I19: 0 | O19: 1.7 | Q19: 15 | R19: 0.2 | S19: 24.2 | T19: 40.2 | U19: 56.2 | V19: 72.2 | W19: 88.2 | X19: 96.2
A20: 18 | B20: 0 | C20: 0 | D20: 57 | E20: 0 | F20: 52.53397 | G20: 52.53397 | H20: 0 | I20: 0 | O20: 1.8 | Q20: 16 | R20: 0.2133333333 | S20: 23.81333333 | T20: 39.54666667 | U20: 55.28 | V20: 71.01333333 | W20: 86.74666667 | X20: 94.61333333
A21: 19 | B21: 0 | C21: 0 | D21: 57 | E21: 0 | F21: 52.53397 | G21: 52.53397 | H21: 0 | I21: 0 | O21: 1.9 | Q21: 17 | R21: 0.2266666667 | S21: 23.42666667 | T21: 38.89333333 | U21: 54.36 | V21: 69.82666667 | W21: 85.29333333 | X21: 93.02666667
A22: 20 | B22: 0 | C22: 0 | D22: 57 | E22: 0 | F22: 52.53397 | G22: 52.53397 | H22: 0 | I22: 0 | O22: 2 | Q22: 18 | R22: 0.24 | S22: 23.04 | T22: 38.24 | U22: 53.44 | V22: 68.64 | W22: 83.84 | X22: 91.44
A23: 21 | B23: 0 | C23: 0 | D23: 57 | E23: 0 | F23: 52.53397 | G23: 52.53397 | H23: 0 | I23: 0 | N23: Distance [m] | O23: Time [s] | Q23: 19 | R23: 0.2533333333 | S23: 22.65333333 | T23: 37.58666667 | U23: 52.52 | V23: 67.45333333 | W23: 82.38666667 | X23: 89.85333333
A24: 22 | B24: 0 | C24: 0 | D24: 57 | E24: 0 | F24: 52.53397 | G24: 52.53397 | H24: 0 | I24: 0 | N24: 1000 | O24: =N24/(U23/3.6) -> 68.54531607 | Q24: 20 | R24: 0.2666666667 | S24: =(1-$R24)*(S$3-$P$5)+$P$5 -> 22.26666667 | T24: 36.93333333 | U24: 51.6 | V24: 66.26666667 | W24: 80.93333333 | X24: 88.26666667
A25: 23 | B25: 0 | C25: 0 | D25: 57 | E25: 0 | F25: 52.53397 | G25: 52.53397 | H25: 0 | I25: 0 | N25: Relative Density | O25: Avg. Speed | P25: Avg. Flow rate (vehicles/lane/hour) | Q25: 21 | R25: 0.28 | S25: 21.88 | T25: 36.28 | U25: 50.68 | V25: 65.08 | W25: 79.48 | X25: 86.68
A26: 24 | B26: 0 | C26: 0 | D26: 57 | E26: 0 | F26: 52.53397 | G26: 52.53397 | H26: 0 | I26: 0 | N26: =R23 -> 0.2533333333 | O26: =U23 -> 52.52 | P26: =Q23/O24*3600 -> 997.88 | Q26: 22 | R26: 0.2933333333 | S26: 21.49333333 | T26: 35.62666667 | U26: 49.76 | V26: 63.89333333 | W26: 78.02666667 | X26: 85.09333333
A27: 25 | B27: 0 | C27: 0 | D27: 57 | E27: 0 | F27: 52.53397 | G27: 52.53397 | H27: 0 | I27: 0 | N27: Sim. Rel. Dens. | O27: Sim.avg. Speed | P27: Avg. Flow rate [cars/lane minute] | Q27: 23 | R27: 0.3066666667 | S27: 21.10666667 | T27: 34.97333333 | U27: 48.84 | V27: 62.70666667 | W27: 76.57333333 | X27: 83.50666667
A28: 26 | B28: 0 | C28: 0 | D28: 57 | E28: 0 | F28: 52.53397 | G28: 52.53397 | H28: 0 | I28: 0 | N28: =R23 -> 0.2533333333 | O28: =F2 -> 52.53397 | P28: =P26*60 -> 59872.8 | Q28: 24 | R28: 0.32 | S28: 20.72 | T28: 34.32 | U28: 47.92 | V28: 61.52 | W28: 75.12 | X28: 81.92
A29: 27 | B29: 0 | C29: 0 | D29: 57 | E29: 0 | F29: 52.53397 | G29: 52.53397 | H29: 0 | I29: 0 | P29: Sim.Avg. Flowrate [cars/lane second] | Q29: 25 | R29: 0.3333333333 | S29: 20.33333333 | T29: 33.66666667 | U29: 47 | V29: 60.33333333 | W29: 73.66666667 | X29: 80.33333333
A30: 28 | B30: 0 | C30: 0 | D30: 57 | E30: 0 | F30: 52.53397 | G30: 52.53397 | H30: 0 | I30: 0 | P30: =H72 -> 2 | Q30: 26 | R30: 0.3466666667 | S30: 19.94666667 | T30: 33.01333333 | U30: 46.08 | V30: 59.14666667 | W30: 72.21333333 | X30: 78.74666667
A31: 29 | B31: 0 | C31: 0 | D31: 57 | E31: 0 | F31: 52.53397 | G31: 52.53397 | H31: 0 | I31: 0 | P31: Sim.Avg. Flowrate [cars/lane minute] | Q31: 27 | R31: 0.36 | S31: 19.56 | T31: 32.36 | U31: 45.16 | V31: 57.96 | W31: 70.76 | X31: 77.16
A32: 30 | B32: 0 | C32: 0 | D32: 57 | E32: 0 | F32: 52.53397 | G32: 52.53397 | H32: 0 | I32: 0 | P32: =P30*60 -> 120 | Q32: 28 | R32: 0.3733333333 | S32: 19.17333333 | T32: 31.70666667 | U32: 44.24 | V32: 56.77333333 | W32: 69.30666667 | X32: 75.57333333
A33: 31 | B33: 0 | C33: 0 | D33: 57 | E33: 0 | F33: 52.53397 | G33: 52.53397 | H33: 0 | I33: 0 | Q33: 29 | R33: 0.3866666667 | S33: 18.78666667 | T33: 31.05333333 | U33: 43.32 | V33: 55.58666667 | W33: 67.85333333 | X33: 73.98666667
A34: 32 | B34: 0 | C34: 0 | D34: 57 | E34: 0 | F34: 52.53397 | G34: 52.53397 | H34: 0 | I34: 0 | Q34: 30 | R34: 0.4 | S34: =(1-$R34)*(S$3-$P$5)+$P$5 -> 18.4 | T34: 30.4 | U34: 42.4 | V34: 54.4 | W34: 66.4 | X34: 72.4
A35: 33 | B35: 0 | C35: 0 | D35: 57 | E35: 0 | F35: 52.53397 | G35: 52.53397 | H35: 0 | I35: 0 | Q35: 31 | R35: 0.4133333333 | S35: 18.01333333 | T35: 29.74666667 | U35: 41.48 | V35: 53.21333333 | W35: 64.94666667 | X35: 70.81333333
A36: 34 | B36: 0 | C36: 0 | D36: 57 | E36: 0 | F36: 52.53397 | G36: 52.53397 | H36: 0 | I36: 0 | Q36: 32 | R36: =Q36/$Q$79 -> 0.4266666667 | S36: 17.62666667 | T36: 29.09333333 | U36: 40.56 | V36: 52.02666667 | W36: 63.49333333 | X36: 69.22666667
A37: 35 | B37: 0 | C37: 0 | D37: 57 | E37: 0 | F37: 52.53397 | G37: 52.53397 | H37: 0 | I37: 0 | Q37: 33 | R37: 0.44 | S37: 17.24 | T37: 28.44 | U37: 39.64 | V37: 50.84 | W37: 62.04 | X37: 67.64
A38: 36 | B38: 0 | C38: 0 | D38: 57 | E38: 0 | F38: 52.53397 | G38: 52.53397 | H38: 0 | I38: 0 | Q38: 34 | R38: 0.4533333333 | S38: 16.85333333 | T38: 27.78666667 | U38: 38.72 | V38: 49.65333333 | W38: 60.58666667 | X38: 66.05333333
A39: 37 | B39: 0 | C39: 0 | D39: 57 | E39: 0 | F39: 52.53397 | G39: 52.53397 | H39: 0 | I39: 0 | Q39: 35 | R39: 0.4666666667 | S39: 16.46666667 | T39: 27.13333333 | U39: 37.8 | V39: 48.46666667 | W39: 59.13333333 | X39: 64.46666667
A40: 38 | B40: 0 | C40: 0 | D40: 57 | E40: 0 | F40: 52.53397 | G40: 52.53397 | H40: 0 | I40: 0 | Q40: 36 | R40: 0.48 | S40: 16.08 | T40: 26.48 | U40: 36.88 | V40: 47.28 | W40: 57.68 | X40: 62.88
A41: 39 | B41: 0 | C41: 0 | D41: 57 | E41: 0 | F41: 52.53397 | G41: 52.53397 | H41: 0 | I41: 0 | Q41: 37 | R41: 0.4933333333 | S41: 15.69333333 | T41: 25.82666667 | U41: 35.96 | V41: 46.09333333 | W41: 56.22666667 | X41: 61.29333333
A42: 40 | B42: 0 | C42: 0 | D42: 57 | E42: 0 | F42: 52.53397 | G42: 52.53397 | H42: 0 | I42: 0 | Q42: 38 | R42: 0.5066666667 | S42: 15.30666667 | T42: 25.17333333 | U42: 35.04 | V42: 44.90666667 | W42: 54.77333333 | X42: 59.70666667
A43: 41 | B43: 0 | C43: 0 | D43: 57 | E43: 0 | F43: 52.53397 | G43: 52.53397 | H43: 0 | I43: 0 | Q43: 39 | R43: 0.52 | S43: 14.92 | T43: 24.52 | U43: 34.12 | V43: 43.72 | W43: 53.32 | X43: 58.12
A44: 42 | B44: 0 | C44: 0 | D44: 57 | E44: 0 | F44: 52.53397 | G44: 52.53397 | H44: 0 | I44: 0 | Q44: 40 | R44: 0.5333333333 | S44: =(1-$R44)*(S$3-$P$5)+$P$5 -> 14.53333333 | T44: 23.86666667 | U44: 33.2 | V44: 42.53333333 | W44: 51.86666667 | X44: 56.53333333
A45: 43 | B45: 0 | C45: 0 | D45: 57 | E45: 0 | F45: 52.53397 | G45: 52.53397 | H45: 0 | I45: 0 | Q45: 41 | R45: 0.5466666667 | S45: 14.14666667 | T45: 23.21333333 | U45: 32.28 | V45: 41.34666667 | W45: 50.41333333 | X45: 54.94666667
A46: 44 | B46: 0 | C46: 0 | D46: 57 | E46: 0 | F46: 52.53397 | G46: 52.53397 | H46: 0 | I46: 0 | Q46: 42 | R46: 0.56 | S46: 13.76 | T46: 22.56 | U46: 31.36 | V46: 40.16 | W46: 48.96 | X46: 53.36
A47: 45 | B47: 0 | C47: 0 | D47: 57 | E47: 0 | F47: 52.53397 | G47: 52.53397 | H47: 0 | I47: 0 | Q47: 43 | R47: 0.5733333333 | S47: 13.37333333 | T47: 21.90666667 | U47: 30.44 | V47: 38.97333333 | W47: 47.50666667 | X47: 51.77333333
A48: 46 | B48: 0 | C48: 0 | D48: 57 | E48: 0 | F48: 52.53397 | G48: 52.53397 | H48: 0 | I48: 0 | Q48: 44 | R48: 0.5866666667 | S48: 12.98666667 | T48: 21.25333333 | U48: 29.52 | V48: 37.78666667 | W48: 46.05333333 | X48: 50.18666667
A49: 47 | B49: 0 | C49: 0 | D49: 57 | E49: 0 | F49: 52.53397 | G49: 52.53397 | H49: 0 | I49: 0 | Q49: 45 | R49: 0.6 | S49: 12.6 | T49: 20.6 | U49: 28.6 | V49: 36.6 | W49: 44.6 | X49: 48.6
A50: 48 | B50: 0 | C50: 0 | D50: 57 | E50: 0 | F50: 52.53397 | G50: 52.53397 | H50: 0 | I50: 0 | Q50: 46 | R50: 0.6133333333 | S50: 12.21333333 | T50: 19.94666667 | U50: 27.68 | V50: 35.41333333 | W50: 43.14666667 | X50: 47.01333333
A51: 49 | B51: 0 | C51: 0 | D51: 57 | E51: 0 | F51: 52.53397 | G51: 52.53397 | H51: 0 | I51: 0 | Q51: 47 | R51: 0.6266666667 | S51: 11.82666667 | T51: 19.29333333 | U51: 26.76 | V51: 34.22666667 | W51: 41.69333333 | X51: 45.42666667
A52: 50 | B52: 0 | C52: 0 | D52: 57 | E52: 0 | F52: 52.53397 | G52: 52.53397 | H52: 0 | I52: 0 | Q52: 48 | R52: 0.64 | S52: 11.44 | T52: 18.64 | U52: 25.84 | V52: 33.04 | W52: 40.24 | X52: 43.84
A53: 51 | B53: 0 | C53: 0 | D53: 57 | E53: 0 | F53: 52.53397 | G53: 52.53397 | H53: 0 | I53: 0 | Q53: 49 | R53: 0.6533333333 | S53: 11.05333333 | T53: 17.98666667 | U53: 24.92 | V53: 31.85333333 | W53: 38.78666667 | X53: 42.25333333
A54: 52 | B54: 0 | C54: 0 | D54: 57 | E54: 0 | F54: 52.53397 | G54: 52.53397 | H54: 0 | I54: 0 | Q54: 50 | R54: 0.6666666667 | S54: =(1-$R54)*(S$3-$P$5)+$P$5 -> 10.66666667 | T54: 17.33333333 | U54: 24 | V54: 30.66666667 | W54: 37.33333333 | X54: 40.66666667
A55: 53 | B55: 0 | C55: 0 | D55: 57 | E55: 0 | F55: 52.53397 | G55: 52.53397 | H55: 0 | I55: 0 | Q55: 51 | R55: 0.68 | S55: 10.28 | T55: 16.68 | U55: 23.08 | V55: 29.48 | W55: 35.88 | X55: 39.08
A56: 54 | B56: 0 | C56: 0 | D56: 57 | E56: 0 | F56: 52.53397 | G56: 52.53397 | H56: 0 | I56: 0 | Q56: 52 | R56: 0.6933333333 | S56: 9.893333333 | T56: 16.02666667 | U56: 22.16 | V56: 28.29333333 | W56: 34.42666667 | X56: 37.49333333
A57: 55 | B57: 0 | C57: 0 | D57: 57 | E57: 0 | F57: 52.53397 | G57: 52.53397 | H57: 0 | I57: 0 | Q57: 53 | R57: 0.7066666667 | S57: 9.506666667 | T57: 15.37333333 | U57: 21.24 | V57: 27.10666667 | W57: 32.97333333 | X57: 35.90666667
A58: 56 | B58: 0 | C58: 0 | D58: 57 | E58: 0 | F58: 52.53397 | G58: 52.53397 | H58: 0 | I58: 0 | Q58: 54 | R58: 0.72 | S58: 9.12 | T58: 14.72 | U58: 20.32 | V58: 25.92 | W58: 31.52 | X58: 34.32
A59: 57 | B59: 0 | C59: 0 | D59: 57 | E59: 0 | F59: 52.53397 | G59: 52.53397 | H59: 0 | I59: 0 | Q59: 55 | R59: 0.7333333333 | S59: 8.733333333 | T59: 14.06666667 | U59: 19.4 | V59: 24.73333333 | W59: 30.06666667 | X59: 32.73333333
A60: 58 | B60: 0 | C60: 0 | D60: 57 | E60: 0 | F60: 52.53397 | G60: 52.53397 | H60: 0 | I60: 0 | Q60: 56 | R60: 0.7466666667 | S60: 8.346666667 | T60: 13.41333333 | U60: 18.48 | V60: 23.54666667 | W60: 28.61333333 | X60: 31.14666667
A61: 59 | B61: 0 | C61: 0 | D61: 57 | E61: 0 | F61: 52.53397 | G61: 52.53397 | H61: 0 | I61: 0 | Q61: 57 | R61: 0.76 | S61: 7.96 | T61: 12.76 | U61: 17.56 | V61: 22.36 | W61: 27.16 | X61: 29.56
A62: 60 | B62: 0 | C62: 0 | D62: 57 | E62: 0 | F62: 52.53397 | G62: 52.53397 | H62: 0 | I62: 0 | Q62: 58 | R62: 0.7733333333 | S62: 7.573333333 | T62: 12.10666667 | U62: 16.64 | V62: 21.17333333 | W62: 25.70666667 | X62: 27.97333333
A63: 61 | B63: 0 | C63: 0 | D63: 57 | E63: 0 | F63: 52.53397 | G63: 52.53397 | H63: 0 | I63: 0 | Q63: 59 | R63: 0.7866666667 | S63: 7.186666667 | T63: 11.45333333 | U63: 15.72 | V63: 19.98666667 | W63: 24.25333333 | X63: 26.38666667
A64: 62 | B64: 0 | C64: 0 | D64: 57 | E64: 0 | F64: 52.53397 | G64: 52.53397 | H64: 0 | I64: 0 | Q64: 60 | R64: 0.8 | S64: =(1-$R64)*(S$3-$P$5)+$P$5 -> 6.8 | T64: 10.8 | U64: 14.8 | V64: 18.8 | W64: 22.8 | X64: 24.8
A65: 63 | B65: 0 | C65: 0 | D65: 57 | E65: 0 | F65: 52.53397 | G65: 52.53397 | H65: 0 | I65: 0 | Q65: 61 | R65: 0.8133333333 | S65: 6.413333333 | T65: 10.14666667 | U65: 13.88 | V65: 17.61333333 | W65: 21.34666667 | X65: 23.21333333
A66: 64 | B66: 0 | C66: 0 | D66: 57 | E66: 0 | F66: 52.53397 | G66: 52.53397 | H66: 0 | I66: 0 | Q66: 62 | R66: 0.8266666667 | S66: 6.026666667 | T66: 9.493333333 | U66: 12.96 | V66: 16.42666667 | W66: 19.89333333 | X66: 21.62666667
A67: 65 | B67: 0 | C67: 0 | D67: 57 | E67: 0 | F67: 52.53397 | G67: 52.53397 | H67: 0 | I67: 0 | Q67: 63 | R67: 0.84 | S67: 5.64 | T67: 8.84 | U67: 12.04 | V67: 15.24 | W67: 18.44 | X67: 20.04
A68: 66 | B68: 0 | C68: 0 | D68: 57 | E68: 0 | F68: 52.53397 | G68: 52.53397 | H68: 0 | I68: 0 | Q68: 64 | R68: =Q68/$Q$79 -> 0.8533333333 | S68: 5.253333333 | T68: 8.186666667 | U68: 11.12 | V68: 14.05333333 | W68: 16.98666667 | X68: 18.45333333
A69: 67 | B69: 0 | C69: 0 | D69: 57 | E69: 0 | F69: 52.53397 | G69: 52.53397 | H69: 0 | I69: 0 | Q69: 65 | R69: 0.8666666667 | S69: 4.866666667 | T69: 7.533333333 | U69: 10.2 | V69: 12.86666667 | W69: 15.53333333 | X69: 16.86666667
A70: 68 | B70: 0 | C70: 1 | D70: 57 | E70: 1 | F70: 52.53397 | G70: 52.53397 | H70: 1 | I70: 3600 | Q70: 66 | R70: 0.88 | S70: 4.48 | T70: 6.88 | U70: 9.28 | V70: 11.68 | W70: 14.08 | X70: 15.28
A71: 69 | B71: 0 | C71: 0 | D71: 56 | E71: 0 | F71: 52.84039 | G71: 52.53397 | H71: 1 | I71: 3600 | Q71: 67 | R71: 0.8933333333 | S71: 4.093333333 | T71: 6.226666667 | U71: 8.36 | V71: 10.49333333 | W71: 12.62666667 | X71: 13.69333333
A72: 70 | B72: 0 | C72: 1 | D72: 56 | E72: 1 | F72: 52.84039 | G72: 52.53397 | H72: 2 | I72: 3600 | Q72: 68 | R72: 0.9066666667 | S72: 3.706666667 | T72: 5.573333333 | U72: 7.44 | V72: 9.306666667 | W72: 11.17333333 | X72: 12.10666667
A73: 71 | B73: 0 | C73: 1 | D73: 55 | E73: 1 | F73: 53.14681 | G73: 52.53397 | H73: 3 | I73: 3600 | Q73: 69 | R73: 0.92 | S73: 3.32 | T73: 4.92 | U73: 6.52 | V73: 8.12 | W73: 9.72 | X73: 10.52
A74: 72 | B74: 0 | C74: 1 | D74: 54 | E74: 1 | F74: 53.45324 | G74: 52.53397 | H74: 4 | I74: 3600 | Q74: 70 | R74: 0.9333333333 | S74: =(1-$R74)*(S$3-$P$5)+$P$5 -> 2.933333333 | T74: 4.266666667 | U74: 5.6 | V74: 6.933333333 | W74: 8.266666667 | X74: 8.933333333
A75: 73 | B75: 0 | C75: 1 | D75: 53 | E75: 1 | F75: 53.75966 | G75: 52.53397 | H75: 5 | I75: 3600 | Q75: 71 | R75: 0.9466666667 | S75: 2.546666667 | T75: 3.613333333 | U75: 4.68 | V75: 5.746666667 | W75: 6.813333333 | X75: 7.346666667
A76: 74 | B76: 0 | C76: 1 | D76: 52 | E76: 1 | F76: 54.06608 | G76: 52.53397 | H76: 6 | I76: 3600 | Q76: 72 | R76: 0.96 | S76: 2.16 | T76: 2.96 | U76: 3.76 | V76: 4.56 | W76: 5.36 | X76: 5.76
A77: 75 | B77: 0 | C77: 1 | D77: 51 | E77: 1 | F77: 54.3725 | G77: 52.53397 | H77: 7 | I77: 3600 | Q77: 73 | R77: 0.9733333333 | S77: 1.773333333 | T77: 2.306666667 | U77: 2.84 | V77: 3.373333333 | W77: 3.906666667 | X77: 4.173333333
A78: 76 | B78: 0 | C78: 1 | D78: 50 | E78: 1 | F78: 54.67892 | G78: 52.53397 | H78: 8 | I78: 3600 | Q78: 74 | R78: 0.9866666667 | S78: 1.386666667 | T78: 1.653333333 | U78: 1.92 | V78: 2.186666667 | W78: 2.453333333 | X78: 2.586666667
A79: 77 | B79: 0 | C79: 1 | D79: 49 | E79: 1 | F79: 54.98534 | G79: 52.53397 | H79: 9 | I79: 3600 | Q79: 75 | R79: 1 | S79: 1 | T79: 1 | U79: 1 | V79: 1 | W79: 1 | X79: 1
A80: 78 | B80: 0 | C80: 1 | D80: 48 | E80: 1 | F80: 55.29177 | G80: 52.53397 | H80: 10 | I80: 3600
A81: 79 | B81: 0 | C81: 1 | D81: 47 | E81: 1 | F81: 55.59819 | G81: 52.53397 | H81: 11 | I81: 3600
A82: 80 | B82: 0 | C82: 1 | D82: 46 | E82: 1 | F82: 55.90461 | G82: 52.53397 | H82: 12 | I82: 3600
A83: 81 | B83: 0 | C83: 1 | D83: 45 | E83: 1 | F83: 56.21104 | G83: 52.53397 | H83: 13 | I83: 3600
A84: 82 | B84: 0 | C84: 1 | D84: 44 | E84: 1 | F84: 56.51745 | G84: 52.53397 | H84: 14 | I84: 3600
A85: 83 | B85: 0 | C85: 1 | D85: 43 | E85: 1 | F85: 56.82387 | G85: 52.53397 | H85: 15 | I85: 3600
A86: 84 | B86: 0 | C86: 1 | D86: 42 | E86: 1 | F86: 57.13029 | G86: 52.53397 | H86: 16 | I86: 3600
A87: 85 | B87: 0 | C87: 1 | D87: 41 | E87: 1 | F87: 57.43671 | G87: 52.53397 | H87: 17 | I87: 3600
A88: 86 | B88: 0 | C88: 1 | D88: 40 | E88: 1 | F88: 57.74314 | G88: 52.53397 | H88: 18 | I88: 3600
A89: 87 | B89: 0 | C89: 1 | D89: 39 | E89: 1 | F89: 58.04956 | G89: 52.53397 | H89: 19 | I89: 3410.526
A90: 88 | B90: 0 | C90: 0 | D90: 38 | E90: 0 | F90: 52.53397 | G90: 52.53397 | H90: 19 | I90: 3410.526
A91: 89 | B91: 0 | C91: 0 | D91: 38 | E91: 0 | F91: 52.53397 | G91: 52.53397 | H91: 19 | I91: 3410.526
A92: 90 | B92: 0 | C92: 0 | D92: 38 | E92: 0 | F92: 52.53397 | G92: 52.53397 | H92: 19 | I92: 3410.526
A93: 91 | B93: 0 | C93: 0 | D93: 38 | E93: 0 | F93: 52.53397 | G93: 52.53397 | H93: 19 | I93: 3410.526
A94: 92 | B94: 0 | C94: 0 | D94: 38 | E94: 0 | F94: 52.53397 | G94: 52.53397 | H94: 19 | I94: 3410.526
A95: 93 | B95: 0 | C95: 0 | D95: 38 | E95: 0 | F95: 52.53397 | G95: 52.53397 | H95: 19 | I95: 3410.526
A96: 94 | B96: 0 | C96: 0 | D96: 38 | E96: 0 | F96: 52.53397 | G96: 52.53397 | H96: 19 | I96: 3410.526
A97: 95 | B97: 0 | C97: 0 | D97: 38 | E97: 0 | F97: 52.53397 | G97: 52.53397 | H97: 19 | I97: 3410.526
A98: 96 | B98: 0 | C98: 0 | D98: 38 | E98: 0 | F98: 52.53397 | G98: 52.53397 | H98: 19 | I98: 3410.526
A99: 97 | B99: 0 | C99: 0 | D99: 38 | E99: 0 | F99: 52.53397 | G99: 52.53397 | H99: 19 | I99: 3410.526
A100: 98 | B100: 0 | C100: 0 | D100: 38 | E100: 0 | F100: 52.53397 | G100: 52.53397 | H100: 19 | I100: 3410.526
A101: 99 | B101: 0 | C101: 0 | D101: 38 | E101: 0 | F101: 52.53397 | G101: 52.53397 | H101: 19 | I101: 3410.526
A102: 100 | B102: 0 | C102: 0 | D102: 38 | E102: 0 | F102: 52.53397 | G102: 52.53397 | H102: 19 | I102: 3410.526
A103: 101 | B103: 0 | C103: 0 | D103: 38 | E103: 0 | F103: 52.53397 | G103: 52.53397 | H103: 19 | I103: 3410.526
A104: 102 | B104: 0 | C104: 0 | D104: 38 | E104: 0 | F104: 52.53397 | G104: 52.53397 | H104: 19 | I104: 3410.526
A105: 103 | B105: 0 | C105: 0 | D105: 38 | E105: 0 | F105: 52.53397 | G105: 52.53397 | H105: 19 | I105: 3410.526
A106: 104 | B106: 0 | C106: 0 | D106: 38 | E106: 0 | F106: 52.53397 | G106: 52.53397 | H106: 19 | I106: 3410.526
A107: 105 | B107: 0 | C107: 0 | D107: 38 | E107: 0 | F107: 52.53397 | G107: 52.53397 | H107: 19 | I107: 3410.526
A108: 106 | B108: 0 | C108: 0 | D108: 38 | E108: 0 | F108: 52.53397 | G108: 52.53397 | H108: 19 | I108: 3410.526
A109: 107 | B109: 0 | C109: 0 | D109: 38 | E109: 0 | F109: 52.53397 | G109: 52.53397 | H109: 19 | I109: 3410.526
A110: 108 | B110: 0 | C110: 0 | D110: 38 | E110: 0 | F110: 52.53397 | G110: 52.53397 | H110: 19 | I110: 3410.526
A111: 109 | B111: 0 | C111: 0 | D111: 38 | E111: 0 | F111: 52.53397 | G111: 52.53397 | H111: 19 | I111: 3410.526
A112: 110 | B112: 0 | C112: 0 | D112: 38 | E112: 0 | F112: 52.53397 | G112: 52.53397 | H112: 19 | I112: 3410.526
A113: 111 | B113: 0 | C113: 0 | D113: 38 | E113: 0 | F113: 52.53397 | G113: 52.53397 | H113: 19 | I113: 3410.526
A114: 112 | B114: 0 | C114: 0 | D114: 38 | E114: 0 | F114: 52.53397 | G114: 52.53397 | H114: 19 | I114: 3410.526
A115: 113 | B115: 0 | C115: 0 | D115: 38 | E115: 0 | F115: 52.53397 | G115: 52.53397 | H115: 19 | I115: 3410.526
A116: 114 | B116: 0 | C116: 0 | D116: 38 | E116: 0 | F116: 52.53397 | G116: 52.53397 | H116: 19 | I116: 3410.526
A117: 115 | B117: 0 | C117: 0 | D117: 38 | E117: 0 | F117: 52.53397 | G117: 52.53397 | H117: 19 | I117: 3410.526
A118: 116 | B118: 0 | C118: 0 | D118: 38 | E118: 0 | F118: 52.53397 | G118: 52.53397 | H118: 19 | I118: 3410.526
A119: 117 | B119: 0 | C119: 0 | D119: 38 | E119: 0 | F119: 52.53397 | G119: 52.53397 | H119: 19 | I119: 3410.526
A120: 118 | B120: 0 | C120: 0 | D120: 38 | E120: 0 | F120: 52.53397 | G120: 52.53397 | H120: 19 | I120: 3410.526
A121: 119 | B121: 0 | C121: 0 | D121: 38 | E121: 0 | F121: 52.53397 | G121: 52.53397 | H121: 19 | I121: 3410.526
A122: 120 | B122: 0 | C122: 0 | D122: 38 | E122: 0 | F122: 52.53397 | G122: 52.53397 | H122: 19 | I122: 3410.526
A123: 121 | B123: 0 | C123: 0 | D123: 38 | E123: 0 | F123: 52.53397 | G123: 52.53397 | H123: 19 | I123: 3410.526
A124: 122 | B124: 0 | C124: 0 | D124: 38 | E124: 0 | F124: 52.53397 | G124: 52.53397 | H124: 19 | I124: 3410.526
A125: 123 | B125: 0 | C125: 0 | D125: 38 | E125: 0 | F125: 52.53397 | G125: 52.53397 | H125: 19 | I125: 3410.526
A126: 124 | B126: 0 | C126: 0 | D126: 38 | E126: 0 | F126: 52.53397 | G126: 52.53397 | H126: 19 | I126: 3410.526
A127: 125 | B127: 0 | C127: 0 | D127: 38 | E127: 0 | F127: 52.53397 | G127: 52.53397 | H127: 19 | I127: 3410.526
A128: 126 | B128: 0 | C128: 0 | D128: 38 | E128: 0 | F128: 52.53397 | G128: 52.53397 | H128: 19 | I128: 3410.526
A129: 127 | B129: 0 | C129: 0 | D129: 38 | E129: 0 | F129: 52.53397 | G129: 52.53397 | H129: 19 | I129: 3410.526
A130: 128 | B130: 0 | C130: 0 | D130: 38 | E130: 0 | F130: 52.53397 | G130: 52.53397 | H130: 19 | I130: 3410.526
A131: 129 | B131: 0 | C131: 0 | D131: 38 | E131: 0 | F131: 52.53397 | G131: 52.53397 | H131: 19 | I131: 3410.526
A132: 130 | B132: 0 | C132: 0 | D132: 38 | E132: 0 | F132: 52.53397 | G132: 52.53397 | H132: 19 | I132: 3410.526
A133: 131 | B133: 0 | C133: 0 | D133: 38 | E133: 0 | F133: 52.53397 | G133: 52.53397 | H133: 19 | I133: 3410.526
A134: 132 | B134: 0 | C134: 0 | D134: 38 | E134: 0 | F134: 52.53397 | G134: 52.53397 | H134: 19 | I134: 3410.526
A135: 133 | B135: 0 | C135: 0 | D135: 38 | E135: 0 | F135: 52.53397 | G135: 52.53397 | H135: 19 | I135: 3410.526
A136: 134 | B136: 0 | C136: 0 | D136: 38 | E136: 0 | F136: 52.53397 | G136: 52.53397 | H136: 19 | I136: 3410.526
A137: 135 | B137: 0 | C137: 0 | D137: 38 | E137: 0 | F137: 52.53397 | G137: 52.53397 | H137: 19 | I137: 3410.526
A138: 136 | B138: 0 | C138: 0 | D138: 38 | E138: 0 | F138: 52.53397 | G138: 52.53397 | H138: 19 | I138: 3410.526
A139: 137 | B139: 0 | C139: 1 | D139: 38 | E139: 1 | F139: 52.53397 | G139: 52.53397 | H139: 20 | I139: 3600
A140: 138 | B140: 0 | C140: 1 | D140: 37 | E140: 1 | F140: 35.98721 | G140: 35.98721 | H140: 21 | I140: 3600
A141: 139 | B141: 0 | C141: 1 | D141: 36 | E141: 1 | F141: 36.90647 | G141: 36.90647 | H141: 22 | I141: 3600
A142: 140 | B142: 0 | C142: 1 | D142: 35 | E142: 1 | F142: 37.82574 | G142: 37.82574 | H142: 23 | I142: 3600
A143: 141 | B143: 0 | C143: 1 | D143: 34 | E143: 1 | F143: 38.745 | G143: 38.745 | H143: 24 | I143: 3600
A144: 142 | B144: 0 | C144: 1 | D144: 33 | E144: 1 | F144: 39.66427 | G144: 39.66427 | H144: 25 | I144: 3600
A145: 143 | B145: 0 | C145: 1 | D145: 32 | E145: 1 | F145: 40.58353 | G145: 40.58353 | H145: 26 | I145: 3600
A146: 144 | B146: 0 | C146: 1 | D146: 31 | E146: 1 | F146: 41.5028 | G146: 41.5028 | H146: 27 | I146: 3600
A147: 145 | B147: 0 | C147: 1 | D147: 30 | E147: 1 | F147: 42.42206 | G147: 42.42206 | H147: 28 | I147: 3600
A148: 146 | B148: 0 | C148: 1 | D148: 29 | E148: 1 | F148: 43.34132 | G148: 43.34132 | H148: 29 | I148: 3600
A149: 147 | B149: 0 | C149: 1 | D149: 28 | E149: 1 | F149: 44.26059 | G149: 44.26059 | H149: 30 | I149: 3600
A150: 148 | B150: 0 | C150: 1 | D150: 27 | E150: 1 | F150: 45.17986 | G150: 45.17986 | H150: 31 | I150: 3600
A151: 149 | B151: 0 | C151: 1 | D151: 26 | E151: 1 | F151: 46.09912 | G151: 46.09912 | H151: 32 | I151: 3600
A152: 150 | B152: 0 | C152: 1 | D152: 25 | E152: 1 | F152: 47.01838 | G152: 47.01838 | H152: 33 | I152: 3600
A153: 151 | B153: 0 | C153: 1 | D153: 24 | E153: 1 | F153: 47.93765 | G153: 47.93765 | H153: 34 | I153: 3600
A154: 152 | B154: 0 | C154: 1 | D154: 23 | E154: 1 | F154: 48.85691 | G154: 48.85691 | H154: 35 | I154: 3600
A155: 153 | B155: 0 | C155: 1 | D155: 22 | E155: 1 | F155: 49.77618 | G155: 49.77618 | H155: 36 | I155: 3600
A156: 154 | B156: 0 | C156: 1 | D156: 21 | E156: 1 | F156: 50.69544 | G156: 50.69544 | H156: 37 | I156: 3600
A157: 155 | B157: 0 | C157: 1 | D157: 20 | E157: 1 | F157: 51.61471 | G157: 51.61471 | H157: 38 | I157: 1531.035
A158: 156 | B158: 0 | C158: 0 | D158: 19 | E158: 0 | F158: 52.53397 | G158: 52.53397 | H158: 38 | I158: 1531.035
A159: 157 | B159: 0 | C159: 0 | D159: 19 | E159: 0 | F159: 52.53397 | G159: 52.53397 | H159: 38 | I159: 1531.035
A160: 158 | B160: 0 | C160: 0 | D160: 19 | E160: 0 | F160: 52.53397 | G160: 52.53397 | H160: 38 | I160: 1531.035
A161: 159 | B161: 0 | C161: 0 | D161: 19 | E161: 0 | F161: 52.53397 | G161: 52.53397 | H161: 38 | I161: 1531.035
A162: 160 | B162: 0 | C162: 0 | D162: 19 | E162: 0 | F162: 52.53397 | G162: 52.53397 | H162: 38 | I162: 1531.035
A163: 161 | B163: 0 | C163: 0 | D163: 19 | E163: 0 | F163: 52.53397 | G163: 52.53397 | H163: 38 | I163: 1531.035
A164: 162 | B164: 0 | C164: 0 | D164: 19 | E164: 0 | F164: 52.53397 | G164: 52.53397 | H164: 38 | I164: 1531.035
A165: 163 | B165: 0 | C165: 0 | D165: 19 | E165: 0 | F165: 52.53397 | G165: 52.53397 | H165: 38 | I165: 1531.035
A166: 164 | B166: 0 | C166: 0 | D166: 19 | E166: 0 | F166: 52.53397 | G166: 52.53397 | H166: 38 | I166: 1531.035
A167: 165 | B167: 0 | C167: 0 | D167: 19 | E167: 0 | F167: 52.53397 | G167: 52.53397 | H167: 38 | I167: 1531.035
A168: 166 | B168: 0 | C168: 0 | D168: 19 | E168: 0 | F168: 52.53397 | G168: 52.53397 | H168: 38 | I168: 1531.035
A169: 167 | B169: 0 | C169: 0 | D169: 19 | E169: 0 | F169: 52.53397 | G169: 52.53397 | H169: 38 | I169: 1531.035
A170: 168 | B170: 0 | C170: 0 | D170: 19 | E170: 0 | F170: 52.53397 | G170: 52.53397 | H170: 38 | I170: 1531.035
A171: 169 | B171: 0 | C171: 0 | D171: 19 | E171: 0 | F171: 52.53397 | G171: 52.53397 | H171: 38 | I171: 1531.035
A172: 170 | B172: 0 | C172: 0 | D172: 19 | E172: 0 | F172: 52.53397 | G172: 52.53397 | H172: 38 | I172: 1531.035
A173: 171 | B173: 0 | C173: 0 | D173: 19 | E173: 0 | F173: 52.53397 | G173: 52.53397 | H173: 38 | I173: 1531.035
A174: 172 | B174: 0 | C174: 0 | D174: 19 | E174: 0 | F174: 52.53397 | G174: 52.53397 | H174: 38 | I174: 1531.035
A175: 173 | B175: 0 | C175: 0 | D175: 19 | E175: 0 | F175: 52.53397 | G175: 52.53397 | H175: 38 | I175: 1531.035
A176: 174 | B176: 0 | C176: 0 | D176: 19 | E176: 0 | F176: 52.53397 | G176: 52.53397 | H176: 38 | I176: 1531.035
A177: 175 | B177: 0 | C177: 0 | D177: 19 | E177: 0 | F177: 52.53397 | G177: 52.53397 | H177: 38 | I177: 1531.035
A178: 176 | B178: 0 | C178: 0 | D178: 19 | E178: 0 | F178: 52.53397 | G178: 52.53397 | H178: 38 | I178: 1531.035
A179: 177 | B179: 0 | C179: 0 | D179: 19 | E179: 0 | F179: 52.53397 | G179: 52.53397 | H179: 38 | I179: 1531.035
A180: 178 | B180: 0 | C180: 0 | D180: 19 | E180: 0 | F180: 52.53397 | G180: 52.53397 | H180: 38 | I180: 1531.035
A181: 179 | B181: 0 | C181: 0 | D181: 19 | E181: 0 | F181: 52.53397 | G181: 52.53397 | H181: 38 | I181: 1531.035
A182: 180 | B182: 0 | C182: 0 | D182: 19 | E182: 0 | F182: 52.53397 | G182: 52.53397 | H182: 38 | I182: 1531.035
A183: 181 | B183: 0 | C183: 0 | D183: 19 | E183: 0 | F183: 52.53397 | G183: 52.53397 | H183: 38 | I183: 1531.035
A184: 182 | B184: 0 | C184: 0 | D184: 19 | E184: 0 | F184: 52.53397 | G184: 52.53397 | H184: 38 | I184: 1531.035
A185: 183 | B185: 0 | C185: 0 | D185: 19 | E185: 0 | F185: 52.53397 | G185: 52.53397 | H185: 38 | I185: 1531.035
A186: 184 | B186: 0 | C186: 0 | D186: 19 | E186: 0 | F186: 52.53397 | G186: 52.53397 | H186: 38 | I186: 1531.035
A187: 185 | B187: 0 | C187: 0 | D187: 19 | E187: 0 | F187: 52.53397 | G187: 52.53397 | H187: 38 | I187: 1531.035
A188: 186 | B188: 0 | C188: 0 | D188: 19 | E188: 0 | F188: 52.53397 | G188: 52.53397 | H188: 38 | I188: 1531.035
A189: 187 | B189: 0 | C189: 0 | D189: 19 | E189: 0 | F189: 52.53397 | G189: 52.53397 | H189: 38 | I189: 1531.035
A190: 188 | B190: 0 | C190: 0 | D190: 19 | E190: 0 | F190: 52.53397 | G190: 52.53397 | H190: 38 | I190: 1531.035
A191: 189 | B191: 0 | C191: 0 | D191: 19 | E191: 0 | F191: 52.53397 | G191: 52.53397 | H191: 38 | I191: 1531.035
A192: 190 | B192: 0 | C192: 0 | D192: 19 | E192: 0 | F192: 52.53397 | G192: 52.53397 | H192: 38 | I192: 1531.035
A193: 191 | B193: 0 | C193: 0 | D193: 19 | E193: 0 | F193: 52.53397 | G193: 52.53397 | H193: 38 | I193: 1531.035
A194: 192 | B194: 0 | C194: 0 | D194: 19 | E194: 0 | F194: 52.53397 | G194: 52.53397 | H194: 38 | I194: 1531.035
A195: 193 | B195: 0 | C195: 0 | D195: 19 | E195: 0 | F195: 52.53397 | G195: 52.53397 | H195: 38 | I195: 1531.035
A196: 194 | B196: 0 | C196: 0 | D196: 19 | E196: 0 | F196: 52.53397 | G196: 52.53397 | H196: 38 | I196: 1531.035
A197: 195 | B197: 0 | C197: 0 | D197: 19 | E197: 0 | F197: 52.53397 | G197: 52.53397 | H197: 38 | I197: 1531.035
A198: 196 | B198: 0 | C198: 0 | D198: 19 | E198: 0 | F198: 52.53397 | G198: 52.53397 | H198: 38 | I198: 1531.035
A199: 197 | B199: 0 | C199: 0 | D199: 19 | E199: 0 | F199: 52.53397 | G199: 52.53397 | H199: 38 | I199: 1531.035
A200: 198 | B200: 0 | C200: 0 | D200: 19 | E200: 0 | F200: 52.53397 | G200: 52.53397 | H200: 38 | I200: 1531.035
... 29 more rows

Sheet T4 Flow calc D3
A1: Time(s) | B1: Injected cars | C1: Exiting cars | D1: Current cars in system | E1: Exiting people | F1: Avg. v [km/h] | G1: Min. v [km/h] | H1: Goal: Node 7 | I1: Node 7 flow | N1: Input data | Q1: 75 cars
A2: 0 | B2: 114 | C2: 0 | D2: 114 | E2: 0 | F2: 35.06795 | G2: 35.06795 | H2: 0 | I2: 0 | N2: Distance [m] | O2: Multiplier[-] | P2: Walking speed [m/s] | Q2: Cars/km/lane | R2: Relative density [-] | S2: Speed limits [km/h]
A3: 1 | B3: 0 | C3: 0 | D3: 114 | E3: 0 | F3: 35.06795 | G3: 35.06795 | H3: 0 | I3: 0 | N3: 100 | O3: =0.1 -> 0.1 | P3: 1 | S3: 30 | T3: 50 | U3: 70 | V3: 90 | W3: 110 | X3: 120
A4: 2 | B4: 0 | C4: 0 | D4: 114 | E4: 0 | F4: 35.06795 | G4: 35.06795 | H4: 0 | I4: 0 | N4: 500 | O4: =O3+0.1 -> 0.2 | P4: Stall speed [km/h] | Q4: 0 | R4: =Q4/$Q$79 -> 0 | S4: =(1-$R4)*(S$3-$P$5)+$P$5 -> 30 | T4: 50 | U4: 70 | V4: 90 | W4: 110 | X4: 120
A5: 3 | B5: 0 | C5: 0 | D5: 114 | E5: 0 | F5: 35.06795 | G5: 35.06795 | H5: 0 | I5: 0 | N5: 1000 | O5: =O4+0.1 -> 0.3 | P5: 1 | Q5: 1 | R5: 0.01333333333 | S5: 29.61333333 | T5: 49.34666667 | U5: 69.08 | V5: 88.81333333 | W5: 108.5466667 | X5: 118.4133333
A6: 4 | B6: 0 | C6: 0 | D6: 114 | E6: 0 | F6: 35.06795 | G6: 35.06795 | H6: 0 | I6: 0 | N6: 1500 | O6: 0.4 | P6: Event timer [s] | Q6: 2 | R6: 0.02666666667 | S6: 29.22666667 | T6: 48.69333333 | U6: 68.16 | V6: 87.62666667 | W6: 107.0933333 | X6: 116.8266667
A7: 5 | B7: 0 | C7: 0 | D7: 114 | E7: 0 | F7: 35.06795 | G7: 35.06795 | H7: 0 | I7: 0 | N7: 2000 | O7: 0.5 | P7: 600 | Q7: 3 | R7: 0.04 | S7: 28.84 | T7: 48.04 | U7: 67.24 | V7: 86.44 | W7: 105.64 | X7: 115.24
A8: 6 | B8: 0 | C8: 0 | D8: 114 | E8: 0 | F8: 35.06795 | G8: 35.06795 | H8: 0 | I8: 0 | N8: 4000 | O8: 0.6 | P8: Initial speed [m/s] | Q8: 4 | R8: 0.05333333333 | S8: 28.45333333 | T8: 47.38666667 | U8: 66.32 | V8: 85.25333333 | W8: 104.1866667 | X8: 113.6533333
A9: 7 | B9: 0 | C9: 0 | D9: 114 | E9: 0 | F9: 35.06795 | G9: 35.06795 | H9: 0 | I9: 0 | O9: 0.7 | P9: 0 | Q9: 5 | R9: 0.06666666667 | S9: 28.06666667 | T9: 46.73333333 | U9: 65.4 | V9: 84.06666667 | W9: 102.7333333 | X9: 112.0666667
A10: 8 | B10: 0 | C10: 0 | D10: 114 | E10: 0 | F10: 35.06795 | G10: 35.06795 | H10: 0 | I10: 0 | O10: 0.8 | P10: Acceleretion [m/s^2] | Q10: 6 | R10: 0.08 | S10: 27.68 | T10: 46.08 | U10: 64.48 | V10: 82.88 | W10: 101.28 | X10: 110.48
A11: 9 | B11: 0 | C11: 0 | D11: 114 | E11: 0 | F11: 35.06795 | G11: 35.06795 | H11: 0 | I11: 0 | O11: 0.9 | P11: =(100/3.6)/10 -> 2.777777778 | Q11: 7 | R11: 0.09333333333 | S11: 27.29333333 | T11: 45.42666667 | U11: 63.56 | V11: 81.69333333 | W11: 99.82666667 | X11: 108.8933333
A12: 10 | B12: 0 | C12: 0 | D12: 114 | E12: 0 | F12: 35.06795 | G12: 35.06795 | H12: 0 | I12: 0 | O12: 1 | Q12: 8 | R12: 0.1066666667 | S12: 26.90666667 | T12: 44.77333333 | U12: 62.64 | V12: 80.50666667 | W12: 98.37333333 | X12: 107.3066667
A13: 11 | B13: 0 | C13: 0 | D13: 114 | E13: 0 | F13: 35.06795 | G13: 35.06795 | H13: 0 | I13: 0 | O13: 1.1 | Q13: 9 | R13: 0.12 | S13: 26.52 | T13: 44.12 | U13: 61.72 | V13: 79.32 | W13: 96.92 | X13: 105.72
A14: 12 | B14: 0 | C14: 0 | D14: 114 | E14: 0 | F14: 35.06795 | G14: 35.06795 | H14: 0 | I14: 0 | O14: 1.2 | Q14: 10 | R14: 0.1333333333 | S14: =(1-$R14)*(S$3-$P$5)+$P$5 -> 26.13333333 | T14: 43.46666667 | U14: 60.8 | V14: 78.13333333 | W14: 95.46666667 | X14: 104.1333333
A15: 13 | B15: 0 | C15: 0 | D15: 114 | E15: 0 | F15: 35.06795 | G15: 35.06795 | H15: 0 | I15: 0 | O15: 1.3 | Q15: 11 | R15: 0.1466666667 | S15: 25.74666667 | T15: 42.81333333 | U15: 59.88 | V15: 76.94666667 | W15: 94.01333333 | X15: 102.5466667
A16: 14 | B16: 0 | C16: 0 | D16: 114 | E16: 0 | F16: 35.06795 | G16: 35.06795 | H16: 0 | I16: 0 | O16: 1.4 | Q16: 12 | R16: 0.16 | S16: 25.36 | T16: 42.16 | U16: 58.96 | V16: 75.76 | W16: 92.56 | X16: 100.96
A17: 15 | B17: 0 | C17: 0 | D17: 114 | E17: 0 | F17: 35.06795 | G17: 35.06795 | H17: 0 | I17: 0 | O17: 1.5 | Q17: 13 | R17: 0.1733333333 | S17: 24.97333333 | T17: 41.50666667 | U17: 58.04 | V17: 74.57333333 | W17: 91.10666667 | X17: 99.37333333
A18: 16 | B18: 0 | C18: 0 | D18: 114 | E18: 0 | F18: 35.06795 | G18: 35.06795 | H18: 0 | I18: 0 | O18: 1.6 | Q18: 14 | R18: 0.1866666667 | S18: 24.58666667 | T18: 40.85333333 | U18: 57.12 | V18: 73.38666667 | W18: 89.65333333 | X18: 97.78666667
A19: 17 | B19: 0 | C19: 0 | D19: 114 | E19: 0 | F19: 35.06795 | G19: 35.06795 | H19: 0 | I19: 0 | O19: 1.7 | Q19: 15 | R19: 0.2 | S19: 24.2 | T19: 40.2 | U19: 56.2 | V19: 72.2 | W19: 88.2 | X19: 96.2
A20: 18 | B20: 0 | C20: 0 | D20: 114 | E20: 0 | F20: 35.06795 | G20: 35.06795 | H20: 0 | I20: 0 | O20: 1.8 | Q20: 16 | R20: 0.2133333333 | S20: 23.81333333 | T20: 39.54666667 | U20: 55.28 | V20: 71.01333333 | W20: 86.74666667 | X20: 94.61333333
A21: 19 | B21: 0 | C21: 0 | D21: 114 | E21: 0 | F21: 35.06795 | G21: 35.06795 | H21: 0 | I21: 0 | O21: 1.9 | Q21: 17 | R21: 0.2266666667 | S21: 23.42666667 | T21: 38.89333333 | U21: 54.36 | V21: 69.82666667 | W21: 85.29333333 | X21: 93.02666667
A22: 20 | B22: 0 | C22: 0 | D22: 114 | E22: 0 | F22: 35.06795 | G22: 35.06795 | H22: 0 | I22: 0 | O22: 2 | Q22: 18 | R22: 0.24 | S22: 23.04 | T22: 38.24 | U22: 53.44 | V22: 68.64 | W22: 83.84 | X22: 91.44
A23: 21 | B23: 0 | C23: 0 | D23: 114 | E23: 0 | F23: 35.06795 | G23: 35.06795 | H23: 0 | I23: 0 | N23: Distance [m] | O23: Time [s] | Q23: 19 | R23: 0.2533333333 | S23: 22.65333333 | T23: 37.58666667 | U23: 52.52 | V23: 67.45333333 | W23: 82.38666667 | X23: 89.85333333
A24: 22 | B24: 0 | C24: 0 | D24: 114 | E24: 0 | F24: 35.06795 | G24: 35.06795 | H24: 0 | I24: 0 | N24: 1000 | O24: =N24/(U42/3.6) -> 102.739726 | Q24: 20 | R24: 0.2666666667 | S24: =(1-$R24)*(S$3-$P$5)+$P$5 -> 22.26666667 | T24: 36.93333333 | U24: 51.6 | V24: 66.26666667 | W24: 80.93333333 | X24: 88.26666667
A25: 23 | B25: 0 | C25: 0 | D25: 114 | E25: 0 | F25: 35.06795 | G25: 35.06795 | H25: 0 | I25: 0 | N25: Relative Density | O25: Avg. Speed | P25: Avg. Flow rate (vehicles/lane/hour) | Q25: 21 | R25: 0.28 | S25: 21.88 | T25: 36.28 | U25: 50.68 | V25: 65.08 | W25: 79.48 | X25: 86.68
A26: 24 | B26: 0 | C26: 0 | D26: 114 | E26: 0 | F26: 35.06795 | G26: 35.06795 | H26: 0 | I26: 0 | N26: =R42 -> 0.5066666667 | O26: =U42 -> 35.04 | P26: =Q42/O24*3600 -> 1331.52 | Q26: 22 | R26: 0.2933333333 | S26: 21.49333333 | T26: 35.62666667 | U26: 49.76 | V26: 63.89333333 | W26: 78.02666667 | X26: 85.09333333
A27: 25 | B27: 0 | C27: 0 | D27: 114 | E27: 0 | F27: 35.06795 | G27: 35.06795 | H27: 0 | I27: 0 | N27: Sim. Rel. Dens. | O27: Sim.avg. Speed | P27: Avg. Flow rate [cars/lane minute] | Q27: 23 | R27: 0.3066666667 | S27: 21.10666667 | T27: 34.97333333 | U27: 48.84 | V27: 62.70666667 | W27: 76.57333333 | X27: 83.50666667
A28: 26 | B28: 0 | C28: 0 | D28: 114 | E28: 0 | F28: 35.06795 | G28: 35.06795 | H28: 0 | I28: 0 | N28: =R42 -> 0.5066666667 | O28: =F2 -> 35.06795 | P28: =P26*60 -> 79891.2 | Q28: 24 | R28: 0.32 | S28: 20.72 | T28: 34.32 | U28: 47.92 | V28: 61.52 | W28: 75.12 | X28: 81.92
A29: 27 | B29: 0 | C29: 0 | D29: 114 | E29: 0 | F29: 35.06795 | G29: 35.06795 | H29: 0 | I29: 0 | P29: Sim.Avg. Flowrate [cars/lane second] | Q29: 25 | R29: 0.3333333333 | S29: 20.33333333 | T29: 33.66666667 | U29: 47 | V29: 60.33333333 | W29: 73.66666667 | X29: 80.33333333
A30: 28 | B30: 0 | C30: 0 | D30: 114 | E30: 0 | F30: 35.06795 | G30: 35.06795 | H30: 0 | I30: 0 | P30: =H106 -> 2 | Q30: 26 | R30: 0.3466666667 | S30: 19.94666667 | T30: 33.01333333 | U30: 46.08 | V30: 59.14666667 | W30: 72.21333333 | X30: 78.74666667
A31: 29 | B31: 0 | C31: 0 | D31: 114 | E31: 0 | F31: 35.06795 | G31: 35.06795 | H31: 0 | I31: 0 | P31: Sim.Avg. Flowrate [cars/lane minute] | Q31: 27 | R31: 0.36 | S31: 19.56 | T31: 32.36 | U31: 45.16 | V31: 57.96 | W31: 70.76 | X31: 77.16
A32: 30 | B32: 0 | C32: 0 | D32: 114 | E32: 0 | F32: 35.06795 | G32: 35.06795 | H32: 0 | I32: 0 | P32: =P30*60 -> 120 | Q32: 28 | R32: 0.3733333333 | S32: 19.17333333 | T32: 31.70666667 | U32: 44.24 | V32: 56.77333333 | W32: 69.30666667 | X32: 75.57333333
A33: 31 | B33: 0 | C33: 0 | D33: 114 | E33: 0 | F33: 35.06795 | G33: 35.06795 | H33: 0 | I33: 0 | Q33: 29 | R33: 0.3866666667 | S33: 18.78666667 | T33: 31.05333333 | U33: 43.32 | V33: 55.58666667 | W33: 67.85333333 | X33: 73.98666667
A34: 32 | B34: 0 | C34: 0 | D34: 114 | E34: 0 | F34: 35.06795 | G34: 35.06795 | H34: 0 | I34: 0 | Q34: 30 | R34: 0.4 | S34: =(1-$R34)*(S$3-$P$5)+$P$5 -> 18.4 | T34: 30.4 | U34: 42.4 | V34: 54.4 | W34: 66.4 | X34: 72.4
A35: 33 | B35: 0 | C35: 0 | D35: 114 | E35: 0 | F35: 35.06795 | G35: 35.06795 | H35: 0 | I35: 0 | Q35: 31 | R35: 0.4133333333 | S35: 18.01333333 | T35: 29.74666667 | U35: 41.48 | V35: 53.21333333 | W35: 64.94666667 | X35: 70.81333333
A36: 34 | B36: 0 | C36: 0 | D36: 114 | E36: 0 | F36: 35.06795 | G36: 35.06795 | H36: 0 | I36: 0 | Q36: 32 | R36: =Q36/$Q$79 -> 0.4266666667 | S36: 17.62666667 | T36: 29.09333333 | U36: 40.56 | V36: 52.02666667 | W36: 63.49333333 | X36: 69.22666667
A37: 35 | B37: 0 | C37: 0 | D37: 114 | E37: 0 | F37: 35.06795 | G37: 35.06795 | H37: 0 | I37: 0 | Q37: 33 | R37: 0.44 | S37: 17.24 | T37: 28.44 | U37: 39.64 | V37: 50.84 | W37: 62.04 | X37: 67.64
A38: 36 | B38: 0 | C38: 0 | D38: 114 | E38: 0 | F38: 35.06795 | G38: 35.06795 | H38: 0 | I38: 0 | Q38: 34 | R38: 0.4533333333 | S38: 16.85333333 | T38: 27.78666667 | U38: 38.72 | V38: 49.65333333 | W38: 60.58666667 | X38: 66.05333333
A39: 37 | B39: 0 | C39: 0 | D39: 114 | E39: 0 | F39: 35.06795 | G39: 35.06795 | H39: 0 | I39: 0 | Q39: 35 | R39: 0.4666666667 | S39: 16.46666667 | T39: 27.13333333 | U39: 37.8 | V39: 48.46666667 | W39: 59.13333333 | X39: 64.46666667
A40: 38 | B40: 0 | C40: 0 | D40: 114 | E40: 0 | F40: 35.06795 | G40: 35.06795 | H40: 0 | I40: 0 | Q40: 36 | R40: 0.48 | S40: 16.08 | T40: 26.48 | U40: 36.88 | V40: 47.28 | W40: 57.68 | X40: 62.88
A41: 39 | B41: 0 | C41: 0 | D41: 114 | E41: 0 | F41: 35.06795 | G41: 35.06795 | H41: 0 | I41: 0 | Q41: 37 | R41: 0.4933333333 | S41: 15.69333333 | T41: 25.82666667 | U41: 35.96 | V41: 46.09333333 | W41: 56.22666667 | X41: 61.29333333
A42: 40 | B42: 0 | C42: 0 | D42: 114 | E42: 0 | F42: 35.06795 | G42: 35.06795 | H42: 0 | I42: 0 | Q42: 38 | R42: 0.5066666667 | S42: 15.30666667 | T42: 25.17333333 | U42: 35.04 | V42: 44.90666667 | W42: 54.77333333 | X42: 59.70666667
A43: 41 | B43: 0 | C43: 0 | D43: 114 | E43: 0 | F43: 35.06795 | G43: 35.06795 | H43: 0 | I43: 0 | Q43: 39 | R43: 0.52 | S43: 14.92 | T43: 24.52 | U43: 34.12 | V43: 43.72 | W43: 53.32 | X43: 58.12
A44: 42 | B44: 0 | C44: 0 | D44: 114 | E44: 0 | F44: 35.06795 | G44: 35.06795 | H44: 0 | I44: 0 | Q44: 40 | R44: 0.5333333333 | S44: =(1-$R44)*(S$3-$P$5)+$P$5 -> 14.53333333 | T44: 23.86666667 | U44: 33.2 | V44: 42.53333333 | W44: 51.86666667 | X44: 56.53333333
A45: 43 | B45: 0 | C45: 0 | D45: 114 | E45: 0 | F45: 35.06795 | G45: 35.06795 | H45: 0 | I45: 0 | Q45: 41 | R45: 0.5466666667 | S45: 14.14666667 | T45: 23.21333333 | U45: 32.28 | V45: 41.34666667 | W45: 50.41333333 | X45: 54.94666667
A46: 44 | B46: 0 | C46: 0 | D46: 114 | E46: 0 | F46: 35.06795 | G46: 35.06795 | H46: 0 | I46: 0 | Q46: 42 | R46: 0.56 | S46: 13.76 | T46: 22.56 | U46: 31.36 | V46: 40.16 | W46: 48.96 | X46: 53.36
A47: 45 | B47: 0 | C47: 0 | D47: 114 | E47: 0 | F47: 35.06795 | G47: 35.06795 | H47: 0 | I47: 0 | Q47: 43 | R47: 0.5733333333 | S47: 13.37333333 | T47: 21.90666667 | U47: 30.44 | V47: 38.97333333 | W47: 47.50666667 | X47: 51.77333333
A48: 46 | B48: 0 | C48: 0 | D48: 114 | E48: 0 | F48: 35.06795 | G48: 35.06795 | H48: 0 | I48: 0 | Q48: 44 | R48: 0.5866666667 | S48: 12.98666667 | T48: 21.25333333 | U48: 29.52 | V48: 37.78666667 | W48: 46.05333333 | X48: 50.18666667
A49: 47 | B49: 0 | C49: 0 | D49: 114 | E49: 0 | F49: 35.06795 | G49: 35.06795 | H49: 0 | I49: 0 | Q49: 45 | R49: 0.6 | S49: 12.6 | T49: 20.6 | U49: 28.6 | V49: 36.6 | W49: 44.6 | X49: 48.6
A50: 48 | B50: 0 | C50: 0 | D50: 114 | E50: 0 | F50: 35.06795 | G50: 35.06795 | H50: 0 | I50: 0 | Q50: 46 | R50: 0.6133333333 | S50: 12.21333333 | T50: 19.94666667 | U50: 27.68 | V50: 35.41333333 | W50: 43.14666667 | X50: 47.01333333
A51: 49 | B51: 0 | C51: 0 | D51: 114 | E51: 0 | F51: 35.06795 | G51: 35.06795 | H51: 0 | I51: 0 | Q51: 47 | R51: 0.6266666667 | S51: 11.82666667 | T51: 19.29333333 | U51: 26.76 | V51: 34.22666667 | W51: 41.69333333 | X51: 45.42666667
A52: 50 | B52: 0 | C52: 0 | D52: 114 | E52: 0 | F52: 35.06795 | G52: 35.06795 | H52: 0 | I52: 0 | Q52: 48 | R52: 0.64 | S52: 11.44 | T52: 18.64 | U52: 25.84 | V52: 33.04 | W52: 40.24 | X52: 43.84
A53: 51 | B53: 0 | C53: 0 | D53: 114 | E53: 0 | F53: 35.06795 | G53: 35.06795 | H53: 0 | I53: 0 | Q53: 49 | R53: 0.6533333333 | S53: 11.05333333 | T53: 17.98666667 | U53: 24.92 | V53: 31.85333333 | W53: 38.78666667 | X53: 42.25333333
A54: 52 | B54: 0 | C54: 0 | D54: 114 | E54: 0 | F54: 35.06795 | G54: 35.06795 | H54: 0 | I54: 0 | Q54: 50 | R54: 0.6666666667 | S54: =(1-$R54)*(S$3-$P$5)+$P$5 -> 10.66666667 | T54: 17.33333333 | U54: 24 | V54: 30.66666667 | W54: 37.33333333 | X54: 40.66666667
A55: 53 | B55: 0 | C55: 0 | D55: 114 | E55: 0 | F55: 35.06795 | G55: 35.06795 | H55: 0 | I55: 0 | Q55: 51 | R55: 0.68 | S55: 10.28 | T55: 16.68 | U55: 23.08 | V55: 29.48 | W55: 35.88 | X55: 39.08
A56: 54 | B56: 0 | C56: 0 | D56: 114 | E56: 0 | F56: 35.06795 | G56: 35.06795 | H56: 0 | I56: 0 | Q56: 52 | R56: 0.6933333333 | S56: 9.893333333 | T56: 16.02666667 | U56: 22.16 | V56: 28.29333333 | W56: 34.42666667 | X56: 37.49333333
A57: 55 | B57: 0 | C57: 0 | D57: 114 | E57: 0 | F57: 35.06795 | G57: 35.06795 | H57: 0 | I57: 0 | Q57: 53 | R57: 0.7066666667 | S57: 9.506666667 | T57: 15.37333333 | U57: 21.24 | V57: 27.10666667 | W57: 32.97333333 | X57: 35.90666667
A58: 56 | B58: 0 | C58: 0 | D58: 114 | E58: 0 | F58: 35.06795 | G58: 35.06795 | H58: 0 | I58: 0 | Q58: 54 | R58: 0.72 | S58: 9.12 | T58: 14.72 | U58: 20.32 | V58: 25.92 | W58: 31.52 | X58: 34.32
A59: 57 | B59: 0 | C59: 0 | D59: 114 | E59: 0 | F59: 35.06795 | G59: 35.06795 | H59: 0 | I59: 0 | Q59: 55 | R59: 0.7333333333 | S59: 8.733333333 | T59: 14.06666667 | U59: 19.4 | V59: 24.73333333 | W59: 30.06666667 | X59: 32.73333333
A60: 58 | B60: 0 | C60: 0 | D60: 114 | E60: 0 | F60: 35.06795 | G60: 35.06795 | H60: 0 | I60: 0 | Q60: 56 | R60: 0.7466666667 | S60: 8.346666667 | T60: 13.41333333 | U60: 18.48 | V60: 23.54666667 | W60: 28.61333333 | X60: 31.14666667
A61: 59 | B61: 0 | C61: 0 | D61: 114 | E61: 0 | F61: 35.06795 | G61: 35.06795 | H61: 0 | I61: 0 | Q61: 57 | R61: 0.76 | S61: 7.96 | T61: 12.76 | U61: 17.56 | V61: 22.36 | W61: 27.16 | X61: 29.56
A62: 60 | B62: 0 | C62: 0 | D62: 114 | E62: 0 | F62: 35.06795 | G62: 35.06795 | H62: 0 | I62: 0 | Q62: 58 | R62: 0.7733333333 | S62: 7.573333333 | T62: 12.10666667 | U62: 16.64 | V62: 21.17333333 | W62: 25.70666667 | X62: 27.97333333
A63: 61 | B63: 0 | C63: 0 | D63: 114 | E63: 0 | F63: 35.06795 | G63: 35.06795 | H63: 0 | I63: 0 | Q63: 59 | R63: 0.7866666667 | S63: 7.186666667 | T63: 11.45333333 | U63: 15.72 | V63: 19.98666667 | W63: 24.25333333 | X63: 26.38666667
A64: 62 | B64: 0 | C64: 0 | D64: 114 | E64: 0 | F64: 35.06795 | G64: 35.06795 | H64: 0 | I64: 0 | Q64: 60 | R64: 0.8 | S64: =(1-$R64)*(S$3-$P$5)+$P$5 -> 6.8 | T64: 10.8 | U64: 14.8 | V64: 18.8 | W64: 22.8 | X64: 24.8
A65: 63 | B65: 0 | C65: 0 | D65: 114 | E65: 0 | F65: 35.06795 | G65: 35.06795 | H65: 0 | I65: 0 | Q65: 61 | R65: 0.8133333333 | S65: 6.413333333 | T65: 10.14666667 | U65: 13.88 | V65: 17.61333333 | W65: 21.34666667 | X65: 23.21333333
A66: 64 | B66: 0 | C66: 0 | D66: 114 | E66: 0 | F66: 35.06795 | G66: 35.06795 | H66: 0 | I66: 0 | Q66: 62 | R66: 0.8266666667 | S66: 6.026666667 | T66: 9.493333333 | U66: 12.96 | V66: 16.42666667 | W66: 19.89333333 | X66: 21.62666667
A67: 65 | B67: 0 | C67: 0 | D67: 114 | E67: 0 | F67: 35.06795 | G67: 35.06795 | H67: 0 | I67: 0 | Q67: 63 | R67: 0.84 | S67: 5.64 | T67: 8.84 | U67: 12.04 | V67: 15.24 | W67: 18.44 | X67: 20.04
A68: 66 | B68: 0 | C68: 0 | D68: 114 | E68: 0 | F68: 35.06795 | G68: 35.06795 | H68: 0 | I68: 0 | Q68: 64 | R68: =Q68/$Q$79 -> 0.8533333333 | S68: 5.253333333 | T68: 8.186666667 | U68: 11.12 | V68: 14.05333333 | W68: 16.98666667 | X68: 18.45333333
A69: 67 | B69: 0 | C69: 0 | D69: 114 | E69: 0 | F69: 35.06795 | G69: 35.06795 | H69: 0 | I69: 0 | Q69: 65 | R69: 0.8666666667 | S69: 4.866666667 | T69: 7.533333333 | U69: 10.2 | V69: 12.86666667 | W69: 15.53333333 | X69: 16.86666667
A70: 68 | B70: 0 | C70: 0 | D70: 114 | E70: 0 | F70: 35.06795 | G70: 35.06795 | H70: 0 | I70: 0 | Q70: 66 | R70: 0.88 | S70: 4.48 | T70: 6.88 | U70: 9.28 | V70: 11.68 | W70: 14.08 | X70: 15.28
A71: 69 | B71: 0 | C71: 0 | D71: 114 | E71: 0 | F71: 35.06795 | G71: 35.06795 | H71: 0 | I71: 0 | Q71: 67 | R71: 0.8933333333 | S71: 4.093333333 | T71: 6.226666667 | U71: 8.36 | V71: 10.49333333 | W71: 12.62666667 | X71: 13.69333333
A72: 70 | B72: 0 | C72: 0 | D72: 114 | E72: 0 | F72: 35.06795 | G72: 35.06795 | H72: 0 | I72: 0 | Q72: 68 | R72: 0.9066666667 | S72: 3.706666667 | T72: 5.573333333 | U72: 7.44 | V72: 9.306666667 | W72: 11.17333333 | X72: 12.10666667
A73: 71 | B73: 0 | C73: 0 | D73: 114 | E73: 0 | F73: 35.06795 | G73: 35.06795 | H73: 0 | I73: 0 | Q73: 69 | R73: 0.92 | S73: 3.32 | T73: 4.92 | U73: 6.52 | V73: 8.12 | W73: 9.72 | X73: 10.52
A74: 72 | B74: 0 | C74: 0 | D74: 114 | E74: 0 | F74: 35.06795 | G74: 35.06795 | H74: 0 | I74: 0 | Q74: 70 | R74: 0.9333333333 | S74: =(1-$R74)*(S$3-$P$5)+$P$5 -> 2.933333333 | T74: 4.266666667 | U74: 5.6 | V74: 6.933333333 | W74: 8.266666667 | X74: 8.933333333
A75: 73 | B75: 0 | C75: 0 | D75: 114 | E75: 0 | F75: 35.06795 | G75: 35.06795 | H75: 0 | I75: 0 | Q75: 71 | R75: 0.9466666667 | S75: 2.546666667 | T75: 3.613333333 | U75: 4.68 | V75: 5.746666667 | W75: 6.813333333 | X75: 7.346666667
A76: 74 | B76: 0 | C76: 0 | D76: 114 | E76: 0 | F76: 35.06795 | G76: 35.06795 | H76: 0 | I76: 0 | Q76: 72 | R76: 0.96 | S76: 2.16 | T76: 2.96 | U76: 3.76 | V76: 4.56 | W76: 5.36 | X76: 5.76
A77: 75 | B77: 0 | C77: 0 | D77: 114 | E77: 0 | F77: 35.06795 | G77: 35.06795 | H77: 0 | I77: 0 | Q77: 73 | R77: 0.9733333333 | S77: 1.773333333 | T77: 2.306666667 | U77: 2.84 | V77: 3.373333333 | W77: 3.906666667 | X77: 4.173333333
A78: 76 | B78: 0 | C78: 0 | D78: 114 | E78: 0 | F78: 35.06795 | G78: 35.06795 | H78: 0 | I78: 0 | Q78: 74 | R78: 0.9866666667 | S78: 1.386666667 | T78: 1.653333333 | U78: 1.92 | V78: 2.186666667 | W78: 2.453333333 | X78: 2.586666667
A79: 77 | B79: 0 | C79: 0 | D79: 114 | E79: 0 | F79: 35.06795 | G79: 35.06795 | H79: 0 | I79: 0 | Q79: 75 | R79: 1 | S79: 1 | T79: 1 | U79: 1 | V79: 1 | W79: 1 | X79: 1
A80: 78 | B80: 0 | C80: 0 | D80: 114 | E80: 0 | F80: 35.06795 | G80: 35.06795 | H80: 0 | I80: 0
A81: 79 | B81: 0 | C81: 0 | D81: 114 | E81: 0 | F81: 35.06795 | G81: 35.06795 | H81: 0 | I81: 0
A82: 80 | B82: 0 | C82: 0 | D82: 114 | E82: 0 | F82: 35.06795 | G82: 35.06795 | H82: 0 | I82: 0
A83: 81 | B83: 0 | C83: 0 | D83: 114 | E83: 0 | F83: 35.06795 | G83: 35.06795 | H83: 0 | I83: 0
A84: 82 | B84: 0 | C84: 0 | D84: 114 | E84: 0 | F84: 35.06795 | G84: 35.06795 | H84: 0 | I84: 0
A85: 83 | B85: 0 | C85: 0 | D85: 114 | E85: 0 | F85: 35.06795 | G85: 35.06795 | H85: 0 | I85: 0
A86: 84 | B86: 0 | C86: 0 | D86: 114 | E86: 0 | F86: 35.06795 | G86: 35.06795 | H86: 0 | I86: 0
A87: 85 | B87: 0 | C87: 0 | D87: 114 | E87: 0 | F87: 35.06795 | G87: 35.06795 | H87: 0 | I87: 0
A88: 86 | B88: 0 | C88: 0 | D88: 114 | E88: 0 | F88: 35.06795 | G88: 35.06795 | H88: 0 | I88: 0
A89: 87 | B89: 0 | C89: 0 | D89: 114 | E89: 0 | F89: 35.06795 | G89: 35.06795 | H89: 0 | I89: 0
A90: 88 | B90: 0 | C90: 0 | D90: 114 | E90: 0 | F90: 35.06795 | G90: 35.06795 | H90: 0 | I90: 0
A91: 89 | B91: 0 | C91: 0 | D91: 114 | E91: 0 | F91: 35.06795 | G91: 35.06795 | H91: 0 | I91: 0
A92: 90 | B92: 0 | C92: 0 | D92: 114 | E92: 0 | F92: 35.06795 | G92: 35.06795 | H92: 0 | I92: 0
A93: 91 | B93: 0 | C93: 0 | D93: 114 | E93: 0 | F93: 35.06795 | G93: 35.06795 | H93: 0 | I93: 0
A94: 92 | B94: 0 | C94: 0 | D94: 114 | E94: 0 | F94: 35.06795 | G94: 35.06795 | H94: 0 | I94: 0
A95: 93 | B95: 0 | C95: 0 | D95: 114 | E95: 0 | F95: 35.06795 | G95: 35.06795 | H95: 0 | I95: 0
A96: 94 | B96: 0 | C96: 0 | D96: 114 | E96: 0 | F96: 35.06795 | G96: 35.06795 | H96: 0 | I96: 0
A97: 95 | B97: 0 | C97: 0 | D97: 114 | E97: 0 | F97: 35.06795 | G97: 35.06795 | H97: 0 | I97: 0
A98: 96 | B98: 0 | C98: 0 | D98: 114 | E98: 0 | F98: 35.06795 | G98: 35.06795 | H98: 0 | I98: 0
A99: 97 | B99: 0 | C99: 0 | D99: 114 | E99: 0 | F99: 35.06795 | G99: 35.06795 | H99: 0 | I99: 0
A100: 98 | B100: 0 | C100: 0 | D100: 114 | E100: 0 | F100: 35.06795 | G100: 35.06795 | H100: 0 | I100: 0
A101: 99 | B101: 0 | C101: 0 | D101: 114 | E101: 0 | F101: 35.06795 | G101: 35.06795 | H101: 0 | I101: 0
A102: 100 | B102: 0 | C102: 0 | D102: 114 | E102: 0 | F102: 35.06795 | G102: 35.06795 | H102: 0 | I102: 0
A103: 101 | B103: 0 | C103: 0 | D103: 114 | E103: 0 | F103: 35.06795 | G103: 35.06795 | H103: 0 | I103: 0
A104: 102 | B104: 0 | C104: 1 | D104: 114 | E104: 1 | F104: 35.06795 | G104: 35.06795 | H104: 1 | I104: 3600
A105: 103 | B105: 0 | C105: 0 | D105: 113 | E105: 0 | F105: 35.37437 | G105: 35.06795 | H105: 1 | I105: 3600
A106: 104 | B106: 0 | C106: 1 | D106: 113 | E106: 1 | F106: 35.37437 | G106: 35.06795 | H106: 2 | I106: 3600
A107: 105 | B107: 0 | C107: 1 | D107: 112 | E107: 1 | F107: 35.68079 | G107: 35.06795 | H107: 3 | I107: 3600
A108: 106 | B108: 0 | C108: 1 | D108: 111 | E108: 1 | F108: 35.98721 | G108: 35.06795 | H108: 4 | I108: 3600
A109: 107 | B109: 0 | C109: 1 | D109: 110 | E109: 1 | F109: 36.29363 | G109: 35.06795 | H109: 5 | I109: 3600
A110: 108 | B110: 0 | C110: 1 | D110: 109 | E110: 1 | F110: 36.60006 | G110: 35.06795 | H110: 6 | I110: 3600
A111: 109 | B111: 0 | C111: 1 | D111: 108 | E111: 1 | F111: 36.90648 | G111: 35.06795 | H111: 7 | I111: 3600
A112: 110 | B112: 0 | C112: 1 | D112: 107 | E112: 1 | F112: 37.2129 | G112: 35.06795 | H112: 8 | I112: 3600
A113: 111 | B113: 0 | C113: 1 | D113: 106 | E113: 1 | F113: 37.51931 | G113: 35.06795 | H113: 9 | I113: 3600
A114: 112 | B114: 0 | C114: 1 | D114: 105 | E114: 1 | F114: 37.82574 | G114: 35.06795 | H114: 10 | I114: 3600
A115: 113 | B115: 0 | C115: 1 | D115: 104 | E115: 1 | F115: 38.13216 | G115: 35.06795 | H115: 11 | I115: 3600
A116: 114 | B116: 0 | C116: 1 | D116: 103 | E116: 1 | F116: 38.43858 | G116: 35.06795 | H116: 12 | I116: 3600
A117: 115 | B117: 0 | C117: 1 | D117: 102 | E117: 1 | F117: 38.74501 | G117: 35.06795 | H117: 13 | I117: 3600
A118: 116 | B118: 0 | C118: 1 | D118: 101 | E118: 1 | F118: 39.05143 | G118: 35.06795 | H118: 14 | I118: 3600
A119: 117 | B119: 0 | C119: 1 | D119: 100 | E119: 1 | F119: 39.35785 | G119: 35.06795 | H119: 15 | I119: 3600
A120: 118 | B120: 0 | C120: 1 | D120: 99 | E120: 1 | F120: 39.66427 | G120: 35.06795 | H120: 16 | I120: 3600
A121: 119 | B121: 0 | C121: 1 | D121: 98 | E121: 1 | F121: 39.97069 | G121: 35.06795 | H121: 17 | I121: 3600
A122: 120 | B122: 0 | C122: 1 | D122: 97 | E122: 1 | F122: 40.27711 | G122: 35.06795 | H122: 18 | I122: 3600
A123: 121 | B123: 0 | C123: 1 | D123: 96 | E123: 1 | F123: 40.58353 | G123: 35.06795 | H123: 19 | I123: 3600
A124: 122 | B124: 0 | C124: 1 | D124: 95 | E124: 1 | F124: 40.88995 | G124: 35.06795 | H124: 20 | I124: 3600
A125: 123 | B125: 0 | C125: 1 | D125: 94 | E125: 1 | F125: 41.19638 | G125: 35.06795 | H125: 21 | I125: 3600
A126: 124 | B126: 0 | C126: 1 | D126: 93 | E126: 1 | F126: 41.5028 | G126: 35.06795 | H126: 22 | I126: 3600
A127: 125 | B127: 0 | C127: 1 | D127: 92 | E127: 1 | F127: 41.80922 | G127: 35.06795 | H127: 23 | I127: 3600
A128: 126 | B128: 0 | C128: 1 | D128: 91 | E128: 1 | F128: 42.11564 | G128: 35.06795 | H128: 24 | I128: 3600
A129: 127 | B129: 0 | C129: 1 | D129: 90 | E129: 1 | F129: 42.42206 | G129: 35.06795 | H129: 25 | I129: 3600
A130: 128 | B130: 0 | C130: 1 | D130: 89 | E130: 1 | F130: 42.72848 | G130: 35.06795 | H130: 26 | I130: 3600
A131: 129 | B131: 0 | C131: 1 | D131: 88 | E131: 1 | F131: 43.0349 | G131: 35.06795 | H131: 27 | I131: 3600
A132: 130 | B132: 0 | C132: 1 | D132: 87 | E132: 1 | F132: 43.34133 | G132: 35.06795 | H132: 28 | I132: 3600
A133: 131 | B133: 0 | C133: 1 | D133: 86 | E133: 1 | F133: 43.64775 | G133: 35.06795 | H133: 29 | I133: 3600
A134: 132 | B134: 0 | C134: 1 | D134: 85 | E134: 1 | F134: 43.95417 | G134: 35.06795 | H134: 30 | I134: 3600
A135: 133 | B135: 0 | C135: 1 | D135: 84 | E135: 1 | F135: 44.26059 | G135: 35.06795 | H135: 31 | I135: 3600
A136: 134 | B136: 0 | C136: 1 | D136: 83 | E136: 1 | F136: 44.56701 | G136: 35.06795 | H136: 32 | I136: 3600
A137: 135 | B137: 0 | C137: 1 | D137: 82 | E137: 1 | F137: 44.87344 | G137: 35.06795 | H137: 33 | I137: 3600
A138: 136 | B138: 0 | C138: 1 | D138: 81 | E138: 1 | F138: 45.17986 | G138: 35.06795 | H138: 34 | I138: 3600
A139: 137 | B139: 0 | C139: 1 | D139: 80 | E139: 1 | F139: 45.48628 | G139: 35.06795 | H139: 35 | I139: 3600
A140: 138 | B140: 0 | C140: 1 | D140: 79 | E140: 1 | F140: 45.7927 | G140: 35.06795 | H140: 36 | I140: 3600
A141: 139 | B141: 0 | C141: 1 | D141: 78 | E141: 1 | F141: 46.09912 | G141: 35.06795 | H141: 37 | I141: 3600
A142: 140 | B142: 0 | C142: 1 | D142: 77 | E142: 1 | F142: 46.40554 | G142: 35.06795 | H142: 38 | I142: 3505.263
A143: 141 | B143: 0 | C143: 0 | D143: 76 | E143: 0 | F143: 35.06795 | G143: 35.06795 | H143: 38 | I143: 3505.263
A144: 142 | B144: 0 | C144: 0 | D144: 76 | E144: 0 | F144: 35.06795 | G144: 35.06795 | H144: 38 | I144: 3505.263
A145: 143 | B145: 0 | C145: 0 | D145: 76 | E145: 0 | F145: 35.06795 | G145: 35.06795 | H145: 38 | I145: 3505.263
A146: 144 | B146: 0 | C146: 0 | D146: 76 | E146: 0 | F146: 35.06795 | G146: 35.06795 | H146: 38 | I146: 3505.263
A147: 145 | B147: 0 | C147: 0 | D147: 76 | E147: 0 | F147: 35.06795 | G147: 35.06795 | H147: 38 | I147: 3505.263
A148: 146 | B148: 0 | C148: 0 | D148: 76 | E148: 0 | F148: 35.06795 | G148: 35.06795 | H148: 38 | I148: 3505.263
A149: 147 | B149: 0 | C149: 0 | D149: 76 | E149: 0 | F149: 35.06795 | G149: 35.06795 | H149: 38 | I149: 3505.263
A150: 148 | B150: 0 | C150: 0 | D150: 76 | E150: 0 | F150: 35.06795 | G150: 35.06795 | H150: 38 | I150: 3505.263
A151: 149 | B151: 0 | C151: 0 | D151: 76 | E151: 0 | F151: 35.06795 | G151: 35.06795 | H151: 38 | I151: 3505.263
A152: 150 | B152: 0 | C152: 0 | D152: 76 | E152: 0 | F152: 35.06795 | G152: 35.06795 | H152: 38 | I152: 3505.263
A153: 151 | B153: 0 | C153: 0 | D153: 76 | E153: 0 | F153: 35.06795 | G153: 35.06795 | H153: 38 | I153: 3505.263
A154: 152 | B154: 0 | C154: 0 | D154: 76 | E154: 0 | F154: 35.06795 | G154: 35.06795 | H154: 38 | I154: 3505.263
A155: 153 | B155: 0 | C155: 0 | D155: 76 | E155: 0 | F155: 35.06795 | G155: 35.06795 | H155: 38 | I155: 3505.263
A156: 154 | B156: 0 | C156: 0 | D156: 76 | E156: 0 | F156: 35.06795 | G156: 35.06795 | H156: 38 | I156: 3505.263
A157: 155 | B157: 0 | C157: 0 | D157: 76 | E157: 0 | F157: 35.06795 | G157: 35.06795 | H157: 38 | I157: 3505.263
A158: 156 | B158: 0 | C158: 0 | D158: 76 | E158: 0 | F158: 35.06795 | G158: 35.06795 | H158: 38 | I158: 3505.263
A159: 157 | B159: 0 | C159: 0 | D159: 76 | E159: 0 | F159: 35.06795 | G159: 35.06795 | H159: 38 | I159: 3505.263
A160: 158 | B160: 0 | C160: 0 | D160: 76 | E160: 0 | F160: 35.06795 | G160: 35.06795 | H160: 38 | I160: 3505.263
A161: 159 | B161: 0 | C161: 0 | D161: 76 | E161: 0 | F161: 35.06795 | G161: 35.06795 | H161: 38 | I161: 3505.263
A162: 160 | B162: 0 | C162: 0 | D162: 76 | E162: 0 | F162: 35.06795 | G162: 35.06795 | H162: 38 | I162: 3505.263
A163: 161 | B163: 0 | C163: 0 | D163: 76 | E163: 0 | F163: 35.06795 | G163: 35.06795 | H163: 38 | I163: 3505.263
A164: 162 | B164: 0 | C164: 0 | D164: 76 | E164: 0 | F164: 35.06795 | G164: 35.06795 | H164: 38 | I164: 3505.263
A165: 163 | B165: 0 | C165: 0 | D165: 76 | E165: 0 | F165: 35.06795 | G165: 35.06795 | H165: 38 | I165: 3505.263
A166: 164 | B166: 0 | C166: 0 | D166: 76 | E166: 0 | F166: 35.06795 | G166: 35.06795 | H166: 38 | I166: 3505.263
A167: 165 | B167: 0 | C167: 0 | D167: 76 | E167: 0 | F167: 35.06795 | G167: 35.06795 | H167: 38 | I167: 3505.263
A168: 166 | B168: 0 | C168: 0 | D168: 76 | E168: 0 | F168: 35.06795 | G168: 35.06795 | H168: 38 | I168: 3505.263
A169: 167 | B169: 0 | C169: 0 | D169: 76 | E169: 0 | F169: 35.06795 | G169: 35.06795 | H169: 38 | I169: 3505.263
A170: 168 | B170: 0 | C170: 0 | D170: 76 | E170: 0 | F170: 35.06795 | G170: 35.06795 | H170: 38 | I170: 3505.263
A171: 169 | B171: 0 | C171: 0 | D171: 76 | E171: 0 | F171: 35.06795 | G171: 35.06795 | H171: 38 | I171: 3505.263
A172: 170 | B172: 0 | C172: 0 | D172: 76 | E172: 0 | F172: 35.06795 | G172: 35.06795 | H172: 38 | I172: 3505.263
A173: 171 | B173: 0 | C173: 0 | D173: 76 | E173: 0 | F173: 35.06795 | G173: 35.06795 | H173: 38 | I173: 3505.263
A174: 172 | B174: 0 | C174: 0 | D174: 76 | E174: 0 | F174: 35.06795 | G174: 35.06795 | H174: 38 | I174: 3505.263
A175: 173 | B175: 0 | C175: 0 | D175: 76 | E175: 0 | F175: 35.06795 | G175: 35.06795 | H175: 38 | I175: 3505.263
A176: 174 | B176: 0 | C176: 0 | D176: 76 | E176: 0 | F176: 35.06795 | G176: 35.06795 | H176: 38 | I176: 3505.263
A177: 175 | B177: 0 | C177: 0 | D177: 76 | E177: 0 | F177: 35.06795 | G177: 35.06795 | H177: 38 | I177: 3505.263
A178: 176 | B178: 0 | C178: 0 | D178: 76 | E178: 0 | F178: 35.06795 | G178: 35.06795 | H178: 38 | I178: 3505.263
A179: 177 | B179: 0 | C179: 0 | D179: 76 | E179: 0 | F179: 35.06795 | G179: 35.06795 | H179: 38 | I179: 3505.263
A180: 178 | B180: 0 | C180: 0 | D180: 76 | E180: 0 | F180: 35.06795 | G180: 35.06795 | H180: 38 | I180: 3505.263
A181: 179 | B181: 0 | C181: 0 | D181: 76 | E181: 0 | F181: 35.06795 | G181: 35.06795 | H181: 38 | I181: 3505.263
A182: 180 | B182: 0 | C182: 0 | D182: 76 | E182: 0 | F182: 35.06795 | G182: 35.06795 | H182: 38 | I182: 3505.263
A183: 181 | B183: 0 | C183: 0 | D183: 76 | E183: 0 | F183: 35.06795 | G183: 35.06795 | H183: 38 | I183: 3505.263
A184: 182 | B184: 0 | C184: 0 | D184: 76 | E184: 0 | F184: 35.06795 | G184: 35.06795 | H184: 38 | I184: 3505.263
A185: 183 | B185: 0 | C185: 0 | D185: 76 | E185: 0 | F185: 35.06795 | G185: 35.06795 | H185: 38 | I185: 3505.263
A186: 184 | B186: 0 | C186: 0 | D186: 76 | E186: 0 | F186: 35.06795 | G186: 35.06795 | H186: 38 | I186: 3505.263
A187: 185 | B187: 0 | C187: 0 | D187: 76 | E187: 0 | F187: 35.06795 | G187: 35.06795 | H187: 38 | I187: 3505.263
A188: 186 | B188: 0 | C188: 0 | D188: 76 | E188: 0 | F188: 35.06795 | G188: 35.06795 | H188: 38 | I188: 3505.263
A189: 187 | B189: 0 | C189: 0 | D189: 76 | E189: 0 | F189: 35.06795 | G189: 35.06795 | H189: 38 | I189: 3505.263
A190: 188 | B190: 0 | C190: 0 | D190: 76 | E190: 0 | F190: 35.06795 | G190: 35.06795 | H190: 38 | I190: 3505.263
A191: 189 | B191: 0 | C191: 0 | D191: 76 | E191: 0 | F191: 35.06795 | G191: 35.06795 | H191: 38 | I191: 3505.263
A192: 190 | B192: 0 | C192: 0 | D192: 76 | E192: 0 | F192: 35.06795 | G192: 35.06795 | H192: 38 | I192: 3505.263
A193: 191 | B193: 0 | C193: 0 | D193: 76 | E193: 0 | F193: 35.06795 | G193: 35.06795 | H193: 38 | I193: 3505.263
A194: 192 | B194: 0 | C194: 0 | D194: 76 | E194: 0 | F194: 35.06795 | G194: 35.06795 | H194: 38 | I194: 3505.263
A195: 193 | B195: 0 | C195: 0 | D195: 76 | E195: 0 | F195: 35.06795 | G195: 35.06795 | H195: 38 | I195: 3505.263
A196: 194 | B196: 0 | C196: 0 | D196: 76 | E196: 0 | F196: 35.06795 | G196: 35.06795 | H196: 38 | I196: 3505.263
A197: 195 | B197: 0 | C197: 0 | D197: 76 | E197: 0 | F197: 35.06795 | G197: 35.06795 | H197: 38 | I197: 3505.263
A198: 196 | B198: 0 | C198: 0 | D198: 76 | E198: 0 | F198: 35.06795 | G198: 35.06795 | H198: 38 | I198: 3505.263
A199: 197 | B199: 0 | C199: 0 | D199: 76 | E199: 0 | F199: 35.06795 | G199: 35.06795 | H199: 38 | I199: 3505.263
A200: 198 | B200: 0 | C200: 0 | D200: 76 | E200: 0 | F200: 35.06795 | G200: 35.06795 | H200: 38 | I200: 3505.263
... 189 more rows

Sheet T4 Flow calc D4
A1: Time(s) | B1: Injected cars | C1: Exiting cars | D1: Current cars in system | E1: Exiting people | F1: Avg. v [km/h] | G1: Min. v [km/h] | H1: Goal: Node 7 | I1: Node 7 flow | N1: Input data | Q1: 75 cars
A2: 0 | B2: 168 | C2: 0 | D2: 168 | E2: 0 | F2: 18.52118 | G2: 18.52118 | H2: 0 | I2: 0 | N2: Distance [m] | O2: Multiplier[-] | P2: Walking speed [m/s] | Q2: Cars/km/lane | R2: Relative density [-] | S2: Speed limits [km/h]
A3: 1 | B3: 0 | C3: 0 | D3: 168 | E3: 0 | F3: 18.52118 | G3: 18.52118 | H3: 0 | I3: 0 | N3: 100 | O3: =0.1 -> 0.1 | P3: 1 | S3: 30 | T3: 50 | U3: 70 | V3: 90 | W3: 110 | X3: 120
A4: 2 | B4: 0 | C4: 0 | D4: 168 | E4: 0 | F4: 18.52118 | G4: 18.52118 | H4: 0 | I4: 0 | N4: 500 | O4: =O3+0.1 -> 0.2 | P4: Stall speed [km/h] | Q4: 0 | R4: =Q4/$Q$79 -> 0 | S4: =(1-$R4)*(S$3-$P$5)+$P$5 -> 30 | T4: 50 | U4: 70 | V4: 90 | W4: 110 | X4: 120
A5: 3 | B5: 0 | C5: 0 | D5: 168 | E5: 0 | F5: 18.52118 | G5: 18.52118 | H5: 0 | I5: 0 | N5: 1000 | O5: =O4+0.1 -> 0.3 | P5: 1 | Q5: 1 | R5: 0.01333333333 | S5: 29.61333333 | T5: 49.34666667 | U5: 69.08 | V5: 88.81333333 | W5: 108.5466667 | X5: 118.4133333
A6: 4 | B6: 0 | C6: 0 | D6: 168 | E6: 0 | F6: 18.52118 | G6: 18.52118 | H6: 0 | I6: 0 | N6: 1500 | O6: 0.4 | P6: Event timer [s] | Q6: 2 | R6: 0.02666666667 | S6: 29.22666667 | T6: 48.69333333 | U6: 68.16 | V6: 87.62666667 | W6: 107.0933333 | X6: 116.8266667
A7: 5 | B7: 0 | C7: 0 | D7: 168 | E7: 0 | F7: 18.52118 | G7: 18.52118 | H7: 0 | I7: 0 | N7: 2000 | O7: 0.5 | P7: 600 | Q7: 3 | R7: 0.04 | S7: 28.84 | T7: 48.04 | U7: 67.24 | V7: 86.44 | W7: 105.64 | X7: 115.24
A8: 6 | B8: 0 | C8: 0 | D8: 168 | E8: 0 | F8: 18.52118 | G8: 18.52118 | H8: 0 | I8: 0 | N8: 4000 | O8: 0.6 | P8: Initial speed [m/s] | Q8: 4 | R8: 0.05333333333 | S8: 28.45333333 | T8: 47.38666667 | U8: 66.32 | V8: 85.25333333 | W8: 104.1866667 | X8: 113.6533333
A9: 7 | B9: 0 | C9: 0 | D9: 168 | E9: 0 | F9: 18.52118 | G9: 18.52118 | H9: 0 | I9: 0 | O9: 0.7 | P9: 0 | Q9: 5 | R9: 0.06666666667 | S9: 28.06666667 | T9: 46.73333333 | U9: 65.4 | V9: 84.06666667 | W9: 102.7333333 | X9: 112.0666667
A10: 8 | B10: 0 | C10: 0 | D10: 168 | E10: 0 | F10: 18.52118 | G10: 18.52118 | H10: 0 | I10: 0 | O10: 0.8 | P10: Acceleretion [m/s^2] | Q10: 6 | R10: 0.08 | S10: 27.68 | T10: 46.08 | U10: 64.48 | V10: 82.88 | W10: 101.28 | X10: 110.48
A11: 9 | B11: 0 | C11: 0 | D11: 168 | E11: 0 | F11: 18.52118 | G11: 18.52118 | H11: 0 | I11: 0 | O11: 0.9 | P11: =(100/3.6)/10 -> 2.777777778 | Q11: 7 | R11: 0.09333333333 | S11: 27.29333333 | T11: 45.42666667 | U11: 63.56 | V11: 81.69333333 | W11: 99.82666667 | X11: 108.8933333
A12: 10 | B12: 0 | C12: 0 | D12: 168 | E12: 0 | F12: 18.52118 | G12: 18.52118 | H12: 0 | I12: 0 | O12: 1 | Q12: 8 | R12: 0.1066666667 | S12: 26.90666667 | T12: 44.77333333 | U12: 62.64 | V12: 80.50666667 | W12: 98.37333333 | X12: 107.3066667
A13: 11 | B13: 0 | C13: 0 | D13: 168 | E13: 0 | F13: 18.52118 | G13: 18.52118 | H13: 0 | I13: 0 | O13: 1.1 | Q13: 9 | R13: 0.12 | S13: 26.52 | T13: 44.12 | U13: 61.72 | V13: 79.32 | W13: 96.92 | X13: 105.72
A14: 12 | B14: 0 | C14: 0 | D14: 168 | E14: 0 | F14: 18.52118 | G14: 18.52118 | H14: 0 | I14: 0 | O14: 1.2 | Q14: 10 | R14: 0.1333333333 | S14: =(1-$R14)*(S$3-$P$5)+$P$5 -> 26.13333333 | T14: 43.46666667 | U14: 60.8 | V14: 78.13333333 | W14: 95.46666667 | X14: 104.1333333
A15: 13 | B15: 0 | C15: 0 | D15: 168 | E15: 0 | F15: 18.52118 | G15: 18.52118 | H15: 0 | I15: 0 | O15: 1.3 | Q15: 11 | R15: 0.1466666667 | S15: 25.74666667 | T15: 42.81333333 | U15: 59.88 | V15: 76.94666667 | W15: 94.01333333 | X15: 102.5466667
A16: 14 | B16: 0 | C16: 0 | D16: 168 | E16: 0 | F16: 18.52118 | G16: 18.52118 | H16: 0 | I16: 0 | O16: 1.4 | Q16: 12 | R16: 0.16 | S16: 25.36 | T16: 42.16 | U16: 58.96 | V16: 75.76 | W16: 92.56 | X16: 100.96
A17: 15 | B17: 0 | C17: 0 | D17: 168 | E17: 0 | F17: 18.52118 | G17: 18.52118 | H17: 0 | I17: 0 | O17: 1.5 | Q17: 13 | R17: 0.1733333333 | S17: 24.97333333 | T17: 41.50666667 | U17: 58.04 | V17: 74.57333333 | W17: 91.10666667 | X17: 99.37333333
A18: 16 | B18: 0 | C18: 0 | D18: 168 | E18: 0 | F18: 18.52118 | G18: 18.52118 | H18: 0 | I18: 0 | O18: 1.6 | Q18: 14 | R18: 0.1866666667 | S18: 24.58666667 | T18: 40.85333333 | U18: 57.12 | V18: 73.38666667 | W18: 89.65333333 | X18: 97.78666667
A19: 17 | B19: 0 | C19: 0 | D19: 168 | E19: 0 | F19: 18.52118 | G19: 18.52118 | H19: 0 | I19: 0 | O19: 1.7 | Q19: 15 | R19: 0.2 | S19: 24.2 | T19: 40.2 | U19: 56.2 | V19: 72.2 | W19: 88.2 | X19: 96.2
A20: 18 | B20: 0 | C20: 0 | D20: 168 | E20: 0 | F20: 18.52118 | G20: 18.52118 | H20: 0 | I20: 0 | O20: 1.8 | Q20: 16 | R20: 0.2133333333 | S20: 23.81333333 | T20: 39.54666667 | U20: 55.28 | V20: 71.01333333 | W20: 86.74666667 | X20: 94.61333333
A21: 19 | B21: 0 | C21: 0 | D21: 168 | E21: 0 | F21: 18.52118 | G21: 18.52118 | H21: 0 | I21: 0 | O21: 1.9 | Q21: 17 | R21: 0.2266666667 | S21: 23.42666667 | T21: 38.89333333 | U21: 54.36 | V21: 69.82666667 | W21: 85.29333333 | X21: 93.02666667
A22: 20 | B22: 0 | C22: 0 | D22: 168 | E22: 0 | F22: 18.52118 | G22: 18.52118 | H22: 0 | I22: 0 | O22: 2 | Q22: 18 | R22: 0.24 | S22: 23.04 | T22: 38.24 | U22: 53.44 | V22: 68.64 | W22: 83.84 | X22: 91.44
A23: 21 | B23: 0 | C23: 0 | D23: 168 | E23: 0 | F23: 18.52118 | G23: 18.52118 | H23: 0 | I23: 0 | N23: Distance [m] | O23: Time [s] | Q23: 19 | R23: 0.2533333333 | S23: 22.65333333 | T23: 37.58666667 | U23: 52.52 | V23: 67.45333333 | W23: 82.38666667 | X23: 89.85333333
A24: 22 | B24: 0 | C24: 0 | D24: 168 | E24: 0 | F24: 18.52118 | G24: 18.52118 | H24: 0 | I24: 0 | N24: 1000 | O24: =N24/(U60/3.6) -> 194.8051948 | Q24: 20 | R24: 0.2666666667 | S24: =(1-$R24)*(S$3-$P$5)+$P$5 -> 22.26666667 | T24: 36.93333333 | U24: 51.6 | V24: 66.26666667 | W24: 80.93333333 | X24: 88.26666667
A25: 23 | B25: 0 | C25: 0 | D25: 168 | E25: 0 | F25: 18.52118 | G25: 18.52118 | H25: 0 | I25: 0 | N25: Relative Density | O25: Avg. Speed | P25: Avg. Flow rate (vehicles/lane/hour) | Q25: 21 | R25: 0.28 | S25: 21.88 | T25: 36.28 | U25: 50.68 | V25: 65.08 | W25: 79.48 | X25: 86.68
A26: 24 | B26: 0 | C26: 0 | D26: 168 | E26: 0 | F26: 18.52118 | G26: 18.52118 | H26: 0 | I26: 0 | N26: =R60 -> 0.7466666667 | O26: =U60 -> 18.48 | P26: =Q60/O24*3600 -> 1034.88 | Q26: 22 | R26: 0.2933333333 | S26: 21.49333333 | T26: 35.62666667 | U26: 49.76 | V26: 63.89333333 | W26: 78.02666667 | X26: 85.09333333
A27: 25 | B27: 0 | C27: 0 | D27: 168 | E27: 0 | F27: 18.52118 | G27: 18.52118 | H27: 0 | I27: 0 | N27: Sim. Rel. Dens. | O27: Sim.avg. Speed | P27: Avg. Flow rate [cars/lane minute] | Q27: 23 | R27: 0.3066666667 | S27: 21.10666667 | T27: 34.97333333 | U27: 48.84 | V27: 62.70666667 | W27: 76.57333333 | X27: 83.50666667
A28: 26 | B28: 0 | C28: 0 | D28: 168 | E28: 0 | F28: 18.52118 | G28: 18.52118 | H28: 0 | I28: 0 | N28: =R60 -> 0.7466666667 | O28: =F2 -> 18.52118 | P28: =P26*60 -> 62092.8 | Q28: 24 | R28: 0.32 | S28: 20.72 | T28: 34.32 | U28: 47.92 | V28: 61.52 | W28: 75.12 | X28: 81.92
A29: 27 | B29: 0 | C29: 0 | D29: 168 | E29: 0 | F29: 18.52118 | G29: 18.52118 | H29: 0 | I29: 0 | P29: Sim.Avg. Flowrate [cars/lane second] | Q29: 25 | R29: 0.3333333333 | S29: 20.33333333 | T29: 33.66666667 | U29: 47 | V29: 60.33333333 | W29: 73.66666667 | X29: 80.33333333
A30: 28 | B30: 0 | C30: 0 | D30: 168 | E30: 0 | F30: 18.52118 | G30: 18.52118 | H30: 0 | I30: 0 | P30: =H197 -> 1 | Q30: 26 | R30: 0.3466666667 | S30: 19.94666667 | T30: 33.01333333 | U30: 46.08 | V30: 59.14666667 | W30: 72.21333333 | X30: 78.74666667
A31: 29 | B31: 0 | C31: 0 | D31: 168 | E31: 0 | F31: 18.52118 | G31: 18.52118 | H31: 0 | I31: 0 | P31: Sim.Avg. Flowrate [cars/lane minute] | Q31: 27 | R31: 0.36 | S31: 19.56 | T31: 32.36 | U31: 45.16 | V31: 57.96 | W31: 70.76 | X31: 77.16
A32: 30 | B32: 0 | C32: 0 | D32: 168 | E32: 0 | F32: 18.52118 | G32: 18.52118 | H32: 0 | I32: 0 | P32: =P30*60 -> 60 | Q32: 28 | R32: 0.3733333333 | S32: 19.17333333 | T32: 31.70666667 | U32: 44.24 | V32: 56.77333333 | W32: 69.30666667 | X32: 75.57333333
A33: 31 | B33: 0 | C33: 0 | D33: 168 | E33: 0 | F33: 18.52118 | G33: 18.52118 | H33: 0 | I33: 0 | Q33: 29 | R33: 0.3866666667 | S33: 18.78666667 | T33: 31.05333333 | U33: 43.32 | V33: 55.58666667 | W33: 67.85333333 | X33: 73.98666667
A34: 32 | B34: 0 | C34: 0 | D34: 168 | E34: 0 | F34: 18.52118 | G34: 18.52118 | H34: 0 | I34: 0 | Q34: 30 | R34: 0.4 | S34: =(1-$R34)*(S$3-$P$5)+$P$5 -> 18.4 | T34: 30.4 | U34: 42.4 | V34: 54.4 | W34: 66.4 | X34: 72.4
A35: 33 | B35: 0 | C35: 0 | D35: 168 | E35: 0 | F35: 18.52118 | G35: 18.52118 | H35: 0 | I35: 0 | Q35: 31 | R35: 0.4133333333 | S35: 18.01333333 | T35: 29.74666667 | U35: 41.48 | V35: 53.21333333 | W35: 64.94666667 | X35: 70.81333333
A36: 34 | B36: 0 | C36: 0 | D36: 168 | E36: 0 | F36: 18.52118 | G36: 18.52118 | H36: 0 | I36: 0 | Q36: 32 | R36: =Q36/$Q$79 -> 0.4266666667 | S36: 17.62666667 | T36: 29.09333333 | U36: 40.56 | V36: 52.02666667 | W36: 63.49333333 | X36: 69.22666667
A37: 35 | B37: 0 | C37: 0 | D37: 168 | E37: 0 | F37: 18.52118 | G37: 18.52118 | H37: 0 | I37: 0 | Q37: 33 | R37: 0.44 | S37: 17.24 | T37: 28.44 | U37: 39.64 | V37: 50.84 | W37: 62.04 | X37: 67.64
A38: 36 | B38: 0 | C38: 0 | D38: 168 | E38: 0 | F38: 18.52118 | G38: 18.52118 | H38: 0 | I38: 0 | Q38: 34 | R38: 0.4533333333 | S38: 16.85333333 | T38: 27.78666667 | U38: 38.72 | V38: 49.65333333 | W38: 60.58666667 | X38: 66.05333333
A39: 37 | B39: 0 | C39: 0 | D39: 168 | E39: 0 | F39: 18.52118 | G39: 18.52118 | H39: 0 | I39: 0 | Q39: 35 | R39: 0.4666666667 | S39: 16.46666667 | T39: 27.13333333 | U39: 37.8 | V39: 48.46666667 | W39: 59.13333333 | X39: 64.46666667
A40: 38 | B40: 0 | C40: 0 | D40: 168 | E40: 0 | F40: 18.52118 | G40: 18.52118 | H40: 0 | I40: 0 | Q40: 36 | R40: 0.48 | S40: 16.08 | T40: 26.48 | U40: 36.88 | V40: 47.28 | W40: 57.68 | X40: 62.88
A41: 39 | B41: 0 | C41: 0 | D41: 168 | E41: 0 | F41: 18.52118 | G41: 18.52118 | H41: 0 | I41: 0 | Q41: 37 | R41: 0.4933333333 | S41: 15.69333333 | T41: 25.82666667 | U41: 35.96 | V41: 46.09333333 | W41: 56.22666667 | X41: 61.29333333
A42: 40 | B42: 0 | C42: 0 | D42: 168 | E42: 0 | F42: 18.52118 | G42: 18.52118 | H42: 0 | I42: 0 | Q42: 38 | R42: 0.5066666667 | S42: 15.30666667 | T42: 25.17333333 | U42: 35.04 | V42: 44.90666667 | W42: 54.77333333 | X42: 59.70666667
A43: 41 | B43: 0 | C43: 0 | D43: 168 | E43: 0 | F43: 18.52118 | G43: 18.52118 | H43: 0 | I43: 0 | Q43: 39 | R43: 0.52 | S43: 14.92 | T43: 24.52 | U43: 34.12 | V43: 43.72 | W43: 53.32 | X43: 58.12
A44: 42 | B44: 0 | C44: 0 | D44: 168 | E44: 0 | F44: 18.52118 | G44: 18.52118 | H44: 0 | I44: 0 | Q44: 40 | R44: 0.5333333333 | S44: =(1-$R44)*(S$3-$P$5)+$P$5 -> 14.53333333 | T44: 23.86666667 | U44: 33.2 | V44: 42.53333333 | W44: 51.86666667 | X44: 56.53333333
A45: 43 | B45: 0 | C45: 0 | D45: 168 | E45: 0 | F45: 18.52118 | G45: 18.52118 | H45: 0 | I45: 0 | Q45: 41 | R45: 0.5466666667 | S45: 14.14666667 | T45: 23.21333333 | U45: 32.28 | V45: 41.34666667 | W45: 50.41333333 | X45: 54.94666667
A46: 44 | B46: 0 | C46: 0 | D46: 168 | E46: 0 | F46: 18.52118 | G46: 18.52118 | H46: 0 | I46: 0 | Q46: 42 | R46: 0.56 | S46: 13.76 | T46: 22.56 | U46: 31.36 | V46: 40.16 | W46: 48.96 | X46: 53.36
A47: 45 | B47: 0 | C47: 0 | D47: 168 | E47: 0 | F47: 18.52118 | G47: 18.52118 | H47: 0 | I47: 0 | Q47: 43 | R47: 0.5733333333 | S47: 13.37333333 | T47: 21.90666667 | U47: 30.44 | V47: 38.97333333 | W47: 47.50666667 | X47: 51.77333333
A48: 46 | B48: 0 | C48: 0 | D48: 168 | E48: 0 | F48: 18.52118 | G48: 18.52118 | H48: 0 | I48: 0 | Q48: 44 | R48: 0.5866666667 | S48: 12.98666667 | T48: 21.25333333 | U48: 29.52 | V48: 37.78666667 | W48: 46.05333333 | X48: 50.18666667
A49: 47 | B49: 0 | C49: 0 | D49: 168 | E49: 0 | F49: 18.52118 | G49: 18.52118 | H49: 0 | I49: 0 | Q49: 45 | R49: 0.6 | S49: 12.6 | T49: 20.6 | U49: 28.6 | V49: 36.6 | W49: 44.6 | X49: 48.6
A50: 48 | B50: 0 | C50: 0 | D50: 168 | E50: 0 | F50: 18.52118 | G50: 18.52118 | H50: 0 | I50: 0 | Q50: 46 | R50: 0.6133333333 | S50: 12.21333333 | T50: 19.94666667 | U50: 27.68 | V50: 35.41333333 | W50: 43.14666667 | X50: 47.01333333
A51: 49 | B51: 0 | C51: 0 | D51: 168 | E51: 0 | F51: 18.52118 | G51: 18.52118 | H51: 0 | I51: 0 | Q51: 47 | R51: 0.6266666667 | S51: 11.82666667 | T51: 19.29333333 | U51: 26.76 | V51: 34.22666667 | W51: 41.69333333 | X51: 45.42666667
A52: 50 | B52: 0 | C52: 0 | D52: 168 | E52: 0 | F52: 18.52118 | G52: 18.52118 | H52: 0 | I52: 0 | Q52: 48 | R52: 0.64 | S52: 11.44 | T52: 18.64 | U52: 25.84 | V52: 33.04 | W52: 40.24 | X52: 43.84
A53: 51 | B53: 0 | C53: 0 | D53: 168 | E53: 0 | F53: 18.52118 | G53: 18.52118 | H53: 0 | I53: 0 | Q53: 49 | R53: 0.6533333333 | S53: 11.05333333 | T53: 17.98666667 | U53: 24.92 | V53: 31.85333333 | W53: 38.78666667 | X53: 42.25333333
A54: 52 | B54: 0 | C54: 0 | D54: 168 | E54: 0 | F54: 18.52118 | G54: 18.52118 | H54: 0 | I54: 0 | Q54: 50 | R54: 0.6666666667 | S54: =(1-$R54)*(S$3-$P$5)+$P$5 -> 10.66666667 | T54: 17.33333333 | U54: 24 | V54: 30.66666667 | W54: 37.33333333 | X54: 40.66666667
A55: 53 | B55: 0 | C55: 0 | D55: 168 | E55: 0 | F55: 18.52118 | G55: 18.52118 | H55: 0 | I55: 0 | Q55: 51 | R55: 0.68 | S55: 10.28 | T55: 16.68 | U55: 23.08 | V55: 29.48 | W55: 35.88 | X55: 39.08
A56: 54 | B56: 0 | C56: 0 | D56: 168 | E56: 0 | F56: 18.52118 | G56: 18.52118 | H56: 0 | I56: 0 | Q56: 52 | R56: 0.6933333333 | S56: 9.893333333 | T56: 16.02666667 | U56: 22.16 | V56: 28.29333333 | W56: 34.42666667 | X56: 37.49333333
A57: 55 | B57: 0 | C57: 0 | D57: 168 | E57: 0 | F57: 18.52118 | G57: 18.52118 | H57: 0 | I57: 0 | Q57: 53 | R57: 0.7066666667 | S57: 9.506666667 | T57: 15.37333333 | U57: 21.24 | V57: 27.10666667 | W57: 32.97333333 | X57: 35.90666667
A58: 56 | B58: 0 | C58: 0 | D58: 168 | E58: 0 | F58: 18.52118 | G58: 18.52118 | H58: 0 | I58: 0 | Q58: 54 | R58: 0.72 | S58: 9.12 | T58: 14.72 | U58: 20.32 | V58: 25.92 | W58: 31.52 | X58: 34.32
A59: 57 | B59: 0 | C59: 0 | D59: 168 | E59: 0 | F59: 18.52118 | G59: 18.52118 | H59: 0 | I59: 0 | Q59: 55 | R59: 0.7333333333 | S59: 8.733333333 | T59: 14.06666667 | U59: 19.4 | V59: 24.73333333 | W59: 30.06666667 | X59: 32.73333333
A60: 58 | B60: 0 | C60: 0 | D60: 168 | E60: 0 | F60: 18.52118 | G60: 18.52118 | H60: 0 | I60: 0 | Q60: 56 | R60: =Q60/$Q$79 -> 0.7466666667 | S60: 8.346666667 | T60: 13.41333333 | U60: 18.48 | V60: 23.54666667 | W60: 28.61333333 | X60: 31.14666667
A61: 59 | B61: 0 | C61: 0 | D61: 168 | E61: 0 | F61: 18.52118 | G61: 18.52118 | H61: 0 | I61: 0 | Q61: 57 | R61: 0.76 | S61: 7.96 | T61: 12.76 | U61: 17.56 | V61: 22.36 | W61: 27.16 | X61: 29.56
A62: 60 | B62: 0 | C62: 0 | D62: 168 | E62: 0 | F62: 18.52118 | G62: 18.52118 | H62: 0 | I62: 0 | Q62: 58 | R62: 0.7733333333 | S62: 7.573333333 | T62: 12.10666667 | U62: 16.64 | V62: 21.17333333 | W62: 25.70666667 | X62: 27.97333333
A63: 61 | B63: 0 | C63: 0 | D63: 168 | E63: 0 | F63: 18.52118 | G63: 18.52118 | H63: 0 | I63: 0 | Q63: 59 | R63: 0.7866666667 | S63: 7.186666667 | T63: 11.45333333 | U63: 15.72 | V63: 19.98666667 | W63: 24.25333333 | X63: 26.38666667
A64: 62 | B64: 0 | C64: 0 | D64: 168 | E64: 0 | F64: 18.52118 | G64: 18.52118 | H64: 0 | I64: 0 | Q64: 60 | R64: 0.8 | S64: =(1-$R64)*(S$3-$P$5)+$P$5 -> 6.8 | T64: 10.8 | U64: 14.8 | V64: 18.8 | W64: 22.8 | X64: 24.8
A65: 63 | B65: 0 | C65: 0 | D65: 168 | E65: 0 | F65: 18.52118 | G65: 18.52118 | H65: 0 | I65: 0 | Q65: 61 | R65: 0.8133333333 | S65: 6.413333333 | T65: 10.14666667 | U65: 13.88 | V65: 17.61333333 | W65: 21.34666667 | X65: 23.21333333
A66: 64 | B66: 0 | C66: 0 | D66: 168 | E66: 0 | F66: 18.52118 | G66: 18.52118 | H66: 0 | I66: 0 | Q66: 62 | R66: 0.8266666667 | S66: 6.026666667 | T66: 9.493333333 | U66: 12.96 | V66: 16.42666667 | W66: 19.89333333 | X66: 21.62666667
A67: 65 | B67: 0 | C67: 0 | D67: 168 | E67: 0 | F67: 18.52118 | G67: 18.52118 | H67: 0 | I67: 0 | Q67: 63 | R67: 0.84 | S67: 5.64 | T67: 8.84 | U67: 12.04 | V67: 15.24 | W67: 18.44 | X67: 20.04
A68: 66 | B68: 0 | C68: 0 | D68: 168 | E68: 0 | F68: 18.52118 | G68: 18.52118 | H68: 0 | I68: 0 | Q68: 64 | R68: =Q68/$Q$79 -> 0.8533333333 | S68: 5.253333333 | T68: 8.186666667 | U68: 11.12 | V68: 14.05333333 | W68: 16.98666667 | X68: 18.45333333
A69: 67 | B69: 0 | C69: 0 | D69: 168 | E69: 0 | F69: 18.52118 | G69: 18.52118 | H69: 0 | I69: 0 | Q69: 65 | R69: 0.8666666667 | S69: 4.866666667 | T69: 7.533333333 | U69: 10.2 | V69: 12.86666667 | W69: 15.53333333 | X69: 16.86666667
A70: 68 | B70: 0 | C70: 0 | D70: 168 | E70: 0 | F70: 18.52118 | G70: 18.52118 | H70: 0 | I70: 0 | Q70: 66 | R70: 0.88 | S70: 4.48 | T70: 6.88 | U70: 9.28 | V70: 11.68 | W70: 14.08 | X70: 15.28
A71: 69 | B71: 0 | C71: 0 | D71: 168 | E71: 0 | F71: 18.52118 | G71: 18.52118 | H71: 0 | I71: 0 | Q71: 67 | R71: 0.8933333333 | S71: 4.093333333 | T71: 6.226666667 | U71: 8.36 | V71: 10.49333333 | W71: 12.62666667 | X71: 13.69333333
A72: 70 | B72: 0 | C72: 0 | D72: 168 | E72: 0 | F72: 18.52118 | G72: 18.52118 | H72: 0 | I72: 0 | Q72: 68 | R72: 0.9066666667 | S72: 3.706666667 | T72: 5.573333333 | U72: 7.44 | V72: 9.306666667 | W72: 11.17333333 | X72: 12.10666667
A73: 71 | B73: 0 | C73: 0 | D73: 168 | E73: 0 | F73: 18.52118 | G73: 18.52118 | H73: 0 | I73: 0 | Q73: 69 | R73: 0.92 | S73: 3.32 | T73: 4.92 | U73: 6.52 | V73: 8.12 | W73: 9.72 | X73: 10.52
A74: 72 | B74: 0 | C74: 0 | D74: 168 | E74: 0 | F74: 18.52118 | G74: 18.52118 | H74: 0 | I74: 0 | Q74: 70 | R74: 0.9333333333 | S74: =(1-$R74)*(S$3-$P$5)+$P$5 -> 2.933333333 | T74: 4.266666667 | U74: 5.6 | V74: 6.933333333 | W74: 8.266666667 | X74: 8.933333333
A75: 73 | B75: 0 | C75: 0 | D75: 168 | E75: 0 | F75: 18.52118 | G75: 18.52118 | H75: 0 | I75: 0 | Q75: 71 | R75: 0.9466666667 | S75: 2.546666667 | T75: 3.613333333 | U75: 4.68 | V75: 5.746666667 | W75: 6.813333333 | X75: 7.346666667
A76: 74 | B76: 0 | C76: 0 | D76: 168 | E76: 0 | F76: 18.52118 | G76: 18.52118 | H76: 0 | I76: 0 | Q76: 72 | R76: 0.96 | S76: 2.16 | T76: 2.96 | U76: 3.76 | V76: 4.56 | W76: 5.36 | X76: 5.76
A77: 75 | B77: 0 | C77: 0 | D77: 168 | E77: 0 | F77: 18.52118 | G77: 18.52118 | H77: 0 | I77: 0 | Q77: 73 | R77: 0.9733333333 | S77: 1.773333333 | T77: 2.306666667 | U77: 2.84 | V77: 3.373333333 | W77: 3.906666667 | X77: 4.173333333
A78: 76 | B78: 0 | C78: 0 | D78: 168 | E78: 0 | F78: 18.52118 | G78: 18.52118 | H78: 0 | I78: 0 | Q78: 74 | R78: 0.9866666667 | S78: 1.386666667 | T78: 1.653333333 | U78: 1.92 | V78: 2.186666667 | W78: 2.453333333 | X78: 2.586666667
A79: 77 | B79: 0 | C79: 0 | D79: 168 | E79: 0 | F79: 18.52118 | G79: 18.52118 | H79: 0 | I79: 0 | Q79: 75 | R79: 1 | S79: 1 | T79: 1 | U79: 1 | V79: 1 | W79: 1 | X79: 1
A80: 78 | B80: 0 | C80: 0 | D80: 168 | E80: 0 | F80: 18.52118 | G80: 18.52118 | H80: 0 | I80: 0
A81: 79 | B81: 0 | C81: 0 | D81: 168 | E81: 0 | F81: 18.52118 | G81: 18.52118 | H81: 0 | I81: 0
A82: 80 | B82: 0 | C82: 0 | D82: 168 | E82: 0 | F82: 18.52118 | G82: 18.52118 | H82: 0 | I82: 0
A83: 81 | B83: 0 | C83: 0 | D83: 168 | E83: 0 | F83: 18.52118 | G83: 18.52118 | H83: 0 | I83: 0
A84: 82 | B84: 0 | C84: 0 | D84: 168 | E84: 0 | F84: 18.52118 | G84: 18.52118 | H84: 0 | I84: 0
A85: 83 | B85: 0 | C85: 0 | D85: 168 | E85: 0 | F85: 18.52118 | G85: 18.52118 | H85: 0 | I85: 0
A86: 84 | B86: 0 | C86: 0 | D86: 168 | E86: 0 | F86: 18.52118 | G86: 18.52118 | H86: 0 | I86: 0
A87: 85 | B87: 0 | C87: 0 | D87: 168 | E87: 0 | F87: 18.52118 | G87: 18.52118 | H87: 0 | I87: 0
A88: 86 | B88: 0 | C88: 0 | D88: 168 | E88: 0 | F88: 18.52118 | G88: 18.52118 | H88: 0 | I88: 0
A89: 87 | B89: 0 | C89: 0 | D89: 168 | E89: 0 | F89: 18.52118 | G89: 18.52118 | H89: 0 | I89: 0
A90: 88 | B90: 0 | C90: 0 | D90: 168 | E90: 0 | F90: 18.52118 | G90: 18.52118 | H90: 0 | I90: 0
A91: 89 | B91: 0 | C91: 0 | D91: 168 | E91: 0 | F91: 18.52118 | G91: 18.52118 | H91: 0 | I91: 0
A92: 90 | B92: 0 | C92: 0 | D92: 168 | E92: 0 | F92: 18.52118 | G92: 18.52118 | H92: 0 | I92: 0
A93: 91 | B93: 0 | C93: 0 | D93: 168 | E93: 0 | F93: 18.52118 | G93: 18.52118 | H93: 0 | I93: 0
A94: 92 | B94: 0 | C94: 0 | D94: 168 | E94: 0 | F94: 18.52118 | G94: 18.52118 | H94: 0 | I94: 0
A95: 93 | B95: 0 | C95: 0 | D95: 168 | E95: 0 | F95: 18.52118 | G95: 18.52118 | H95: 0 | I95: 0
A96: 94 | B96: 0 | C96: 0 | D96: 168 | E96: 0 | F96: 18.52118 | G96: 18.52118 | H96: 0 | I96: 0
A97: 95 | B97: 0 | C97: 0 | D97: 168 | E97: 0 | F97: 18.52118 | G97: 18.52118 | H97: 0 | I97: 0
A98: 96 | B98: 0 | C98: 0 | D98: 168 | E98: 0 | F98: 18.52118 | G98: 18.52118 | H98: 0 | I98: 0
A99: 97 | B99: 0 | C99: 0 | D99: 168 | E99: 0 | F99: 18.52118 | G99: 18.52118 | H99: 0 | I99: 0
A100: 98 | B100: 0 | C100: 0 | D100: 168 | E100: 0 | F100: 18.52118 | G100: 18.52118 | H100: 0 | I100: 0
A101: 99 | B101: 0 | C101: 0 | D101: 168 | E101: 0 | F101: 18.52118 | G101: 18.52118 | H101: 0 | I101: 0
A102: 100 | B102: 0 | C102: 0 | D102: 168 | E102: 0 | F102: 18.52118 | G102: 18.52118 | H102: 0 | I102: 0
A103: 101 | B103: 0 | C103: 0 | D103: 168 | E103: 0 | F103: 18.52118 | G103: 18.52118 | H103: 0 | I103: 0
A104: 102 | B104: 0 | C104: 0 | D104: 168 | E104: 0 | F104: 18.52118 | G104: 18.52118 | H104: 0 | I104: 0
A105: 103 | B105: 0 | C105: 0 | D105: 168 | E105: 0 | F105: 18.52118 | G105: 18.52118 | H105: 0 | I105: 0
A106: 104 | B106: 0 | C106: 0 | D106: 168 | E106: 0 | F106: 18.52118 | G106: 18.52118 | H106: 0 | I106: 0
A107: 105 | B107: 0 | C107: 0 | D107: 168 | E107: 0 | F107: 18.52118 | G107: 18.52118 | H107: 0 | I107: 0
A108: 106 | B108: 0 | C108: 0 | D108: 168 | E108: 0 | F108: 18.52118 | G108: 18.52118 | H108: 0 | I108: 0
A109: 107 | B109: 0 | C109: 0 | D109: 168 | E109: 0 | F109: 18.52118 | G109: 18.52118 | H109: 0 | I109: 0
A110: 108 | B110: 0 | C110: 0 | D110: 168 | E110: 0 | F110: 18.52118 | G110: 18.52118 | H110: 0 | I110: 0
A111: 109 | B111: 0 | C111: 0 | D111: 168 | E111: 0 | F111: 18.52118 | G111: 18.52118 | H111: 0 | I111: 0
A112: 110 | B112: 0 | C112: 0 | D112: 168 | E112: 0 | F112: 18.52118 | G112: 18.52118 | H112: 0 | I112: 0
A113: 111 | B113: 0 | C113: 0 | D113: 168 | E113: 0 | F113: 18.52118 | G113: 18.52118 | H113: 0 | I113: 0
A114: 112 | B114: 0 | C114: 0 | D114: 168 | E114: 0 | F114: 18.52118 | G114: 18.52118 | H114: 0 | I114: 0
A115: 113 | B115: 0 | C115: 0 | D115: 168 | E115: 0 | F115: 18.52118 | G115: 18.52118 | H115: 0 | I115: 0
A116: 114 | B116: 0 | C116: 0 | D116: 168 | E116: 0 | F116: 18.52118 | G116: 18.52118 | H116: 0 | I116: 0
A117: 115 | B117: 0 | C117: 0 | D117: 168 | E117: 0 | F117: 18.52118 | G117: 18.52118 | H117: 0 | I117: 0
A118: 116 | B118: 0 | C118: 0 | D118: 168 | E118: 0 | F118: 18.52118 | G118: 18.52118 | H118: 0 | I118: 0
A119: 117 | B119: 0 | C119: 0 | D119: 168 | E119: 0 | F119: 18.52118 | G119: 18.52118 | H119: 0 | I119: 0
A120: 118 | B120: 0 | C120: 0 | D120: 168 | E120: 0 | F120: 18.52118 | G120: 18.52118 | H120: 0 | I120: 0
A121: 119 | B121: 0 | C121: 0 | D121: 168 | E121: 0 | F121: 18.52118 | G121: 18.52118 | H121: 0 | I121: 0
A122: 120 | B122: 0 | C122: 0 | D122: 168 | E122: 0 | F122: 18.52118 | G122: 18.52118 | H122: 0 | I122: 0
A123: 121 | B123: 0 | C123: 0 | D123: 168 | E123: 0 | F123: 18.52118 | G123: 18.52118 | H123: 0 | I123: 0
A124: 122 | B124: 0 | C124: 0 | D124: 168 | E124: 0 | F124: 18.52118 | G124: 18.52118 | H124: 0 | I124: 0
A125: 123 | B125: 0 | C125: 0 | D125: 168 | E125: 0 | F125: 18.52118 | G125: 18.52118 | H125: 0 | I125: 0
A126: 124 | B126: 0 | C126: 0 | D126: 168 | E126: 0 | F126: 18.52118 | G126: 18.52118 | H126: 0 | I126: 0
A127: 125 | B127: 0 | C127: 0 | D127: 168 | E127: 0 | F127: 18.52118 | G127: 18.52118 | H127: 0 | I127: 0
A128: 126 | B128: 0 | C128: 0 | D128: 168 | E128: 0 | F128: 18.52118 | G128: 18.52118 | H128: 0 | I128: 0
A129: 127 | B129: 0 | C129: 0 | D129: 168 | E129: 0 | F129: 18.52118 | G129: 18.52118 | H129: 0 | I129: 0
A130: 128 | B130: 0 | C130: 0 | D130: 168 | E130: 0 | F130: 18.52118 | G130: 18.52118 | H130: 0 | I130: 0
A131: 129 | B131: 0 | C131: 0 | D131: 168 | E131: 0 | F131: 18.52118 | G131: 18.52118 | H131: 0 | I131: 0
A132: 130 | B132: 0 | C132: 0 | D132: 168 | E132: 0 | F132: 18.52118 | G132: 18.52118 | H132: 0 | I132: 0
A133: 131 | B133: 0 | C133: 0 | D133: 168 | E133: 0 | F133: 18.52118 | G133: 18.52118 | H133: 0 | I133: 0
A134: 132 | B134: 0 | C134: 0 | D134: 168 | E134: 0 | F134: 18.52118 | G134: 18.52118 | H134: 0 | I134: 0
A135: 133 | B135: 0 | C135: 0 | D135: 168 | E135: 0 | F135: 18.52118 | G135: 18.52118 | H135: 0 | I135: 0
A136: 134 | B136: 0 | C136: 0 | D136: 168 | E136: 0 | F136: 18.52118 | G136: 18.52118 | H136: 0 | I136: 0
A137: 135 | B137: 0 | C137: 0 | D137: 168 | E137: 0 | F137: 18.52118 | G137: 18.52118 | H137: 0 | I137: 0
A138: 136 | B138: 0 | C138: 0 | D138: 168 | E138: 0 | F138: 18.52118 | G138: 18.52118 | H138: 0 | I138: 0
A139: 137 | B139: 0 | C139: 0 | D139: 168 | E139: 0 | F139: 18.52118 | G139: 18.52118 | H139: 0 | I139: 0
A140: 138 | B140: 0 | C140: 0 | D140: 168 | E140: 0 | F140: 18.52118 | G140: 18.52118 | H140: 0 | I140: 0
A141: 139 | B141: 0 | C141: 0 | D141: 168 | E141: 0 | F141: 18.52118 | G141: 18.52118 | H141: 0 | I141: 0
A142: 140 | B142: 0 | C142: 0 | D142: 168 | E142: 0 | F142: 18.52118 | G142: 18.52118 | H142: 0 | I142: 0
A143: 141 | B143: 0 | C143: 0 | D143: 168 | E143: 0 | F143: 18.52118 | G143: 18.52118 | H143: 0 | I143: 0
A144: 142 | B144: 0 | C144: 0 | D144: 168 | E144: 0 | F144: 18.52118 | G144: 18.52118 | H144: 0 | I144: 0
A145: 143 | B145: 0 | C145: 0 | D145: 168 | E145: 0 | F145: 18.52118 | G145: 18.52118 | H145: 0 | I145: 0
A146: 144 | B146: 0 | C146: 0 | D146: 168 | E146: 0 | F146: 18.52118 | G146: 18.52118 | H146: 0 | I146: 0
A147: 145 | B147: 0 | C147: 0 | D147: 168 | E147: 0 | F147: 18.52118 | G147: 18.52118 | H147: 0 | I147: 0
A148: 146 | B148: 0 | C148: 0 | D148: 168 | E148: 0 | F148: 18.52118 | G148: 18.52118 | H148: 0 | I148: 0
A149: 147 | B149: 0 | C149: 0 | D149: 168 | E149: 0 | F149: 18.52118 | G149: 18.52118 | H149: 0 | I149: 0
A150: 148 | B150: 0 | C150: 0 | D150: 168 | E150: 0 | F150: 18.52118 | G150: 18.52118 | H150: 0 | I150: 0
A151: 149 | B151: 0 | C151: 0 | D151: 168 | E151: 0 | F151: 18.52118 | G151: 18.52118 | H151: 0 | I151: 0
A152: 150 | B152: 0 | C152: 0 | D152: 168 | E152: 0 | F152: 18.52118 | G152: 18.52118 | H152: 0 | I152: 0
A153: 151 | B153: 0 | C153: 0 | D153: 168 | E153: 0 | F153: 18.52118 | G153: 18.52118 | H153: 0 | I153: 0
A154: 152 | B154: 0 | C154: 0 | D154: 168 | E154: 0 | F154: 18.52118 | G154: 18.52118 | H154: 0 | I154: 0
A155: 153 | B155: 0 | C155: 0 | D155: 168 | E155: 0 | F155: 18.52118 | G155: 18.52118 | H155: 0 | I155: 0
A156: 154 | B156: 0 | C156: 0 | D156: 168 | E156: 0 | F156: 18.52118 | G156: 18.52118 | H156: 0 | I156: 0
A157: 155 | B157: 0 | C157: 0 | D157: 168 | E157: 0 | F157: 18.52118 | G157: 18.52118 | H157: 0 | I157: 0
A158: 156 | B158: 0 | C158: 0 | D158: 168 | E158: 0 | F158: 18.52118 | G158: 18.52118 | H158: 0 | I158: 0
A159: 157 | B159: 0 | C159: 0 | D159: 168 | E159: 0 | F159: 18.52118 | G159: 18.52118 | H159: 0 | I159: 0
A160: 158 | B160: 0 | C160: 0 | D160: 168 | E160: 0 | F160: 18.52118 | G160: 18.52118 | H160: 0 | I160: 0
A161: 159 | B161: 0 | C161: 0 | D161: 168 | E161: 0 | F161: 18.52118 | G161: 18.52118 | H161: 0 | I161: 0
A162: 160 | B162: 0 | C162: 0 | D162: 168 | E162: 0 | F162: 18.52118 | G162: 18.52118 | H162: 0 | I162: 0
A163: 161 | B163: 0 | C163: 0 | D163: 168 | E163: 0 | F163: 18.52118 | G163: 18.52118 | H163: 0 | I163: 0
A164: 162 | B164: 0 | C164: 0 | D164: 168 | E164: 0 | F164: 18.52118 | G164: 18.52118 | H164: 0 | I164: 0
A165: 163 | B165: 0 | C165: 0 | D165: 168 | E165: 0 | F165: 18.52118 | G165: 18.52118 | H165: 0 | I165: 0
A166: 164 | B166: 0 | C166: 0 | D166: 168 | E166: 0 | F166: 18.52118 | G166: 18.52118 | H166: 0 | I166: 0
A167: 165 | B167: 0 | C167: 0 | D167: 168 | E167: 0 | F167: 18.52118 | G167: 18.52118 | H167: 0 | I167: 0
A168: 166 | B168: 0 | C168: 0 | D168: 168 | E168: 0 | F168: 18.52118 | G168: 18.52118 | H168: 0 | I168: 0
A169: 167 | B169: 0 | C169: 0 | D169: 168 | E169: 0 | F169: 18.52118 | G169: 18.52118 | H169: 0 | I169: 0
A170: 168 | B170: 0 | C170: 0 | D170: 168 | E170: 0 | F170: 18.52118 | G170: 18.52118 | H170: 0 | I170: 0
A171: 169 | B171: 0 | C171: 0 | D171: 168 | E171: 0 | F171: 18.52118 | G171: 18.52118 | H171: 0 | I171: 0
A172: 170 | B172: 0 | C172: 0 | D172: 168 | E172: 0 | F172: 18.52118 | G172: 18.52118 | H172: 0 | I172: 0
A173: 171 | B173: 0 | C173: 0 | D173: 168 | E173: 0 | F173: 18.52118 | G173: 18.52118 | H173: 0 | I173: 0
A174: 172 | B174: 0 | C174: 0 | D174: 168 | E174: 0 | F174: 18.52118 | G174: 18.52118 | H174: 0 | I174: 0
A175: 173 | B175: 0 | C175: 0 | D175: 168 | E175: 0 | F175: 18.52118 | G175: 18.52118 | H175: 0 | I175: 0
A176: 174 | B176: 0 | C176: 0 | D176: 168 | E176: 0 | F176: 18.52118 | G176: 18.52118 | H176: 0 | I176: 0
A177: 175 | B177: 0 | C177: 0 | D177: 168 | E177: 0 | F177: 18.52118 | G177: 18.52118 | H177: 0 | I177: 0
A178: 176 | B178: 0 | C178: 0 | D178: 168 | E178: 0 | F178: 18.52118 | G178: 18.52118 | H178: 0 | I178: 0
A179: 177 | B179: 0 | C179: 0 | D179: 168 | E179: 0 | F179: 18.52118 | G179: 18.52118 | H179: 0 | I179: 0
A180: 178 | B180: 0 | C180: 0 | D180: 168 | E180: 0 | F180: 18.52118 | G180: 18.52118 | H180: 0 | I180: 0
A181: 179 | B181: 0 | C181: 0 | D181: 168 | E181: 0 | F181: 18.52118 | G181: 18.52118 | H181: 0 | I181: 0
A182: 180 | B182: 0 | C182: 0 | D182: 168 | E182: 0 | F182: 18.52118 | G182: 18.52118 | H182: 0 | I182: 0
A183: 181 | B183: 0 | C183: 0 | D183: 168 | E183: 0 | F183: 18.52118 | G183: 18.52118 | H183: 0 | I183: 0
A184: 182 | B184: 0 | C184: 0 | D184: 168 | E184: 0 | F184: 18.52118 | G184: 18.52118 | H184: 0 | I184: 0
A185: 183 | B185: 0 | C185: 0 | D185: 168 | E185: 0 | F185: 18.52118 | G185: 18.52118 | H185: 0 | I185: 0
A186: 184 | B186: 0 | C186: 0 | D186: 168 | E186: 0 | F186: 18.52118 | G186: 18.52118 | H186: 0 | I186: 0
A187: 185 | B187: 0 | C187: 0 | D187: 168 | E187: 0 | F187: 18.52118 | G187: 18.52118 | H187: 0 | I187: 0
A188: 186 | B188: 0 | C188: 0 | D188: 168 | E188: 0 | F188: 18.52118 | G188: 18.52118 | H188: 0 | I188: 0
A189: 187 | B189: 0 | C189: 0 | D189: 168 | E189: 0 | F189: 18.52118 | G189: 18.52118 | H189: 0 | I189: 0
A190: 188 | B190: 0 | C190: 0 | D190: 168 | E190: 0 | F190: 18.52118 | G190: 18.52118 | H190: 0 | I190: 0
A191: 189 | B191: 0 | C191: 0 | D191: 168 | E191: 0 | F191: 18.52118 | G191: 18.52118 | H191: 0 | I191: 0
A192: 190 | B192: 0 | C192: 0 | D192: 168 | E192: 0 | F192: 18.52118 | G192: 18.52118 | H192: 0 | I192: 0
A193: 191 | B193: 0 | C193: 0 | D193: 168 | E193: 0 | F193: 18.52118 | G193: 18.52118 | H193: 0 | I193: 0
A194: 192 | B194: 0 | C194: 0 | D194: 168 | E194: 0 | F194: 18.52118 | G194: 18.52118 | H194: 0 | I194: 0
A195: 193 | B195: 0 | C195: 0 | D195: 168 | E195: 0 | F195: 18.52118 | G195: 18.52118 | H195: 0 | I195: 0
A196: 194 | B196: 0 | C196: 1 | D196: 168 | E196: 1 | F196: 18.52118 | G196: 18.52118 | H196: 1 | I196: 3600
A197: 195 | B197: 0 | C197: 0 | D197: 167 | E197: 0 | F197: 18.82761 | G197: 18.52118 | H197: 1 | I197: 3600
A198: 196 | B198: 0 | C198: 1 | D198: 167 | E198: 1 | F198: 18.82761 | G198: 18.52118 | H198: 2 | I198: 3600
A199: 197 | B199: 0 | C199: 1 | D199: 166 | E199: 1 | F199: 19.13403 | G199: 18.52118 | H199: 3 | I199: 3600
A200: 198 | B200: 0 | C200: 1 | D200: 165 | E200: 1 | F200: 19.44045 | G200: 18.52118 | H200: 4 | I200: 3600
... 493 more rows

Sheet T4 Flow calc D5
A1: Time(s) | B1: Injected cars | C1: Exiting cars | D1: Current cars in system | E1: Exiting people | F1: Avg. v [km/h] | G1: Min. v [km/h] | H1: Goal: Node 7 | I1: Node 7 flow | N1: Input data | Q1: 75 cars
A2: 0 | B2: 168 | C2: 0 | D2: 168 | E2: 0 | F2: 18.52118 | G2: 18.52118 | H2: 0 | I2: 0 | N2: Distance [m] | O2: Multiplier[-] | P2: Walking speed [m/s] | Q2: Cars/km/lane | R2: Relative density [-] | S2: Speed limits [km/h]
A3: 1 | B3: 0 | C3: 0 | D3: 168 | E3: 0 | F3: 18.52118 | G3: 18.52118 | H3: 0 | I3: 0 | N3: 100 | O3: =0.1 -> 0.1 | P3: 1 | S3: 30 | T3: 50 | U3: 70 | V3: 90 | W3: 110 | X3: 120
A4: 2 | B4: 0 | C4: 0 | D4: 168 | E4: 0 | F4: 18.52118 | G4: 18.52118 | H4: 0 | I4: 0 | N4: 500 | O4: =O3+0.1 -> 0.2 | P4: Stall speed [km/h] | Q4: 0 | R4: =Q4/$Q$79 -> 0 | S4: =(1-$R4)*(S$3-$P$5)+$P$5 -> 30 | T4: 50 | U4: =(1-$R4)*(U$3-$P$5)+$P$5 -> 70 | V4: 90 | W4: 110 | X4: 120
A5: 3 | B5: 0 | C5: 0 | D5: 168 | E5: 0 | F5: 18.52118 | G5: 18.52118 | H5: 0 | I5: 0 | N5: 1000 | O5: =O4+0.1 -> 0.3 | P5: 1 | Q5: 1 | R5: =Q5/$Q$79 -> 0.01333333333 | S5: 29.61333333 | T5: 49.34666667 | U5: 69.08 | V5: 88.81333333 | W5: 108.5466667 | X5: 118.4133333
A6: 4 | B6: 0 | C6: 0 | D6: 168 | E6: 0 | F6: 18.52118 | G6: 18.52118 | H6: 0 | I6: 0 | N6: 1500 | O6: 0.4 | P6: Event timer [s] | Q6: 2 | R6: 0.02666666667 | S6: 29.22666667 | T6: 48.69333333 | U6: 68.16 | V6: 87.62666667 | W6: 107.0933333 | X6: 116.8266667
A7: 5 | B7: 0 | C7: 0 | D7: 168 | E7: 0 | F7: 18.52118 | G7: 18.52118 | H7: 0 | I7: 0 | N7: 2000 | O7: 0.5 | P7: 600 | Q7: 3 | R7: 0.04 | S7: 28.84 | T7: 48.04 | U7: =(1-$R7)*(U$3-$P$5)+$P$5 -> 67.24 | V7: 86.44 | W7: 105.64 | X7: 115.24
A8: 6 | B8: 0 | C8: 0 | D8: 168 | E8: 0 | F8: 18.52118 | G8: 18.52118 | H8: 0 | I8: 0 | N8: 4000 | O8: 0.6 | P8: Initial speed [m/s] | Q8: 4 | R8: 0.05333333333 | S8: 28.45333333 | T8: 47.38666667 | U8: 66.32 | V8: 85.25333333 | W8: 104.1866667 | X8: 113.6533333
A9: 7 | B9: 0 | C9: 0 | D9: 168 | E9: 0 | F9: 18.52118 | G9: 18.52118 | H9: 0 | I9: 0 | O9: 0.7 | P9: 0 | Q9: 5 | R9: 0.06666666667 | S9: 28.06666667 | T9: 46.73333333 | U9: 65.4 | V9: 84.06666667 | W9: 102.7333333 | X9: 112.0666667
A10: 8 | B10: 0 | C10: 0 | D10: 168 | E10: 0 | F10: 18.52118 | G10: 18.52118 | H10: 0 | I10: 0 | O10: 0.8 | P10: Acceleretion [m/s^2] | Q10: 6 | R10: 0.08 | S10: 27.68 | T10: 46.08 | U10: 64.48 | V10: 82.88 | W10: 101.28 | X10: 110.48
A11: 9 | B11: 0 | C11: 0 | D11: 168 | E11: 0 | F11: 18.52118 | G11: 18.52118 | H11: 0 | I11: 0 | O11: 0.9 | P11: =(100/3.6)/10 -> 2.777777778 | Q11: 7 | R11: 0.09333333333 | S11: 27.29333333 | T11: 45.42666667 | U11: 63.56 | V11: 81.69333333 | W11: 99.82666667 | X11: 108.8933333
A12: 10 | B12: 0 | C12: 0 | D12: 168 | E12: 0 | F12: 18.52118 | G12: 18.52118 | H12: 0 | I12: 0 | O12: 1 | Q12: 8 | R12: 0.1066666667 | S12: 26.90666667 | T12: 44.77333333 | U12: 62.64 | V12: 80.50666667 | W12: 98.37333333 | X12: 107.3066667
A13: 11 | B13: 0 | C13: 0 | D13: 168 | E13: 0 | F13: 18.52118 | G13: 18.52118 | H13: 0 | I13: 0 | O13: 1.1 | Q13: 9 | R13: 0.12 | S13: 26.52 | T13: 44.12 | U13: 61.72 | V13: 79.32 | W13: 96.92 | X13: 105.72
A14: 12 | B14: 0 | C14: 0 | D14: 168 | E14: 0 | F14: 18.52118 | G14: 18.52118 | H14: 0 | I14: 0 | O14: 1.2 | Q14: 10 | R14: 0.1333333333 | S14: =(1-$R14)*(S$3-$P$5)+$P$5 -> 26.13333333 | T14: 43.46666667 | U14: 60.8 | V14: 78.13333333 | W14: 95.46666667 | X14: 104.1333333
A15: 13 | B15: 0 | C15: 0 | D15: 168 | E15: 0 | F15: 18.52118 | G15: 18.52118 | H15: 0 | I15: 0 | O15: 1.3 | Q15: 11 | R15: 0.1466666667 | S15: 25.74666667 | T15: 42.81333333 | U15: 59.88 | V15: 76.94666667 | W15: 94.01333333 | X15: 102.5466667
A16: 14 | B16: 0 | C16: 0 | D16: 168 | E16: 0 | F16: 18.52118 | G16: 18.52118 | H16: 0 | I16: 0 | O16: 1.4 | Q16: 12 | R16: 0.16 | S16: 25.36 | T16: 42.16 | U16: 58.96 | V16: 75.76 | W16: 92.56 | X16: 100.96
A17: 15 | B17: 0 | C17: 0 | D17: 168 | E17: 0 | F17: 18.52118 | G17: 18.52118 | H17: 0 | I17: 0 | O17: 1.5 | Q17: 13 | R17: 0.1733333333 | S17: 24.97333333 | T17: 41.50666667 | U17: 58.04 | V17: 74.57333333 | W17: 91.10666667 | X17: 99.37333333
A18: 16 | B18: 0 | C18: 0 | D18: 168 | E18: 0 | F18: 18.52118 | G18: 18.52118 | H18: 0 | I18: 0 | O18: 1.6 | Q18: 14 | R18: 0.1866666667 | S18: 24.58666667 | T18: 40.85333333 | U18: 57.12 | V18: 73.38666667 | W18: 89.65333333 | X18: 97.78666667
A19: 17 | B19: 0 | C19: 0 | D19: 168 | E19: 0 | F19: 18.52118 | G19: 18.52118 | H19: 0 | I19: 0 | O19: 1.7 | Q19: 15 | R19: 0.2 | S19: 24.2 | T19: 40.2 | U19: 56.2 | V19: 72.2 | W19: 88.2 | X19: 96.2
A20: 18 | B20: 0 | C20: 0 | D20: 168 | E20: 0 | F20: 18.52118 | G20: 18.52118 | H20: 0 | I20: 0 | O20: 1.8 | Q20: 16 | R20: 0.2133333333 | S20: 23.81333333 | T20: 39.54666667 | U20: 55.28 | V20: 71.01333333 | W20: 86.74666667 | X20: 94.61333333
A21: 19 | B21: 0 | C21: 0 | D21: 168 | E21: 0 | F21: 18.52118 | G21: 18.52118 | H21: 0 | I21: 0 | O21: 1.9 | Q21: 17 | R21: 0.2266666667 | S21: 23.42666667 | T21: 38.89333333 | U21: 54.36 | V21: 69.82666667 | W21: 85.29333333 | X21: 93.02666667
A22: 20 | B22: 0 | C22: 0 | D22: 168 | E22: 0 | F22: 18.52118 | G22: 18.52118 | H22: 0 | I22: 0 | O22: 2 | Q22: 18 | R22: 0.24 | S22: 23.04 | T22: 38.24 | U22: 53.44 | V22: 68.64 | W22: 83.84 | X22: 91.44
A23: 21 | B23: 0 | C23: 0 | D23: 168 | E23: 0 | F23: 18.52118 | G23: 18.52118 | H23: 0 | I23: 0 | N23: Distance [m] | O23: Time [s] | Q23: 19 | R23: 0.2533333333 | S23: 22.65333333 | T23: 37.58666667 | U23: 52.52 | V23: 67.45333333 | W23: 82.38666667 | X23: 89.85333333
A24: 22 | B24: 0 | C24: 0 | D24: 168 | E24: 0 | F24: 18.52118 | G24: 18.52118 | H24: 0 | I24: 0 | N24: 1000 | O24: =N24/(U79/3.6) -> 3600 | Q24: 20 | R24: 0.2666666667 | S24: =(1-$R24)*(S$3-$P$5)+$P$5 -> 22.26666667 | T24: 36.93333333 | U24: 51.6 | V24: 66.26666667 | W24: 80.93333333 | X24: 88.26666667
A25: 23 | B25: 0 | C25: 0 | D25: 168 | E25: 0 | F25: 18.52118 | G25: 18.52118 | H25: 0 | I25: 0 | N25: Relative Density | O25: Avg. Speed | P25: Avg. Flow rate (vehicles/lane/hour) | Q25: 21 | R25: 0.28 | S25: 21.88 | T25: 36.28 | U25: 50.68 | V25: 65.08 | W25: 79.48 | X25: 86.68
A26: 24 | B26: 0 | C26: 0 | D26: 168 | E26: 0 | F26: 18.52118 | G26: 18.52118 | H26: 0 | I26: 0 | N26: =R79 -> 1 | O26: =U79 -> 1 | P26: =Q79/O24*3600 -> 75 | Q26: 22 | R26: 0.2933333333 | S26: 21.49333333 | T26: 35.62666667 | U26: 49.76 | V26: 63.89333333 | W26: 78.02666667 | X26: 85.09333333
A27: 25 | B27: 0 | C27: 0 | D27: 168 | E27: 0 | F27: 18.52118 | G27: 18.52118 | H27: 0 | I27: 0 | N27: Sim. Rel. Dens. | O27: Sim.avg. Speed | P27: Avg. Flow rate [cars/lane minute] | Q27: 23 | R27: 0.3066666667 | S27: 21.10666667 | T27: 34.97333333 | U27: 48.84 | V27: 62.70666667 | W27: 76.57333333 | X27: 83.50666667
A28: 26 | B28: 0 | C28: 0 | D28: 168 | E28: 0 | F28: 18.52118 | G28: 18.52118 | H28: 0 | I28: 0 | N28: =R79 -> 1 | O28: =F2 -> 18.52118 | P28: =P26*60 -> 4500 | Q28: 24 | R28: 0.32 | S28: 20.72 | T28: 34.32 | U28: 47.92 | V28: 61.52 | W28: 75.12 | X28: 81.92
A29: 27 | B29: 0 | C29: 0 | D29: 168 | E29: 0 | F29: 18.52118 | G29: 18.52118 | H29: 0 | I29: 0 | P29: Sim.Avg. Flowrate [cars/lane second] | Q29: 25 | R29: 0.3333333333 | S29: 20.33333333 | T29: 33.66666667 | U29: 47 | V29: 60.33333333 | W29: 73.66666667 | X29: 80.33333333
A30: 28 | B30: 0 | C30: 0 | D30: 168 | E30: 0 | F30: 18.52118 | G30: 18.52118 | H30: 0 | I30: 0 | P30: =H3417 -> 12.561347 | Q30: 26 | R30: 0.3466666667 | S30: 19.94666667 | T30: 33.01333333 | U30: 46.08 | V30: 59.14666667 | W30: 72.21333333 | X30: 78.74666667
A31: 29 | B31: 0 | C31: 0 | D31: 168 | E31: 0 | F31: 18.52118 | G31: 18.52118 | H31: 0 | I31: 0 | P31: Sim.Avg. Flowrate [cars/lane minute] | Q31: 27 | R31: 0.36 | S31: 19.56 | T31: 32.36 | U31: 45.16 | V31: 57.96 | W31: 70.76 | X31: 77.16
A32: 30 | B32: 0 | C32: 0 | D32: 168 | E32: 0 | F32: 18.52118 | G32: 18.52118 | H32: 0 | I32: 0 | P32: =P30*60 -> 753.6808199 | Q32: 28 | R32: 0.3733333333 | S32: 19.17333333 | T32: 31.70666667 | U32: 44.24 | V32: 56.77333333 | W32: 69.30666667 | X32: 75.57333333
A33: 31 | B33: 0 | C33: 0 | D33: 168 | E33: 0 | F33: 18.52118 | G33: 18.52118 | H33: 0 | I33: 0 | Q33: 29 | R33: 0.3866666667 | S33: 18.78666667 | T33: 31.05333333 | U33: 43.32 | V33: 55.58666667 | W33: 67.85333333 | X33: 73.98666667
A34: 32 | B34: 0 | C34: 0 | D34: 168 | E34: 0 | F34: 18.52118 | G34: 18.52118 | H34: 0 | I34: 0 | Q34: 30 | R34: 0.4 | S34: =(1-$R34)*(S$3-$P$5)+$P$5 -> 18.4 | T34: 30.4 | U34: 42.4 | V34: 54.4 | W34: 66.4 | X34: 72.4
A35: 33 | B35: 0 | C35: 0 | D35: 168 | E35: 0 | F35: 18.52118 | G35: 18.52118 | H35: 0 | I35: 0 | Q35: 31 | R35: 0.4133333333 | S35: 18.01333333 | T35: 29.74666667 | U35: 41.48 | V35: 53.21333333 | W35: 64.94666667 | X35: 70.81333333
A36: 34 | B36: 0 | C36: 0 | D36: 168 | E36: 0 | F36: 18.52118 | G36: 18.52118 | H36: 0 | I36: 0 | Q36: 32 | R36: =Q36/$Q$79 -> 0.4266666667 | S36: 17.62666667 | T36: 29.09333333 | U36: 40.56 | V36: 52.02666667 | W36: 63.49333333 | X36: 69.22666667
A37: 35 | B37: 0 | C37: 0 | D37: 168 | E37: 0 | F37: 18.52118 | G37: 18.52118 | H37: 0 | I37: 0 | Q37: 33 | R37: 0.44 | S37: 17.24 | T37: 28.44 | U37: 39.64 | V37: 50.84 | W37: 62.04 | X37: 67.64
A38: 36 | B38: 0 | C38: 0 | D38: 168 | E38: 0 | F38: 18.52118 | G38: 18.52118 | H38: 0 | I38: 0 | Q38: 34 | R38: 0.4533333333 | S38: 16.85333333 | T38: 27.78666667 | U38: 38.72 | V38: 49.65333333 | W38: 60.58666667 | X38: 66.05333333
A39: 37 | B39: 0 | C39: 0 | D39: 168 | E39: 0 | F39: 18.52118 | G39: 18.52118 | H39: 0 | I39: 0 | Q39: 35 | R39: 0.4666666667 | S39: 16.46666667 | T39: 27.13333333 | U39: 37.8 | V39: 48.46666667 | W39: 59.13333333 | X39: 64.46666667
A40: 38 | B40: 0 | C40: 0 | D40: 168 | E40: 0 | F40: 18.52118 | G40: 18.52118 | H40: 0 | I40: 0 | Q40: 36 | R40: 0.48 | S40: 16.08 | T40: 26.48 | U40: 36.88 | V40: 47.28 | W40: 57.68 | X40: 62.88
A41: 39 | B41: 0 | C41: 0 | D41: 168 | E41: 0 | F41: 18.52118 | G41: 18.52118 | H41: 0 | I41: 0 | Q41: 37 | R41: 0.4933333333 | S41: 15.69333333 | T41: 25.82666667 | U41: 35.96 | V41: 46.09333333 | W41: 56.22666667 | X41: 61.29333333
A42: 40 | B42: 0 | C42: 0 | D42: 168 | E42: 0 | F42: 18.52118 | G42: 18.52118 | H42: 0 | I42: 0 | Q42: 38 | R42: 0.5066666667 | S42: 15.30666667 | T42: 25.17333333 | U42: 35.04 | V42: 44.90666667 | W42: 54.77333333 | X42: 59.70666667
A43: 41 | B43: 0 | C43: 0 | D43: 168 | E43: 0 | F43: 18.52118 | G43: 18.52118 | H43: 0 | I43: 0 | Q43: 39 | R43: 0.52 | S43: 14.92 | T43: 24.52 | U43: 34.12 | V43: 43.72 | W43: 53.32 | X43: 58.12
A44: 42 | B44: 0 | C44: 0 | D44: 168 | E44: 0 | F44: 18.52118 | G44: 18.52118 | H44: 0 | I44: 0 | Q44: 40 | R44: 0.5333333333 | S44: =(1-$R44)*(S$3-$P$5)+$P$5 -> 14.53333333 | T44: 23.86666667 | U44: 33.2 | V44: 42.53333333 | W44: 51.86666667 | X44: 56.53333333
A45: 43 | B45: 0 | C45: 0 | D45: 168 | E45: 0 | F45: 18.52118 | G45: 18.52118 | H45: 0 | I45: 0 | Q45: 41 | R45: 0.5466666667 | S45: 14.14666667 | T45: 23.21333333 | U45: 32.28 | V45: 41.34666667 | W45: 50.41333333 | X45: 54.94666667
A46: 44 | B46: 0 | C46: 0 | D46: 168 | E46: 0 | F46: 18.52118 | G46: 18.52118 | H46: 0 | I46: 0 | Q46: 42 | R46: 0.56 | S46: 13.76 | T46: 22.56 | U46: 31.36 | V46: 40.16 | W46: 48.96 | X46: 53.36
A47: 45 | B47: 0 | C47: 0 | D47: 168 | E47: 0 | F47: 18.52118 | G47: 18.52118 | H47: 0 | I47: 0 | Q47: 43 | R47: 0.5733333333 | S47: 13.37333333 | T47: 21.90666667 | U47: 30.44 | V47: 38.97333333 | W47: 47.50666667 | X47: 51.77333333
A48: 46 | B48: 0 | C48: 0 | D48: 168 | E48: 0 | F48: 18.52118 | G48: 18.52118 | H48: 0 | I48: 0 | Q48: 44 | R48: 0.5866666667 | S48: 12.98666667 | T48: 21.25333333 | U48: 29.52 | V48: 37.78666667 | W48: 46.05333333 | X48: 50.18666667
A49: 47 | B49: 0 | C49: 0 | D49: 168 | E49: 0 | F49: 18.52118 | G49: 18.52118 | H49: 0 | I49: 0 | Q49: 45 | R49: 0.6 | S49: 12.6 | T49: 20.6 | U49: 28.6 | V49: 36.6 | W49: 44.6 | X49: 48.6
A50: 48 | B50: 0 | C50: 0 | D50: 168 | E50: 0 | F50: 18.52118 | G50: 18.52118 | H50: 0 | I50: 0 | Q50: 46 | R50: 0.6133333333 | S50: 12.21333333 | T50: 19.94666667 | U50: 27.68 | V50: 35.41333333 | W50: 43.14666667 | X50: 47.01333333
A51: 49 | B51: 0 | C51: 0 | D51: 168 | E51: 0 | F51: 18.52118 | G51: 18.52118 | H51: 0 | I51: 0 | Q51: 47 | R51: 0.6266666667 | S51: 11.82666667 | T51: 19.29333333 | U51: 26.76 | V51: 34.22666667 | W51: 41.69333333 | X51: 45.42666667
A52: 50 | B52: 0 | C52: 0 | D52: 168 | E52: 0 | F52: 18.52118 | G52: 18.52118 | H52: 0 | I52: 0 | Q52: 48 | R52: 0.64 | S52: 11.44 | T52: 18.64 | U52: 25.84 | V52: 33.04 | W52: 40.24 | X52: 43.84
A53: 51 | B53: 0 | C53: 0 | D53: 168 | E53: 0 | F53: 18.52118 | G53: 18.52118 | H53: 0 | I53: 0 | Q53: 49 | R53: 0.6533333333 | S53: 11.05333333 | T53: 17.98666667 | U53: 24.92 | V53: 31.85333333 | W53: 38.78666667 | X53: 42.25333333
A54: 52 | B54: 0 | C54: 0 | D54: 168 | E54: 0 | F54: 18.52118 | G54: 18.52118 | H54: 0 | I54: 0 | Q54: 50 | R54: 0.6666666667 | S54: =(1-$R54)*(S$3-$P$5)+$P$5 -> 10.66666667 | T54: 17.33333333 | U54: 24 | V54: 30.66666667 | W54: 37.33333333 | X54: 40.66666667
A55: 53 | B55: 0 | C55: 0 | D55: 168 | E55: 0 | F55: 18.52118 | G55: 18.52118 | H55: 0 | I55: 0 | Q55: 51 | R55: 0.68 | S55: 10.28 | T55: 16.68 | U55: 23.08 | V55: 29.48 | W55: 35.88 | X55: 39.08
A56: 54 | B56: 0 | C56: 0 | D56: 168 | E56: 0 | F56: 18.52118 | G56: 18.52118 | H56: 0 | I56: 0 | Q56: 52 | R56: 0.6933333333 | S56: 9.893333333 | T56: 16.02666667 | U56: 22.16 | V56: 28.29333333 | W56: 34.42666667 | X56: 37.49333333
A57: 55 | B57: 0 | C57: 0 | D57: 168 | E57: 0 | F57: 18.52118 | G57: 18.52118 | H57: 0 | I57: 0 | Q57: 53 | R57: 0.7066666667 | S57: 9.506666667 | T57: 15.37333333 | U57: 21.24 | V57: 27.10666667 | W57: 32.97333333 | X57: 35.90666667
A58: 56 | B58: 0 | C58: 0 | D58: 168 | E58: 0 | F58: 18.52118 | G58: 18.52118 | H58: 0 | I58: 0 | Q58: 54 | R58: 0.72 | S58: 9.12 | T58: 14.72 | U58: 20.32 | V58: 25.92 | W58: 31.52 | X58: 34.32
A59: 57 | B59: 0 | C59: 0 | D59: 168 | E59: 0 | F59: 18.52118 | G59: 18.52118 | H59: 0 | I59: 0 | Q59: 55 | R59: 0.7333333333 | S59: 8.733333333 | T59: 14.06666667 | U59: 19.4 | V59: 24.73333333 | W59: 30.06666667 | X59: 32.73333333
A60: 58 | B60: 0 | C60: 0 | D60: 168 | E60: 0 | F60: 18.52118 | G60: 18.52118 | H60: 0 | I60: 0 | Q60: 56 | R60: 0.7466666667 | S60: 8.346666667 | T60: 13.41333333 | U60: 18.48 | V60: 23.54666667 | W60: 28.61333333 | X60: 31.14666667
A61: 59 | B61: 0 | C61: 0 | D61: 168 | E61: 0 | F61: 18.52118 | G61: 18.52118 | H61: 0 | I61: 0 | Q61: 57 | R61: 0.76 | S61: 7.96 | T61: 12.76 | U61: 17.56 | V61: 22.36 | W61: 27.16 | X61: 29.56
A62: 60 | B62: 0 | C62: 0 | D62: 168 | E62: 0 | F62: 18.52118 | G62: 18.52118 | H62: 0 | I62: 0 | Q62: 58 | R62: 0.7733333333 | S62: 7.573333333 | T62: 12.10666667 | U62: 16.64 | V62: 21.17333333 | W62: 25.70666667 | X62: 27.97333333
A63: 61 | B63: 0 | C63: 0 | D63: 168 | E63: 0 | F63: 18.52118 | G63: 18.52118 | H63: 0 | I63: 0 | Q63: 59 | R63: 0.7866666667 | S63: 7.186666667 | T63: 11.45333333 | U63: 15.72 | V63: 19.98666667 | W63: 24.25333333 | X63: 26.38666667
A64: 62 | B64: 0 | C64: 0 | D64: 168 | E64: 0 | F64: 18.52118 | G64: 18.52118 | H64: 0 | I64: 0 | Q64: 60 | R64: 0.8 | S64: =(1-$R64)*(S$3-$P$5)+$P$5 -> 6.8 | T64: 10.8 | U64: 14.8 | V64: 18.8 | W64: 22.8 | X64: 24.8
A65: 63 | B65: 0 | C65: 0 | D65: 168 | E65: 0 | F65: 18.52118 | G65: 18.52118 | H65: 0 | I65: 0 | Q65: 61 | R65: 0.8133333333 | S65: 6.413333333 | T65: 10.14666667 | U65: 13.88 | V65: 17.61333333 | W65: 21.34666667 | X65: 23.21333333
A66: 64 | B66: 0 | C66: 0 | D66: 168 | E66: 0 | F66: 18.52118 | G66: 18.52118 | H66: 0 | I66: 0 | Q66: 62 | R66: 0.8266666667 | S66: 6.026666667 | T66: 9.493333333 | U66: 12.96 | V66: 16.42666667 | W66: 19.89333333 | X66: 21.62666667
A67: 65 | B67: 0 | C67: 0 | D67: 168 | E67: 0 | F67: 18.52118 | G67: 18.52118 | H67: 0 | I67: 0 | Q67: 63 | R67: 0.84 | S67: 5.64 | T67: 8.84 | U67: 12.04 | V67: 15.24 | W67: 18.44 | X67: 20.04
A68: 66 | B68: 0 | C68: 0 | D68: 168 | E68: 0 | F68: 18.52118 | G68: 18.52118 | H68: 0 | I68: 0 | Q68: 64 | R68: =Q68/$Q$79 -> 0.8533333333 | S68: 5.253333333 | T68: 8.186666667 | U68: 11.12 | V68: 14.05333333 | W68: 16.98666667 | X68: 18.45333333
A69: 67 | B69: 0 | C69: 0 | D69: 168 | E69: 0 | F69: 18.52118 | G69: 18.52118 | H69: 0 | I69: 0 | Q69: 65 | R69: 0.8666666667 | S69: 4.866666667 | T69: 7.533333333 | U69: 10.2 | V69: 12.86666667 | W69: 15.53333333 | X69: 16.86666667
A70: 68 | B70: 0 | C70: 0 | D70: 168 | E70: 0 | F70: 18.52118 | G70: 18.52118 | H70: 0 | I70: 0 | Q70: 66 | R70: 0.88 | S70: 4.48 | T70: 6.88 | U70: 9.28 | V70: 11.68 | W70: 14.08 | X70: 15.28
A71: 69 | B71: 0 | C71: 0 | D71: 168 | E71: 0 | F71: 18.52118 | G71: 18.52118 | H71: 0 | I71: 0 | Q71: 67 | R71: 0.8933333333 | S71: 4.093333333 | T71: 6.226666667 | U71: 8.36 | V71: 10.49333333 | W71: 12.62666667 | X71: 13.69333333
A72: 70 | B72: 0 | C72: 0 | D72: 168 | E72: 0 | F72: 18.52118 | G72: 18.52118 | H72: 0 | I72: 0 | Q72: 68 | R72: 0.9066666667 | S72: 3.706666667 | T72: 5.573333333 | U72: 7.44 | V72: 9.306666667 | W72: 11.17333333 | X72: 12.10666667
A73: 71 | B73: 0 | C73: 0 | D73: 168 | E73: 0 | F73: 18.52118 | G73: 18.52118 | H73: 0 | I73: 0 | Q73: 69 | R73: 0.92 | S73: 3.32 | T73: 4.92 | U73: 6.52 | V73: 8.12 | W73: 9.72 | X73: 10.52
A74: 72 | B74: 0 | C74: 0 | D74: 168 | E74: 0 | F74: 18.52118 | G74: 18.52118 | H74: 0 | I74: 0 | Q74: 70 | R74: 0.9333333333 | S74: =(1-$R74)*(S$3-$P$5)+$P$5 -> 2.933333333 | T74: 4.266666667 | U74: 5.6 | V74: 6.933333333 | W74: 8.266666667 | X74: 8.933333333
A75: 73 | B75: 0 | C75: 0 | D75: 168 | E75: 0 | F75: 18.52118 | G75: 18.52118 | H75: 0 | I75: 0 | Q75: 71 | R75: 0.9466666667 | S75: 2.546666667 | T75: 3.613333333 | U75: 4.68 | V75: 5.746666667 | W75: 6.813333333 | X75: 7.346666667
A76: 74 | B76: 0 | C76: 0 | D76: 168 | E76: 0 | F76: 18.52118 | G76: 18.52118 | H76: 0 | I76: 0 | Q76: 72 | R76: 0.96 | S76: 2.16 | T76: 2.96 | U76: 3.76 | V76: 4.56 | W76: 5.36 | X76: 5.76
A77: 75 | B77: 0 | C77: 0 | D77: 168 | E77: 0 | F77: 18.52118 | G77: 18.52118 | H77: 0 | I77: 0 | Q77: 73 | R77: 0.9733333333 | S77: 1.773333333 | T77: 2.306666667 | U77: 2.84 | V77: 3.373333333 | W77: 3.906666667 | X77: 4.173333333
A78: 76 | B78: 0 | C78: 0 | D78: 168 | E78: 0 | F78: 18.52118 | G78: 18.52118 | H78: 0 | I78: 0 | Q78: 74 | R78: 0.9866666667 | S78: 1.386666667 | T78: 1.653333333 | U78: 1.92 | V78: 2.186666667 | W78: 2.453333333 | X78: 2.586666667
A79: 77 | B79: 0 | C79: 0 | D79: 168 | E79: 0 | F79: 18.52118 | G79: 18.52118 | H79: 0 | I79: 0 | Q79: 75 | R79: 1 | S79: 1 | T79: 1 | U79: 1 | V79: 1 | W79: 1 | X79: 1
A80: 78 | B80: 0 | C80: 0 | D80: 168 | E80: 0 | F80: 18.52118 | G80: 18.52118 | H80: 0 | I80: 0
A81: 79 | B81: 0 | C81: 0 | D81: 168 | E81: 0 | F81: 18.52118 | G81: 18.52118 | H81: 0 | I81: 0
A82: 80 | B82: 0 | C82: 0 | D82: 168 | E82: 0 | F82: 18.52118 | G82: 18.52118 | H82: 0 | I82: 0
A83: 81 | B83: 0 | C83: 0 | D83: 168 | E83: 0 | F83: 18.52118 | G83: 18.52118 | H83: 0 | I83: 0
A84: 82 | B84: 0 | C84: 0 | D84: 168 | E84: 0 | F84: 18.52118 | G84: 18.52118 | H84: 0 | I84: 0
A85: 83 | B85: 0 | C85: 0 | D85: 168 | E85: 0 | F85: 18.52118 | G85: 18.52118 | H85: 0 | I85: 0
A86: 84 | B86: 0 | C86: 0 | D86: 168 | E86: 0 | F86: 18.52118 | G86: 18.52118 | H86: 0 | I86: 0
A87: 85 | B87: 0 | C87: 0 | D87: 168 | E87: 0 | F87: 18.52118 | G87: 18.52118 | H87: 0 | I87: 0
A88: 86 | B88: 0 | C88: 0 | D88: 168 | E88: 0 | F88: 18.52118 | G88: 18.52118 | H88: 0 | I88: 0
A89: 87 | B89: 0 | C89: 0 | D89: 168 | E89: 0 | F89: 18.52118 | G89: 18.52118 | H89: 0 | I89: 0
A90: 88 | B90: 0 | C90: 0 | D90: 168 | E90: 0 | F90: 18.52118 | G90: 18.52118 | H90: 0 | I90: 0
A91: 89 | B91: 0 | C91: 0 | D91: 168 | E91: 0 | F91: 18.52118 | G91: 18.52118 | H91: 0 | I91: 0
A92: 90 | B92: 0 | C92: 0 | D92: 168 | E92: 0 | F92: 18.52118 | G92: 18.52118 | H92: 0 | I92: 0
A93: 91 | B93: 0 | C93: 0 | D93: 168 | E93: 0 | F93: 18.52118 | G93: 18.52118 | H93: 0 | I93: 0
A94: 92 | B94: 0 | C94: 0 | D94: 168 | E94: 0 | F94: 18.52118 | G94: 18.52118 | H94: 0 | I94: 0
A95: 93 | B95: 0 | C95: 0 | D95: 168 | E95: 0 | F95: 18.52118 | G95: 18.52118 | H95: 0 | I95: 0
A96: 94 | B96: 0 | C96: 0 | D96: 168 | E96: 0 | F96: 18.52118 | G96: 18.52118 | H96: 0 | I96: 0
A97: 95 | B97: 0 | C97: 0 | D97: 168 | E97: 0 | F97: 18.52118 | G97: 18.52118 | H97: 0 | I97: 0
A98: 96 | B98: 0 | C98: 0 | D98: 168 | E98: 0 | F98: 18.52118 | G98: 18.52118 | H98: 0 | I98: 0
A99: 97 | B99: 0 | C99: 0 | D99: 168 | E99: 0 | F99: 18.52118 | G99: 18.52118 | H99: 0 | I99: 0
A100: 98 | B100: 0 | C100: 0 | D100: 168 | E100: 0 | F100: 18.52118 | G100: 18.52118 | H100: 0 | I100: 0
A101: 99 | B101: 0 | C101: 0 | D101: 168 | E101: 0 | F101: 18.52118 | G101: 18.52118 | H101: 0 | I101: 0
A102: 100 | B102: 0 | C102: 0 | D102: 168 | E102: 0 | F102: 18.52118 | G102: 18.52118 | H102: 0 | I102: 0
A103: 101 | B103: 0 | C103: 0 | D103: 168 | E103: 0 | F103: 18.52118 | G103: 18.52118 | H103: 0 | I103: 0
A104: 102 | B104: 0 | C104: 0 | D104: 168 | E104: 0 | F104: 18.52118 | G104: 18.52118 | H104: 0 | I104: 0
A105: 103 | B105: 0 | C105: 0 | D105: 168 | E105: 0 | F105: 18.52118 | G105: 18.52118 | H105: 0 | I105: 0
A106: 104 | B106: 0 | C106: 0 | D106: 168 | E106: 0 | F106: 18.52118 | G106: 18.52118 | H106: 0 | I106: 0
A107: 105 | B107: 0 | C107: 0 | D107: 168 | E107: 0 | F107: 18.52118 | G107: 18.52118 | H107: 0 | I107: 0
A108: 106 | B108: 0 | C108: 0 | D108: 168 | E108: 0 | F108: 18.52118 | G108: 18.52118 | H108: 0 | I108: 0
A109: 107 | B109: 0 | C109: 0 | D109: 168 | E109: 0 | F109: 18.52118 | G109: 18.52118 | H109: 0 | I109: 0
A110: 108 | B110: 0 | C110: 0 | D110: 168 | E110: 0 | F110: 18.52118 | G110: 18.52118 | H110: 0 | I110: 0
A111: 109 | B111: 0 | C111: 0 | D111: 168 | E111: 0 | F111: 18.52118 | G111: 18.52118 | H111: 0 | I111: 0
A112: 110 | B112: 0 | C112: 0 | D112: 168 | E112: 0 | F112: 18.52118 | G112: 18.52118 | H112: 0 | I112: 0
A113: 111 | B113: 0 | C113: 0 | D113: 168 | E113: 0 | F113: 18.52118 | G113: 18.52118 | H113: 0 | I113: 0
A114: 112 | B114: 0 | C114: 0 | D114: 168 | E114: 0 | F114: 18.52118 | G114: 18.52118 | H114: 0 | I114: 0
A115: 113 | B115: 0 | C115: 0 | D115: 168 | E115: 0 | F115: 18.52118 | G115: 18.52118 | H115: 0 | I115: 0
A116: 114 | B116: 0 | C116: 0 | D116: 168 | E116: 0 | F116: 18.52118 | G116: 18.52118 | H116: 0 | I116: 0
A117: 115 | B117: 0 | C117: 0 | D117: 168 | E117: 0 | F117: 18.52118 | G117: 18.52118 | H117: 0 | I117: 0
A118: 116 | B118: 0 | C118: 0 | D118: 168 | E118: 0 | F118: 18.52118 | G118: 18.52118 | H118: 0 | I118: 0
A119: 117 | B119: 0 | C119: 0 | D119: 168 | E119: 0 | F119: 18.52118 | G119: 18.52118 | H119: 0 | I119: 0
A120: 118 | B120: 0 | C120: 0 | D120: 168 | E120: 0 | F120: 18.52118 | G120: 18.52118 | H120: 0 | I120: 0
A121: 119 | B121: 0 | C121: 0 | D121: 168 | E121: 0 | F121: 18.52118 | G121: 18.52118 | H121: 0 | I121: 0
A122: 120 | B122: 0 | C122: 0 | D122: 168 | E122: 0 | F122: 18.52118 | G122: 18.52118 | H122: 0 | I122: 0
A123: 121 | B123: 0 | C123: 0 | D123: 168 | E123: 0 | F123: 18.52118 | G123: 18.52118 | H123: 0 | I123: 0
A124: 122 | B124: 0 | C124: 0 | D124: 168 | E124: 0 | F124: 18.52118 | G124: 18.52118 | H124: 0 | I124: 0
A125: 123 | B125: 0 | C125: 0 | D125: 168 | E125: 0 | F125: 18.52118 | G125: 18.52118 | H125: 0 | I125: 0
A126: 124 | B126: 0 | C126: 0 | D126: 168 | E126: 0 | F126: 18.52118 | G126: 18.52118 | H126: 0 | I126: 0
A127: 125 | B127: 0 | C127: 0 | D127: 168 | E127: 0 | F127: 18.52118 | G127: 18.52118 | H127: 0 | I127: 0
A128: 126 | B128: 0 | C128: 0 | D128: 168 | E128: 0 | F128: 18.52118 | G128: 18.52118 | H128: 0 | I128: 0
A129: 127 | B129: 0 | C129: 0 | D129: 168 | E129: 0 | F129: 18.52118 | G129: 18.52118 | H129: 0 | I129: 0
A130: 128 | B130: 0 | C130: 0 | D130: 168 | E130: 0 | F130: 18.52118 | G130: 18.52118 | H130: 0 | I130: 0
A131: 129 | B131: 0 | C131: 0 | D131: 168 | E131: 0 | F131: 18.52118 | G131: 18.52118 | H131: 0 | I131: 0
A132: 130 | B132: 0 | C132: 0 | D132: 168 | E132: 0 | F132: 18.52118 | G132: 18.52118 | H132: 0 | I132: 0
A133: 131 | B133: 0 | C133: 0 | D133: 168 | E133: 0 | F133: 18.52118 | G133: 18.52118 | H133: 0 | I133: 0
A134: 132 | B134: 0 | C134: 0 | D134: 168 | E134: 0 | F134: 18.52118 | G134: 18.52118 | H134: 0 | I134: 0
A135: 133 | B135: 0 | C135: 0 | D135: 168 | E135: 0 | F135: 18.52118 | G135: 18.52118 | H135: 0 | I135: 0
A136: 134 | B136: 0 | C136: 0 | D136: 168 | E136: 0 | F136: 18.52118 | G136: 18.52118 | H136: 0 | I136: 0
A137: 135 | B137: 0 | C137: 0 | D137: 168 | E137: 0 | F137: 18.52118 | G137: 18.52118 | H137: 0 | I137: 0
A138: 136 | B138: 0 | C138: 0 | D138: 168 | E138: 0 | F138: 18.52118 | G138: 18.52118 | H138: 0 | I138: 0
A139: 137 | B139: 0 | C139: 0 | D139: 168 | E139: 0 | F139: 18.52118 | G139: 18.52118 | H139: 0 | I139: 0
A140: 138 | B140: 0 | C140: 0 | D140: 168 | E140: 0 | F140: 18.52118 | G140: 18.52118 | H140: 0 | I140: 0
A141: 139 | B141: 0 | C141: 0 | D141: 168 | E141: 0 | F141: 18.52118 | G141: 18.52118 | H141: 0 | I141: 0
A142: 140 | B142: 0 | C142: 0 | D142: 168 | E142: 0 | F142: 18.52118 | G142: 18.52118 | H142: 0 | I142: 0
A143: 141 | B143: 0 | C143: 0 | D143: 168 | E143: 0 | F143: 18.52118 | G143: 18.52118 | H143: 0 | I143: 0
A144: 142 | B144: 0 | C144: 0 | D144: 168 | E144: 0 | F144: 18.52118 | G144: 18.52118 | H144: 0 | I144: 0
A145: 143 | B145: 0 | C145: 0 | D145: 168 | E145: 0 | F145: 18.52118 | G145: 18.52118 | H145: 0 | I145: 0
A146: 144 | B146: 0 | C146: 0 | D146: 168 | E146: 0 | F146: 18.52118 | G146: 18.52118 | H146: 0 | I146: 0
A147: 145 | B147: 0 | C147: 0 | D147: 168 | E147: 0 | F147: 18.52118 | G147: 18.52118 | H147: 0 | I147: 0
A148: 146 | B148: 0 | C148: 0 | D148: 168 | E148: 0 | F148: 18.52118 | G148: 18.52118 | H148: 0 | I148: 0
A149: 147 | B149: 0 | C149: 0 | D149: 168 | E149: 0 | F149: 18.52118 | G149: 18.52118 | H149: 0 | I149: 0
A150: 148 | B150: 0 | C150: 0 | D150: 168 | E150: 0 | F150: 18.52118 | G150: 18.52118 | H150: 0 | I150: 0
A151: 149 | B151: 0 | C151: 0 | D151: 168 | E151: 0 | F151: 18.52118 | G151: 18.52118 | H151: 0 | I151: 0
A152: 150 | B152: 0 | C152: 0 | D152: 168 | E152: 0 | F152: 18.52118 | G152: 18.52118 | H152: 0 | I152: 0
A153: 151 | B153: 0 | C153: 0 | D153: 168 | E153: 0 | F153: 18.52118 | G153: 18.52118 | H153: 0 | I153: 0
A154: 152 | B154: 0 | C154: 0 | D154: 168 | E154: 0 | F154: 18.52118 | G154: 18.52118 | H154: 0 | I154: 0
A155: 153 | B155: 0 | C155: 0 | D155: 168 | E155: 0 | F155: 18.52118 | G155: 18.52118 | H155: 0 | I155: 0
A156: 154 | B156: 0 | C156: 0 | D156: 168 | E156: 0 | F156: 18.52118 | G156: 18.52118 | H156: 0 | I156: 0
A157: 155 | B157: 0 | C157: 0 | D157: 168 | E157: 0 | F157: 18.52118 | G157: 18.52118 | H157: 0 | I157: 0
A158: 156 | B158: 0 | C158: 0 | D158: 168 | E158: 0 | F158: 18.52118 | G158: 18.52118 | H158: 0 | I158: 0
A159: 157 | B159: 0 | C159: 0 | D159: 168 | E159: 0 | F159: 18.52118 | G159: 18.52118 | H159: 0 | I159: 0
A160: 158 | B160: 0 | C160: 0 | D160: 168 | E160: 0 | F160: 18.52118 | G160: 18.52118 | H160: 0 | I160: 0
A161: 159 | B161: 0 | C161: 0 | D161: 168 | E161: 0 | F161: 18.52118 | G161: 18.52118 | H161: 0 | I161: 0
A162: 160 | B162: 0 | C162: 0 | D162: 168 | E162: 0 | F162: 18.52118 | G162: 18.52118 | H162: 0 | I162: 0
A163: 161 | B163: 0 | C163: 0 | D163: 168 | E163: 0 | F163: 18.52118 | G163: 18.52118 | H163: 0 | I163: 0
A164: 162 | B164: 0 | C164: 0 | D164: 168 | E164: 0 | F164: 18.52118 | G164: 18.52118 | H164: 0 | I164: 0
A165: 163 | B165: 0 | C165: 0 | D165: 168 | E165: 0 | F165: 18.52118 | G165: 18.52118 | H165: 0 | I165: 0
A166: 164 | B166: 0 | C166: 0 | D166: 168 | E166: 0 | F166: 18.52118 | G166: 18.52118 | H166: 0 | I166: 0
A167: 165 | B167: 0 | C167: 0 | D167: 168 | E167: 0 | F167: 18.52118 | G167: 18.52118 | H167: 0 | I167: 0
A168: 166 | B168: 0 | C168: 0 | D168: 168 | E168: 0 | F168: 18.52118 | G168: 18.52118 | H168: 0 | I168: 0
A169: 167 | B169: 0 | C169: 0 | D169: 168 | E169: 0 | F169: 18.52118 | G169: 18.52118 | H169: 0 | I169: 0
A170: 168 | B170: 0 | C170: 0 | D170: 168 | E170: 0 | F170: 18.52118 | G170: 18.52118 | H170: 0 | I170: 0
A171: 169 | B171: 0 | C171: 0 | D171: 168 | E171: 0 | F171: 18.52118 | G171: 18.52118 | H171: 0 | I171: 0
A172: 170 | B172: 0 | C172: 0 | D172: 168 | E172: 0 | F172: 18.52118 | G172: 18.52118 | H172: 0 | I172: 0
A173: 171 | B173: 0 | C173: 0 | D173: 168 | E173: 0 | F173: 18.52118 | G173: 18.52118 | H173: 0 | I173: 0
A174: 172 | B174: 0 | C174: 0 | D174: 168 | E174: 0 | F174: 18.52118 | G174: 18.52118 | H174: 0 | I174: 0
A175: 173 | B175: 0 | C175: 0 | D175: 168 | E175: 0 | F175: 18.52118 | G175: 18.52118 | H175: 0 | I175: 0
A176: 174 | B176: 0 | C176: 0 | D176: 168 | E176: 0 | F176: 18.52118 | G176: 18.52118 | H176: 0 | I176: 0
A177: 175 | B177: 0 | C177: 0 | D177: 168 | E177: 0 | F177: 18.52118 | G177: 18.52118 | H177: 0 | I177: 0
A178: 176 | B178: 0 | C178: 0 | D178: 168 | E178: 0 | F178: 18.52118 | G178: 18.52118 | H178: 0 | I178: 0
A179: 177 | B179: 0 | C179: 0 | D179: 168 | E179: 0 | F179: 18.52118 | G179: 18.52118 | H179: 0 | I179: 0
A180: 178 | B180: 0 | C180: 0 | D180: 168 | E180: 0 | F180: 18.52118 | G180: 18.52118 | H180: 0 | I180: 0
A181: 179 | B181: 0 | C181: 0 | D181: 168 | E181: 0 | F181: 18.52118 | G181: 18.52118 | H181: 0 | I181: 0
A182: 180 | B182: 0 | C182: 0 | D182: 168 | E182: 0 | F182: 18.52118 | G182: 18.52118 | H182: 0 | I182: 0
A183: 181 | B183: 0 | C183: 0 | D183: 168 | E183: 0 | F183: 18.52118 | G183: 18.52118 | H183: 0 | I183: 0
A184: 182 | B184: 0 | C184: 0 | D184: 168 | E184: 0 | F184: 18.52118 | G184: 18.52118 | H184: 0 | I184: 0
A185: 183 | B185: 0 | C185: 0 | D185: 168 | E185: 0 | F185: 18.52118 | G185: 18.52118 | H185: 0 | I185: 0
A186: 184 | B186: 0 | C186: 0 | D186: 168 | E186: 0 | F186: 18.52118 | G186: 18.52118 | H186: 0 | I186: 0
A187: 185 | B187: 0 | C187: 0 | D187: 168 | E187: 0 | F187: 18.52118 | G187: 18.52118 | H187: 0 | I187: 0
A188: 186 | B188: 0 | C188: 0 | D188: 168 | E188: 0 | F188: 18.52118 | G188: 18.52118 | H188: 0 | I188: 0
A189: 187 | B189: 0 | C189: 0 | D189: 168 | E189: 0 | F189: 18.52118 | G189: 18.52118 | H189: 0 | I189: 0
A190: 188 | B190: 0 | C190: 0 | D190: 168 | E190: 0 | F190: 18.52118 | G190: 18.52118 | H190: 0 | I190: 0
A191: 189 | B191: 0 | C191: 0 | D191: 168 | E191: 0 | F191: 18.52118 | G191: 18.52118 | H191: 0 | I191: 0
A192: 190 | B192: 0 | C192: 0 | D192: 168 | E192: 0 | F192: 18.52118 | G192: 18.52118 | H192: 0 | I192: 0
A193: 191 | B193: 0 | C193: 0 | D193: 168 | E193: 0 | F193: 18.52118 | G193: 18.52118 | H193: 0 | I193: 0
A194: 192 | B194: 0 | C194: 0 | D194: 168 | E194: 0 | F194: 18.52118 | G194: 18.52118 | H194: 0 | I194: 0
A195: 193 | B195: 0 | C195: 0 | D195: 168 | E195: 0 | F195: 18.52118 | G195: 18.52118 | H195: 0 | I195: 0
A196: 194 | B196: 0 | C196: 1 | D196: 168 | E196: 1 | F196: 18.52118 | G196: 18.52118 | H196: 1 | I196: 3600
A197: 195 | B197: 0 | C197: 0 | D197: 167 | E197: 0 | F197: 18.82761 | G197: 18.52118 | H197: 1 | I197: 3600
A198: 196 | B198: 0 | C198: 1 | D198: 167 | E198: 1 | F198: 18.82761 | G198: 18.52118 | H198: 2 | I198: 3600
A199: 197 | B199: 0 | C199: 1 | D199: 166 | E199: 1 | F199: 19.13403 | G199: 18.52118 | H199: 3 | I199: 3600
A200: 198 | B200: 0 | C200: 1 | D200: 165 | E200: 1 | F200: 19.44045 | G200: 18.52118 | H200: 4 | I200: 3600
... 10046 more rows

Sheet T4 Flow calc summary
B1: Density (vehicles/km/lane) | C1: Calc. Relative Density | D1: Expected Speed (km/h) | E1: Expected Avg. Flow rate (vehicles/lane/hour) | F1: ='All tests'!AC1 -> 75 cars | O1: Flow
A2: D1 | B2: 1 | C2: ='T4 Flow calc D1'!N26 -> 0.01333333333 | D2: ='T4 Flow calc D1'!$O$26 -> 69.08 | E2: ='T4 Flow calc D1'!$P$26 -> 69.08 | F2: ='All tests'!AC2 -> Cars/km/lane | G2: ='All tests'!AD2 -> Relative density [-] | H2: ='All tests'!AE2 -> Speed limits [km/h]
A3: D2 | B3: 19 | C3: ='T4 Flow calc D2'!N26 -> 0.2533333333 | D3: ='T4 Flow calc D2'!$O$26 -> 52.52 | E3: ='T4 Flow calc D2'!$P$26 -> 997.88 | F3: ='All tests'!AC3 -> 0 | G3: ='All tests'!AD3 -> 0 | H3: ='All tests'!AE3 -> 30 | I3: ='All tests'!AF3 -> 50 | J3: ='All tests'!AG3 -> 70 | K3: ='All tests'!AH3 -> 90 | L3: ='All tests'!AI3 -> 110 | M3: ='All tests'!AJ3 -> 120
A4: D3 | B4: 38 | C4: ='T4 Flow calc D3'!N26 -> 0.5066666667 | D4: ='T4 Flow calc D3'!$O$26 -> 35.04 | E4: ='T4 Flow calc D3'!$P$26 -> 1331.52 | F4: ='All tests'!AC4 -> 0 | G4: ='All tests'!AD4 -> 0 | H4: ='All tests'!AE4 -> 30 | I4: ='All tests'!AF4 -> 50 | J4: ='All tests'!AG4 -> 70 | K4: ='All tests'!AH4 -> 90 | L4: ='All tests'!AI4 -> 110 | M4: ='All tests'!AJ4 -> 120 | O4: =F4*J4 -> 0
A5: D4 | B5: 56 | C5: ='T4 Flow calc D4'!N26 -> 0.7466666667 | D5: ='T4 Flow calc D4'!$O$26 -> 18.48 | E5: ='T4 Flow calc D4'!$P$26 -> 1034.88 | F5: ='All tests'!AC5 -> 1 | G5: ='All tests'!AD5 -> 0.01333333333 | H5: ='All tests'!AE5 -> 29.61333333 | I5: ='All tests'!AF5 -> 49.34666667 | J5: ='All tests'!AG5 -> 69.08 | K5: ='All tests'!AH5 -> 88.81333333 | L5: ='All tests'!AI5 -> 108.5466667 | M5: ='All tests'!AJ5 -> 118.4133333 | O5: =F5*J5 -> 69.08
A6: D5 | B6: 75 | C6: ='T4 Flow calc D5'!N26 -> 1 | D6: ='T4 Flow calc D5'!$O$26 -> 1 | E6: ='T4 Flow calc D5'!$P$26 -> 75 | F6: ='All tests'!AC6 -> 2 | G6: ='All tests'!AD6 -> 0.02666666667 | H6: ='All tests'!AE6 -> 29.22666667 | I6: ='All tests'!AF6 -> 48.69333333 | J6: ='All tests'!AG6 -> 68.16 | K6: ='All tests'!AH6 -> 87.62666667 | L6: ='All tests'!AI6 -> 107.0933333 | M6: ='All tests'!AJ6 -> 116.8266667 | O6: 136.32
F7: ='All tests'!AC7 -> 3 | G7: ='All tests'!AD7 -> 0.04 | H7: ='All tests'!AE7 -> 28.84 | I7: ='All tests'!AF7 -> 48.04 | J7: ='All tests'!AG7 -> 67.24 | K7: ='All tests'!AH7 -> 86.44 | L7: ='All tests'!AI7 -> 105.64 | M7: ='All tests'!AJ7 -> 115.24 | O7: 201.72
F8: ='All tests'!AC8 -> 4 | G8: ='All tests'!AD8 -> 0.05333333333 | H8: ='All tests'!AE8 -> 28.45333333 | I8: ='All tests'!AF8 -> 47.38666667 | J8: ='All tests'!AG8 -> 66.32 | K8: ='All tests'!AH8 -> 85.25333333 | L8: ='All tests'!AI8 -> 104.1866667 | M8: ='All tests'!AJ8 -> 113.6533333 | O8: 265.28
F9: ='All tests'!AC9 -> 5 | G9: ='All tests'!AD9 -> 0.06666666667 | H9: ='All tests'!AE9 -> 28.06666667 | I9: ='All tests'!AF9 -> 46.73333333 | J9: ='All tests'!AG9 -> 65.4 | K9: ='All tests'!AH9 -> 84.06666667 | L9: ='All tests'!AI9 -> 102.7333333 | M9: ='All tests'!AJ9 -> 112.0666667 | O9: 327
F10: ='All tests'!AC10 -> 6 | G10: ='All tests'!AD10 -> 0.08 | H10: ='All tests'!AE10 -> 27.68 | I10: ='All tests'!AF10 -> 46.08 | J10: ='All tests'!AG10 -> 64.48 | K10: ='All tests'!AH10 -> 82.88 | L10: ='All tests'!AI10 -> 101.28 | M10: ='All tests'!AJ10 -> 110.48 | O10: 386.88
F11: ='All tests'!AC11 -> 7 | G11: ='All tests'!AD11 -> 0.09333333333 | H11: ='All tests'!AE11 -> 27.29333333 | I11: ='All tests'!AF11 -> 45.42666667 | J11: ='All tests'!AG11 -> 63.56 | K11: ='All tests'!AH11 -> 81.69333333 | L11: ='All tests'!AI11 -> 99.82666667 | M11: ='All tests'!AJ11 -> 108.8933333 | O11: 444.92
F12: ='All tests'!AC12 -> 8 | G12: ='All tests'!AD12 -> 0.1066666667 | H12: ='All tests'!AE12 -> 26.90666667 | I12: ='All tests'!AF12 -> 44.77333333 | J12: ='All tests'!AG12 -> 62.64 | K12: ='All tests'!AH12 -> 80.50666667 | L12: ='All tests'!AI12 -> 98.37333333 | M12: ='All tests'!AJ12 -> 107.3066667 | O12: 501.12
F13: ='All tests'!AC13 -> 9 | G13: ='All tests'!AD13 -> 0.12 | H13: ='All tests'!AE13 -> 26.52 | I13: ='All tests'!AF13 -> 44.12 | J13: ='All tests'!AG13 -> 61.72 | K13: ='All tests'!AH13 -> 79.32 | L13: ='All tests'!AI13 -> 96.92 | M13: ='All tests'!AJ13 -> 105.72 | O13: 555.48
F14: ='All tests'!AC14 -> 10 | G14: ='All tests'!AD14 -> 0.1333333333 | H14: ='All tests'!AE14 -> 26.13333333 | I14: ='All tests'!AF14 -> 43.46666667 | J14: ='All tests'!AG14 -> 60.8 | K14: ='All tests'!AH14 -> 78.13333333 | L14: ='All tests'!AI14 -> 95.46666667 | M14: ='All tests'!AJ14 -> 104.1333333 | O14: 608
F15: ='All tests'!AC15 -> 11 | G15: ='All tests'!AD15 -> 0.1466666667 | H15: ='All tests'!AE15 -> 25.74666667 | I15: ='All tests'!AF15 -> 42.81333333 | J15: ='All tests'!AG15 -> 59.88 | K15: ='All tests'!AH15 -> 76.94666667 | L15: ='All tests'!AI15 -> 94.01333333 | M15: ='All tests'!AJ15 -> 102.5466667 | O15: 658.68
F16: ='All tests'!AC16 -> 12 | G16: ='All tests'!AD16 -> 0.16 | H16: ='All tests'!AE16 -> 25.36 | I16: ='All tests'!AF16 -> 42.16 | J16: ='All tests'!AG16 -> 58.96 | K16: ='All tests'!AH16 -> 75.76 | L16: ='All tests'!AI16 -> 92.56 | M16: ='All tests'!AJ16 -> 100.96 | O16: 707.52
F17: ='All tests'!AC17 -> 13 | G17: ='All tests'!AD17 -> 0.1733333333 | H17: ='All tests'!AE17 -> 24.97333333 | I17: ='All tests'!AF17 -> 41.50666667 | J17: ='All tests'!AG17 -> 58.04 | K17: ='All tests'!AH17 -> 74.57333333 | L17: ='All tests'!AI17 -> 91.10666667 | M17: ='All tests'!AJ17 -> 99.37333333 | O17: 754.52
F18: ='All tests'!AC18 -> 14 | G18: ='All tests'!AD18 -> 0.1866666667 | H18: ='All tests'!AE18 -> 24.58666667 | I18: ='All tests'!AF18 -> 40.85333333 | J18: ='All tests'!AG18 -> 57.12 | K18: ='All tests'!AH18 -> 73.38666667 | L18: ='All tests'!AI18 -> 89.65333333 | M18: ='All tests'!AJ18 -> 97.78666667 | O18: 799.68
F19: ='All tests'!AC19 -> 15 | G19: ='All tests'!AD19 -> 0.2 | H19: ='All tests'!AE19 -> 24.2 | I19: ='All tests'!AF19 -> 40.2 | J19: ='All tests'!AG19 -> 56.2 | K19: ='All tests'!AH19 -> 72.2 | L19: ='All tests'!AI19 -> 88.2 | M19: ='All tests'!AJ19 -> 96.2 | O19: 843
F20: ='All tests'!AC20 -> 16 | G20: ='All tests'!AD20 -> 0.2133333333 | H20: ='All tests'!AE20 -> 23.81333333 | I20: ='All tests'!AF20 -> 39.54666667 | J20: ='All tests'!AG20 -> 55.28 | K20: ='All tests'!AH20 -> 71.01333333 | L20: ='All tests'!AI20 -> 86.74666667 | M20: ='All tests'!AJ20 -> 94.61333333 | O20: 884.48
F21: ='All tests'!AC21 -> 17 | G21: ='All tests'!AD21 -> 0.2266666667 | H21: ='All tests'!AE21 -> 23.42666667 | I21: ='All tests'!AF21 -> 38.89333333 | J21: ='All tests'!AG21 -> 54.36 | K21: ='All tests'!AH21 -> 69.82666667 | L21: ='All tests'!AI21 -> 85.29333333 | M21: ='All tests'!AJ21 -> 93.02666667 | O21: 924.12
F22: ='All tests'!AC22 -> 18 | G22: ='All tests'!AD22 -> 0.24 | H22: ='All tests'!AE22 -> 23.04 | I22: ='All tests'!AF22 -> 38.24 | J22: ='All tests'!AG22 -> 53.44 | K22: ='All tests'!AH22 -> 68.64 | L22: ='All tests'!AI22 -> 83.84 | M22: ='All tests'!AJ22 -> 91.44 | O22: 961.92
F23: ='All tests'!AC23 -> 19 | G23: ='All tests'!AD23 -> 0.2533333333 | H23: ='All tests'!AE23 -> 22.65333333 | I23: ='All tests'!AF23 -> 37.58666667 | J23: ='All tests'!AG23 -> 52.52 | K23: ='All tests'!AH23 -> 67.45333333 | L23: ='All tests'!AI23 -> 82.38666667 | M23: ='All tests'!AJ23 -> 89.85333333 | O23: 997.88
F24: ='All tests'!AC24 -> 20 | G24: ='All tests'!AD24 -> 0.2666666667 | H24: ='All tests'!AE24 -> 22.26666667 | I24: ='All tests'!AF24 -> 36.93333333 | J24: ='All tests'!AG24 -> 51.6 | K24: ='All tests'!AH24 -> 66.26666667 | L24: ='All tests'!AI24 -> 80.93333333 | M24: ='All tests'!AJ24 -> 88.26666667 | O24: 1032
F25: ='All tests'!AC25 -> 21 | G25: ='All tests'!AD25 -> 0.28 | H25: ='All tests'!AE25 -> 21.88 | I25: ='All tests'!AF25 -> 36.28 | J25: ='All tests'!AG25 -> 50.68 | K25: ='All tests'!AH25 -> 65.08 | L25: ='All tests'!AI25 -> 79.48 | M25: ='All tests'!AJ25 -> 86.68 | O25: 1064.28
F26: ='All tests'!AC26 -> 22 | G26: ='All tests'!AD26 -> 0.2933333333 | H26: ='All tests'!AE26 -> 21.49333333 | I26: ='All tests'!AF26 -> 35.62666667 | J26: ='All tests'!AG26 -> 49.76 | K26: ='All tests'!AH26 -> 63.89333333 | L26: ='All tests'!AI26 -> 78.02666667 | M26: ='All tests'!AJ26 -> 85.09333333 | O26: 1094.72
F27: ='All tests'!AC27 -> 23 | G27: ='All tests'!AD27 -> 0.3066666667 | H27: ='All tests'!AE27 -> 21.10666667 | I27: ='All tests'!AF27 -> 34.97333333 | J27: ='All tests'!AG27 -> 48.84 | K27: ='All tests'!AH27 -> 62.70666667 | L27: ='All tests'!AI27 -> 76.57333333 | M27: ='All tests'!AJ27 -> 83.50666667 | O27: 1123.32
F28: ='All tests'!AC28 -> 24 | G28: ='All tests'!AD28 -> 0.32 | H28: ='All tests'!AE28 -> 20.72 | I28: ='All tests'!AF28 -> 34.32 | J28: ='All tests'!AG28 -> 47.92 | K28: ='All tests'!AH28 -> 61.52 | L28: ='All tests'!AI28 -> 75.12 | M28: ='All tests'!AJ28 -> 81.92 | O28: 1150.08
F29: ='All tests'!AC29 -> 25 | G29: ='All tests'!AD29 -> 0.3333333333 | H29: ='All tests'!AE29 -> 20.33333333 | I29: ='All tests'!AF29 -> 33.66666667 | J29: ='All tests'!AG29 -> 47 | K29: ='All tests'!AH29 -> 60.33333333 | L29: ='All tests'!AI29 -> 73.66666667 | M29: ='All tests'!AJ29 -> 80.33333333 | O29: 1175
F30: ='All tests'!AC30 -> 26 | G30: ='All tests'!AD30 -> 0.3466666667 | H30: ='All tests'!AE30 -> 19.94666667 | I30: ='All tests'!AF30 -> 33.01333333 | J30: ='All tests'!AG30 -> 46.08 | K30: ='All tests'!AH30 -> 59.14666667 | L30: ='All tests'!AI30 -> 72.21333333 | M30: ='All tests'!AJ30 -> 78.74666667 | O30: 1198.08
F31: ='All tests'!AC31 -> 27 | G31: ='All tests'!AD31 -> 0.36 | H31: ='All tests'!AE31 -> 19.56 | I31: ='All tests'!AF31 -> 32.36 | J31: ='All tests'!AG31 -> 45.16 | K31: ='All tests'!AH31 -> 57.96 | L31: ='All tests'!AI31 -> 70.76 | M31: ='All tests'!AJ31 -> 77.16 | O31: 1219.32
F32: ='All tests'!AC32 -> 28 | G32: ='All tests'!AD32 -> 0.3733333333 | H32: ='All tests'!AE32 -> 19.17333333 | I32: ='All tests'!AF32 -> 31.70666667 | J32: ='All tests'!AG32 -> 44.24 | K32: ='All tests'!AH32 -> 56.77333333 | L32: ='All tests'!AI32 -> 69.30666667 | M32: ='All tests'!AJ32 -> 75.57333333 | O32: 1238.72
F33: ='All tests'!AC33 -> 29 | G33: ='All tests'!AD33 -> 0.3866666667 | H33: ='All tests'!AE33 -> 18.78666667 | I33: ='All tests'!AF33 -> 31.05333333 | J33: ='All tests'!AG33 -> 43.32 | K33: ='All tests'!AH33 -> 55.58666667 | L33: ='All tests'!AI33 -> 67.85333333 | M33: ='All tests'!AJ33 -> 73.98666667 | O33: 1256.28
F34: ='All tests'!AC34 -> 30 | G34: ='All tests'!AD34 -> 0.4 | H34: ='All tests'!AE34 -> 18.4 | I34: ='All tests'!AF34 -> 30.4 | J34: ='All tests'!AG34 -> 42.4 | K34: ='All tests'!AH34 -> 54.4 | L34: ='All tests'!AI34 -> 66.4 | M34: ='All tests'!AJ34 -> 72.4 | O34: 1272
F35: ='All tests'!AC35 -> 31 | G35: ='All tests'!AD35 -> 0.4133333333 | H35: ='All tests'!AE35 -> 18.01333333 | I35: ='All tests'!AF35 -> 29.74666667 | J35: ='All tests'!AG35 -> 41.48 | K35: ='All tests'!AH35 -> 53.21333333 | L35: ='All tests'!AI35 -> 64.94666667 | M35: ='All tests'!AJ35 -> 70.81333333 | O35: 1285.88
F36: ='All tests'!AC36 -> 32 | G36: ='All tests'!AD36 -> 0.4266666667 | H36: ='All tests'!AE36 -> 17.62666667 | I36: ='All tests'!AF36 -> 29.09333333 | J36: ='All tests'!AG36 -> 40.56 | K36: ='All tests'!AH36 -> 52.02666667 | L36: ='All tests'!AI36 -> 63.49333333 | M36: ='All tests'!AJ36 -> 69.22666667 | O36: 1297.92
F37: ='All tests'!AC37 -> 33 | G37: ='All tests'!AD37 -> 0.44 | H37: ='All tests'!AE37 -> 17.24 | I37: ='All tests'!AF37 -> 28.44 | J37: ='All tests'!AG37 -> 39.64 | K37: ='All tests'!AH37 -> 50.84 | L37: ='All tests'!AI37 -> 62.04 | M37: ='All tests'!AJ37 -> 67.64 | O37: 1308.12
F38: ='All tests'!AC38 -> 34 | G38: ='All tests'!AD38 -> 0.4533333333 | H38: ='All tests'!AE38 -> 16.85333333 | I38: ='All tests'!AF38 -> 27.78666667 | J38: ='All tests'!AG38 -> 38.72 | K38: ='All tests'!AH38 -> 49.65333333 | L38: ='All tests'!AI38 -> 60.58666667 | M38: ='All tests'!AJ38 -> 66.05333333 | O38: 1316.48
F39: ='All tests'!AC39 -> 35 | G39: ='All tests'!AD39 -> 0.4666666667 | H39: ='All tests'!AE39 -> 16.46666667 | I39: ='All tests'!AF39 -> 27.13333333 | J39: ='All tests'!AG39 -> 37.8 | K39: ='All tests'!AH39 -> 48.46666667 | L39: ='All tests'!AI39 -> 59.13333333 | M39: ='All tests'!AJ39 -> 64.46666667 | O39: 1323
F40: ='All tests'!AC40 -> 36 | G40: ='All tests'!AD40 -> 0.48 | H40: ='All tests'!AE40 -> 16.08 | I40: ='All tests'!AF40 -> 26.48 | J40: ='All tests'!AG40 -> 36.88 | K40: ='All tests'!AH40 -> 47.28 | L40: ='All tests'!AI40 -> 57.68 | M40: ='All tests'!AJ40 -> 62.88 | O40: 1327.68
F41: ='All tests'!AC41 -> 37 | G41: ='All tests'!AD41 -> 0.4933333333 | H41: ='All tests'!AE41 -> 15.69333333 | I41: ='All tests'!AF41 -> 25.82666667 | J41: ='All tests'!AG41 -> 35.96 | K41: ='All tests'!AH41 -> 46.09333333 | L41: ='All tests'!AI41 -> 56.22666667 | M41: ='All tests'!AJ41 -> 61.29333333 | O41: 1330.52
F42: ='All tests'!AC42 -> 38 | G42: ='All tests'!AD42 -> 0.5066666667 | H42: ='All tests'!AE42 -> 15.30666667 | I42: ='All tests'!AF42 -> 25.17333333 | J42: ='All tests'!AG42 -> 35.04 | K42: ='All tests'!AH42 -> 44.90666667 | L42: ='All tests'!AI42 -> 54.77333333 | M42: ='All tests'!AJ42 -> 59.70666667 | O42: 1331.52
F43: ='All tests'!AC43 -> 39 | G43: ='All tests'!AD43 -> 0.52 | H43: ='All tests'!AE43 -> 14.92 | I43: ='All tests'!AF43 -> 24.52 | J43: ='All tests'!AG43 -> 34.12 | K43: ='All tests'!AH43 -> 43.72 | L43: ='All tests'!AI43 -> 53.32 | M43: ='All tests'!AJ43 -> 58.12 | O43: 1330.68
F44: ='All tests'!AC44 -> 40 | G44: ='All tests'!AD44 -> 0.5333333333 | H44: ='All tests'!AE44 -> 14.53333333 | I44: ='All tests'!AF44 -> 23.86666667 | J44: ='All tests'!AG44 -> 33.2 | K44: ='All tests'!AH44 -> 42.53333333 | L44: ='All tests'!AI44 -> 51.86666667 | M44: ='All tests'!AJ44 -> 56.53333333 | O44: 1328
F45: ='All tests'!AC45 -> 41 | G45: ='All tests'!AD45 -> 0.5466666667 | H45: ='All tests'!AE45 -> 14.14666667 | I45: ='All tests'!AF45 -> 23.21333333 | J45: ='All tests'!AG45 -> 32.28 | K45: ='All tests'!AH45 -> 41.34666667 | L45: ='All tests'!AI45 -> 50.41333333 | M45: ='All tests'!AJ45 -> 54.94666667 | O45: 1323.48
F46: ='All tests'!AC46 -> 42 | G46: ='All tests'!AD46 -> 0.56 | H46: ='All tests'!AE46 -> 13.76 | I46: ='All tests'!AF46 -> 22.56 | J46: ='All tests'!AG46 -> 31.36 | K46: ='All tests'!AH46 -> 40.16 | L46: ='All tests'!AI46 -> 48.96 | M46: ='All tests'!AJ46 -> 53.36 | O46: 1317.12
F47: ='All tests'!AC47 -> 43 | G47: ='All tests'!AD47 -> 0.5733333333 | H47: ='All tests'!AE47 -> 13.37333333 | I47: ='All tests'!AF47 -> 21.90666667 | J47: ='All tests'!AG47 -> 30.44 | K47: ='All tests'!AH47 -> 38.97333333 | L47: ='All tests'!AI47 -> 47.50666667 | M47: ='All tests'!AJ47 -> 51.77333333 | O47: 1308.92
F48: ='All tests'!AC48 -> 44 | G48: ='All tests'!AD48 -> 0.5866666667 | H48: ='All tests'!AE48 -> 12.98666667 | I48: ='All tests'!AF48 -> 21.25333333 | J48: ='All tests'!AG48 -> 29.52 | K48: ='All tests'!AH48 -> 37.78666667 | L48: ='All tests'!AI48 -> 46.05333333 | M48: ='All tests'!AJ48 -> 50.18666667 | O48: 1298.88
F49: ='All tests'!AC49 -> 45 | G49: ='All tests'!AD49 -> 0.6 | H49: ='All tests'!AE49 -> 12.6 | I49: ='All tests'!AF49 -> 20.6 | J49: ='All tests'!AG49 -> 28.6 | K49: ='All tests'!AH49 -> 36.6 | L49: ='All tests'!AI49 -> 44.6 | M49: ='All tests'!AJ49 -> 48.6 | O49: 1287
F50: ='All tests'!AC50 -> 46 | G50: ='All tests'!AD50 -> 0.6133333333 | H50: ='All tests'!AE50 -> 12.21333333 | I50: ='All tests'!AF50 -> 19.94666667 | J50: ='All tests'!AG50 -> 27.68 | K50: ='All tests'!AH50 -> 35.41333333 | L50: ='All tests'!AI50 -> 43.14666667 | M50: ='All tests'!AJ50 -> 47.01333333 | O50: 1273.28
F51: ='All tests'!AC51 -> 47 | G51: ='All tests'!AD51 -> 0.6266666667 | H51: ='All tests'!AE51 -> 11.82666667 | I51: ='All tests'!AF51 -> 19.29333333 | J51: ='All tests'!AG51 -> 26.76 | K51: ='All tests'!AH51 -> 34.22666667 | L51: ='All tests'!AI51 -> 41.69333333 | M51: ='All tests'!AJ51 -> 45.42666667 | O51: 1257.72
F52: ='All tests'!AC52 -> 48 | G52: ='All tests'!AD52 -> 0.64 | H52: ='All tests'!AE52 -> 11.44 | I52: ='All tests'!AF52 -> 18.64 | J52: ='All tests'!AG52 -> 25.84 | K52: ='All tests'!AH52 -> 33.04 | L52: ='All tests'!AI52 -> 40.24 | M52: ='All tests'!AJ52 -> 43.84 | O52: 1240.32
F53: ='All tests'!AC53 -> 49 | G53: ='All tests'!AD53 -> 0.6533333333 | H53: ='All tests'!AE53 -> 11.05333333 | I53: ='All tests'!AF53 -> 17.98666667 | J53: ='All tests'!AG53 -> 24.92 | K53: ='All tests'!AH53 -> 31.85333333 | L53: ='All tests'!AI53 -> 38.78666667 | M53: ='All tests'!AJ53 -> 42.25333333 | O53: 1221.08
F54: ='All tests'!AC54 -> 50 | G54: ='All tests'!AD54 -> 0.6666666667 | H54: ='All tests'!AE54 -> 10.66666667 | I54: ='All tests'!AF54 -> 17.33333333 | J54: ='All tests'!AG54 -> 24 | K54: ='All tests'!AH54 -> 30.66666667 | L54: ='All tests'!AI54 -> 37.33333333 | M54: ='All tests'!AJ54 -> 40.66666667 | O54: 1200
F55: ='All tests'!AC55 -> 51 | G55: ='All tests'!AD55 -> 0.68 | H55: ='All tests'!AE55 -> 10.28 | I55: ='All tests'!AF55 -> 16.68 | J55: ='All tests'!AG55 -> 23.08 | K55: ='All tests'!AH55 -> 29.48 | L55: ='All tests'!AI55 -> 35.88 | M55: ='All tests'!AJ55 -> 39.08 | O55: 1177.08
F56: ='All tests'!AC56 -> 52 | G56: ='All tests'!AD56 -> 0.6933333333 | H56: ='All tests'!AE56 -> 9.893333333 | I56: ='All tests'!AF56 -> 16.02666667 | J56: ='All tests'!AG56 -> 22.16 | K56: ='All tests'!AH56 -> 28.29333333 | L56: ='All tests'!AI56 -> 34.42666667 | M56: ='All tests'!AJ56 -> 37.49333333 | O56: 1152.32
F57: ='All tests'!AC57 -> 53 | G57: ='All tests'!AD57 -> 0.7066666667 | H57: ='All tests'!AE57 -> 9.506666667 | I57: ='All tests'!AF57 -> 15.37333333 | J57: ='All tests'!AG57 -> 21.24 | K57: ='All tests'!AH57 -> 27.10666667 | L57: ='All tests'!AI57 -> 32.97333333 | M57: ='All tests'!AJ57 -> 35.90666667 | O57: 1125.72
F58: ='All tests'!AC58 -> 54 | G58: ='All tests'!AD58 -> 0.72 | H58: ='All tests'!AE58 -> 9.12 | I58: ='All tests'!AF58 -> 14.72 | J58: ='All tests'!AG58 -> 20.32 | K58: ='All tests'!AH58 -> 25.92 | L58: ='All tests'!AI58 -> 31.52 | M58: ='All tests'!AJ58 -> 34.32 | O58: 1097.28
F59: ='All tests'!AC59 -> 55 | G59: ='All tests'!AD59 -> 0.7333333333 | H59: ='All tests'!AE59 -> 8.733333333 | I59: ='All tests'!AF59 -> 14.06666667 | J59: ='All tests'!AG59 -> 19.4 | K59: ='All tests'!AH59 -> 24.73333333 | L59: ='All tests'!AI59 -> 30.06666667 | M59: ='All tests'!AJ59 -> 32.73333333 | O59: 1067
F60: ='All tests'!AC60 -> 56 | G60: ='All tests'!AD60 -> 0.7466666667 | H60: ='All tests'!AE60 -> 8.346666667 | I60: ='All tests'!AF60 -> 13.41333333 | J60: ='All tests'!AG60 -> 18.48 | K60: ='All tests'!AH60 -> 23.54666667 | L60: ='All tests'!AI60 -> 28.61333333 | M60: ='All tests'!AJ60 -> 31.14666667 | O60: 1034.88
F61: ='All tests'!AC61 -> 57 | G61: ='All tests'!AD61 -> 0.76 | H61: ='All tests'!AE61 -> 7.96 | I61: ='All tests'!AF61 -> 12.76 | J61: ='All tests'!AG61 -> 17.56 | K61: ='All tests'!AH61 -> 22.36 | L61: ='All tests'!AI61 -> 27.16 | M61: ='All tests'!AJ61 -> 29.56 | O61: 1000.92
F62: ='All tests'!AC62 -> 58 | G62: ='All tests'!AD62 -> 0.7733333333 | H62: ='All tests'!AE62 -> 7.573333333 | I62: ='All tests'!AF62 -> 12.10666667 | J62: ='All tests'!AG62 -> 16.64 | K62: ='All tests'!AH62 -> 21.17333333 | L62: ='All tests'!AI62 -> 25.70666667 | M62: ='All tests'!AJ62 -> 27.97333333 | O62: 965.12
F63: ='All tests'!AC63 -> 59 | G63: ='All tests'!AD63 -> 0.7866666667 | H63: ='All tests'!AE63 -> 7.186666667 | I63: ='All tests'!AF63 -> 11.45333333 | J63: ='All tests'!AG63 -> 15.72 | K63: ='All tests'!AH63 -> 19.98666667 | L63: ='All tests'!AI63 -> 24.25333333 | M63: ='All tests'!AJ63 -> 26.38666667 | O63: 927.48
F64: ='All tests'!AC64 -> 60 | G64: ='All tests'!AD64 -> 0.8 | H64: ='All tests'!AE64 -> 6.8 | I64: ='All tests'!AF64 -> 10.8 | J64: ='All tests'!AG64 -> 14.8 | K64: ='All tests'!AH64 -> 18.8 | L64: ='All tests'!AI64 -> 22.8 | M64: ='All tests'!AJ64 -> 24.8 | O64: 888
F65: ='All tests'!AC65 -> 61 | G65: ='All tests'!AD65 -> 0.8133333333 | H65: ='All tests'!AE65 -> 6.413333333 | I65: ='All tests'!AF65 -> 10.14666667 | J65: ='All tests'!AG65 -> 13.88 | K65: ='All tests'!AH65 -> 17.61333333 | L65: ='All tests'!AI65 -> 21.34666667 | M65: ='All tests'!AJ65 -> 23.21333333 | O65: 846.68
F66: ='All tests'!AC66 -> 62 | G66: ='All tests'!AD66 -> 0.8266666667 | H66: ='All tests'!AE66 -> 6.026666667 | I66: ='All tests'!AF66 -> 9.493333333 | J66: ='All tests'!AG66 -> 12.96 | K66: ='All tests'!AH66 -> 16.42666667 | L66: ='All tests'!AI66 -> 19.89333333 | M66: ='All tests'!AJ66 -> 21.62666667 | O66: 803.52
F67: ='All tests'!AC67 -> 63 | G67: ='All tests'!AD67 -> 0.84 | H67: ='All tests'!AE67 -> 5.64 | I67: ='All tests'!AF67 -> 8.84 | J67: ='All tests'!AG67 -> 12.04 | K67: ='All tests'!AH67 -> 15.24 | L67: ='All tests'!AI67 -> 18.44 | M67: ='All tests'!AJ67 -> 20.04 | O67: 758.52
F68: ='All tests'!AC68 -> 64 | G68: ='All tests'!AD68 -> 0.8533333333 | H68: ='All tests'!AE68 -> 5.253333333 | I68: ='All tests'!AF68 -> 8.186666667 | J68: ='All tests'!AG68 -> 11.12 | K68: ='All tests'!AH68 -> 14.05333333 | L68: ='All tests'!AI68 -> 16.98666667 | M68: ='All tests'!AJ68 -> 18.45333333 | O68: 711.68
F69: ='All tests'!AC69 -> 65 | G69: ='All tests'!AD69 -> 0.8666666667 | H69: ='All tests'!AE69 -> 4.866666667 | I69: ='All tests'!AF69 -> 7.533333333 | J69: ='All tests'!AG69 -> 10.2 | K69: ='All tests'!AH69 -> 12.86666667 | L69: ='All tests'!AI69 -> 15.53333333 | M69: ='All tests'!AJ69 -> 16.86666667 | O69: =F69*J69 -> 663
F70: ='All tests'!AC70 -> 66 | G70: ='All tests'!AD70 -> 0.88 | H70: ='All tests'!AE70 -> 4.48 | I70: ='All tests'!AF70 -> 6.88 | J70: ='All tests'!AG70 -> 9.28 | K70: ='All tests'!AH70 -> 11.68 | L70: ='All tests'!AI70 -> 14.08 | M70: ='All tests'!AJ70 -> 15.28 | O70: 612.48
F71: ='All tests'!AC71 -> 67 | G71: ='All tests'!AD71 -> 0.8933333333 | H71: ='All tests'!AE71 -> 4.093333333 | I71: ='All tests'!AF71 -> 6.226666667 | J71: ='All tests'!AG71 -> 8.36 | K71: ='All tests'!AH71 -> 10.49333333 | L71: ='All tests'!AI71 -> 12.62666667 | M71: ='All tests'!AJ71 -> 13.69333333 | O71: 560.12
F72: ='All tests'!AC72 -> 68 | G72: ='All tests'!AD72 -> 0.9066666667 | H72: ='All tests'!AE72 -> 3.706666667 | I72: ='All tests'!AF72 -> 5.573333333 | J72: ='All tests'!AG72 -> 7.44 | K72: ='All tests'!AH72 -> 9.306666667 | L72: ='All tests'!AI72 -> 11.17333333 | M72: ='All tests'!AJ72 -> 12.10666667 | O72: 505.92
F73: ='All tests'!AC73 -> 69 | G73: ='All tests'!AD73 -> 0.92 | H73: ='All tests'!AE73 -> 3.32 | I73: ='All tests'!AF73 -> 4.92 | J73: ='All tests'!AG73 -> 6.52 | K73: ='All tests'!AH73 -> 8.12 | L73: ='All tests'!AI73 -> 9.72 | M73: ='All tests'!AJ73 -> 10.52 | O73: 449.88
F74: ='All tests'!AC74 -> 70 | G74: ='All tests'!AD74 -> 0.9333333333 | H74: ='All tests'!AE74 -> 2.933333333 | I74: ='All tests'!AF74 -> 4.266666667 | J74: ='All tests'!AG74 -> 5.6 | K74: ='All tests'!AH74 -> 6.933333333 | L74: ='All tests'!AI74 -> 8.266666667 | M74: ='All tests'!AJ74 -> 8.933333333 | O74: 392
F75: ='All tests'!AC75 -> 71 | G75: ='All tests'!AD75 -> 0.9466666667 | H75: ='All tests'!AE75 -> 2.546666667 | I75: ='All tests'!AF75 -> 3.613333333 | J75: ='All tests'!AG75 -> 4.68 | K75: ='All tests'!AH75 -> 5.746666667 | L75: ='All tests'!AI75 -> 6.813333333 | M75: ='All tests'!AJ75 -> 7.346666667 | O75: 332.28
F76: ='All tests'!AC76 -> 72 | G76: ='All tests'!AD76 -> 0.96 | H76: ='All tests'!AE76 -> 2.16 | I76: ='All tests'!AF76 -> 2.96 | J76: ='All tests'!AG76 -> 3.76 | K76: ='All tests'!AH76 -> 4.56 | L76: ='All tests'!AI76 -> 5.36 | M76: ='All tests'!AJ76 -> 5.76 | O76: 270.72
F77: ='All tests'!AC77 -> 73 | G77: ='All tests'!AD77 -> 0.9733333333 | H77: ='All tests'!AE77 -> 1.773333333 | I77: ='All tests'!AF77 -> 2.306666667 | J77: ='All tests'!AG77 -> 2.84 | K77: ='All tests'!AH77 -> 3.373333333 | L77: ='All tests'!AI77 -> 3.906666667 | M77: ='All tests'!AJ77 -> 4.173333333 | O77: 207.32
F78: ='All tests'!AC78 -> 74 | G78: ='All tests'!AD78 -> 0.9866666667 | H78: ='All tests'!AE78 -> 1.386666667 | I78: ='All tests'!AF78 -> 1.653333333 | J78: ='All tests'!AG78 -> 1.92 | K78: ='All tests'!AH78 -> 2.186666667 | L78: ='All tests'!AI78 -> 2.453333333 | M78: ='All tests'!AJ78 -> 2.586666667 | O78: 142.08
F79: ='All tests'!AC79 -> 75 | G79: ='All tests'!AD79 -> 1 | H79: ='All tests'!AE79 -> 1 | I79: ='All tests'!AF79 -> 1 | J79: ='All tests'!AG79 -> 1 | K79: ='All tests'!AH79 -> 1 | L79: ='All tests'!AI79 -> 1 | M79: ='All tests'!AJ79 -> 1 | O79: 75

Sheet T6 Flow calc D1
A1: Time(s) | B1: Injected cars | C1: Exiting cars | D1: Current cars in system | E1: Exiting people | F1: Avg. v [km/h] | G1: Min. v [km/h] | H1: Goal: Node 5 | I1: Node 5 flow
A2: 0 | B2: 1 | C2: 0 | D2: 1 | E2: 0 | F2: 69.08073 | G2: 69.08073 | H2: 0 | I2: 0
A3: 1 | B3: 0 | C3: 0 | D3: 1 | E3: 0 | F3: 69.08073 | G3: 69.08073 | H3: 0 | I3: 0
A4: 2 | B4: 0 | C4: 0 | D4: 1 | E4: 0 | F4: 69.08073 | G4: 69.08073 | H4: 0 | I4: 0
A5: 3 | B5: 0 | C5: 0 | D5: 1 | E5: 0 | F5: 69.08073 | G5: 69.08073 | H5: 0 | I5: 0
A6: 4 | B6: 0 | C6: 0 | D6: 1 | E6: 0 | F6: 69.08073 | G6: 69.08073 | H6: 0 | I6: 0
A7: 5 | B7: 0 | C7: 0 | D7: 1 | E7: 0 | F7: 69.08073 | G7: 69.08073 | H7: 0 | I7: 0
A8: 6 | B8: 0 | C8: 0 | D8: 1 | E8: 0 | F8: 69.08073 | G8: 69.08073 | H8: 0 | I8: 0
A9: 7 | B9: 0 | C9: 0 | D9: 1 | E9: 0 | F9: 69.08073 | G9: 69.08073 | H9: 0 | I9: 0
A10: 8 | B10: 0 | C10: 0 | D10: 1 | E10: 0 | F10: 69.08073 | G10: 69.08073 | H10: 0 | I10: 0
A11: 9 | B11: 0 | C11: 0 | D11: 1 | E11: 0 | F11: 69.08073 | G11: 69.08073 | H11: 0 | I11: 0
A12: 10 | B12: 0 | C12: 0 | D12: 1 | E12: 0 | F12: 69.08073 | G12: 69.08073 | H12: 0 | I12: 0
A13: 11 | B13: 0 | C13: 0 | D13: 1 | E13: 0 | F13: 69.08073 | G13: 69.08073 | H13: 0 | I13: 0
A14: 12 | B14: 0 | C14: 0 | D14: 1 | E14: 0 | F14: 69.08073 | G14: 69.08073 | H14: 0 | I14: 0
A15: 13 | B15: 0 | C15: 0 | D15: 1 | E15: 0 | F15: 69.08073 | G15: 69.08073 | H15: 0 | I15: 0
A16: 14 | B16: 0 | C16: 0 | D16: 1 | E16: 0 | F16: 69.08073 | G16: 69.08073 | H16: 0 | I16: 0
A17: 15 | B17: 0 | C17: 0 | D17: 1 | E17: 0 | F17: 69.08073 | G17: 69.08073 | H17: 0 | I17: 0
A18: 16 | B18: 0 | C18: 0 | D18: 1 | E18: 0 | F18: 69.08073 | G18: 69.08073 | H18: 0 | I18: 0
A19: 17 | B19: 0 | C19: 0 | D19: 1 | E19: 0 | F19: 69.08073 | G19: 69.08073 | H19: 0 | I19: 0
A20: 18 | B20: 0 | C20: 0 | D20: 1 | E20: 0 | F20: 69.08073 | G20: 69.08073 | H20: 0 | I20: 0
A21: 19 | B21: 0 | C21: 0 | D21: 1 | E21: 0 | F21: 69.08073 | G21: 69.08073 | H21: 0 | I21: 0
A22: 20 | B22: 0 | C22: 0 | D22: 1 | E22: 0 | F22: 69.08073 | G22: 69.08073 | H22: 0 | I22: 0
A23: 21 | B23: 0 | C23: 0 | D23: 1 | E23: 0 | F23: 69.08073 | G23: 69.08073 | H23: 0 | I23: 0
A24: 22 | B24: 0 | C24: 0 | D24: 1 | E24: 0 | F24: 69.08073 | G24: 69.08073 | H24: 0 | I24: 0
A25: 23 | B25: 0 | C25: 0 | D25: 1 | E25: 0 | F25: 69.08073 | G25: 69.08073 | H25: 0 | I25: 0
A26: 24 | B26: 0 | C26: 0 | D26: 1 | E26: 0 | F26: 69.08073 | G26: 69.08073 | H26: 0 | I26: 0
A27: 25 | B27: 0 | C27: 0 | D27: 1 | E27: 0 | F27: 69.08073 | G27: 69.08073 | H27: 0 | I27: 0
A28: 26 | B28: 0 | C28: 0 | D28: 1 | E28: 0 | F28: 69.08073 | G28: 69.08073 | H28: 0 | I28: 0
A29: 27 | B29: 0 | C29: 0 | D29: 1 | E29: 0 | F29: 69.08073 | G29: 69.08073 | H29: 0 | I29: 0
A30: 28 | B30: 0 | C30: 0 | D30: 1 | E30: 0 | F30: 69.08073 | G30: 69.08073 | H30: 0 | I30: 0
A31: 29 | B31: 0 | C31: 0 | D31: 1 | E31: 0 | F31: 69.08073 | G31: 69.08073 | H31: 0 | I31: 0
A32: 30 | B32: 0 | C32: 0 | D32: 1 | E32: 0 | F32: 69.08073 | G32: 69.08073 | H32: 0 | I32: 0
A33: 31 | B33: 0 | C33: 0 | D33: 1 | E33: 0 | F33: 69.08073 | G33: 69.08073 | H33: 0 | I33: 0
A34: 32 | B34: 0 | C34: 0 | D34: 1 | E34: 0 | F34: 69.08073 | G34: 69.08073 | H34: 0 | I34: 0
A35: 33 | B35: 0 | C35: 0 | D35: 1 | E35: 0 | F35: 69.08073 | G35: 69.08073 | H35: 0 | I35: 0
A36: 34 | B36: 0 | C36: 0 | D36: 1 | E36: 0 | F36: 69.08073 | G36: 69.08073 | H36: 0 | I36: 0
A37: 35 | B37: 0 | C37: 0 | D37: 1 | E37: 0 | F37: 69.08073 | G37: 69.08073 | H37: 0 | I37: 0
A38: 36 | B38: 0 | C38: 0 | D38: 1 | E38: 0 | F38: 69.08073 | G38: 69.08073 | H38: 0 | I38: 0
A39: 37 | B39: 0 | C39: 0 | D39: 1 | E39: 0 | F39: 69.08073 | G39: 69.08073 | H39: 0 | I39: 0
A40: 38 | B40: 0 | C40: 0 | D40: 1 | E40: 0 | F40: 69.08073 | G40: 69.08073 | H40: 0 | I40: 0
A41: 39 | B41: 0 | C41: 0 | D41: 1 | E41: 0 | F41: 69.08073 | G41: 69.08073 | H41: 0 | I41: 0
A42: 40 | B42: 0 | C42: 0 | D42: 1 | E42: 0 | F42: 69.08073 | G42: 69.08073 | H42: 0 | I42: 0
A43: 41 | B43: 0 | C43: 0 | D43: 1 | E43: 0 | F43: 69.08073 | G43: 69.08073 | H43: 0 | I43: 0
A44: 42 | B44: 0 | C44: 0 | D44: 1 | E44: 0 | F44: 69.08073 | G44: 69.08073 | H44: 0 | I44: 0
A45: 43 | B45: 0 | C45: 0 | D45: 1 | E45: 0 | F45: 69.08073 | G45: 69.08073 | H45: 0 | I45: 0
A46: 44 | B46: 0 | C46: 0 | D46: 1 | E46: 0 | F46: 69.08073 | G46: 69.08073 | H46: 0 | I46: 0
A47: 45 | B47: 0 | C47: 0 | D47: 1 | E47: 0 | F47: 69.08073 | G47: 69.08073 | H47: 0 | I47: 0
A48: 46 | B48: 0 | C48: 0 | D48: 1 | E48: 0 | F48: 69.08073 | G48: 69.08073 | H48: 0 | I48: 0
A49: 47 | B49: 0 | C49: 0 | D49: 1 | E49: 0 | F49: 69.08073 | G49: 69.08073 | H49: 0 | I49: 0
A50: 48 | B50: 0 | C50: 0 | D50: 1 | E50: 0 | F50: 69.08073 | G50: 69.08073 | H50: 0 | I50: 0
A51: 49 | B51: 0 | C51: 0 | D51: 1 | E51: 0 | F51: 69.08073 | G51: 69.08073 | H51: 0 | I51: 0
A52: 50 | B52: 0 | C52: 0 | D52: 1 | E52: 0 | F52: 69.08073 | G52: 69.08073 | H52: 0 | I52: 0
A53: 51 | B53: 0 | C53: 0 | D53: 1 | E53: 0 | F53: 69.08073 | G53: 69.08073 | H53: 0 | I53: 0
A54: 52 | B54: 0 | C54: 1 | D54: 1 | E54: 1 | F54: 69.08073 | G54: 69.08073 | H54: 1 | I54: 0

Sheet T6 Flow calc D2
A1: Time(s) | B1: Injected cars | C1: Exiting cars | D1: Current cars in system | E1: Exiting people | F1: Avg. v [km/h] | G1: Min. v [km/h] | H1: Goal: Node 5 | I1: Node 5 flow
A2: 0 | B2: 19 | C2: 0 | D2: 19 | E2: 0 | F2: 52.53397 | G2: 52.53397 | H2: 0 | I2: 0
A3: 1 | B3: 0 | C3: 0 | D3: 19 | E3: 0 | F3: 52.53397 | G3: 52.53397 | H3: 0 | I3: 0
A4: 2 | B4: 0 | C4: 0 | D4: 19 | E4: 0 | F4: 52.53397 | G4: 52.53397 | H4: 0 | I4: 0
A5: 3 | B5: 0 | C5: 0 | D5: 19 | E5: 0 | F5: 52.53397 | G5: 52.53397 | H5: 0 | I5: 0
A6: 4 | B6: 0 | C6: 0 | D6: 19 | E6: 0 | F6: 52.53397 | G6: 52.53397 | H6: 0 | I6: 0
A7: 5 | B7: 0 | C7: 0 | D7: 19 | E7: 0 | F7: 52.53397 | G7: 52.53397 | H7: 0 | I7: 0
A8: 6 | B8: 0 | C8: 0 | D8: 19 | E8: 0 | F8: 52.53397 | G8: 52.53397 | H8: 0 | I8: 0
A9: 7 | B9: 0 | C9: 0 | D9: 19 | E9: 0 | F9: 52.53397 | G9: 52.53397 | H9: 0 | I9: 0
A10: 8 | B10: 0 | C10: 0 | D10: 19 | E10: 0 | F10: 52.53397 | G10: 52.53397 | H10: 0 | I10: 0
A11: 9 | B11: 0 | C11: 0 | D11: 19 | E11: 0 | F11: 52.53397 | G11: 52.53397 | H11: 0 | I11: 0
A12: 10 | B12: 0 | C12: 0 | D12: 19 | E12: 0 | F12: 52.53397 | G12: 52.53397 | H12: 0 | I12: 0
A13: 11 | B13: 0 | C13: 0 | D13: 19 | E13: 0 | F13: 52.53397 | G13: 52.53397 | H13: 0 | I13: 0
A14: 12 | B14: 0 | C14: 0 | D14: 19 | E14: 0 | F14: 52.53397 | G14: 52.53397 | H14: 0 | I14: 0
A15: 13 | B15: 0 | C15: 0 | D15: 19 | E15: 0 | F15: 52.53397 | G15: 52.53397 | H15: 0 | I15: 0
A16: 14 | B16: 0 | C16: 0 | D16: 19 | E16: 0 | F16: 52.53397 | G16: 52.53397 | H16: 0 | I16: 0
A17: 15 | B17: 0 | C17: 0 | D17: 19 | E17: 0 | F17: 52.53397 | G17: 52.53397 | H17: 0 | I17: 0
A18: 16 | B18: 0 | C18: 0 | D18: 19 | E18: 0 | F18: 52.53397 | G18: 52.53397 | H18: 0 | I18: 0
A19: 17 | B19: 0 | C19: 0 | D19: 19 | E19: 0 | F19: 52.53397 | G19: 52.53397 | H19: 0 | I19: 0
A20: 18 | B20: 0 | C20: 0 | D20: 19 | E20: 0 | F20: 52.53397 | G20: 52.53397 | H20: 0 | I20: 0
A21: 19 | B21: 0 | C21: 0 | D21: 19 | E21: 0 | F21: 52.53397 | G21: 52.53397 | H21: 0 | I21: 0
A22: 20 | B22: 0 | C22: 0 | D22: 19 | E22: 0 | F22: 52.53397 | G22: 52.53397 | H22: 0 | I22: 0
A23: 21 | B23: 0 | C23: 0 | D23: 19 | E23: 0 | F23: 52.53397 | G23: 52.53397 | H23: 0 | I23: 0
A24: 22 | B24: 0 | C24: 0 | D24: 19 | E24: 0 | F24: 52.53397 | G24: 52.53397 | H24: 0 | I24: 0
A25: 23 | B25: 0 | C25: 0 | D25: 19 | E25: 0 | F25: 52.53397 | G25: 52.53397 | H25: 0 | I25: 0
A26: 24 | B26: 0 | C26: 0 | D26: 19 | E26: 0 | F26: 52.53397 | G26: 52.53397 | H26: 0 | I26: 0
A27: 25 | B27: 0 | C27: 0 | D27: 19 | E27: 0 | F27: 52.53397 | G27: 52.53397 | H27: 0 | I27: 0
A28: 26 | B28: 0 | C28: 0 | D28: 19 | E28: 0 | F28: 52.53397 | G28: 52.53397 | H28: 0 | I28: 0
A29: 27 | B29: 0 | C29: 0 | D29: 19 | E29: 0 | F29: 52.53397 | G29: 52.53397 | H29: 0 | I29: 0
A30: 28 | B30: 0 | C30: 0 | D30: 19 | E30: 0 | F30: 52.53397 | G30: 52.53397 | H30: 0 | I30: 0
A31: 29 | B31: 0 | C31: 0 | D31: 19 | E31: 0 | F31: 52.53397 | G31: 52.53397 | H31: 0 | I31: 0
A32: 30 | B32: 0 | C32: 0 | D32: 19 | E32: 0 | F32: 52.53397 | G32: 52.53397 | H32: 0 | I32: 0
A33: 31 | B33: 0 | C33: 0 | D33: 19 | E33: 0 | F33: 52.53397 | G33: 52.53397 | H33: 0 | I33: 0
A34: 32 | B34: 0 | C34: 0 | D34: 19 | E34: 0 | F34: 52.53397 | G34: 52.53397 | H34: 0 | I34: 0
A35: 33 | B35: 0 | C35: 0 | D35: 19 | E35: 0 | F35: 52.53397 | G35: 52.53397 | H35: 0 | I35: 0
A36: 34 | B36: 0 | C36: 0 | D36: 19 | E36: 0 | F36: 52.53397 | G36: 52.53397 | H36: 0 | I36: 0
A37: 35 | B37: 0 | C37: 0 | D37: 19 | E37: 0 | F37: 52.53397 | G37: 52.53397 | H37: 0 | I37: 0
A38: 36 | B38: 0 | C38: 0 | D38: 19 | E38: 0 | F38: 52.53397 | G38: 52.53397 | H38: 0 | I38: 0
A39: 37 | B39: 0 | C39: 0 | D39: 19 | E39: 0 | F39: 52.53397 | G39: 52.53397 | H39: 0 | I39: 0
A40: 38 | B40: 0 | C40: 0 | D40: 19 | E40: 0 | F40: 52.53397 | G40: 52.53397 | H40: 0 | I40: 0
A41: 39 | B41: 0 | C41: 0 | D41: 19 | E41: 0 | F41: 52.53397 | G41: 52.53397 | H41: 0 | I41: 0
A42: 40 | B42: 0 | C42: 0 | D42: 19 | E42: 0 | F42: 52.53397 | G42: 52.53397 | H42: 0 | I42: 0
A43: 41 | B43: 0 | C43: 0 | D43: 19 | E43: 0 | F43: 52.53397 | G43: 52.53397 | H43: 0 | I43: 0
A44: 42 | B44: 0 | C44: 0 | D44: 19 | E44: 0 | F44: 52.53397 | G44: 52.53397 | H44: 0 | I44: 0
A45: 43 | B45: 0 | C45: 0 | D45: 19 | E45: 0 | F45: 52.53397 | G45: 52.53397 | H45: 0 | I45: 0
A46: 44 | B46: 0 | C46: 0 | D46: 19 | E46: 0 | F46: 52.53397 | G46: 52.53397 | H46: 0 | I46: 0
A47: 45 | B47: 0 | C47: 0 | D47: 19 | E47: 0 | F47: 52.53397 | G47: 52.53397 | H47: 0 | I47: 0
A48: 46 | B48: 0 | C48: 0 | D48: 19 | E48: 0 | F48: 52.53397 | G48: 52.53397 | H48: 0 | I48: 0
A49: 47 | B49: 0 | C49: 0 | D49: 19 | E49: 0 | F49: 52.53397 | G49: 52.53397 | H49: 0 | I49: 0
A50: 48 | B50: 0 | C50: 0 | D50: 19 | E50: 0 | F50: 52.53397 | G50: 52.53397 | H50: 0 | I50: 0
A51: 49 | B51: 0 | C51: 0 | D51: 19 | E51: 0 | F51: 52.53397 | G51: 52.53397 | H51: 0 | I51: 0
A52: 50 | B52: 0 | C52: 0 | D52: 19 | E52: 0 | F52: 52.53397 | G52: 52.53397 | H52: 0 | I52: 0
A53: 51 | B53: 0 | C53: 0 | D53: 19 | E53: 0 | F53: 52.53397 | G53: 52.53397 | H53: 0 | I53: 0
A54: 52 | B54: 0 | C54: 0 | D54: 19 | E54: 0 | F54: 52.53397 | G54: 52.53397 | H54: 0 | I54: 0
A55: 53 | B55: 0 | C55: 0 | D55: 19 | E55: 0 | F55: 52.53397 | G55: 52.53397 | H55: 0 | I55: 0
A56: 54 | B56: 0 | C56: 0 | D56: 19 | E56: 0 | F56: 52.53397 | G56: 52.53397 | H56: 0 | I56: 0
A57: 55 | B57: 0 | C57: 0 | D57: 19 | E57: 0 | F57: 52.53397 | G57: 52.53397 | H57: 0 | I57: 0
A58: 56 | B58: 0 | C58: 0 | D58: 19 | E58: 0 | F58: 52.53397 | G58: 52.53397 | H58: 0 | I58: 0
A59: 57 | B59: 0 | C59: 0 | D59: 19 | E59: 0 | F59: 52.53397 | G59: 52.53397 | H59: 0 | I59: 0
A60: 58 | B60: 0 | C60: 0 | D60: 19 | E60: 0 | F60: 52.53397 | G60: 52.53397 | H60: 0 | I60: 0
A61: 59 | B61: 0 | C61: 0 | D61: 19 | E61: 0 | F61: 52.53397 | G61: 52.53397 | H61: 0 | I61: 0
A62: 60 | B62: 0 | C62: 0 | D62: 19 | E62: 0 | F62: 52.53397 | G62: 52.53397 | H62: 0 | I62: 0
A63: 61 | B63: 0 | C63: 0 | D63: 19 | E63: 0 | F63: 52.53397 | G63: 52.53397 | H63: 0 | I63: 0
A64: 62 | B64: 0 | C64: 0 | D64: 19 | E64: 0 | F64: 52.53397 | G64: 52.53397 | H64: 0 | I64: 0
A65: 63 | B65: 0 | C65: 0 | D65: 19 | E65: 0 | F65: 52.53397 | G65: 52.53397 | H65: 0 | I65: 0
A66: 64 | B66: 0 | C66: 0 | D66: 19 | E66: 0 | F66: 52.53397 | G66: 52.53397 | H66: 0 | I66: 0
A67: 65 | B67: 0 | C67: 0 | D67: 19 | E67: 0 | F67: 52.53397 | G67: 52.53397 | H67: 0 | I67: 0
A68: 66 | B68: 0 | C68: 0 | D68: 19 | E68: 0 | F68: 52.53397 | G68: 52.53397 | H68: 0 | I68: 0
A69: 67 | B69: 0 | C69: 0 | D69: 19 | E69: 0 | F69: 52.53397 | G69: 52.53397 | H69: 0 | I69: 0
A70: 68 | B70: 0 | C70: 1 | D70: 19 | E70: 1 | F70: 52.53397 | G70: 52.53397 | H70: 1 | I70: 3600
A71: 69 | B71: 0 | C71: 0 | D71: 18 | E71: 0 | F71: 53.45324 | G71: 53.45324 | H71: 1 | I71: 3600
A72: 70 | B72: 0 | C72: 1 | D72: 18 | E72: 1 | F72: 53.45324 | G72: 53.45324 | H72: 2 | I72: 3600
A73: 71 | B73: 0 | C73: 1 | D73: 17 | E73: 1 | F73: 54.3725 | G73: 54.3725 | H73: 3 | I73: 3600
A74: 72 | B74: 0 | C74: 1 | D74: 16 | E74: 1 | F74: 55.29177 | G74: 55.29177 | H74: 4 | I74: 3600
A75: 73 | B75: 0 | C75: 1 | D75: 15 | E75: 1 | F75: 56.21103 | G75: 56.21103 | H75: 5 | I75: 3600
A76: 74 | B76: 0 | C76: 1 | D76: 14 | E76: 1 | F76: 57.13029 | G76: 57.13029 | H76: 6 | I76: 3600
A77: 75 | B77: 0 | C77: 1 | D77: 13 | E77: 1 | F77: 58.04956 | G77: 58.04956 | H77: 7 | I77: 3600
A78: 76 | B78: 0 | C78: 1 | D78: 12 | E78: 1 | F78: 58.96883 | G78: 58.96883 | H78: 8 | I78: 3600
A79: 77 | B79: 0 | C79: 1 | D79: 11 | E79: 1 | F79: 59.88809 | G79: 59.88809 | H79: 9 | I79: 3600
A80: 78 | B80: 0 | C80: 1 | D80: 10 | E80: 1 | F80: 60.80735 | G80: 60.80735 | H80: 10 | I80: 3600
A81: 79 | B81: 0 | C81: 1 | D81: 9 | E81: 1 | F81: 61.72662 | G81: 61.72662 | H81: 11 | I81: 3600
A82: 80 | B82: 0 | C82: 1 | D82: 8 | E82: 1 | F82: 62.64588 | G82: 62.64588 | H82: 12 | I82: 3600
A83: 81 | B83: 0 | C83: 1 | D83: 7 | E83: 1 | F83: 63.56515 | G83: 63.56515 | H83: 13 | I83: 3600
A84: 82 | B84: 0 | C84: 1 | D84: 6 | E84: 1 | F84: 64.48441 | G84: 64.48441 | H84: 14 | I84: 3600
A85: 83 | B85: 0 | C85: 1 | D85: 5 | E85: 1 | F85: 65.40368 | G85: 65.40368 | H85: 15 | I85: 3600
A86: 84 | B86: 0 | C86: 1 | D86: 4 | E86: 1 | F86: 66.32294 | G86: 66.32294 | H86: 16 | I86: 3600
A87: 85 | B87: 0 | C87: 1 | D87: 3 | E87: 1 | F87: 67.2422 | G87: 67.2422 | H87: 17 | I87: 3600
A88: 86 | B88: 0 | C88: 1 | D88: 2 | E88: 1 | F88: 68.16147 | G88: 68.16147 | H88: 18 | I88: 3600
A89: 87 | B89: 0 | C89: 1 | D89: 1 | E89: 1 | F89: 69.08073 | G89: 69.08073 | H89: 19 | I89: 3410.526

Sheet T6 flow calc D3
A1: Time(s) | B1: Injected cars | C1: Exiting cars | D1: Current cars in system | E1: Exiting people | F1: Avg. v [km/h] | G1: Min. v [km/h] | H1: Goal: Node 5 | I1: Node 5 flow
A2: 0 | B2: 38 | C2: 0 | D2: 38 | E2: 0 | F2: 35.06795 | G2: 35.06795 | H2: 0 | I2: 0
A3: 1 | B3: 0 | C3: 0 | D3: 38 | E3: 0 | F3: 35.06795 | G3: 35.06795 | H3: 0 | I3: 0
A4: 2 | B4: 0 | C4: 0 | D4: 38 | E4: 0 | F4: 35.06795 | G4: 35.06795 | H4: 0 | I4: 0
A5: 3 | B5: 0 | C5: 0 | D5: 38 | E5: 0 | F5: 35.06795 | G5: 35.06795 | H5: 0 | I5: 0
A6: 4 | B6: 0 | C6: 0 | D6: 38 | E6: 0 | F6: 35.06795 | G6: 35.06795 | H6: 0 | I6: 0
A7: 5 | B7: 0 | C7: 0 | D7: 38 | E7: 0 | F7: 35.06795 | G7: 35.06795 | H7: 0 | I7: 0
A8: 6 | B8: 0 | C8: 0 | D8: 38 | E8: 0 | F8: 35.06795 | G8: 35.06795 | H8: 0 | I8: 0
A9: 7 | B9: 0 | C9: 0 | D9: 38 | E9: 0 | F9: 35.06795 | G9: 35.06795 | H9: 0 | I9: 0
A10: 8 | B10: 0 | C10: 0 | D10: 38 | E10: 0 | F10: 35.06795 | G10: 35.06795 | H10: 0 | I10: 0
A11: 9 | B11: 0 | C11: 0 | D11: 38 | E11: 0 | F11: 35.06795 | G11: 35.06795 | H11: 0 | I11: 0
A12: 10 | B12: 0 | C12: 0 | D12: 38 | E12: 0 | F12: 35.06795 | G12: 35.06795 | H12: 0 | I12: 0
A13: 11 | B13: 0 | C13: 0 | D13: 38 | E13: 0 | F13: 35.06795 | G13: 35.06795 | H13: 0 | I13: 0
A14: 12 | B14: 0 | C14: 0 | D14: 38 | E14: 0 | F14: 35.06795 | G14: 35.06795 | H14: 0 | I14: 0
A15: 13 | B15: 0 | C15: 0 | D15: 38 | E15: 0 | F15: 35.06795 | G15: 35.06795 | H15: 0 | I15: 0
A16: 14 | B16: 0 | C16: 0 | D16: 38 | E16: 0 | F16: 35.06795 | G16: 35.06795 | H16: 0 | I16: 0
A17: 15 | B17: 0 | C17: 0 | D17: 38 | E17: 0 | F17: 35.06795 | G17: 35.06795 | H17: 0 | I17: 0
A18: 16 | B18: 0 | C18: 0 | D18: 38 | E18: 0 | F18: 35.06795 | G18: 35.06795 | H18: 0 | I18: 0
A19: 17 | B19: 0 | C19: 0 | D19: 38 | E19: 0 | F19: 35.06795 | G19: 35.06795 | H19: 0 | I19: 0
A20: 18 | B20: 0 | C20: 0 | D20: 38 | E20: 0 | F20: 35.06795 | G20: 35.06795 | H20: 0 | I20: 0
A21: 19 | B21: 0 | C21: 0 | D21: 38 | E21: 0 | F21: 35.06795 | G21: 35.06795 | H21: 0 | I21: 0
A22: 20 | B22: 0 | C22: 0 | D22: 38 | E22: 0 | F22: 35.06795 | G22: 35.06795 | H22: 0 | I22: 0
A23: 21 | B23: 0 | C23: 0 | D23: 38 | E23: 0 | F23: 35.06795 | G23: 35.06795 | H23: 0 | I23: 0
A24: 22 | B24: 0 | C24: 0 | D24: 38 | E24: 0 | F24: 35.06795 | G24: 35.06795 | H24: 0 | I24: 0
A25: 23 | B25: 0 | C25: 0 | D25: 38 | E25: 0 | F25: 35.06795 | G25: 35.06795 | H25: 0 | I25: 0
A26: 24 | B26: 0 | C26: 0 | D26: 38 | E26: 0 | F26: 35.06795 | G26: 35.06795 | H26: 0 | I26: 0
A27: 25 | B27: 0 | C27: 0 | D27: 38 | E27: 0 | F27: 35.06795 | G27: 35.06795 | H27: 0 | I27: 0
A28: 26 | B28: 0 | C28: 0 | D28: 38 | E28: 0 | F28: 35.06795 | G28: 35.06795 | H28: 0 | I28: 0
A29: 27 | B29: 0 | C29: 0 | D29: 38 | E29: 0 | F29: 35.06795 | G29: 35.06795 | H29: 0 | I29: 0
A30: 28 | B30: 0 | C30: 0 | D30: 38 | E30: 0 | F30: 35.06795 | G30: 35.06795 | H30: 0 | I30: 0
A31: 29 | B31: 0 | C31: 0 | D31: 38 | E31: 0 | F31: 35.06795 | G31: 35.06795 | H31: 0 | I31: 0
A32: 30 | B32: 0 | C32: 0 | D32: 38 | E32: 0 | F32: 35.06795 | G32: 35.06795 | H32: 0 | I32: 0
A33: 31 | B33: 0 | C33: 0 | D33: 38 | E33: 0 | F33: 35.06795 | G33: 35.06795 | H33: 0 | I33: 0
A34: 32 | B34: 0 | C34: 0 | D34: 38 | E34: 0 | F34: 35.06795 | G34: 35.06795 | H34: 0 | I34: 0
A35: 33 | B35: 0 | C35: 0 | D35: 38 | E35: 0 | F35: 35.06795 | G35: 35.06795 | H35: 0 | I35: 0
A36: 34 | B36: 0 | C36: 0 | D36: 38 | E36: 0 | F36: 35.06795 | G36: 35.06795 | H36: 0 | I36: 0
A37: 35 | B37: 0 | C37: 0 | D37: 38 | E37: 0 | F37: 35.06795 | G37: 35.06795 | H37: 0 | I37: 0
A38: 36 | B38: 0 | C38: 0 | D38: 38 | E38: 0 | F38: 35.06795 | G38: 35.06795 | H38: 0 | I38: 0
A39: 37 | B39: 0 | C39: 0 | D39: 38 | E39: 0 | F39: 35.06795 | G39: 35.06795 | H39: 0 | I39: 0
A40: 38 | B40: 0 | C40: 0 | D40: 38 | E40: 0 | F40: 35.06795 | G40: 35.06795 | H40: 0 | I40: 0
A41: 39 | B41: 0 | C41: 0 | D41: 38 | E41: 0 | F41: 35.06795 | G41: 35.06795 | H41: 0 | I41: 0
A42: 40 | B42: 0 | C42: 0 | D42: 38 | E42: 0 | F42: 35.06795 | G42: 35.06795 | H42: 0 | I42: 0
A43: 41 | B43: 0 | C43: 0 | D43: 38 | E43: 0 | F43: 35.06795 | G43: 35.06795 | H43: 0 | I43: 0
A44: 42 | B44: 0 | C44: 0 | D44: 38 | E44: 0 | F44: 35.06795 | G44: 35.06795 | H44: 0 | I44: 0
A45: 43 | B45: 0 | C45: 0 | D45: 38 | E45: 0 | F45: 35.06795 | G45: 35.06795 | H45: 0 | I45: 0
A46: 44 | B46: 0 | C46: 0 | D46: 38 | E46: 0 | F46: 35.06795 | G46: 35.06795 | H46: 0 | I46: 0
A47: 45 | B47: 0 | C47: 0 | D47: 38 | E47: 0 | F47: 35.06795 | G47: 35.06795 | H47: 0 | I47: 0
A48: 46 | B48: 0 | C48: 0 | D48: 38 | E48: 0 | F48: 35.06795 | G48: 35.06795 | H48: 0 | I48: 0
A49: 47 | B49: 0 | C49: 0 | D49: 38 | E49: 0 | F49: 35.06795 | G49: 35.06795 | H49: 0 | I49: 0
A50: 48 | B50: 0 | C50: 0 | D50: 38 | E50: 0 | F50: 35.06795 | G50: 35.06795 | H50: 0 | I50: 0
A51: 49 | B51: 0 | C51: 0 | D51: 38 | E51: 0 | F51: 35.06795 | G51: 35.06795 | H51: 0 | I51: 0
A52: 50 | B52: 0 | C52: 0 | D52: 38 | E52: 0 | F52: 35.06795 | G52: 35.06795 | H52: 0 | I52: 0
A53: 51 | B53: 0 | C53: 0 | D53: 38 | E53: 0 | F53: 35.06795 | G53: 35.06795 | H53: 0 | I53: 0
A54: 52 | B54: 0 | C54: 0 | D54: 38 | E54: 0 | F54: 35.06795 | G54: 35.06795 | H54: 0 | I54: 0
A55: 53 | B55: 0 | C55: 0 | D55: 38 | E55: 0 | F55: 35.06795 | G55: 35.06795 | H55: 0 | I55: 0
A56: 54 | B56: 0 | C56: 0 | D56: 38 | E56: 0 | F56: 35.06795 | G56: 35.06795 | H56: 0 | I56: 0
A57: 55 | B57: 0 | C57: 0 | D57: 38 | E57: 0 | F57: 35.06795 | G57: 35.06795 | H57: 0 | I57: 0
A58: 56 | B58: 0 | C58: 0 | D58: 38 | E58: 0 | F58: 35.06795 | G58: 35.06795 | H58: 0 | I58: 0
A59: 57 | B59: 0 | C59: 0 | D59: 38 | E59: 0 | F59: 35.06795 | G59: 35.06795 | H59: 0 | I59: 0
A60: 58 | B60: 0 | C60: 0 | D60: 38 | E60: 0 | F60: 35.06795 | G60: 35.06795 | H60: 0 | I60: 0
A61: 59 | B61: 0 | C61: 0 | D61: 38 | E61: 0 | F61: 35.06795 | G61: 35.06795 | H61: 0 | I61: 0
A62: 60 | B62: 0 | C62: 0 | D62: 38 | E62: 0 | F62: 35.06795 | G62: 35.06795 | H62: 0 | I62: 0
A63: 61 | B63: 0 | C63: 0 | D63: 38 | E63: 0 | F63: 35.06795 | G63: 35.06795 | H63: 0 | I63: 0
A64: 62 | B64: 0 | C64: 0 | D64: 38 | E64: 0 | F64: 35.06795 | G64: 35.06795 | H64: 0 | I64: 0
A65: 63 | B65: 0 | C65: 0 | D65: 38 | E65: 0 | F65: 35.06795 | G65: 35.06795 | H65: 0 | I65: 0
A66: 64 | B66: 0 | C66: 0 | D66: 38 | E66: 0 | F66: 35.06795 | G66: 35.06795 | H66: 0 | I66: 0
A67: 65 | B67: 0 | C67: 0 | D67: 38 | E67: 0 | F67: 35.06795 | G67: 35.06795 | H67: 0 | I67: 0
A68: 66 | B68: 0 | C68: 0 | D68: 38 | E68: 0 | F68: 35.06795 | G68: 35.06795 | H68: 0 | I68: 0
A69: 67 | B69: 0 | C69: 0 | D69: 38 | E69: 0 | F69: 35.06795 | G69: 35.06795 | H69: 0 | I69: 0
A70: 68 | B70: 0 | C70: 0 | D70: 38 | E70: 0 | F70: 35.06795 | G70: 35.06795 | H70: 0 | I70: 0
A71: 69 | B71: 0 | C71: 0 | D71: 38 | E71: 0 | F71: 35.06795 | G71: 35.06795 | H71: 0 | I71: 0
A72: 70 | B72: 0 | C72: 0 | D72: 38 | E72: 0 | F72: 35.06795 | G72: 35.06795 | H72: 0 | I72: 0
A73: 71 | B73: 0 | C73: 0 | D73: 38 | E73: 0 | F73: 35.06795 | G73: 35.06795 | H73: 0 | I73: 0
A74: 72 | B74: 0 | C74: 0 | D74: 38 | E74: 0 | F74: 35.06795 | G74: 35.06795 | H74: 0 | I74: 0
A75: 73 | B75: 0 | C75: 0 | D75: 38 | E75: 0 | F75: 35.06795 | G75: 35.06795 | H75: 0 | I75: 0
A76: 74 | B76: 0 | C76: 0 | D76: 38 | E76: 0 | F76: 35.06795 | G76: 35.06795 | H76: 0 | I76: 0
A77: 75 | B77: 0 | C77: 0 | D77: 38 | E77: 0 | F77: 35.06795 | G77: 35.06795 | H77: 0 | I77: 0
A78: 76 | B78: 0 | C78: 0 | D78: 38 | E78: 0 | F78: 35.06795 | G78: 35.06795 | H78: 0 | I78: 0
A79: 77 | B79: 0 | C79: 0 | D79: 38 | E79: 0 | F79: 35.06795 | G79: 35.06795 | H79: 0 | I79: 0
A80: 78 | B80: 0 | C80: 0 | D80: 38 | E80: 0 | F80: 35.06795 | G80: 35.06795 | H80: 0 | I80: 0
A81: 79 | B81: 0 | C81: 0 | D81: 38 | E81: 0 | F81: 35.06795 | G81: 35.06795 | H81: 0 | I81: 0
A82: 80 | B82: 0 | C82: 0 | D82: 38 | E82: 0 | F82: 35.06795 | G82: 35.06795 | H82: 0 | I82: 0
A83: 81 | B83: 0 | C83: 0 | D83: 38 | E83: 0 | F83: 35.06795 | G83: 35.06795 | H83: 0 | I83: 0
A84: 82 | B84: 0 | C84: 0 | D84: 38 | E84: 0 | F84: 35.06795 | G84: 35.06795 | H84: 0 | I84: 0
A85: 83 | B85: 0 | C85: 0 | D85: 38 | E85: 0 | F85: 35.06795 | G85: 35.06795 | H85: 0 | I85: 0
A86: 84 | B86: 0 | C86: 0 | D86: 38 | E86: 0 | F86: 35.06795 | G86: 35.06795 | H86: 0 | I86: 0
A87: 85 | B87: 0 | C87: 0 | D87: 38 | E87: 0 | F87: 35.06795 | G87: 35.06795 | H87: 0 | I87: 0
A88: 86 | B88: 0 | C88: 0 | D88: 38 | E88: 0 | F88: 35.06795 | G88: 35.06795 | H88: 0 | I88: 0
A89: 87 | B89: 0 | C89: 0 | D89: 38 | E89: 0 | F89: 35.06795 | G89: 35.06795 | H89: 0 | I89: 0
A90: 88 | B90: 0 | C90: 0 | D90: 38 | E90: 0 | F90: 35.06795 | G90: 35.06795 | H90: 0 | I90: 0
A91: 89 | B91: 0 | C91: 0 | D91: 38 | E91: 0 | F91: 35.06795 | G91: 35.06795 | H91: 0 | I91: 0
A92: 90 | B92: 0 | C92: 0 | D92: 38 | E92: 0 | F92: 35.06795 | G92: 35.06795 | H92: 0 | I92: 0
A93: 91 | B93: 0 | C93: 0 | D93: 38 | E93: 0 | F93: 35.06795 | G93: 35.06795 | H93: 0 | I93: 0
A94: 92 | B94: 0 | C94: 0 | D94: 38 | E94: 0 | F94: 35.06795 | G94: 35.06795 | H94: 0 | I94: 0
A95: 93 | B95: 0 | C95: 0 | D95: 38 | E95: 0 | F95: 35.06795 | G95: 35.06795 | H95: 0 | I95: 0
A96: 94 | B96: 0 | C96: 0 | D96: 38 | E96: 0 | F96: 35.06795 | G96: 35.06795 | H96: 0 | I96: 0
A97: 95 | B97: 0 | C97: 0 | D97: 38 | E97: 0 | F97: 35.06795 | G97: 35.06795 | H97: 0 | I97: 0
A98: 96 | B98: 0 | C98: 0 | D98: 38 | E98: 0 | F98: 35.06795 | G98: 35.06795 | H98: 0 | I98: 0
A99: 97 | B99: 0 | C99: 0 | D99: 38 | E99: 0 | F99: 35.06795 | G99: 35.06795 | H99: 0 | I99: 0
A100: 98 | B100: 0 | C100: 0 | D100: 38 | E100: 0 | F100: 35.06795 | G100: 35.06795 | H100: 0 | I100: 0
A101: 99 | B101: 0 | C101: 0 | D101: 38 | E101: 0 | F101: 35.06795 | G101: 35.06795 | H101: 0 | I101: 0
A102: 100 | B102: 0 | C102: 0 | D102: 38 | E102: 0 | F102: 35.06795 | G102: 35.06795 | H102: 0 | I102: 0
A103: 101 | B103: 0 | C103: 0 | D103: 38 | E103: 0 | F103: 35.06795 | G103: 35.06795 | H103: 0 | I103: 0
A104: 102 | B104: 0 | C104: 1 | D104: 38 | E104: 1 | F104: 35.06795 | G104: 35.06795 | H104: 1 | I104: 3600
A105: 103 | B105: 0 | C105: 0 | D105: 37 | E105: 0 | F105: 35.98721 | G105: 35.98721 | H105: 1 | I105: 3600
A106: 104 | B106: 0 | C106: 1 | D106: 37 | E106: 1 | F106: 35.98721 | G106: 35.98721 | H106: 2 | I106: 3600
A107: 105 | B107: 0 | C107: 1 | D107: 36 | E107: 1 | F107: 36.90648 | G107: 36.90648 | H107: 3 | I107: 3600
A108: 106 | B108: 0 | C108: 1 | D108: 35 | E108: 1 | F108: 37.82574 | G108: 37.82574 | H108: 4 | I108: 3600
A109: 107 | B109: 0 | C109: 1 | D109: 34 | E109: 1 | F109: 38.74501 | G109: 38.74501 | H109: 5 | I109: 3600
A110: 108 | B110: 0 | C110: 1 | D110: 33 | E110: 1 | F110: 39.66427 | G110: 39.66427 | H110: 6 | I110: 3600
A111: 109 | B111: 0 | C111: 1 | D111: 32 | E111: 1 | F111: 40.58353 | G111: 40.58353 | H111: 7 | I111: 3600
A112: 110 | B112: 0 | C112: 1 | D112: 31 | E112: 1 | F112: 41.5028 | G112: 41.5028 | H112: 8 | I112: 3600
A113: 111 | B113: 0 | C113: 1 | D113: 30 | E113: 1 | F113: 42.42206 | G113: 42.42206 | H113: 9 | I113: 3600
A114: 112 | B114: 0 | C114: 1 | D114: 29 | E114: 1 | F114: 43.34133 | G114: 43.34133 | H114: 10 | I114: 3600
A115: 113 | B115: 0 | C115: 1 | D115: 28 | E115: 1 | F115: 44.26059 | G115: 44.26059 | H115: 11 | I115: 3600
A116: 114 | B116: 0 | C116: 1 | D116: 27 | E116: 1 | F116: 45.17986 | G116: 45.17986 | H116: 12 | I116: 3600
A117: 115 | B117: 0 | C117: 1 | D117: 26 | E117: 1 | F117: 46.09912 | G117: 46.09912 | H117: 13 | I117: 3600
A118: 116 | B118: 0 | C118: 1 | D118: 25 | E118: 1 | F118: 47.01839 | G118: 47.01839 | H118: 14 | I118: 3600
A119: 117 | B119: 0 | C119: 1 | D119: 24 | E119: 1 | F119: 47.93765 | G119: 47.93765 | H119: 15 | I119: 3600
A120: 118 | B120: 0 | C120: 1 | D120: 23 | E120: 1 | F120: 48.85691 | G120: 48.85691 | H120: 16 | I120: 3600
A121: 119 | B121: 0 | C121: 1 | D121: 22 | E121: 1 | F121: 49.77618 | G121: 49.77618 | H121: 17 | I121: 3600
A122: 120 | B122: 0 | C122: 1 | D122: 21 | E122: 1 | F122: 50.69544 | G122: 50.69544 | H122: 18 | I122: 3600
A123: 121 | B123: 0 | C123: 1 | D123: 20 | E123: 1 | F123: 51.61471 | G123: 51.61471 | H123: 19 | I123: 3600
A124: 122 | B124: 0 | C124: 1 | D124: 19 | E124: 1 | F124: 52.53397 | G124: 52.53397 | H124: 20 | I124: 3600
A125: 123 | B125: 0 | C125: 1 | D125: 18 | E125: 1 | F125: 53.45324 | G125: 53.45324 | H125: 21 | I125: 3600
A126: 124 | B126: 0 | C126: 1 | D126: 17 | E126: 1 | F126: 54.3725 | G126: 54.3725 | H126: 22 | I126: 3600
A127: 125 | B127: 0 | C127: 1 | D127: 16 | E127: 1 | F127: 55.29177 | G127: 55.29177 | H127: 23 | I127: 3600
A128: 126 | B128: 0 | C128: 1 | D128: 15 | E128: 1 | F128: 56.21103 | G128: 56.21103 | H128: 24 | I128: 3600
A129: 127 | B129: 0 | C129: 1 | D129: 14 | E129: 1 | F129: 57.13029 | G129: 57.13029 | H129: 25 | I129: 3600
A130: 128 | B130: 0 | C130: 1 | D130: 13 | E130: 1 | F130: 58.04956 | G130: 58.04956 | H130: 26 | I130: 3600
A131: 129 | B131: 0 | C131: 1 | D131: 12 | E131: 1 | F131: 58.96883 | G131: 58.96883 | H131: 27 | I131: 3600
A132: 130 | B132: 0 | C132: 1 | D132: 11 | E132: 1 | F132: 59.88809 | G132: 59.88809 | H132: 28 | I132: 3600
A133: 131 | B133: 0 | C133: 1 | D133: 10 | E133: 1 | F133: 60.80735 | G133: 60.80735 | H133: 29 | I133: 3600
A134: 132 | B134: 0 | C134: 1 | D134: 9 | E134: 1 | F134: 61.72662 | G134: 61.72662 | H134: 30 | I134: 3600
A135: 133 | B135: 0 | C135: 1 | D135: 8 | E135: 1 | F135: 62.64588 | G135: 62.64588 | H135: 31 | I135: 3600
A136: 134 | B136: 0 | C136: 1 | D136: 7 | E136: 1 | F136: 63.56515 | G136: 63.56515 | H136: 32 | I136: 3600
A137: 135 | B137: 0 | C137: 1 | D137: 6 | E137: 1 | F137: 64.48441 | G137: 64.48441 | H137: 33 | I137: 3600
A138: 136 | B138: 0 | C138: 1 | D138: 5 | E138: 1 | F138: 65.40368 | G138: 65.40368 | H138: 34 | I138: 3600
A139: 137 | B139: 0 | C139: 1 | D139: 4 | E139: 1 | F139: 66.32294 | G139: 66.32294 | H139: 35 | I139: 3600
A140: 138 | B140: 0 | C140: 1 | D140: 3 | E140: 1 | F140: 67.2422 | G140: 67.2422 | H140: 36 | I140: 3600
A141: 139 | B141: 0 | C141: 1 | D141: 2 | E141: 1 | F141: 68.16147 | G141: 68.16147 | H141: 37 | I141: 3600
A142: 140 | B142: 0 | C142: 1 | D142: 1 | E142: 1 | F142: 69.08073 | G142: 69.08073 | H142: 38 | I142: 3505.263

Sheet T6 flow calc D4
A1: Time(s) | B1: Injected cars | C1: Exiting cars | D1: Current cars in system | E1: Exiting people | F1: Avg. v [km/h] | G1: Min. v [km/h] | H1: Goal: Node 5 | I1: Node 5 flow
A2: 0 | B2: 56 | C2: 0 | D2: 56 | E2: 0 | F2: 18.52118 | G2: 18.52118 | H2: 0 | I2: 0
A3: 1 | B3: 0 | C3: 0 | D3: 56 | E3: 0 | F3: 18.52118 | G3: 18.52118 | H3: 0 | I3: 0
A4: 2 | B4: 0 | C4: 0 | D4: 56 | E4: 0 | F4: 18.52118 | G4: 18.52118 | H4: 0 | I4: 0
A5: 3 | B5: 0 | C5: 0 | D5: 56 | E5: 0 | F5: 18.52118 | G5: 18.52118 | H5: 0 | I5: 0
A6: 4 | B6: 0 | C6: 0 | D6: 56 | E6: 0 | F6: 18.52118 | G6: 18.52118 | H6: 0 | I6: 0
A7: 5 | B7: 0 | C7: 0 | D7: 56 | E7: 0 | F7: 18.52118 | G7: 18.52118 | H7: 0 | I7: 0
A8: 6 | B8: 0 | C8: 0 | D8: 56 | E8: 0 | F8: 18.52118 | G8: 18.52118 | H8: 0 | I8: 0
A9: 7 | B9: 0 | C9: 0 | D9: 56 | E9: 0 | F9: 18.52118 | G9: 18.52118 | H9: 0 | I9: 0
A10: 8 | B10: 0 | C10: 0 | D10: 56 | E10: 0 | F10: 18.52118 | G10: 18.52118 | H10: 0 | I10: 0
A11: 9 | B11: 0 | C11: 0 | D11: 56 | E11: 0 | F11: 18.52118 | G11: 18.52118 | H11: 0 | I11: 0
A12: 10 | B12: 0 | C12: 0 | D12: 56 | E12: 0 | F12: 18.52118 | G12: 18.52118 | H12: 0 | I12: 0
A13: 11 | B13: 0 | C13: 0 | D13: 56 | E13: 0 | F13: 18.52118 | G13: 18.52118 | H13: 0 | I13: 0
A14: 12 | B14: 0 | C14: 0 | D14: 56 | E14: 0 | F14: 18.52118 | G14: 18.52118 | H14: 0 | I14: 0
A15: 13 | B15: 0 | C15: 0 | D15: 56 | E15: 0 | F15: 18.52118 | G15: 18.52118 | H15: 0 | I15: 0
A16: 14 | B16: 0 | C16: 0 | D16: 56 | E16: 0 | F16: 18.52118 | G16: 18.52118 | H16: 0 | I16: 0
A17: 15 | B17: 0 | C17: 0 | D17: 56 | E17: 0 | F17: 18.52118 | G17: 18.52118 | H17: 0 | I17: 0
A18: 16 | B18: 0 | C18: 0 | D18: 56 | E18: 0 | F18: 18.52118 | G18: 18.52118 | H18: 0 | I18: 0
A19: 17 | B19: 0 | C19: 0 | D19: 56 | E19: 0 | F19: 18.52118 | G19: 18.52118 | H19: 0 | I19: 0
A20: 18 | B20: 0 | C20: 0 | D20: 56 | E20: 0 | F20: 18.52118 | G20: 18.52118 | H20: 0 | I20: 0
A21: 19 | B21: 0 | C21: 0 | D21: 56 | E21: 0 | F21: 18.52118 | G21: 18.52118 | H21: 0 | I21: 0
A22: 20 | B22: 0 | C22: 0 | D22: 56 | E22: 0 | F22: 18.52118 | G22: 18.52118 | H22: 0 | I22: 0
A23: 21 | B23: 0 | C23: 0 | D23: 56 | E23: 0 | F23: 18.52118 | G23: 18.52118 | H23: 0 | I23: 0
A24: 22 | B24: 0 | C24: 0 | D24: 56 | E24: 0 | F24: 18.52118 | G24: 18.52118 | H24: 0 | I24: 0
A25: 23 | B25: 0 | C25: 0 | D25: 56 | E25: 0 | F25: 18.52118 | G25: 18.52118 | H25: 0 | I25: 0
A26: 24 | B26: 0 | C26: 0 | D26: 56 | E26: 0 | F26: 18.52118 | G26: 18.52118 | H26: 0 | I26: 0
A27: 25 | B27: 0 | C27: 0 | D27: 56 | E27: 0 | F27: 18.52118 | G27: 18.52118 | H27: 0 | I27: 0
A28: 26 | B28: 0 | C28: 0 | D28: 56 | E28: 0 | F28: 18.52118 | G28: 18.52118 | H28: 0 | I28: 0
A29: 27 | B29: 0 | C29: 0 | D29: 56 | E29: 0 | F29: 18.52118 | G29: 18.52118 | H29: 0 | I29: 0
A30: 28 | B30: 0 | C30: 0 | D30: 56 | E30: 0 | F30: 18.52118 | G30: 18.52118 | H30: 0 | I30: 0
A31: 29 | B31: 0 | C31: 0 | D31: 56 | E31: 0 | F31: 18.52118 | G31: 18.52118 | H31: 0 | I31: 0
A32: 30 | B32: 0 | C32: 0 | D32: 56 | E32: 0 | F32: 18.52118 | G32: 18.52118 | H32: 0 | I32: 0
A33: 31 | B33: 0 | C33: 0 | D33: 56 | E33: 0 | F33: 18.52118 | G33: 18.52118 | H33: 0 | I33: 0
A34: 32 | B34: 0 | C34: 0 | D34: 56 | E34: 0 | F34: 18.52118 | G34: 18.52118 | H34: 0 | I34: 0
A35: 33 | B35: 0 | C35: 0 | D35: 56 | E35: 0 | F35: 18.52118 | G35: 18.52118 | H35: 0 | I35: 0
A36: 34 | B36: 0 | C36: 0 | D36: 56 | E36: 0 | F36: 18.52118 | G36: 18.52118 | H36: 0 | I36: 0
A37: 35 | B37: 0 | C37: 0 | D37: 56 | E37: 0 | F37: 18.52118 | G37: 18.52118 | H37: 0 | I37: 0
A38: 36 | B38: 0 | C38: 0 | D38: 56 | E38: 0 | F38: 18.52118 | G38: 18.52118 | H38: 0 | I38: 0
A39: 37 | B39: 0 | C39: 0 | D39: 56 | E39: 0 | F39: 18.52118 | G39: 18.52118 | H39: 0 | I39: 0
A40: 38 | B40: 0 | C40: 0 | D40: 56 | E40: 0 | F40: 18.52118 | G40: 18.52118 | H40: 0 | I40: 0
A41: 39 | B41: 0 | C41: 0 | D41: 56 | E41: 0 | F41: 18.52118 | G41: 18.52118 | H41: 0 | I41: 0
A42: 40 | B42: 0 | C42: 0 | D42: 56 | E42: 0 | F42: 18.52118 | G42: 18.52118 | H42: 0 | I42: 0
A43: 41 | B43: 0 | C43: 0 | D43: 56 | E43: 0 | F43: 18.52118 | G43: 18.52118 | H43: 0 | I43: 0
A44: 42 | B44: 0 | C44: 0 | D44: 56 | E44: 0 | F44: 18.52118 | G44: 18.52118 | H44: 0 | I44: 0
A45: 43 | B45: 0 | C45: 0 | D45: 56 | E45: 0 | F45: 18.52118 | G45: 18.52118 | H45: 0 | I45: 0
A46: 44 | B46: 0 | C46: 0 | D46: 56 | E46: 0 | F46: 18.52118 | G46: 18.52118 | H46: 0 | I46: 0
A47: 45 | B47: 0 | C47: 0 | D47: 56 | E47: 0 | F47: 18.52118 | G47: 18.52118 | H47: 0 | I47: 0
A48: 46 | B48: 0 | C48: 0 | D48: 56 | E48: 0 | F48: 18.52118 | G48: 18.52118 | H48: 0 | I48: 0
A49: 47 | B49: 0 | C49: 0 | D49: 56 | E49: 0 | F49: 18.52118 | G49: 18.52118 | H49: 0 | I49: 0
A50: 48 | B50: 0 | C50: 0 | D50: 56 | E50: 0 | F50: 18.52118 | G50: 18.52118 | H50: 0 | I50: 0
A51: 49 | B51: 0 | C51: 0 | D51: 56 | E51: 0 | F51: 18.52118 | G51: 18.52118 | H51: 0 | I51: 0
A52: 50 | B52: 0 | C52: 0 | D52: 56 | E52: 0 | F52: 18.52118 | G52: 18.52118 | H52: 0 | I52: 0
A53: 51 | B53: 0 | C53: 0 | D53: 56 | E53: 0 | F53: 18.52118 | G53: 18.52118 | H53: 0 | I53: 0
A54: 52 | B54: 0 | C54: 0 | D54: 56 | E54: 0 | F54: 18.52118 | G54: 18.52118 | H54: 0 | I54: 0
A55: 53 | B55: 0 | C55: 0 | D55: 56 | E55: 0 | F55: 18.52118 | G55: 18.52118 | H55: 0 | I55: 0
A56: 54 | B56: 0 | C56: 0 | D56: 56 | E56: 0 | F56: 18.52118 | G56: 18.52118 | H56: 0 | I56: 0
A57: 55 | B57: 0 | C57: 0 | D57: 56 | E57: 0 | F57: 18.52118 | G57: 18.52118 | H57: 0 | I57: 0
A58: 56 | B58: 0 | C58: 0 | D58: 56 | E58: 0 | F58: 18.52118 | G58: 18.52118 | H58: 0 | I58: 0
A59: 57 | B59: 0 | C59: 0 | D59: 56 | E59: 0 | F59: 18.52118 | G59: 18.52118 | H59: 0 | I59: 0
A60: 58 | B60: 0 | C60: 0 | D60: 56 | E60: 0 | F60: 18.52118 | G60: 18.52118 | H60: 0 | I60: 0
A61: 59 | B61: 0 | C61: 0 | D61: 56 | E61: 0 | F61: 18.52118 | G61: 18.52118 | H61: 0 | I61: 0
A62: 60 | B62: 0 | C62: 0 | D62: 56 | E62: 0 | F62: 18.52118 | G62: 18.52118 | H62: 0 | I62: 0
A63: 61 | B63: 0 | C63: 0 | D63: 56 | E63: 0 | F63: 18.52118 | G63: 18.52118 | H63: 0 | I63: 0
A64: 62 | B64: 0 | C64: 0 | D64: 56 | E64: 0 | F64: 18.52118 | G64: 18.52118 | H64: 0 | I64: 0
A65: 63 | B65: 0 | C65: 0 | D65: 56 | E65: 0 | F65: 18.52118 | G65: 18.52118 | H65: 0 | I65: 0
A66: 64 | B66: 0 | C66: 0 | D66: 56 | E66: 0 | F66: 18.52118 | G66: 18.52118 | H66: 0 | I66: 0
A67: 65 | B67: 0 | C67: 0 | D67: 56 | E67: 0 | F67: 18.52118 | G67: 18.52118 | H67: 0 | I67: 0
A68: 66 | B68: 0 | C68: 0 | D68: 56 | E68: 0 | F68: 18.52118 | G68: 18.52118 | H68: 0 | I68: 0
A69: 67 | B69: 0 | C69: 0 | D69: 56 | E69: 0 | F69: 18.52118 | G69: 18.52118 | H69: 0 | I69: 0
A70: 68 | B70: 0 | C70: 0 | D70: 56 | E70: 0 | F70: 18.52118 | G70: 18.52118 | H70: 0 | I70: 0
A71: 69 | B71: 0 | C71: 0 | D71: 56 | E71: 0 | F71: 18.52118 | G71: 18.52118 | H71: 0 | I71: 0
A72: 70 | B72: 0 | C72: 0 | D72: 56 | E72: 0 | F72: 18.52118 | G72: 18.52118 | H72: 0 | I72: 0
A73: 71 | B73: 0 | C73: 0 | D73: 56 | E73: 0 | F73: 18.52118 | G73: 18.52118 | H73: 0 | I73: 0
A74: 72 | B74: 0 | C74: 0 | D74: 56 | E74: 0 | F74: 18.52118 | G74: 18.52118 | H74: 0 | I74: 0
A75: 73 | B75: 0 | C75: 0 | D75: 56 | E75: 0 | F75: 18.52118 | G75: 18.52118 | H75: 0 | I75: 0
A76: 74 | B76: 0 | C76: 0 | D76: 56 | E76: 0 | F76: 18.52118 | G76: 18.52118 | H76: 0 | I76: 0
A77: 75 | B77: 0 | C77: 0 | D77: 56 | E77: 0 | F77: 18.52118 | G77: 18.52118 | H77: 0 | I77: 0
